Workbook

Sheet Info
C1: Information
C2: Outil de Calcul de Rentabilité des Projets Autoproduction en Tunisie en Moyenne et Haute Tension (Version mai 2017)
C5: A propos de l'outil
C7: A quoi sert l’outil?
C8: Permet de calculer la rentabilité des projets PV pour tous les segments de marché PV en Tunisie
C9: Les résultats présentés sous forme de graphiques donnent un aperçu des flux de trésorerie du projet et les paramètres financiers indiquent la rentabilité et les risques des investissements
C10: Permet de tester la sensibilité d’un projet aux changements des conditions-cadres (tarifs d’électricité, coût du système etc.)
C11: Permet de confirmer les résultats et les prévisions de rentabilité d’un projet tels que présentés par des tierces personnes
C13: Pourquoi l'utiliser?
C14: Afin d’optimiser les projets en déterminant la taille de l’installation, le montant de la dette, la durée du crédit ou encore le TRI des capitaux propres
C15: Afin de comprendre les rouages du projet et le modèle commercial utilisé, pour ensuite comprendre les risques éventuels associés au projet (analyse des scénarios)
C16: Pour découvrir des segments de marché réellement attractifs et pouvoir associer des chiffres concrets aux discussions avec les banques et développeurs de projets
C17: Pour bénéficier de la transparence qu’offre l’outil concernant les méthodes de calcul (contrairement aux calculs opaques des outils de planification technique standards)
C19: Guide pour la modélisation des flux de trésorerie
C20: Vous trouverez une vidéo sur le site du projet, avec une introduction aux notions fondamentales de la modélisation des flux de trésorerie pour les projets PV
C21: Le projet "Enabling PV dans la région MENA" décrit et analyse de manière détaillée les modèles commerciaux les plus appliqués pour le PV en Tunisie. De plus, il établit des calculs de rentabilité pour plusieurs projets-type du secteur résidentiel, commercial et industriel.
C23: Sites internet
C24: https://energypedia.info/wiki/Developing_the_Solar_Energy_Market_in_Tunisia_(Project_DMS)
C25: https://energypedia.info/wiki/Projet_de_Renforcement_du_Marché_Solaire_en_Tunisie_(RMS)
C26: https://energypedia.info/wiki/Enabling_PV_in_the_MENA_Region
C29: Soutiens et partenaires
C37: Auteurs de l'outil
C45: Christian Grundner | H45: Amin Chtioui, Elisabeth Gager | N45: Abessalem El Khazen
C46: Chef de projet (ingénieur industriel) | H46: Renforcement du Marché Solaire en Tunisie | N46: Directeur des Energies Renouvelables
C47: Spécialiste du financement des énergies renouvelables | H47: Chef de Projet et Conseillère en Energie
C49: eclareon GmbH | H49: Deutsche Gesellschaft für Internationale Zusammenarbeit (GIZ) GmbH | N49: Agence Nationale pour la Maîtrise de l'Energie
C50: Giesebrechtstraße 20 | H50: B.P. 753 | N50: Cité Administrative, Av. Japan B.P. 213 Montplaisir, Tunis
C51: D-10629 Berlin | H51: 1080 Tunis-Cedex, Tunisie
C52: Email: cg@eclareon.com | H52: Email: elisabeth.gager@giz.de | N52: Tel: +216 71 906 900
C53: URL: www.eclareon.com | H53: URL: www.giz.de | N53: Fax: +216 71 904 624
N54: Email: elkhazen@anme.nat.tn
C55: (auteur de la version originale de l'outil 2015) | N55: Web: www.anme.nat.tn
C59: Clause de non-responsabilité
C61: Le contenu de ce document a été soigneusement préparé et révisé. Cependant, eclareon ne garantit pas l'exactitude, l'exhaustivité ou la qualité des informations fournies, ni que celles-ci soient à jour.
C62: Les actions en responsabilité contre eclareon au titre du dommage matériel ou immatériel causé par l'utilisation ou la non-utilisation des informations fournies ou par l’utilisation d’informations inexactes ou incomplètes,
C63: sont en principe exclues à moins qu'on ne puisse apporter la preuve d'une faute intentionnelle ou d'une négligence grave de la part de la société.

Sheet entrées par défault (hidden)
A1: Hypothèses détaillées DEFAUT
A2: Changer les hypothèses si nécessaire. Les valeurs par défault sont appropriées pour des utilisateurs typiques.
A7: Délais
A8: Départ
A9: Date de début de la modélisation | B9: 2016-10-01
A11: Construction
A12: Durée estimée | B12: 3
A14: Exploitation
A15: Durée de l'hypothèse de référence | B15: 20
A17: Construction
A18: Liste des dépenses
B19: Mois de construction | C19: Coûts relatifs
B20: 1 | C20: 0.8
B21: 2 | C21: 0
B22: 3 | C22: 0.2
B23: 4 | C23: 0
B24: 5 | C24: 0
B25: 6 | C25: 0
B26: Total | C26: 1
A27: Subvention
A28: Années d'allocation de la subvention | B28: 0
A30: Exploitation
A31: Production
A32: Dégradation des performances | B32: 0.007 | C32: % p.a. | E32: Rendement spécifique | G32: Calcul Automatique
A33: Rendement global | B33: 1 | C33: x
A35: Economies d'électricité
A36: Net-metering
A38: Choix du Tarif Souscrit STEG
A39: Les tarifs par défault sont applicables pour janvier 2017.
A41: Tarif Uniforme | B41: 0.176 | C41: DT/kWh
A43: Tarif jour | B43: 0.161 | C43: DT/kWh
A44: Tarif pointe matin été | B44: 0.25 | C44: DT/kWh
A45: Tarif pointe soir | B45: 0.227 | C45: DT/kWh
A46: Tarif nuit | B46: 0.124 | C46: DT/kWh
A48: TVA payé par le client pour consommation | B48: 0 | C48: =HYPERLINK("#"&ADDRESS(ROW(),COLUMN()-1),CHAR(128)) -> €
A49: surtaxe municipale | B49: 0.005 | C49: DT/kWh
A51: Tarifs d'Achat de l'Excèdent
A52: Tarif jour | B52: 0.115 | C52: DT/kWh
A53: Tarif pointe matin été | B53: 0.182 | C53: DT/kWh
A54: Tarif pointe soir | B54: 0.168 | C54: DT/kWh
A55: Tarif nuit | B55: 0.087 | C55: DT/kWh
A57: Net-metering | B57: La limite annuelle de l'excédent est fixé à 30% (en janvier 2017).
A58: Limite annuelle de l'excedent | B58: 0.3 | C58: %
X59: 2037
A60: Projections de prix | C60: =YEAR(Model_Start) -> 2016 | D60: =C60+1 -> 2017 | F60: =D60+1 -> 2018 | G60: =F60+1 -> 2019 | H60: =G60+1 -> 2020 | I60: =H60+1 -> 2021
A61: Augmentation du tarif de vente | B61: % | C61: 0 | D61: 0.05 | F61: 0.05 | G61: 0.05 | H61: 0.05 | I61: 0.05
A62: Augmentation du tarif d'achat de l'excédent | B62: % | C62: 0 | D62: 0.05 | F62: 0.05 | G62: 0.05 | H62: 0.05 | I62: 0
A64: Coûts d’exploitation
A65: Exploitation & Maintenance
A66: Coûts fixes d'exploitation | B66: 0.015 | C66: % de l'investissement
A68: Catégories de coûts
A69: Coûts fixes
A70: Autre | B70: 0 | C70: DT p.a.
A71: Autre | B71: 0 | C71: DT p.a.
A72: Autre | B72: 0 | C72: DT p.a.
A73: Autre | B73: 0 | C73: DT p.a.
A75: Coûts variables
A76: Bail Foncier | B76: 0 | C76: DT/kWh
A77: Autre | B77: 0 | C77: DT/kWh
A78: Autre | B78: 0 | C78: DT/kWh
A79: Autre | B79: 0 | C79: DT/kWh
A81: Dépenses en immobilisations permanentes (valeure nominale)
C82: =YEAR(Model_Start) -> 2016 | D82: =C82+1 -> 2017 | F82: =D82+1 -> 2018 | G82: =F82+1 -> 2019 | H82: =G82+1 -> 2020 | I82: =H82+1 -> 2021 | J82: 2022 | K82: 2023 | L82: 2024 | M82: 2025 | N82: 2026 | O82: 2027 | P82: 2028 | Q82: 2029 | R82: 2030 | S82: 2031 | T82: 2032 | U82: 2033 | V82: 2034 | W82: 2035
A83: Autre | B83: DT | C83: 0 | D83: 0 | F83: 0 | G83: 0 | H83: 0 | I83: 0 | J83: 0 | K83: 0 | L83: 0 | M83: 0 | N83: 0 | O83: 0 | P83: 0 | Q83: 0 | R83: 0 | S83: 0 | T83: 0 | U83: 0 | V83: 0 | W83: 0
A84: Autre | B84: DT | C84: 0 | D84: 0 | F84: 0 | G84: 0 | H84: 0 | I84: 0 | J84: 0 | K84: 0 | L84: 0 | M84: 0 | N84: 0 | O84: 0 | P84: 0 | Q84: 0 | R84: 0 | S84: 0 | T84: 0 | U84: 0 | V84: 0 | W84: 0
A85: Autre | B85: DT | C85: 0 | D85: 0 | F85: 0 | G85: 0 | H85: 0 | I85: 0 | J85: 0 | K85: 0 | L85: 0 | M85: 0 | N85: 0 | O85: 0 | P85: 0 | Q85: 0 | R85: 0 | S85: 0 | T85: 0 | U85: 0 | V85: 0 | W85: 0
A87: Financement
A88: Dette de premier rang
A89: Limite | B89: 200000 | C89: DT
A90: Montant de la dette | B90: 0.7 | C90: % | D90: =HYPERLINK("#"&ADDRESS(ROW(),COLUMN()-1),CHAR(128)) -> €
B91: =IF(C90="%",IF('Entrées Utilisateur'!D10="DT",MIN(B89,'Entrées Utilisateur'!C10*B90),MIN(B89,'Entrées Utilisateur'!C11*B90)),IF('Entrées Utilisateur'!D10="DT",B90/'Entrées Utilisateur'!C10,B90/'Entrées Utilisateur'!C11)) -> 192500 | C91: =IF(C90="DT/kW","DT","DT/kW") -> DT/kW
A93: Période | C93: Cons | D93: 1 | F93: 2 | G93: 3 | H93: 4
A94: Marge | B94: % p.a. | C94: 0.0125 | D94: 0.0125 | F94: 0.0125 | G94: 0.0125 | H94: 0.0125
A96: Frais de financement
A97: Commission initiale | B97: 0.01 | C97: % crédit
A98: Commission d'engagement | B98: 0.25 | C98: % marge
A100: Modalités de remboursement
A101: Durée du crédit | B101: 10
A102: Délai de grâce | B102: 0
A104: Capitaux propres
A106: Taux d'actualisation | B106: 0.08
A108: Elements macroéconomiques
A109: Taux d'intérêt
A110: Année civile | C110: =YEAR(Model_Start) -> 2016 | D110: =C110+1 -> 2017 | F110: =D110+1 -> 2018 | G110: =F110+1 -> 2019
A111: Taux de référence | B111: % p.a. | C111: 0.0425 | D111: 0.0425 | F111: 0.0425 | G111: 0.0425
A113: Inflation
A114: Année civile | C114: =YEAR(Model_Start) -> 2016 | D114: =C114+1 -> 2017 | F114: =D114+1 -> 2018 | G114: =F114+1 -> 2019
A115: Taux d'augmentation | B115: % p.a. | C115: 0.04 | D115: 0.04 | F115: 0.04 | G115: 0.04

Sheet Cadre Autoproduction
A2: Le cadre du régime d’autoproduction (clients MT et HT)
B39: Tableau 1. Exemple de consommation et production PV dans une période de facturation.
B40: Poste Horaire | C40: Consommation | D40: Production PV | E40: Consommation nette | F40: Excédent
B41: Jour | C41: 100 | D41: 70 | E41: 30 | F41: 0
B42: Pointe matin été | C42: 120 | D42: 150 | E42: 0 | F42: 30
B43: Pointe soir | C43: 100 | D43: 10 | E43: 90 | F43: 0
B44: Nuit / dimanche | C44: 80 | D44: 20 | E44: 60 | F44: 0
B45: Total | C45: 400 | D45: 250 | E45: 180

Sheet Entrées Utilisateur
B2: Veuillez indiquer vos hypothèses et entrées pour les analyses
A4: =CHAR(128) -> € | B4: Cliquer sur les flèches pour voir les choix possible.
B6: Hypothèses de base
B8: Construction
B10: Coût de l'installation | C10: 2750 | D10: DT/kW | E10: =HYPERLINK("#"&ADDRESS(ROW(),COLUMN()-1),CHAR(128)) -> €
C11: =IF(D10="DT",C10/C17,C10*C17) -> 275000 | D11: =IF(D10="DT/kW","DT","DT/kW") -> DT
B13: Subvention | C13: 0.2 | D13: % | E13: =HYPERLINK("#"&ADDRESS(ROW(),COLUMN()-1),CHAR(128)) -> €
C14: =IF(D13="DT",IF(D10="DT",C13/C10,C13/C11),IF(D10="DT",MIN(C13*C10,100000),MIN(C13*C11,100000))) -> 55000 | D14: =IF(D13="%","DT","%") -> DT
B15: Exploitation
B17: Taille de l'installation | C17: 100 | D17: kWc
B19: Economies d'électricité
B21: Tarif Souscrit STEG | C21: Tarif Uniforme | E21: =HYPERLINK("#"&ADDRESS(ROW(),COLUMN()-1),CHAR(128)) -> €
B23: Courbe de Charge Moyenne
B25: Type de client | C25: Industrie alimentaire | E25: =HYPERLINK("#"&ADDRESS(ROW(),COLUMN()-1),CHAR(128)) -> € | G25: =IF(C25="saisie manuelle","Coller la courbe de charge dans l'onglet 'Courbe de Charge'.","") -> 
B26: Consommation annuelle moyenne | C26: 200000 | E26: kWh/an
B28: Site et Caractéristiques des Panneaux PV
B30: Région | C30: Tunis | E30: =HYPERLINK("#"&ADDRESS(ROW(),COLUMN()-1),CHAR(128)) -> € | G30: =IF(C30="saisie manuelle","Coller la courbe de production PV dans l'onglet 'Courbe de Production PV'.","") -> 
B31: Orientation des panneaux | C31: Sud | E31: =HYPERLINK("#"&ADDRESS(ROW(),COLUMN()-1),CHAR(128)) -> €
B36: Hypothèses détaillées
B37: Changer les hypothèses si nécessaire. Les valeurs par défault sont appropriées pour des utilisateurs typiques.
B42: Délais
B43: Départ
B44: Date de début de la modélisation | C44: 2016-10-01
B46: Construction
B47: Durée estimée | C47: 3
B49: Exploitation
B50: Durée de l'hypothèse de référence | C50: 20
B52: Construction
B53: Liste des dépenses
C54: Mois de construction | D54: Coûts relatifs
C55: 1 | D55: 0.8
C56: 2 | D56: 0
C57: 3 | D57: 0.2
C58: 4 | D58: 0
C59: 5 | D59: 0
C60: 6 | D60: 0
C61: Total | D61: =SUM(D55:D60) -> 1
B62: Subvention
B63: Années d'allocation de la subvention | C63: 0
B65: Exploitation
B66: Production
B67: Dégradation des performances | C67: 0.007 | D67: % p.a. | F67: Rendement spécifique | H67: Calcul Automatique | I67: =HYPERLINK("#"&ADDRESS(ROW(),COLUMN()-1),CHAR(128)) -> €
B68: Rendement global | C68: 1 | D68: x | H68: 0 | I68: kWh/kW
B70: Economies d'électricité
B71: Net-metering
B73: Choix du Tarif Souscrit STEG
B74: Les tarifs par défault sont applicables pour janvier 2017.
B75: Tarif Uniforme | C75: 0.176 | D75: DT/kWh
B77: Tarif par Postes Horaires
B78: Tarif jour | C78: 0.161 | D78: DT/kWh
B79: Tarif pointe matin été | C79: 0.25 | D79: DT/kWh
B80: Tarif pointe soir | C80: 0.227 | D80: DT/kWh
B81: Tarif nuit / dim | C81: 0.124 | D81: DT/kWh
B83: TVA payé par le client pour consommation | C83: 0 | D83: =HYPERLINK("#"&ADDRESS(ROW(),COLUMN()-1),CHAR(128)) -> €
B84: surtaxe municipale | C84: 0.005 | D84: DT/kWh
B86: Tarifs d'Achat de l'Excédent
B87: Tarif jour | C87: 0.115 | D87: DT/kWh
B88: Tarif pointe matin été | C88: 0.182 | D88: DT/kWh
B89: Tarif pointe soir | C89: 0.168 | D89: DT/kWh
B90: Tarif nuit / dim | C90: 0.087 | D90: DT/kWh
B92: Net-metering
B93: Limite annuelle de l'excédent | C93: 0.3 | D93: %
B95: Projections de prix | D95: =YEAR(Model_Start) -> 2016 | E95: =D95+1 -> 2017 | G95: =E95+1 -> 2018 | H95: =G95+1 -> 2019 | I95: =H95+1 -> 2020 | J95: =I95+1 -> 2021
B96: Augmentation du tarif de vente | C96: % | D96: 0 | E96: 0.05 | G96: 0.05 | H96: 0.05 | I96: 0.05 | J96: 0.05
B97: Augmentation du tarif d'achat de l'excédent | C97: % | D97: 0 | E97: 0.05 | G97: 0.05 | H97: 0.05 | I97: 0.05 | J97: 0
B99: Coûts d’exploitation
B100: Exploitation & Maintenance
B101: Coûts fixes d'exploitation | C101: 0.015 | D101: % de l'investissement par an
B103: Catégories de coûts
B104: Coûts fixes
B105: Autre | C105: 0 | D105: DT p.a.
B106: Autre | C106: 0 | D106: DT p.a.
B107: Autre | C107: 0 | D107: DT p.a.
B108: Autre | C108: 0 | D108: DT p.a.
B110: Coûts variables
B111: Bail Foncier | C111: 0 | D111: DT/kWh
B112: Autre | C112: 0 | D112: DT/kWh
B113: Autre | C113: 0 | D113: DT/kWh
B114: Autre | C114: 0 | D114: DT/kWh
B116: Dépenses en immobilisations permanentes (valeure nominale)
D117: =YEAR(Model_Start) -> 2016 | E117: =D117+1 -> 2017 | G117: =E117+1 -> 2018 | H117: =G117+1 -> 2019 | I117: =H117+1 -> 2020 | J117: =I117+1 -> 2021 | K117: 2022 | L117: 2023 | M117: 2024 | N117: 2025 | O117: 2026 | P117: 2027 | Q117: 2028 | R117: 2029 | S117: 2030 | T117: 2031 | U117: 2032 | V117: 2033 | W117: 2034 | X117: 2035
B118: Autre | C118: DT | D118: 0 | E118: 0 | G118: 0 | H118: 0 | I118: 0 | J118: 0 | K118: 0 | L118: 0 | M118: 0 | N118: 0 | O118: 0 | P118: 0 | Q118: 0 | R118: 0 | S118: 0 | T118: 0 | U118: 0 | V118: 0 | W118: 0 | X118: 0
B119: Autre | C119: DT | D119: 0 | E119: 0 | G119: 0 | H119: 0 | I119: 0 | J119: 0 | K119: 0 | L119: 0 | M119: 0 | N119: 0 | O119: 0 | P119: 0 | Q119: 0 | R119: 0 | S119: 0 | T119: 0 | U119: 0 | V119: 0 | W119: 0 | X119: 0
B120: Autre | C120: DT | D120: 0 | E120: 0 | G120: 0 | H120: 0 | I120: 0 | J120: 0 | K120: 0 | L120: 0 | M120: 0 | N120: 0 | O120: 0 | P120: 0 | Q120: 0 | R120: 0 | S120: 0 | T120: 0 | U120: 0 | V120: 0 | W120: 0 | X120: 0
B122: Financement
B123: Dette de premier rang
B124: Limite | C124: 200000 | D124: DT
B125: Montant de la dette | C125: 0.7 | D125: % | E125: =HYPERLINK("#"&ADDRESS(ROW(),COLUMN()-1),CHAR(128)) -> €
C126: =IF(D125="%",IF(D10="DT",MIN(C124,C10*C125),MIN(C124,C11*C125)),IF(D10="DT",C125/C10,C125/C11)) -> 192500 | D126: =IF(D125="%","DT","%") -> DT
B128: Période | D128: Cons | E128: 1 | G128: 2 | H128: 3 | I128: 4
B129: Marge | C129: % p.a. | D129: 0.0125 | E129: 0.0125 | G129: 0.0125 | H129: 0.0125 | I129: 0.0125
B131: Frais de financement
B132: Commission initiale | C132: 0.01 | D132: % crédit
B133: Commission d'engagement | C133: 0.25 | D133: % marge
B135: Modalités de remboursement
B136: Durée du crédit | C136: 10
B137: Délai de grâce | C137: 0
B139: Capitaux propres
B141: Taux d'actualisation | C141: 0.08
B143: Elements macroéconomiques
B144: Taux d'intérêt
B145: Année civile | D145: =YEAR(Model_Start) -> 2016 | E145: =D145+1 -> 2017 | G145: =E145+1 -> 2018 | H145: =G145+1 -> 2019
B146: Taux de référence (Banque Centrale) | C146: % p.a. | D146: 0.0425 | E146: 0.0425 | G146: 0.0425 | H146: 0.0425
B148: Inflation
B149: Année civile | D149: =YEAR(Model_Start) -> 2016 | E149: =D149+1 -> 2017 | G149: =E149+1 -> 2018 | H149: =G149+1 -> 2019
B150: Taux d'augmentation | C150: % p.a. | D150: 0.04 | E150: 0.04 | G150: 0.04 | H150: 0.04

Sheet Résultats
B2: ="Résultats: "&'Entrées Utilisateur'!C25&" à "&'Entrées Utilisateur'!C30&", orientation des panneaux "&'Entrées Utilisateur'!C31 -> Résultats: Industrie alimentaire à Tunis, orientation des panneaux Sud
B4: variable | C4: valeur | D4: unité | E4: Description
B5: Consommation brute annuelle | C5: ='Compensation PV'!L17 -> 200000 | D5: kWh | E5: La consommation électrique du client sur l'année
B6: Production annuelle | C6: ='Compensation PV'!G17 -> 156147.748 | D6: kWh | E6: L'électricité générée par le système PV la première année
B7: Ratio Production PV – consommation | C7: =C6/C5 -> 0.7807387398 | D7: - | E7: Pourcentage de la consommation brute annuelle produite par le système PV
B8: Pourcentage de la production en excédent | C8: ='Compensation PV'!C21 -> 0.2313172046 | D8: -
B9: Montant à rembourser à la fin de l'année | C9: ='Compensation PV'!C22 -> 0 | D9: DT/an | E9: Remboursement à la STEG en raison de dépassement de la limite de l'excédent (première année)
B10: Coût Moyen Actualisé de l'Énergie (LCOE) avec subvention | C10: ='Flux de trésorerie'!I74 -> 0.1753383169 | D10: DT/kWh | E10: Le coût actualisé de l'énergie, qui correspond au prix moyen de l'électricité généré par le système sur la vie du projet prenant en compte la subvention
B11: Facture annuelle sans PV | C11: =SUM('Compensation PV'!N31:N8790) -> 36200 | D11: DT/an | E11: La facture d'électricité totale sur la première année sans système PV
B12: Facture annuelle avec PV | C12: ='Compensation PV'!S17 -> 14474.91618 | D12: DT/an | E12: La facture d'électricité totale sur la première année avec système PV
B13: Vente annuelle de l'excédent à la STEG | C13: ='Compensation PV'!X17 -> 4965.687781 | D13: DT/an | E13: Le montant facturé à la STEG pour l'électricité en excédent, prenant en compte la limite de l'excédent.
B14: Temps de retour sur investissement | C14: ='Capitaux propres'!F45 -> 12.71498748 | D14: années | E14: Le nombre d'années nécessaire pour que le client rembourse sont investissement initial
B15: Taux de rentabilité interne du projet | C15: ='Flux de trésorerie'!I60 -> 0.08932659924 | D15: - | E15: Le taux d'actualisation nécessaire pour que la valeur actuelle nette du projet soit égale à zero. Le TRI est utilisé pour comparer l'investissement à d'autres investissement de risques similaires.
B16: Réduction d'émissions de gaz à effet de serre sur la vie du système PV | C16: =SUM('Courbes de Production PV'!AW9:AW8768)*Données!G16*0.57/1000 -> 1780.084327 | D16: tonnes équivalent CO2 | E16: En produisant de l'électricité à partir du solaire, la production d'électricité de sources conventionnelles est évitée ainsi que ses émissions CO2. La production de 1 MWh d'électricité solaire en Tunisie déplace en moyenne 0,57 tonnes équivalent de CO2.
B22: Installation PV | F22: Investissement
B23: Taille de l’installation | C23: kWc | D23: =Données!G37 -> 100 | F23: Durée du projet | H23: années | I23: =Données!G17 -> 20
B24: Coût d’investissement spécifique | C24: DT/kWc | D24: =Données!G22/Données!G37 -> 2750 | F24: Subventions | H24: DT | I24: =Données!G31 -> 55000
B25: Coût d’investissement total | C25: DT | D25: =Données!G23 -> 275000 | F25: Capitaux propres | H25: DT | I25: =Données!G132 -> 85788.65547
B26: Coût d’investissement sans subvention | C26: DT | D26: =Données!G23-Données!G31 -> 220000 | F26: Montant de la dette | G26: =I26/D25 -> 0.7 | H26: DT | I26: =Données!G111 -> 192500
F27: Durée du crédit | H27: années | I27: =Données!G125 -> 10
B28: Rendement spécifique | C28: kWh/kWc/a | D28: ='Courbes de Production PV'!C6 -> 1561.47748 | F28: Taux d’intérêt | H28: % | I28: =Données!H116+Données!H143 -> 0.055
B29: Dégradation des performances | C29: % p.a. | D29: =Données!G39 -> 0.007 | F29: Taux d'actualisation | H29: % | I29: =Données!G135 -> 0.08
B30: Coûts fixes | C30: DT/a | D30: =Données!G91 -> 4125
B31: Coûts variables | C31: DT/kWh | D31: =Données!G98 -> 0
B33: Paramètres de prix | F33: Autres indicateurs de rentabilité et financiers
B34: Économies facturation* | C34: DT/kWh | D34: =Données!G77 -> 0.1709327989 | F34: Coût Moyen Actualisé de l'Énergie (LCOE) sans subvention | H34: DT/kWh | I34: ='Flux de trésorerie'!I73 -> 0.2086376174
B35: Limite facturation annuelle par poste horaire | C35: % | D35: =Données!G70 -> 0.3 | F35: Valeur Actualisée Nette | H35: DT | I35: ='Capitaux propres'!F31 -> 93044.27048
B36: TVA | C36: % | D36: =Données!G57 -> 0 | F36: TRI des capitaux propres | H36: % | I36: ='Capitaux propres'!F28 -> 0.1537252367
B37: Taxe vente du surplus | C37: DT/kWh | D37: =Données!G58 -> 0.005 | F37: Min DSCR* | H37: x | I37: =Financement!F48 -> 1.290394014
B38: Augmentation du prix de l’électricité** | C38: % p.a. | D38: =Données!L73 -> 0.05 | F38: Min LLCR** | H38: x | I38: =Financement!F61 -> 1.512508177
B39: Inflation | C39: % p.a. | D39: =Données!G147 -> 0.04
B40: * avec TVA (si applicable), tarif STEG de l'année de construction | F40: * DSCR: Ratio de couverture du service de la dette
B41: ** après 5 ans | F41: ** LLCR: Ratio de couverture de la durée du prêt

Sheet worksheet (hidden)
C5: énergie auto-consommée (kWh) | G5: énergie auto-consommée (DT) | K5: énergie cédée (kWh) | O5: énergie cédée (DT)
B6: Mois | C6: Tarif jour | D6: Tarif pointe matin été | E6: Tarif pointe soir | F6: Tarif nuit / dimanche | G6: Tarif jour | H6: Tarif pointe matin été | I6: Tarif pointe soir | J6: Tarif nuit / dimanche | K6: Tarif jour | L6: Tarif pointe matin été | M6: Tarif pointe soir | N6: Tarif nuit / dimanche | O6: Tarif jour | P6: Tarif pointe matin été | Q6: Tarif pointe soir | R6: Tarif nuit / dimanche | S6: remboursement fin d'année
B7: JAN | C7: =MIN('Compensation PV'!C5,'Compensation PV'!H5) -> 3219.033357 | D7: =MIN('Compensation PV'!D5,'Compensation PV'!I5) -> 0 | E7: =MIN('Compensation PV'!E5,'Compensation PV'!J5) -> 0 | F7: =MIN('Compensation PV'!F5,'Compensation PV'!K5) -> 1025.127157 | G7: =C7*('Compensation PV'!$C$8798*(1+Données!$G$57)+Données!$G$58) -> 582.6450376 | H7: =D7*('Compensation PV'!$C$8799*(1+Données!$G$57)+Données!$G$58) -> 0 | I7: =E7*('Compensation PV'!$C$8800*(1+Données!$G$57)+Données!$G$58) -> 0 | J7: =F7*('Compensation PV'!$C$8801*(1+Données!$G$57)+Données!$G$58) -> 185.5480154 | K7: =IF('Compensation PV'!M5<0,-'Compensation PV'!M5,0) -> 3928.111686 | L7: =IF('Compensation PV'!N5<0,-'Compensation PV'!N5,0) -> 0 | M7: =IF('Compensation PV'!O5<0,-'Compensation PV'!O5,0) -> 0 | N7: =IF('Compensation PV'!P5<0,-'Compensation PV'!P5,0) -> 0 | O7: =K7*'Entrées Utilisateur'!$C$87 -> 451.7328438 | P7: =L7*'Entrées Utilisateur'!$C$88 -> 0 | Q7: =M7*'Entrées Utilisateur'!$C$89 -> 0 | R7: =N7*'Entrées Utilisateur'!$C$90 -> 0
B8: FÉV | C8: =MIN('Compensation PV'!C6,'Compensation PV'!H6) -> 6564.433976 | D8: =MIN('Compensation PV'!D6,'Compensation PV'!I6) -> 0 | E8: =MIN('Compensation PV'!E6,'Compensation PV'!J6) -> 0 | F8: =MIN('Compensation PV'!F6,'Compensation PV'!K6) -> 1504.686909 | G8: =C8*('Compensation PV'!$C$8798*(1+Données!$G$57)+Données!$G$58) -> 1188.16255 | H8: =D8*('Compensation PV'!$C$8799*(1+Données!$G$57)+Données!$G$58) -> 0 | I8: =E8*('Compensation PV'!$C$8800*(1+Données!$G$57)+Données!$G$58) -> 0 | J8: =F8*('Compensation PV'!$C$8801*(1+Données!$G$57)+Données!$G$58) -> 272.3483305 | K8: =IF('Compensation PV'!M6<0,-'Compensation PV'!M6,0) -> 1703.539492 | L8: =IF('Compensation PV'!N6<0,-'Compensation PV'!N6,0) -> 0 | M8: =IF('Compensation PV'!O6<0,-'Compensation PV'!O6,0) -> 0 | N8: =IF('Compensation PV'!P6<0,-'Compensation PV'!P6,0) -> 0 | O8: =K8*'Entrées Utilisateur'!$C$87 -> 195.9070415 | P8: =L8*'Entrées Utilisateur'!$C$88 -> 0 | Q8: =M8*'Entrées Utilisateur'!$C$89 -> 0 | R8: =N8*'Entrées Utilisateur'!$C$90 -> 0
B9: MAR | C9: =MIN('Compensation PV'!C7,'Compensation PV'!H7) -> 6049.514643 | D9: =MIN('Compensation PV'!D7,'Compensation PV'!I7) -> 0 | E9: =MIN('Compensation PV'!E7,'Compensation PV'!J7) -> 1.2622575 | F9: =MIN('Compensation PV'!F7,'Compensation PV'!K7) -> 2594.438775 | G9: =C9*('Compensation PV'!$C$8798*(1+Données!$G$57)+Données!$G$58) -> 1094.96215 | H9: =D9*('Compensation PV'!$C$8799*(1+Données!$G$57)+Données!$G$58) -> 0 | I9: =E9*('Compensation PV'!$C$8800*(1+Données!$G$57)+Données!$G$58) -> 0.2284686075 | J9: =F9*('Compensation PV'!$C$8801*(1+Données!$G$57)+Données!$G$58) -> 469.5934183 | K9: =IF('Compensation PV'!M7<0,-'Compensation PV'!M7,0) -> 5656.582847 | L9: =IF('Compensation PV'!N7<0,-'Compensation PV'!N7,0) -> 0 | M9: =IF('Compensation PV'!O7<0,-'Compensation PV'!O7,0) -> 0 | N9: =IF('Compensation PV'!P7<0,-'Compensation PV'!P7,0) -> 0 | O9: =K9*'Entrées Utilisateur'!$C$87 -> 650.5070274 | P9: =L9*'Entrées Utilisateur'!$C$88 -> 0 | Q9: =M9*'Entrées Utilisateur'!$C$89 -> 0 | R9: =N9*'Entrées Utilisateur'!$C$90 -> 0
B10: AVR | C10: =MIN('Compensation PV'!C8,'Compensation PV'!H8) -> 9580.043907 | D10: =MIN('Compensation PV'!D8,'Compensation PV'!I8) -> 0 | E10: =MIN('Compensation PV'!E8,'Compensation PV'!J8) -> 19.3502362 | F10: =MIN('Compensation PV'!F8,'Compensation PV'!K8) -> 2467.947979 | G10: =C10*('Compensation PV'!$C$8798*(1+Données!$G$57)+Données!$G$58) -> 1733.987947 | H10: =D10*('Compensation PV'!$C$8799*(1+Données!$G$57)+Données!$G$58) -> 0 | I10: =E10*('Compensation PV'!$C$8800*(1+Données!$G$57)+Données!$G$58) -> 3.502392752 | J10: =F10*('Compensation PV'!$C$8801*(1+Données!$G$57)+Données!$G$58) -> 446.6985842 | K10: =IF('Compensation PV'!M8<0,-'Compensation PV'!M8,0) -> 2540.358153 | L10: =IF('Compensation PV'!N8<0,-'Compensation PV'!N8,0) -> 0 | M10: =IF('Compensation PV'!O8<0,-'Compensation PV'!O8,0) -> 0 | N10: =IF('Compensation PV'!P8<0,-'Compensation PV'!P8,0) -> 0 | O10: =K10*'Entrées Utilisateur'!$C$87 -> 292.1411875 | P10: =L10*'Entrées Utilisateur'!$C$88 -> 0 | Q10: =M10*'Entrées Utilisateur'!$C$89 -> 0 | R10: =N10*'Entrées Utilisateur'!$C$90 -> 0
B11: MAI | C11: =MIN('Compensation PV'!C9,'Compensation PV'!H9) -> 9294.718018 | D11: =MIN('Compensation PV'!D9,'Compensation PV'!I9) -> 0 | E11: =MIN('Compensation PV'!E9,'Compensation PV'!J9) -> 73.069052 | F11: =MIN('Compensation PV'!F9,'Compensation PV'!K9) -> 2377.137772 | G11: =C11*('Compensation PV'!$C$8798*(1+Données!$G$57)+Données!$G$58) -> 1682.343961 | H11: =D11*('Compensation PV'!$C$8799*(1+Données!$G$57)+Données!$G$58) -> 0 | I11: =E11*('Compensation PV'!$C$8800*(1+Données!$G$57)+Données!$G$58) -> 13.22549841 | J11: =F11*('Compensation PV'!$C$8801*(1+Données!$G$57)+Données!$G$58) -> 430.2619367 | K11: =IF('Compensation PV'!M9<0,-'Compensation PV'!M9,0) -> 5123.191572 | L11: =IF('Compensation PV'!N9<0,-'Compensation PV'!N9,0) -> 0 | M11: =IF('Compensation PV'!O9<0,-'Compensation PV'!O9,0) -> 0 | N11: =IF('Compensation PV'!P9<0,-'Compensation PV'!P9,0) -> 0 | O11: =K11*'Entrées Utilisateur'!$C$87 -> 589.1670308 | P11: =L11*'Entrées Utilisateur'!$C$88 -> 0 | Q11: =M11*'Entrées Utilisateur'!$C$89 -> 0 | R11: =N11*'Entrées Utilisateur'!$C$90 -> 0
B12: JUN | C12: =MIN('Compensation PV'!C10,'Compensation PV'!H10) -> 5633.823294 | D12: =MIN('Compensation PV'!D10,'Compensation PV'!I10) -> 4131.712731 | E12: =MIN('Compensation PV'!E10,'Compensation PV'!J10) -> 1.3406442 | F12: =MIN('Compensation PV'!F10,'Compensation PV'!K10) -> 2892.763019 | G12: =C12*('Compensation PV'!$C$8798*(1+Données!$G$57)+Données!$G$58) -> 1019.722016 | H12: =D12*('Compensation PV'!$C$8799*(1+Données!$G$57)+Données!$G$58) -> 747.8400043 | I12: =E12*('Compensation PV'!$C$8800*(1+Données!$G$57)+Données!$G$58) -> 0.2426566002 | J12: =F12*('Compensation PV'!$C$8801*(1+Données!$G$57)+Données!$G$58) -> 523.5901065 | K12: =IF('Compensation PV'!M10<0,-'Compensation PV'!M10,0) -> 364.8473758 | L12: =IF('Compensation PV'!N10<0,-'Compensation PV'!N10,0) -> 4562.986969 | M12: =IF('Compensation PV'!O10<0,-'Compensation PV'!O10,0) -> 0 | N12: =IF('Compensation PV'!P10<0,-'Compensation PV'!P10,0) -> 0 | O12: =K12*'Entrées Utilisateur'!$C$87 -> 41.95744821 | P12: =L12*'Entrées Utilisateur'!$C$88 -> 830.4636284 | Q12: =M12*'Entrées Utilisateur'!$C$89 -> 0 | R12: =N12*'Entrées Utilisateur'!$C$90 -> 0
B13: JUL | C13: =MIN('Compensation PV'!C11,'Compensation PV'!H11) -> 4832.608812 | D13: =MIN('Compensation PV'!D11,'Compensation PV'!I11) -> 4573.574097 | E13: =MIN('Compensation PV'!E11,'Compensation PV'!J11) -> 1.547882 | F13: =MIN('Compensation PV'!F11,'Compensation PV'!K11) -> 2220.923814 | G13: =C13*('Compensation PV'!$C$8798*(1+Données!$G$57)+Données!$G$58) -> 874.7021949 | H13: =D13*('Compensation PV'!$C$8799*(1+Données!$G$57)+Données!$G$58) -> 827.8169116 | I13: =E13*('Compensation PV'!$C$8800*(1+Données!$G$57)+Données!$G$58) -> 0.280166642 | J13: =F13*('Compensation PV'!$C$8801*(1+Données!$G$57)+Données!$G$58) -> 401.9872104 | K13: =IF('Compensation PV'!M11<0,-'Compensation PV'!M11,0) -> 1065.139288 | L13: =IF('Compensation PV'!N11<0,-'Compensation PV'!N11,0) -> 4141.485203 | M13: =IF('Compensation PV'!O11<0,-'Compensation PV'!O11,0) -> 0 | N13: =IF('Compensation PV'!P11<0,-'Compensation PV'!P11,0) -> 0 | O13: =K13*'Entrées Utilisateur'!$C$87 -> 122.4910182 | P13: =L13*'Entrées Utilisateur'!$C$88 -> 753.7503069 | Q13: =M13*'Entrées Utilisateur'!$C$89 -> 0 | R13: =N13*'Entrées Utilisateur'!$C$90 -> 0
B14: AOÛ | C14: =MIN('Compensation PV'!C12,'Compensation PV'!H12) -> 5106.537868 | D14: =MIN('Compensation PV'!D12,'Compensation PV'!I12) -> 4638.029882 | E14: =MIN('Compensation PV'!E12,'Compensation PV'!J12) -> 0 | F14: =MIN('Compensation PV'!F12,'Compensation PV'!K12) -> 2668.862633 | G14: =C14*('Compensation PV'!$C$8798*(1+Données!$G$57)+Données!$G$58) -> 924.2833541 | H14: =D14*('Compensation PV'!$C$8799*(1+Données!$G$57)+Données!$G$58) -> 839.4834087 | I14: =E14*('Compensation PV'!$C$8800*(1+Données!$G$57)+Données!$G$58) -> 0 | J14: =F14*('Compensation PV'!$C$8801*(1+Données!$G$57)+Données!$G$58) -> 483.0641366 | K14: =IF('Compensation PV'!M12<0,-'Compensation PV'!M12,0) -> 0 | L14: =IF('Compensation PV'!N12<0,-'Compensation PV'!N12,0) -> 3413.838518 | M14: =IF('Compensation PV'!O12<0,-'Compensation PV'!O12,0) -> 0 | N14: =IF('Compensation PV'!P12<0,-'Compensation PV'!P12,0) -> 0 | O14: =K14*'Entrées Utilisateur'!$C$87 -> 0 | P14: =L14*'Entrées Utilisateur'!$C$88 -> 621.3186102 | Q14: =M14*'Entrées Utilisateur'!$C$89 -> 0 | R14: =N14*'Entrées Utilisateur'!$C$90 -> 0
B15: SEP | C15: =MIN('Compensation PV'!C13,'Compensation PV'!H13) -> 9645.711267 | D15: =MIN('Compensation PV'!D13,'Compensation PV'!I13) -> 0 | E15: =MIN('Compensation PV'!E13,'Compensation PV'!J13) -> 1.8050026 | F15: =MIN('Compensation PV'!F13,'Compensation PV'!K13) -> 1383.267837 | G15: =C15*('Compensation PV'!$C$8798*(1+Données!$G$57)+Données!$G$58) -> 1745.873739 | H15: =D15*('Compensation PV'!$C$8799*(1+Données!$G$57)+Données!$G$58) -> 0 | I15: =E15*('Compensation PV'!$C$8800*(1+Données!$G$57)+Données!$G$58) -> 0.3267054706 | J15: =F15*('Compensation PV'!$C$8801*(1+Données!$G$57)+Données!$G$58) -> 250.3714785 | K15: =IF('Compensation PV'!M13<0,-'Compensation PV'!M13,0) -> 2931.012364 | L15: =IF('Compensation PV'!N13<0,-'Compensation PV'!N13,0) -> 0 | M15: =IF('Compensation PV'!O13<0,-'Compensation PV'!O13,0) -> 0 | N15: =IF('Compensation PV'!P13<0,-'Compensation PV'!P13,0) -> 0 | O15: =K15*'Entrées Utilisateur'!$C$87 -> 337.0664218 | P15: =L15*'Entrées Utilisateur'!$C$88 -> 0 | Q15: =M15*'Entrées Utilisateur'!$C$89 -> 0 | R15: =N15*'Entrées Utilisateur'!$C$90 -> 0
B16: OCT | C16: =MIN('Compensation PV'!C14,'Compensation PV'!H14) -> 9589.615349 | D16: =MIN('Compensation PV'!D14,'Compensation PV'!I14) -> 0 | E16: =MIN('Compensation PV'!E14,'Compensation PV'!J14) -> 0 | F16: =MIN('Compensation PV'!F14,'Compensation PV'!K14) -> 1381.882519 | G16: =C16*('Compensation PV'!$C$8798*(1+Données!$G$57)+Données!$G$58) -> 1735.720378 | H16: =D16*('Compensation PV'!$C$8799*(1+Données!$G$57)+Données!$G$58) -> 0 | I16: =E16*('Compensation PV'!$C$8800*(1+Données!$G$57)+Données!$G$58) -> 0 | J16: =F16*('Compensation PV'!$C$8801*(1+Données!$G$57)+Données!$G$58) -> 250.1207359 | K16: =IF('Compensation PV'!M14<0,-'Compensation PV'!M14,0) -> 688.5670967 | L16: =IF('Compensation PV'!N14<0,-'Compensation PV'!N14,0) -> 0 | M16: =IF('Compensation PV'!O14<0,-'Compensation PV'!O14,0) -> 0 | N16: =IF('Compensation PV'!P14<0,-'Compensation PV'!P14,0) -> 0 | O16: =K16*'Entrées Utilisateur'!$C$87 -> 79.18521612 | P16: =L16*'Entrées Utilisateur'!$C$88 -> 0 | Q16: =M16*'Entrées Utilisateur'!$C$89 -> 0 | R16: =N16*'Entrées Utilisateur'!$C$90 -> 0
B17: NOV | C17: =MIN('Compensation PV'!C15,'Compensation PV'!H15) -> 6935.837463 | D17: =MIN('Compensation PV'!D15,'Compensation PV'!I15) -> 0 | E17: =MIN('Compensation PV'!E15,'Compensation PV'!J15) -> 0 | F17: =MIN('Compensation PV'!F15,'Compensation PV'!K15) -> 1577.988621 | G17: =C17*('Compensation PV'!$C$8798*(1+Données!$G$57)+Données!$G$58) -> 1255.386581 | H17: =D17*('Compensation PV'!$C$8799*(1+Données!$G$57)+Données!$G$58) -> 0 | I17: =E17*('Compensation PV'!$C$8800*(1+Données!$G$57)+Données!$G$58) -> 0 | J17: =F17*('Compensation PV'!$C$8801*(1+Données!$G$57)+Données!$G$58) -> 285.6159404 | K17: =IF('Compensation PV'!M15<0,-'Compensation PV'!M15,0) -> 0 | L17: =IF('Compensation PV'!N15<0,-'Compensation PV'!N15,0) -> 0 | M17: =IF('Compensation PV'!O15<0,-'Compensation PV'!O15,0) -> 0 | N17: =IF('Compensation PV'!P15<0,-'Compensation PV'!P15,0) -> 0 | O17: =K17*'Entrées Utilisateur'!$C$87 -> 0 | P17: =L17*'Entrées Utilisateur'!$C$88 -> 0 | Q17: =M17*'Entrées Utilisateur'!$C$89 -> 0 | R17: =N17*'Entrées Utilisateur'!$C$90 -> 0
B18: DÉC | C18: =MIN('Compensation PV'!C16,'Compensation PV'!H16) -> 7019.666697 | D18: =MIN('Compensation PV'!D16,'Compensation PV'!I16) -> 0 | E18: =MIN('Compensation PV'!E16,'Compensation PV'!J16) -> 0 | F18: =MIN('Compensation PV'!F16,'Compensation PV'!K16) -> 1019.823916 | G18: =C18*('Compensation PV'!$C$8798*(1+Données!$G$57)+Données!$G$58) -> 1270.559672 | H18: =D18*('Compensation PV'!$C$8799*(1+Données!$G$57)+Données!$G$58) -> 0 | I18: =E18*('Compensation PV'!$C$8800*(1+Données!$G$57)+Données!$G$58) -> 0 | J18: =F18*('Compensation PV'!$C$8801*(1+Données!$G$57)+Données!$G$58) -> 184.5881289 | K18: =IF('Compensation PV'!M16<0,-'Compensation PV'!M16,0) -> 0 | L18: =IF('Compensation PV'!N16<0,-'Compensation PV'!N16,0) -> 0 | M18: =IF('Compensation PV'!O16<0,-'Compensation PV'!O16,0) -> 0 | N18: =IF('Compensation PV'!P16<0,-'Compensation PV'!P16,0) -> 0 | O18: =K18*'Entrées Utilisateur'!$C$87 -> 0 | P18: =L18*'Entrées Utilisateur'!$C$88 -> 0 | Q18: =M18*'Entrées Utilisateur'!$C$89 -> 0 | R18: =N18*'Entrées Utilisateur'!$C$90 -> 0
S19: =-'Compensation PV'!C22 -> 0

Sheet Résultats version imprimable (hidden)

Sheet Graphiques
B2: Autoconsommation et l'excédent
B34: Flux de trésorerie

Sheet Scénarios
B1: Scénarios
B4: Dimensionnement du Système PV
B5: Tableaux Scenario
C7: Scénario | F7: Taille Système PV | G7: % de la consommation annuelle généré par le system PV | H7: ='Compensation PV'!B21 -> pourcentage de la génération en excédent | I7: ='Compensation PV'!B20 -> Moyenne pondérée du tarif d'achat de l'excédent (ne prenant pas compte de la limite de facturation annuelle) | J7: ='Compensation PV'!B23 -> Moyenne pondérée du tarif d'achat de l'excédent (prenant compte de la limite de facturation annuelle) | K7: ='Compensation PV'!B22 -> montant à rembourser à la fin de l'année | L7: valeur de la kWh solaire pour le consommateur | M7: TRI des capitaux propres | N7: TRI du projet | O7: Temps de retour
C8: =OFFSET(C9,E8-1,0,1,1) -> Base Case | D8: =OFFSET(D9,E8-1,0,1,1) -> 0 | E8: 8 | F8: =Données!G37 -> 100 | G8: =SUM('Compensation PV'!G5:G16)/SUM('Compensation PV'!L5:L16) -> 0.7807387398 | H8: ='Compensation PV'!C21 -> 0.2313172046 | I8: ='Compensation PV'!C20 -> 0.1374788053 | J8: =IF('Compensation PV'!C23<>0,'Compensation PV'!C23,"") -> 0.1374788053 | K8: ='Compensation PV'!C22 -> 0 | L8: ='Compensation PV'!C27 -> 0.1709327989 | M8: =IF(OR('Capitaux propres'!$F$28<0.001,'Capitaux propres'!$F$28>1,ISERROR('Capitaux propres'!$F$28)=TRUE),#N/A,'Capitaux propres'!$F$28) -> 0.1537252367 | N8: =IF(OR('Flux de trésorerie'!$I$60<0.001,'Flux de trésorerie'!$I$60>1,ISERROR('Flux de trésorerie'!$I$60)),#N/A,'Flux de trésorerie'!$I$60) -> 0.08932659924 | O8: =IF(ISERROR('Capitaux propres'!$F$45)=TRUE,"21+",'Capitaux propres'!$F$45) -> 12.71498748
C9: Down Case | D9: =D10-0.1 -> -0.7 | E9: 1 | F9: 30 | G9: 0.2342216219 | H9: 0 | I9: 0 | K9: 0 | L9: 0.181 | M9: 0.1773031175 | N9: 0.103267163 | O9: 11.47653891 | Q9: =IF(O9="21+",#N/A,O9) -> 11.47653891
C10: Down Case | D10: -0.6 | E10: 2 | F10: 40 | G10: 0.3122954959 | H10: 0 | I10: 0 | K10: 0 | L10: 0.181 | M10: 0.1773031175 | N10: 0.103267163 | O10: 11.47653891 | Q10: =IF(O10="21+",#N/A,O10) -> 11.47653891
C11: Down Case | D11: -0.5 | E11: 3 | F11: 50 | G11: 0.3903693699 | H11: 0.007303035631 | I11: 0.1403389827 | J11: 0.1403389827 | K11: 0 | L11: 0.1807030511 | M11: 0.1766158998 | N11: 0.1028624833 | O11: 11.50852559 | Q11: 11.50852559
C12: Down Case | D12: -0.4 | E12: 4 | F12: 60 | G12: 0.4684432439 | H12: 0.04244972364 | I12: 0.1475756442 | J12: 0.1475756442 | K12: 0 | L12: 0.1795811453 | M12: 0.1736998498 | N12: 0.1010980785 | O12: 11.64242436 | Q12: 11.64242436
C13: Down Case | D13: -0.3 | E13: 5 | F13: 70 | G13: 0.5465171178 | H13: 0.08422758077 | I13: 0.1476022456 | J13: 0.1476022456 | K13: 0 | L13: 0.1781869879 | M13: 0.1701034486 | N13: 0.09892626405 | O13: 11.81253713 | Q13: 11.81253713
C14: Down Case | D14: -0.2 | E14: 6 | F14: 80 | G14: 0.6245909918 | H14: 0.1253742951 | I14: 0.1450571513 | J14: 0.1450571513 | K14: 0 | L14: 0.1764936907 | M14: 0.1660698235 | N14: 0.09653398395 | O14: 12.01401221 | Q14: 12.01401221
C15: Down Case | D15: =D16-0.1 -> -0.1 | E15: 7 | F15: 90 | G15: 0.7026648658 | H15: 0.180076482 | I15: 0.1403424719 | J15: 0.1403424719 | K15: 0 | L15: 0.1736785354 | M15: 0.1598352373 | N15: 0.09289858043 | O15: 12.3584334 | Q15: 12.3584334
C16: Base Case | D16: 0 | E16: 8 | F16: 100 | G16: 0.7807387398 | H16: 0.2313172046 | I16: 0.1374788053 | J16: 0.1374788053 | K16: 0 | L16: 0.1709327989 | M16: 0.1537252367 | N16: 0.08932659924 | O16: 12.71498748 | Q16: 12.71498748
C17: Up Case | D17: =D16+0.1 -> 0.1 | E17: 9 | F17: 110 | G17: 0.8588126137 | H17: 0.2765848323 | I17: 0.1356816177 | J17: 0.1356816177 | K17: 0 | L17: 0.1684656228 | M17: 0.1481625736 | N17: 0.08606026471 | O17: 13.0586563 | Q17: 13.0586563
C18: Up Case | D18: =D17+0.1 -> 0.2 | E18: 10 | F18: 120 | G18: 0.9368864877 | H18: 0.3175457236 | I18: 0.1343797641 | J18: 0.1269547226 | K18: 441.7963549 | L18: 0.1638381533 | M18: 0.1396829903 | N18: 0.08132162392 | O18: 13.66769645 | Q18: 13.66769645
C19: Up Case | D19: 0.3 | E19: 11 | F19: 130 | G19: 1.014960362 | H19: 0.3551898709 | I19: 0.1333591146 | J19: 0.1126375994 | K19: 1494.036333 | L19: 0.1567183677 | M19: 0.1277503073 | N19: 0.07474940121 | O19: 14.65741344 | Q19: 14.65741344
C20: Up Case | D20: 0.4 | E20: 12 | F20: 140 | G20: 1.093034236 | H20: 0.3897835005 | I20: 0.1325367911 | J20: 0.1020080051 | K20: 2601.337766 | L20: 0.1502102237 | M20: 0.1166844308 | N20: 0.06853788793 | O20: 15.72133186 | Q20: 15.72133186
C21: Up Case | D21: 0.5 | E21: 13 | F21: 150 | G21: 1.17110811 | H21: 0.420553805 | I21: 0.1319019706 | J21: 0.09409162564 | K21: 3724.424633 | L21: 0.1444503525 | M21: 0.1067365348 | N21: 0.06285794675 | O21: 16.82741581 | Q21: 16.82741581
C22: Up Case | D22: 0.6 | E22: 14 | F22: 160 | G22: 1.249181984 | H22: 0.4474778214 | I22: 0.1314181204 | J22: 0.08810589988 | K22: 4842.143685 | L22: 0.1394319505 | M22: 0.09792874455 | N22: 0.05775359571 | O22: 17.9521574 | Q22: 17.9521574
C23: Up Case | D23: 0.7 | E23: 15 | F23: 170 | G23: 1.327255858 | H23: 0.4712343064 | I23: 0.1310371091 | J23: 0.08342162738 | K23: 5956.206257 | L23: 0.1350177233 | M23: 0.09005625546 | N23: 0.05313211977 | O23: 19.10401293 | Q23: 19.10401293
B26: Coût de l'installation
B27: Tableaux Scenario
C29: Scénario | F29: Coût de l'installation | G29: TRI des capitaux propres | H29: TRI du projet | I29: Temps de retour | J29: Valeur actualisée nette | K29: Coût moyen actualisé de l'énergie (sans subvention) | L29: Coût moyen actualisé de l'énergie (avec subvention) | M29: Ratio de couverture du service de la dette | N29: Ratio de couverture la durée du prêt
C30: =OFFSET(C31,E30-1,0,1,1) -> Base Case | D30: =OFFSET(D31,E30-1,0,1,1) -> 0 | E30: 8 | F30: =Données!$G$23/Données!$G$36 -> 2750 | G30: =IF(OR('Capitaux propres'!$F$28<0.001,'Capitaux propres'!$F$28>1,ISERROR('Capitaux propres'!$F$28)=TRUE),#N/A,'Capitaux propres'!$F$28) -> 0.1537252367 | H30: =IF(OR('Flux de trésorerie'!$I$60<0.001,'Flux de trésorerie'!$I$60>1,ISERROR('Flux de trésorerie'!$I$60)),#N/A,'Flux de trésorerie'!$I$60) -> 0.08932659924 | I30: =IF(ISERROR('Capitaux propres'!$F$45)=TRUE,"21+",'Capitaux propres'!$F$45) -> 12.71498748 | J30: =IF(ISERROR('Capitaux propres'!$F$31)=TRUE,#N/A,'Capitaux propres'!$F$31) -> 93044.27048 | K30: =IF(ISERROR('Flux de trésorerie'!$I$73)=TRUE,#N/A,'Flux de trésorerie'!$I$73) -> 0.2086376174 | L30: =IF(ISERROR('Flux de trésorerie'!$I$74)=TRUE,#N/A,'Flux de trésorerie'!$I$74) -> 0.1753383169 | M30: =IF(ISERROR(Financement!$F$48)=TRUE,#N/A,Financement!$F$48) -> 1.290394014 | N30: =IF(ISERROR(Financement!$H$61)=TRUE,#N/A,Financement!$H$61) -> 1.512508177
C31: Down Case | D31: -0.35 | E31: 1 | F31: 1787.5 | G31: 0.2993269861 | H31: 0.1581507623 | I31: 5.585360408 | J31: 184403.8366 | K31: 0.1356144513 | L31: 0.113969906 | M31: 2.111853674 | N31: 2.476447015 | P31: =IF(I31="21+",#N/A,I31) -> 5.585360408
C32: Down Case | D32: -0.3 | E32: =E31+1 -> 2 | F32: 1925 | G32: 0.2694317162 | H32: 0.1451671183 | I32: 6.360200051 | J32: 171352.4701 | K32: 0.1460463322 | L32: 0.1227368219 | M32: 1.944208845 | N32: 2.279724804 | P32: =IF(I32="21+",#N/A,I32) -> 6.360200051
C33: Down Case | D33: -0.25 | E33: 3 | F33: 2062.5 | G33: 0.2436584055 | H33: 0.1335639298 | I33: 7.263412665 | J33: 158301.1034 | K33: 0.1564782131 | L33: 0.1315037377 | M33: 1.798916661 | N33: 2.10923222 | P33: 7.263412665
C34: Down Case | D34: -0.2 | E34: 4 | F34: 2200 | G34: 0.2211872876 | H34: 0.1230946243 | I34: 8.321007285 | J34: 145249.7369 | K34: 0.166910094 | L34: 0.1402706536 | M34: 1.671785999 | N34: 1.960051209 | P34: 8.321007285
C35: Down Case | D35: -0.15 | E35: 5 | F35: 2337.5 | G35: 0.2013919413 | H35: 0.1135698259 | I35: 9.561307032 | J35: 132198.3703 | K35: 0.1773419748 | L35: 0.1490375694 | M35: 1.559611886 | N35: 1.828420906 | P35: 9.561307032
C36: Down Case | D36: -0.1 | E36: 6 | F36: 2475 | G36: 0.1837884128 | H36: 0.1048414767 | I36: 11.00736082 | J36: 119147.0037 | K36: 0.1877738557 | L36: 0.1578044852 | M36: 1.459901563 | N36: 1.711416191 | P36: 11.00736082
C37: Down Case | D37: -0.05 | E37: 7 | F37: 2612.5 | G37: 0.1679988563 | H37: 0.09679196477 | I37: 11.83822388 | J37: 106095.6371 | K37: 0.1982057366 | L37: 0.1665714011 | M37: 1.370687064 | N37: 1.606727763 | P37: 11.83822388
C38: Base Case | D38: 0 | E38: 8 | F38: 2750 | G38: 0.1537252367 | H38: 0.08932659924 | I38: 12.71498748 | J38: 93044.27048 | K38: 0.2086376174 | L38: 0.1753383169 | M38: 1.290394014 | N38: 1.512508177 | P38: 12.71498748
C39: Up Case | D39: 0.05 | E39: 9 | F39: 2887.5 | G39: 0.1407301486 | H39: 0.08236815631 | I39: 13.64216674 | J39: 79992.90388 | K39: 0.2190694983 | L39: 0.1841052328 | M39: 1.217747922 | N39: 1.427261885 | P39: 13.64216674
C40: Up Case | D40: 0.1 | E40: 10 | F40: 3025 | G40: 0.1288226187 | H40: 0.07585296333 | I40: 14.62555717 | J40: 66941.53728 | K40: 0.2295013792 | L40: 0.1928721486 | M40: 1.15170602 | N40: 1.349765256 | P40: 14.62555717
C41: Up Case | D41: 0.15 | E41: 11 | F41: 3162.5 | G41: 0.1178475916 | H41: 0.06972798407 | I41: 15.67151284 | J41: 53890.17069 | K41: 0.2399332601 | L41: 0.2016390645 | M41: 1.091406891 | N41: 1.279007465 | P41: 15.67151284
C42: Up Case | D42: 0.2 | E42: 12 | F42: 3300 | G42: 0.1076780617 | H42: 0.06394863427 | I42: 16.78722376 | J42: 40838.80408 | K42: 0.2503651409 | L42: 0.2104059803 | M42: 1.036132691 | N42: 1.214146156 | P42: 16.78722376
C43: Up Case | D43: 0.25 | E43: 13 | F43: 3437.5 | G43: 0.09820911288 | H43: 0.05847713053 | I43: 17.97902296 | J43: 27787.43748 | K43: 0.2607970218 | L43: 0.2191728962 | M43: 0.9852804261 | N43: 1.154473752 | P43: 17.97902296
C44: Up Case | D44: 0.3 | E44: 14 | F44: 3575 | G44: 0.08935334384 | H44: 0.05328119695 | I44: 19.2653939 | J44: 14736.07089 | K44: 0.2712289027 | L44: 0.227939812 | M44: 0.9383398741 | N44: 1.099391532 | P44: 19.2653939
C45: Up Case | D45: 0.35 | E45: 15 | F45: 3712.5 | G45: 0.08103741705 | H45: 0.04833306968 | I45: 20.64920577 | J45: 1684.704291 | K45: 0.2816607836 | L45: 0.2367067279 | M45: 0.8948764 | N45: 1.048389477 | P45: 20.64920577
B48: Subvention
B49: Tableaux Scenario
C51: Scénario | F51: Subvention | G51: TRI des capitaux propres | H51: TRI du projet | I51: Temps de retour | J51: Valeur actualisée nette | K51: Coût moyen actualisé de l'énergie (sans subvention) | L51: Coût moyen actualisé de l'énergie (avec subvention) | M51: Ratio de couverture du service de la dette | N51: Ratio de couverture la durée du prêt
C52: =OFFSET(C53,E52-1,0,1,1) -> Base Case | D52: =OFFSET(D53,E52-1,0,1,1) -> 0 | E52: 8 | F52: =Données!G31 -> 55000 | G52: =IF(OR('Capitaux propres'!$F$28<0.001,'Capitaux propres'!$F$28>1,ISERROR('Capitaux propres'!$F$28)=TRUE),#N/A,'Capitaux propres'!$F$28) -> 0.1537252367 | H52: =IF(OR('Flux de trésorerie'!$I$60<0.001,'Flux de trésorerie'!$I$60>1,ISERROR('Flux de trésorerie'!$I$60)),#N/A,'Flux de trésorerie'!$I$60) -> 0.08932659924 | I52: =IF(ISERROR('Capitaux propres'!$F$45)=TRUE,"21+",'Capitaux propres'!$F$45) -> 12.71498748 | J52: =IF(ISERROR('Capitaux propres'!$F$31)=TRUE,#N/A,'Capitaux propres'!$F$31) -> 93044.27048 | K52: =IF(ISERROR('Flux de trésorerie'!$I$73)=TRUE,#N/A,'Flux de trésorerie'!$I$73) -> 0.2086376174 | L52: =IF(ISERROR('Flux de trésorerie'!$I$74)=TRUE,#N/A,'Flux de trésorerie'!$I$74) -> 0.1753383169 | M52: =IF(ISERROR(Financement!$F$48)=TRUE,#N/A,Financement!$F$48) -> 1.290394014 | N52: =IF(ISERROR(Financement!$H$61)=TRUE,#N/A,Financement!$H$61) -> 1.512508177
C53: Down Case | D53: -0.35 | E53: 1 | F53: 35750 | G53: 0.1380217493 | H53: 0.08932659924 | I53: 13.99628057 | J53: 76236.35003 | K53: 0.2086376174 | L53: 0.1869930721 | M53: 1.131924574 | N53: 1.326761559 | P53: =IF(I53="21+",#N/A,I53) -> 13.99628057
C54: Down Case | D54: -0.3 | E54: =E53+1 -> 2 | F54: 38500 | G54: 0.1401947439 | H54: 0.08932659924 | I54: 13.81150031 | J54: 78637.48152 | K54: 0.2086376174 | L54: 0.1853281071 | M54: 1.152137513 | N54: 1.35045373 | P54: =IF(I54="21+",#N/A,I54) -> 13.81150031
C55: Down Case | D55: -0.25 | E55: 3 | F55: 41250 | G55: 0.1423909724 | H55: 0.08932659924 | I55: 13.62672005 | J55: 81038.61302 | K55: 0.2086376174 | L55: 0.1836631421 | M55: 1.173085467 | N55: 1.375007434 | P55: 13.62672005
C56: Down Case | D56: -0.2 | E56: 4 | F56: 44000 | G56: 0.1446105778 | H56: 0.08932659924 | I56: 13.44193979 | J56: 83439.7445 | K56: 0.2086376174 | L56: 0.181998177 | M56: 1.194809272 | N56: 1.400470534 | P56: 13.44193979
C57: Down Case | D57: -0.15 | E57: 5 | F57: 46750 | G57: 0.1468536913 | H57: 0.08932659924 | I57: 13.25715953 | J57: 85840.87599 | K57: 0.2086376174 | L57: 0.180333212 | M57: 1.217352843 | N57: 1.426894507 | P57: 13.25715953
C58: Down Case | D58: -0.1 | E58: 6 | F58: 49500 | G58: 0.1491204321 | H58: 0.08932659924 | I58: 13.07237928 | J58: 88242.00748 | K58: 0.2086376174 | L58: 0.178668247 | M58: 1.240763475 | N58: 1.454334786 | P58: 13.07237928
C59: Down Case | D59: -0.05 | E59: 7 | F59: 52250 | G59: 0.1514109075 | H59: 0.08932659924 | I59: 12.89220151 | J59: 90643.13898 | K59: 0.2086376174 | L59: 0.177003282 | M59: 1.265092171 | N59: 1.482851154 | P59: 12.89220151
C60: Base Case | D60: 0 | E60: 8 | F60: 55000 | G60: 0.1537252367 | H60: 0.08932659924 | I60: 12.71498748 | J60: 93044.27048 | K60: 0.2086376174 | L60: 0.1753383169 | M60: 1.290394014 | N60: 1.512508177 | P60: 12.71498748
C61: Up Case | D61: 0.05 | E61: 9 | F61: 57750 | G61: 0.156063503 | H61: 0.08932659924 | I61: 12.53777344 | J61: 95445.40195 | K61: 0.2086376174 | L61: 0.1736733519 | M61: 1.316728586 | N61: 1.543375691 | P61: 12.53777344
C62: Up Case | D62: 0.1 | E62: 10 | F62: 60500 | G62: 0.1584257662 | H62: 0.08932659924 | I62: 12.36055941 | J62: 97846.53345 | K62: 0.2086376174 | L62: 0.1720083869 | M62: 1.344160431 | N62: 1.575529351 | P62: 12.36055941
C63: Up Case | D63: 0.15 | E63: 11 | F63: 63250 | G63: 0.1608121216 | H63: 0.08932659924 | I63: 12.18334537 | J63: 100247.6649 | K63: 0.2086376174 | L63: 0.1703434219 | M63: 1.372759589 | N63: 1.609051252 | P63: 12.18334537
C64: Up Case | D64: 0.2 | E64: 12 | F64: 66000 | G64: 0.1632226169 | H64: 0.08932659924 | I64: 12.00613134 | J64: 102648.7964 | K64: 0.2086376174 | L64: 0.1686784568 | M64: 1.402602189 | N64: 1.644030627 | P64: 12.00613134
C65: Up Case | D65: 0.25 | E65: 13 | F65: 68750 | G65: 0.1656572878 | H65: 0.08932659924 | I65: 11.83614647 | J65: 105049.9279 | K65: 0.2086376174 | L65: 0.1670134918 | M65: 1.433771127 | N65: 1.680564641 | P65: 11.83614647
C66: Up Case | D66: 0.3 | E66: 14 | F66: 71500 | G66: 0.1681161702 | H66: 0.08932659924 | I66: 11.66642068 | J66: 107451.0594 | K66: 0.2086376174 | L66: 0.1653485268 | M66: 1.466356834 | N66: 1.718759292 | P66: 11.66642068
C67: Up Case | D67: 0.35 | E67: 15 | F67: 74250 | G67: 0.1705992877 | H67: 0.08932659924 | I67: 11.49669489 | J67: 109852.1909 | K67: 0.2086376174 | L67: 0.1636835618 | M67: 1.500458156 | N67: 1.758730439 | P67: 11.49669489
B70: Consommation Annuelle
B71: Tableaux Scenario
C73: Scénario | F73: Con-sommation annuelle | G73: TRI des capitaux propres | H73: TRI du projet | I73: Temps de retour | J73: Valeur actualisée nette | K73: Ratio de couverture du service de la dette | L73: Ratio de couverture la durée du prêt
C74: =OFFSET(C75,E74-1,0,1,1) -> Base Case | D74: =OFFSET(D75,E74-1,0,1,1) -> 0 | E74: 8 | F74: =Données!$G$68 -> 200000 | G74: =IF(OR('Capitaux propres'!$F$28<0.001,'Capitaux propres'!$F$28>1,ISERROR('Capitaux propres'!$F$28)=TRUE),#N/A,'Capitaux propres'!$F$28) -> 0.1537252367 | H74: =IF(OR('Flux de trésorerie'!$I$60<0.001,'Flux de trésorerie'!$I$60>1,ISERROR('Flux de trésorerie'!$I$60)),#N/A,'Flux de trésorerie'!$I$60) -> 0.08932659924 | I74: =IF(ISERROR('Capitaux propres'!$F$45)=TRUE,"21+",'Capitaux propres'!$F$45) -> 12.71498748 | J74: =IF(ISERROR('Capitaux propres'!$F$31)=TRUE,#N/A,'Capitaux propres'!$F$31) -> 93044.27048 | K74: =IF(ISERROR(Financement!$F$48)=TRUE,#N/A,Financement!$F$48) -> 1.290394014 | L74: =IF(ISERROR(Financement!$H$61)=TRUE,#N/A,Financement!$H$61) -> 1.512508177
C75: Down Case | D75: -0.35 | E75: 1 | F75: 130000 | G75: 0.1032264888 | H75: 0.06083221734 | I75: 17.25938126 | J75: 27826.4401 | K75: 1.036104291 | L75: 1.201723478 | N75: =IF(I75="21+",#N/A,I75) -> 17.25938126
C76: Down Case | D76: -0.3 | E76: =E75+1 -> 2 | F76: 140000 | G76: 0.1137113392 | H76: 0.06684986055 | I76: 16.03192091 | J76: 40778.90327 | K76: 1.089996407 | L76: 1.265851425 | N76: =IF(I76="21+",#N/A,I76) -> 16.03192091
C77: Down Case | D77: -0.25 | E77: 3 | F77: 150000 | G77: 0.1240828574 | H77: 0.07270311415 | I77: 14.98812135 | J77: 53787.86992 | K77: 1.144188062 | L77: 1.330304851 | N77: 14.98812135
C78: Down Case | D78: -0.2 | E78: 4 | F78: 160000 | G78: 0.1334850013 | H78: 0.0779243499 | I78: 14.16137076 | J78: 65727.39455 | K78: 1.193955672 | L78: 1.389481645 | N78: 14.16137076
C79: Down Case | D79: -0.15 | E79: 5 | F79: 170000 | G79: 0.1427791893 | H79: 0.08300543129 | I79: 13.4341251 | J79: 77644.36015 | K79: 1.243705493 | L79: 1.448600731 | N79: 13.4341251
C80: Down Case | D80: -0.1 | E80: 6 | F80: 180000 | G80: 0.1476003826 | H80: 0.08572914302 | I80: 13.09560488 | J80: 84180.64212 | K80: 1.266172629 | L80: 1.477606429 | N80: 13.09560488
C81: Down Case | D81: -0.05 | E81: 7 | F81: 190000 | G81: 0.1506788909 | H81: 0.08754007518 | I81: 12.89988378 | J81: 88612.4563 | K81: 1.278283321 | L81: 1.495057303 | N81: 12.89988378
C82: Base Case | D82: 0 | E82: 8 | F82: 200000 | G82: 0.1537252367 | H82: 0.08932659924 | I82: 12.71498748 | J82: 93044.27048 | K82: 1.290394014 | L82: 1.512508177 | N82: 12.71498748
C83: Up Case | D83: 0.05 | E83: 9 | F83: 210000 | G83: 0.1567408621 | H83: 0.09108964503 | I83: 12.53648531 | J83: 97476.08465 | K83: 1.302504707 | L83: 1.529959051 | N83: 12.53648531
C84: Up Case | D84: 0.1 | E84: 10 | F84: 220000 | G84: 0.1593210161 | H84: 0.09259782135 | I84: 12.38765391 | J84: 101315.1982 | K84: 1.312846424 | L84: 1.544970127 | N84: 12.38765391
C85: Up Case | D85: 0.15 | E85: 11 | F85: 230000 | G85: 0.1616281688 | H85: 0.09394599497 | I85: 12.25751667 | J85: 104784.9333 | K85: 1.322085694 | L85: 1.55846069 | N85: 12.25751667
C86: Up Case | D86: 0.2 | E86: 12 | F86: 240000 | G86: 0.163918072 | H86: 0.09528090656 | I86: 12.13078287 | J86: 108254.6685 | K86: 1.331324964 | L86: 1.571951254 | N86: 12.13078287
C87: Up Case | D87: 0.25 | E87: 13 | F87: 250000 | G87: 0.1660698235 | H87: 0.09653398395 | I87: 12.01401221 | J87: 111543.6434 | K87: 1.340024736 | L87: 1.584697734 | N87: 12.01401221
C88: Up Case | D88: 0.3 | E88: 14 | F88: 260000 | G88: 0.1676169574 | H88: 0.09744159579 | I88: 11.9346962 | J88: 113950.305 | K88: 1.346091155 | L88: 1.593812253 | N88: 11.9346962
C89: Up Case | D89: 0.35 | E89: 15 | F89: 270000 | G89: 0.1686060131 | H89: 0.09803194404 | I89: 11.88577626 | J89: 115531.9084 | K89: 1.349695103 | L89: 1.599530494 | N89: 11.88577626
B91: Augmentation du tarif de vente d'électricité
B92: Tableaux Scenario
C94: Scénario | F94: Évolution des prix | G94: TRI des capitaux propres | H94: TRI du projet | I94: Temps de retour | J94: Valeur actualisée nette | K94: Ratio de couverture du service de la dette | L94: Ratio de couverture la durée du prêt
C95: =OFFSET(C96,E95-1,0,1,1) -> Base Case | D95: =OFFSET(D96,E95-1,0,1,1) -> 0.05 | E95: 8 | F95: =$D$95 -> 0.05 | G95: =IF(OR('Capitaux propres'!$F$28<0.001,'Capitaux propres'!$F$28>1,ISERROR('Capitaux propres'!$F$28)=TRUE),#N/A,'Capitaux propres'!$F$28) -> 0.1537252367 | H95: =IF(OR('Flux de trésorerie'!$I$60<0.001,'Flux de trésorerie'!$I$60>1,ISERROR('Flux de trésorerie'!$I$60)),#N/A,'Flux de trésorerie'!$I$60) -> 0.08932659924 | I95: =IF(ISERROR('Capitaux propres'!$F$45)=TRUE,"21+",'Capitaux propres'!$F$45) -> 12.71498748 | J95: =IF(ISERROR('Capitaux propres'!$F$31)=TRUE,#N/A,'Capitaux propres'!$F$31) -> 93044.27048 | K95: =IF(ISERROR(Financement!$F$48)=TRUE,#N/A,Financement!$F$48) -> 1.290394014 | L95: =IF(ISERROR(Financement!$H$61)=TRUE,#N/A,Financement!$H$61) -> 1.512508177
C96: Down Case | D96: =(MAX(D97-0.01,0)) -> 0 | E96: 1 | F96: 0 | G96: 0.1084989965 | H96: 0.05725693405 | I96: 15.5852847 | J96: 26747.31045 | K96: 1.290394014 | L96: 1.380013265 | N96: =IF(I96="21+",#N/A,I96) -> 15.5852847
C97: Down Case | D97: 0 | E97: =E96+1 -> 2 | F97: 0 | G97: 0.1084989965 | H97: 0.05725693405 | I97: 15.5852847 | J97: 26747.31045 | K97: 1.290394014 | L97: 1.380013265 | N97: 15.5852847
C98: Down Case | D98: 0 | E98: 3 | F98: 0 | G98: 0.1084989965 | H98: 0.05725693405 | I98: 15.5852847 | J98: 26747.31045 | K98: 1.290394014 | L98: 1.380013265 | N98: 15.5852847
C99: Down Case | D99: 0.01 | E99: 4 | F99: 0.01 | G99: 0.1179468215 | H99: 0.06370770037 | I99: 14.7578865 | J99: 37781.0505 | K99: 1.290394014 | L99: 1.404855618 | N99: 14.7578865
C100: Down Case | D100: 0.02 | E100: 5 | F100: 0.02 | G100: 0.1271698654 | H100: 0.07013653219 | I100: 14.09856268 | J100: 49820.49414 | K100: 1.290394014 | L100: 1.430502335 | N100: 14.09856268
C101: Down Case | D101: 0.03 | E101: 6 | F101: 0.03 | G101: 0.1361934841 | H101: 0.07654724419 | I101: 13.5643858 | J101: 62967.43739 | K101: 1.290394014 | L101: 1.456977087 | N101: 13.5643858
C102: Down Case | D102: 0.04 | E102: 7 | F102: 0.04 | G102: 0.145039171 | H102: 0.08294303715 | I102: 13.10428076 | J102: 77334.12112 | K102: 1.290394014 | L102: 1.484304103 | N102: 13.10428076
C103: Base Case | D103: ='Entrées Utilisateur'!J96 -> 0.05 | E103: 8 | F103: 0.05 | G103: 0.1537252367 | H103: 0.08932659924 | I103: 12.71498748 | J103: 93044.27048 | K103: 1.290394014 | L103: 1.512508177 | N103: 12.71498748
C104: Up Case | D104: =(MIN(D103+0.01,1)) -> 0.06 | E104: 9 | F104: 0.06 | G104: 0.1622675002 | H104: 0.09570019543 | I104: 12.37287298 | J104: 110234.2321 | K104: 1.290394014 | L104: 1.54161468 | N104: 12.37287298
C105: Up Case | D105: =(MIN(D104+0.01,1)) -> 0.07 | E105: 10 | F105: 0.07 | G105: 0.1706796348 | H105: 0.102065748 | I105: 12.06812591 | J105: 129054.2172 | K105: 1.290394014 | L105: 1.571649565 | N105: 12.06812591
C106: Up Case | D106: 0.08 | E106: 11 | F106: 0.08 | G106: 0.1789735973 | H106: 0.1084248483 | I106: 11.7993653 | J106: 149669.6606 | K106: 1.290394014 | L106: 1.602639383 | N106: 11.7993653
C107: Up Case | D107: 0.09 | E107: 12 | F107: 0.09 | G107: 0.1871598899 | H107: 0.1147788346 | I107: 11.55664293 | J107: 172262.7041 | K107: 1.290394014 | L107: 1.634611284 | N107: 11.55664293
C108: Up Case | D108: 0.1 | E108: 13 | F108: 0.1 | G108: 0.1952477515 | H108: 0.1211288512 | I108: 11.3361852 | J108: 197033.8168 | K108: 1.290394014 | L108: 1.667593034 | N108: 11.3361852
C109: Up Case | D109: 0.11 | E109: 14 | F109: 0.11 | G109: 0.2032453716 | H109: 0.127475816 | I109: 11.13597426 | J109: 224203.5618 | K109: 1.290394014 | L109: 1.70161302 | N109: 11.13597426
C110: Up Case | D110: 0.12 | E110: 15 | F110: 0.12 | G110: 0.2111600697 | H110: 0.133820504 | I110: 10.92433667 | J110: 254014.5231 | K110: 1.290394014 | L110: 1.736700262 | N110: 10.92433667
B112: Montant de la dette / Ratio d´endettement
B113: Tableaux Scenario
C115: Scénario | F115: Montant de la dette | G115: Ratio d´endettement | H115: TRI des capitaux propres | I115: TRI du projet | J115: Temps de retour | K115: Valeur actualisée nette | L115: Ratio de couverture du service de la dette | M115: Ratio de couverture la durée du prêt
C116: =OFFSET(C117,E116-1,0,1,1) -> Base Case | D116: =OFFSET(D117,E116-1,0,1,1) -> 0 | E116: 8 | F116: =Données!G111 -> 192500 | G116: =Données!G113 -> 0.7 | H116: =IF(OR('Capitaux propres'!$F$28<0.001,'Capitaux propres'!$F$28>1,ISERROR('Capitaux propres'!$F$28)=TRUE),#N/A,'Capitaux propres'!$F$28) -> 0.1537252367 | I116: =IF(OR('Flux de trésorerie'!$I$60<0.001,'Flux de trésorerie'!$I$60>1,ISERROR('Flux de trésorerie'!$I$60)),#N/A,'Flux de trésorerie'!$I$60) -> 0.08932659924 | J116: =IF(ISERROR('Capitaux propres'!$F$45)=TRUE,"21+",'Capitaux propres'!$F$45) -> 12.71498748 | K116: =IF(ISERROR('Capitaux propres'!$F$31)=TRUE,#N/A,'Capitaux propres'!$F$31) -> 93044.27048 | L116: =IF(ISERROR(Financement!$F$48)=TRUE,#N/A,Financement!$F$48) -> 1.290394014 | M116: =IF(ISERROR(Financement!$H$61)=TRUE,#N/A,Financement!$H$61) -> 1.512508177
C117: Down Case | D117: -0.35 | E117: 1 | F117: 125125 | G117: 0.455 | H117: 0.131946975 | I117: 0.08990220129 | J117: 13.16163812 | K117: 86215.05772 | L117: 2.530184341 | M117: 2.965702308 | O117: =IF(J117="21+",#N/A,J117) -> 13.16163812
C118: Down Case | D118: -0.3 | E118: =E117+1 -> 2 | F118: 134750 | G118: 0.49 | H118: 0.1343086421 | I118: 0.08981972039 | J118: 13.0960925 | K118: 87190.65954 | L118: 2.224817266 | M118: 2.607772719 | O118: 13.0960925
C119: Down Case | D119: -0.25 | E119: 3 | F119: 144375 | G119: 0.525 | H119: 0.1368609846 | I119: 0.08973732293 | J119: 13.03054687 | K119: 88166.26136 | L119: 1.98522156 | M119: 2.326935657 | O119: 13.03054687
C120: Down Case | D120: -0.2 | E120: 4 | F120: 154000 | G120: 0.56 | H120: 0.1396318257 | I120: 0.08965501487 | J120: 12.96643435 | K120: 89141.86318 | L120: 1.792213908 | M120: 2.100705802 | O120: 12.96643435
C121: Down Case | D121: -0.15 | E121: 5 | F121: 163625 | G121: 0.595 | H121: 0.1426552713 | I121: 0.0895727843 | J121: 12.90357263 | K121: 90117.46501 | L121: 1.633410144 | M121: 1.914567313 | O121: 12.90357263
C122: Down Case | D122: -0.1 | E122: 6 | F122: 173250 | G122: 0.63 | H122: 0.145973736 | I122: 0.08949063718 | J122: 12.84071091 | K122: 91093.06683 | L122: 1.500458156 | M122: 1.758730439 | O122: 12.84071091
C123: Down Case | D123: -0.05 | E123: 7 | F123: 182875 | G123: 0.665 | H123: 0.1496407568 | I123: 0.08940857351 | J123: 12.7778492 | K123: 92068.66864 | L123: 1.387520445 | M123: 1.626352879 | O123: 12.7778492
C124: Base Case | D124: 0 | E124: 8 | F124: 192500 | G124: 0.7 | H124: 0.1537252367 | I124: 0.08932659924 | J124: 12.71498748 | K124: 93044.27048 | L124: 1.290394014 | M124: 1.512508177 | O124: 12.71498748
C125: Up Case | D125: 0.05 | E125: 9 | F125: 202125 | G125: 0.735 | H125: 0.1583178699 | I125: 0.08924470246 | J125: 12.65212576 | K125: 94019.87229 | L125: 1.205975714 | M125: 1.413559044 | O125: 12.65212576
C126: Up Case | D126: 0.1 | E126: 10 | F126: 211750 | G126: 0.77 | H126: 0.1635412276 | I126: 0.08916288912 | J126: 12.58926405 | K126: 94995.4741 | L126: 1.131924574 | M126: 1.326761559 | O126: 12.58926405
C127: Up Case | D127: 0.15 | E127: 11 | F127: 221375 | G127: 0.805 | H127: 0.1695664585 | I127: 0.08908115923 | J127: 12.52640233 | K127: 95971.07592 | L127: 1.066441334 | M127: 1.250006758 | O127: 12.52640233
C128: Up Case | D128: 0.2 | E128: 12 | F128: 231000 | G128: 0.84 | H128: 0.1766425788 | I128: 0.08899950683 | J128: 12.46354061 | K128: 96946.67774 | L128: 1.008120324 | M128: 1.181647013 | O128: 12.46354061
C129: Up Case | D129: 0.25 | E129: 13 | F129: 240625 | G129: 0.875 | H129: 0.1851515591 | I129: 0.08891794384 | J129: 12.40067889 | K129: 97922.27958 | L129: 0.9558474178 | M129: 1.120376428 | O129: 12.40067889
C130: Up Case | D130: 0.3 | E130: 14 | F130: 250250 | G130: 0.91 | H130: 0.1957226813 | I130: 0.08883645833 | J130: 12.33781718 | K130: 98897.88139 | L130: 0.9087281789 | M130: 1.065146604 | O130: 12.33781718
C131: Up Case | D131: 0.35 | E131: 15 | F131: 259875 | G131: 0.945 | H131: 0.209503907 | I131: 0.08875505626 | J131: 12.27495546 | K131: 99873.48321 | L131: 0.8660362511 | M131: 1.015106159 | O131: 12.27495546
B134: Taux d´interet
B135: Tableaux Scenario
C137: Scénario | F137: Taux d´interet | G137: TRI des capitaux propres | H137: TRI du projet | I137: Temps de retour | J137: Valeur actualisée nette | K137: Coût moyen actualisé de l'énergie (sans subvention) | L137: Coût moyen actualisé de l'énergie (avec subvention) | M137: Ratio de couverture du service de la dette | N137: Ratio de couverture la durée du prêt
C138: =OFFSET(C139,E138-1,0,1,1) -> Base Case | D138: =OFFSET(D139,E138-1,0,1,1) -> 0 | E138: 8 | F138: =Données!G136 -> 0.055 | G138: =IF(OR('Capitaux propres'!$F$28<0.001,'Capitaux propres'!$F$28>1,ISERROR('Capitaux propres'!$F$28)=TRUE),#N/A,'Capitaux propres'!$F$28) -> 0.1537252367 | H138: =IF(OR('Flux de trésorerie'!$I$60<0.001,'Flux de trésorerie'!$I$60>1,ISERROR('Flux de trésorerie'!$I$60)),#N/A,'Flux de trésorerie'!$I$60) -> 0.08932659924 | I138: =IF(ISERROR('Capitaux propres'!$F$45)=TRUE,"21+",'Capitaux propres'!$F$45) -> 12.71498748 | J138: =IF(ISERROR('Capitaux propres'!$F$31)=TRUE,#N/A,'Capitaux propres'!$F$31) -> 93044.27048 | K138: =IF(ISERROR('Flux de trésorerie'!$I$73)=TRUE,#N/A,'Flux de trésorerie'!$I$73) -> 0.2086376174 | L138: =IF(ISERROR('Flux de trésorerie'!$I$74)=TRUE,#N/A,'Flux de trésorerie'!$I$74) -> 0.1753383169 | M138: =IF(ISERROR(Financement!$F$48)=TRUE,#N/A,Financement!$F$48) -> 1.290394014 | N138: =IF(ISERROR(Financement!$H$61)=TRUE,#N/A,Financement!$H$61) -> 1.512508177
C139: Down Case | D139: -0.35 | E139: 1 | F139: 0.040125 | G139: 0.1625073969 | H139: 0.08947732747 | I139: 12.06864957 | J139: 101801.7767 | K139: 0.1956738185 | L139: 0.165014245 | M139: 1.387670578 | N139: 1.633230667 | P139: =IF(I139="21+",#N/A,I139) -> 12.06864957
C140: Down Case | D140: -0.3 | E140: =E139+1 -> 2 | F140: 0.04225 | G140: 0.1612492383 | H140: 0.08945578635 | I140: 12.1596134 | J140: 100569.2692 | K140: 0.1974935318 | L140: 0.1664625323 | M140: 1.373111137 | N140: 1.615139148 | P140: =IF(I140="21+",#N/A,I140) -> 12.1596134
C141: Down Case | D141: -0.25 | E141: =E140+1 -> 3 | F141: 0.044375 | G141: 0.1599920809 | H141: 0.08943425119 | I141: 12.25103763 | J141: 99330.52341 | K141: 0.1993241537 | L141: 0.1679198024 | M141: 1.358779793 | N141: 1.597338737 | P141: 12.25103763
C142: Down Case | D142: -0.2 | E142: 4 | F142: 0.0465 | G142: 0.1587360561 | H142: 0.08941271603 | I142: 12.34292008 | J142: 98085.56915 | K142: 0.2011655912 | L142: 0.169385982 | M142: 1.34467215 | N142: 1.579823733 | P142: 12.34292008
C143: Down Case | D143: -0.15 | E143: 5 | F143: 0.048625 | G143: 0.1574812472 | H143: 0.08939118683 | I143: 12.43525853 | J143: 96834.43633 | K143: 0.2030177506 | L143: 0.1708609975 | M143: 1.330783908 | N143: 1.562588563 | P143: 12.43525853
C144: Down Case | D144: -0.1 | E144: 6 | F144: 0.05075 | G144: 0.1562277734 | H144: 0.08936965168 | I144: 12.52805075 | J144: 95577.1552 | K144: 0.204880538 | L144: 0.1723447749 | M144: 1.317110864 | N144: 1.545627779 | P144: 12.52805075
C145: Down Case | D145: -0.05 | E145: 7 | F145: 0.052875 | G145: 0.1549757302 | H145: 0.08934812248 | I145: 12.62129449 | J145: 94313.75632 | K145: 0.2067538586 | L145: 0.1738372397 | M145: 1.303648906 | N145: 1.528936053 | P145: 12.62129449
C146: Base Case | D146: 0 | E146: 8 | F146: 0.055 | G146: 0.1537252367 | H146: 0.08932659924 | I146: 12.71498748 | J146: 93044.27048 | K146: 0.2086376174 | L146: 0.1753383169 | M146: 1.290394014 | N146: 1.512508177 | P146: 12.71498748
C147: Up Case | D147: 0.05 | E147: 9 | F147: 0.057125 | G147: 0.1524763882 | H147: 0.08930507004 | I147: 12.80912741 | J147: 91768.72876 | K147: 0.210531719 | L147: 0.1768479313 | M147: 1.277342256 | N147: 1.49633906 | P147: 12.80912741
C148: Up Case | D148: 0.1 | E148: 10 | F148: 0.05925 | G148: 0.1512292683 | H148: 0.08928354681 | I148: 12.90371199 | J148: 90487.16251 | K148: 0.2124360675 | L148: 0.1783660072 | M148: 1.264489787 | N148: 1.480423722 | P148: 12.90371199
C149: Up Case | D149: 0.15 | E149: 11 | F149: 0.061375 | G149: 0.1499840081 | H149: 0.08926202357 | I149: 12.99873886 | J149: 89199.60332 | K149: 0.2143505667 | L149: 0.1798924686 | M149: 1.251832844 | N149: 1.464757293 | P149: 12.99873886
C150: Up Case | D150: 0.2 | E150: 12 | F150: 0.0635 | G150: 0.148740679 | H150: 0.08924050629 | I150: 13.09822785 | J150: 87906.08302 | K150: 0.2162751202 | L150: 0.1814272395 | M150: 1.239367748 | N150: 1.449335013 | P150: 13.09822785
C151: Up Case | D151: 0.25 | E151: 13 | F151: 0.065625 | G151: 0.1474993885 | H151: 0.08921898901 | I151: 13.19822695 | J151: 86606.63364 | K151: 0.2182096312 | L151: 0.1829702433 | M151: 1.2270909 | N151: 1.434152223 | P151: 13.19822695
C152: Up Case | D152: 0.3 | E152: 14 | F152: 0.06775 | G152: 0.1462602437 | H152: 0.08919747174 | I152: 13.29867984 | J152: 85301.28747 | K152: 0.2201540029 | L152: 0.1845214033 | M152: 1.214998778 | N152: 1.419204368 | P152: 13.29867984
C153: Up Case | D153: 0.35 | E153: 15 | F153: 0.069875 | G153: 0.1450233161 | H153: 0.08917596042 | I153: 13.39958402 | J153: 83990.077 | K153: 0.222108138 | L153: 0.1860806428 | M153: 1.203087938 | N153: 1.404486995 | P153: 13.39958402
B156: Duree de credit
B157: Tableaux Scenario
C159: Scénario | F159: Duree de credit | G159: TRI des capitaux propres | H159: TRI du projet | I159: Temps de retour | J159: Valeur actualisée nette | K159: Ratio de couverture du service de la dette | L159: Ratio de couverture la durée du prêt
C160: =OFFSET(C161,E160-1,0,1,1) -> Base Case | D160: =OFFSET(D161,E160-1,0,1,1) -> 0 | E160: 8 | F160: =Données!G125 -> 10 | G160: =IF(OR('Capitaux propres'!$F$28<0.001,'Capitaux propres'!$F$28>1,ISERROR('Capitaux propres'!$F$28)=TRUE),#N/A,'Capitaux propres'!$F$28) -> 0.1537252367 | H160: =IF(OR('Flux de trésorerie'!$I$60<0.001,'Flux de trésorerie'!$I$60>1,ISERROR('Flux de trésorerie'!$I$60)),#N/A,'Flux de trésorerie'!$I$60) -> 0.08932659924 | I160: =IF(ISERROR('Capitaux propres'!$F$45)=TRUE,"21+",'Capitaux propres'!$F$45) -> 12.71498748 | J160: =IF(ISERROR('Capitaux propres'!$F$31)=TRUE,#N/A,'Capitaux propres'!$F$31) -> 93044.27048 | K160: =IF(ISERROR(Financement!$F$48)=TRUE,#N/A,Financement!$F$48) -> 1.290394014 | L160: =IF(ISERROR(Financement!$H$61)=TRUE,#N/A,Financement!$H$61) -> 1.512508177
C161: Down Case | D161: -7 | E161: 1 | F161: 3 | G161: 0.1299787462 | H161: 0.08932659924 | I161: 13.37741751 | J161: 84255.36306 | K161: 0.4618691828 | L161: 0.4813512394 | N161: =IF(I161="21+",#N/A,I161) -> 13.37741751
C162: Down Case | D162: -6 | E162: =E161+1 -> 2 | F162: 4 | G162: 0.1331083238 | H162: 0.08932659924 | I162: 13.27072731 | J162: 85647.9604 | K162: 0.6000595995 | L162: 0.6381274516 | N162: =IF(I162="21+",#N/A,I162) -> 13.27072731
C163: Down Case | D163: -5 | E163: =E162+1 -> 3 | F163: 5 | G163: 0.136349529 | H163: 0.08932659924 | I163: 13.16763908 | J163: 86991.244 | K163: 0.7310457764 | L163: 0.7915948927 | N163: 13.16763908
C164: Down Case | D164: -4 | E164: =E163+1 -> 4 | F164: 6 | G164: 0.1396917999 | H164: 0.08932659924 | I164: 13.06805352 | J164: 88287.75897 | K164: 0.85520329 | L164: 0.941809862 | N164: 13.06805352
C165: Down Case | D165: -3 | E165: =E164+1 -> 5 | F165: 7 | G165: 0.1431201994 | H165: 0.08932659924 | I165: 12.97302495 | J165: 89539.30842 | K165: 0.9728881371 | L165: 1.088899122 | N165: 12.97302495
C166: Down Case | D166: -2 | E166: =E165+1 -> 6 | F166: 8 | G166: 0.146619004 | H166: 0.08932659924 | I166: 12.88395725 | J166: 90749.82676 | K166: 1.084437755 | L166: 1.232909399 | N166: 12.88395725
C167: Down Case | D167: -1 | E167: 7 | F167: 9 | G167: 0.1501622736 | H167: 0.08932659924 | I167: 12.79797409 | J167: 91917.66003 | K167: 1.19017199 | L167: 1.374100955 | N167: 12.79797409
C168: Base Case | D168: 0 | E168: 8 | F168: 10 | G168: 0.1537252367 | H168: 0.08932659924 | I168: 12.71498748 | J168: 93044.27048 | K168: 1.290394014 | L168: 1.512508177 | N168: 12.71498748
C169: Up Case | D169: 1 | E169: 9 | F169: 11 | G169: 0.1572814047 | H169: 0.08932659924 | I169: 12.63491124 | J169: 94130.99794 | K169: 1.385391193 | L169: 1.648233108 | N169: 12.63491124
C170: Up Case | D170: 2 | E170: 10 | F170: 12 | G170: 0.1608052909 | H170: 0.08932659924 | I170: 12.18293478 | J170: 95180.41091 | K170: 1.475435912 | L170: 1.781303258 | N170: 12.18293478
C171: Up Case | D171: 3 | E171: 11 | F171: 13 | G171: 0.1642688215 | H171: 0.08932659924 | I171: 11.38908301 | J171: 96192.1644 | K171: 1.560786357 | L171: 1.911948766 | N171: 11.38908301
C172: Up Case | D172: 4 | E172: 12 | F172: 14 | G172: 0.1676477373 | H172: 0.08932659924 | I172: 10.77523201 | J172: 97167.46398 | K172: 1.641687253 | L172: 2.040187406 | N172: 10.77523201
C173: Up Case | D173: 5 | E173: 13 | F173: 15 | G173: 0.1709207952 | H173: 0.08932659924 | I173: 10.29006784 | J173: 98107.46311 | K173: 1.718370567 | L173: 2.166101708 | N173: 10.29006784
C174: Up Case | D174: 6 | E174: =E173+1 -> 14 | F174: 16 | G174: 0.1740711749 | H174: 0.08932659924 | I174: 9.896649719 | J174: 99014.06527 | K174: 1.791056172 | L174: 2.289704642 | N174: 9.896649719
C175: Up Case | D175: 7 | E175: =E174+1 -> 15 | F175: 17 | G175: 0.1770844758 | H175: 0.08932659924 | I175: 9.57556777 | J175: 99887.43606 | K175: 1.85995248 | L175: 2.411201302 | N175: 9.57556777
B178: Horizon d´investissement
B179: Tableaux Scenario
C181: Scénario | F181: Horizon d´investissement | G181: TRI des capitaux propres | H181: TRI du projet | I181: Temps de retour | J181: Valeur actualisée nette | K181: Coût moyen actualisé de l'énergie (sans subvention) | L181: Coût moyen actualisé de l'énergie (avec subvention) | M181: Ratio de couverture du service de la dette | N181: Ratio de couverture la durée du prêt
C182: =OFFSET(C183,E182-1,0,1,1) -> Base Case | D182: =OFFSET(D183,E182-1,0,1,1) -> 0 | E182: 8 | F182: =Données!G17 -> 20 | G182: =IF(OR('Capitaux propres'!$F$28<0.001,'Capitaux propres'!$F$28>1,ISERROR('Capitaux propres'!$F$28)=TRUE),#N/A,'Capitaux propres'!$F$28) -> 0.1537252367 | H182: =IF(OR('Flux de trésorerie'!$I$60<0.001,'Flux de trésorerie'!$I$60>1,ISERROR('Flux de trésorerie'!$I$60)),#N/A,'Flux de trésorerie'!$I$60) -> 0.08932659924 | I182: =IF(ISERROR('Capitaux propres'!$F$45)=TRUE,"21+",'Capitaux propres'!$F$45) -> 12.71498748 | J182: =IF(ISERROR('Capitaux propres'!$F$31)=TRUE,#N/A,'Capitaux propres'!$F$31) -> 93044.27048 | K182: =IF(ISERROR('Flux de trésorerie'!$I$73)=TRUE,#N/A,'Flux de trésorerie'!$I$73) -> 0.2086376174 | L182: =IF(ISERROR('Flux de trésorerie'!$I$74)=TRUE,#N/A,'Flux de trésorerie'!$I$74) -> 0.1753383169 | M182: =IF(ISERROR(Financement!$F$48)=TRUE,#N/A,Financement!$F$48) -> 1.290394014 | N182: =IF(ISERROR(Financement!$H$61)=TRUE,#N/A,Financement!$H$61) -> 1.512508177
C183: Down Case | D183: -7 | E183: 1 | F183: 13 | G183: 0.1024413526 | H183: 0.04527333081 | I183: 12.71498748 | J183: 15775.35301 | K183: 0.2489855733 | L183: 0.2067935382 | M183: 1.290394014 | N183: 1.512508177 | P183: =IF(I183="21+",#N/A,I183) -> 12.71498748
C184: Down Case | D184: -6 | E184: =E183+1 -> 2 | F184: 14 | G184: 0.1158018649 | H184: 0.05509268343 | I184: 12.71498748 | J184: 28229.54903 | K184: 0.2401949357 | L184: 0.1998712774 | M184: 1.290394014 | N184: 1.512508177 | P184: 12.71498748
C185: Down Case | D185: -5 | E185: 3 | F185: 15 | G185: 0.1260840237 | H185: 0.0633122474 | I185: 12.71498748 | J185: 40174.94529 | K185: 0.2327514938 | L185: 0.1940300523 | M185: 1.290394014 | N185: 1.512508177 | P185: 12.71498748
C186: Down Case | D186: -4 | E186: 4 | F186: 16 | G186: 0.1341665566 | H186: 0.07024663985 | I186: 12.71498748 | J186: 51627.21087 | K186: 0.2264067444 | L186: 0.1890714728 | M186: 1.290394014 | N186: 1.512508177 | P186: 12.71498748
C187: Down Case | D187: -3 | E187: 5 | F187: 17 | G187: 0.1406358302 | H187: 0.07614832819 | I187: 12.71498748 | J187: 62623.74116 | K187: 0.2209553382 | L187: 0.1848285214 | M187: 1.290394014 | N187: 1.512508177 | P187: 12.71498748
C188: Down Case | D188: -2 | E188: 6 | F188: 18 | G188: 0.1458796561 | H188: 0.08120234907 | I188: 12.71498748 | J188: 73179.96483 | K188: 0.2162516523 | L188: 0.181185398 | M188: 1.290394014 | N188: 1.512508177 | P188: 12.71498748
C189: Down Case | D189: -1 | E189: 7 | F189: 19 | G189: 0.1501762211 | H189: 0.08555686176 | I189: 12.71498748 | J189: 83316.17058 | K189: 0.2121761685 | L189: 0.1780461367 | M189: 1.290394014 | N189: 1.512508177 | P189: 12.71498748
C190: Base Case | D190: 0 | E190: 8 | F190: 20 | G190: 0.1537252367 | H190: 0.08932659924 | I190: 12.71498748 | J190: 93044.27048 | K190: 0.2086376174 | L190: 0.1753383169 | M190: 1.290394014 | N190: 1.512508177 | P190: 12.71498748
C191: Up Case | D191: 1 | E191: 9 | F191: 21 | G191: 0.1566835463 | H191: 0.09261063635 | I191: 12.71498748 | J191: 102394.936 | K191: 0.2055494474 | L191: 0.1729906519 | M191: 1.290394014 | N191: 1.512508177 | P191: 12.71498748
C192: Up Case | D192: 2 | E192: 10 | F192: 22 | G192: 0.1591643155 | H192: 0.0954829663 | I192: 12.71498748 | J192: 111380.1047 | K192: 0.2028526653 | L192: 0.1709566434 | M192: 1.290394014 | N192: 1.512508177 | P192: 12.71498748
C193: Up Case | D193: 3 | E193: 11 | F193: 23 | G193: 0.1612565339 | H193: 0.09800562263 | I193: 12.71498748 | J193: 120016.005 | K193: 0.2004947049 | L193: 0.1691940517 | M193: 1.290394014 | N193: 1.512508177 | P193: 12.71498748
C194: Up Case | D194: 4 | E194: 12 | F194: 24 | G194: 0.1630282462 | H194: 0.1002278984 | I194: 12.71498748 | J194: 128311.7818 | K194: 0.1984354612 | L194: 0.1676713816 | M194: 1.290394014 | N194: 1.512508177 | P194: 12.71498748
C195: Up Case | D195: 5 | E195: 13 | F195: 25 | G195: 0.1645374477 | H195: 0.1021950066 | I195: 12.71498748 | J195: 136292.7716 | K195: 0.1966304385 | L195: 0.1663513727 | M195: 1.290394014 | N195: 1.512508177 | P195: 12.71498748
C196: Up Case | D196: 6 | E196: 14 | F196: 26 | G196: 0.1658273637 | H196: 0.1039408743 | I196: 12.71498748 | J196: 143968.309 | K196: 0.1950521853 | L196: 0.1652126989 | M196: 1.290394014 | N196: 1.512508177 | P196: 12.71498748
C197: Up Case | D197: 7 | E197: 15 | F197: 27 | G197: 0.1669337094 | H197: 0.1054949939 | I197: 12.71498748 | J197: 151351.4974 | K197: 0.1936740092 | L197: 0.164233888 | M197: 1.290394014 | N197: 1.512508177 | P197: 12.71498748

Sheet DataTableMap (hidden)
A1: =TABLE(,E203) | B1: $F$204 | C1: Scenario | D1: 204
A2: =TABLE(,E203) | B2: $G$204 | C2: Scenario | D2: 204
A3: =TABLE(,E203) | B3: $H$204 | C3: Scenario | D3: 204
A4: =TABLE(,E203) | B4: $I$204 | C4: Scenario | D4: 204
A5: =TABLE(,E203) | B5: $J$204 | C5: Scenario | D5: 204
A6: =TABLE(,E203) | B6: $K$204 | C6: Scenario | D6: 204
A7: =TABLE(,E203) | B7: $L$204 | C7: Scenario | D7: 204
A8: =TABLE(,E203) | B8: $M$204 | C8: Scenario | D8: 204
A9: =TABLE(,E203) | B9: $N$204 | C9: Scenario | D9: 204
A10: =TABLE(,E203) | B10: $O$204 | C10: Scenario | D10: 204
A11: =TABLE(,E203) | B11: $P$204 | C11: Scenario | D11: 204
A12: =TABLE(,E203) | B12: $F$205 | C12: Scenario | D12: 205
A13: =TABLE(,E203) | B13: $G$205 | C13: Scenario | D13: 205
A14: =TABLE(,E203) | B14: $H$205 | C14: Scenario | D14: 205
A15: =TABLE(,E203) | B15: $I$205 | C15: Scenario | D15: 205
A16: =TABLE(,E203) | B16: $J$205 | C16: Scenario | D16: 205
A17: =TABLE(,E203) | B17: $K$205 | C17: Scenario | D17: 205
A18: =TABLE(,E203) | B18: $L$205 | C18: Scenario | D18: 205
A19: =TABLE(,E203) | B19: $M$205 | C19: Scenario | D19: 205
A20: =TABLE(,E203) | B20: $N$205 | C20: Scenario | D20: 205
A21: =TABLE(,E203) | B21: $O$205 | C21: Scenario | D21: 205
A22: =TABLE(,E203) | B22: $P$205 | C22: Scenario | D22: 205
A23: =TABLE(,E203) | B23: $F$206 | C23: Scenario | D23: 206
A24: =TABLE(,E203) | B24: $G$206 | C24: Scenario | D24: 206
A25: =TABLE(,E203) | B25: $H$206 | C25: Scenario | D25: 206
A26: =TABLE(,E203) | B26: $I$206 | C26: Scenario | D26: 206
A27: =TABLE(,E203) | B27: $J$206 | C27: Scenario | D27: 206
A28: =TABLE(,E203) | B28: $K$206 | C28: Scenario | D28: 206
A29: =TABLE(,E203) | B29: $L$206 | C29: Scenario | D29: 206
A30: =TABLE(,E203) | B30: $M$206 | C30: Scenario | D30: 206
A31: =TABLE(,E203) | B31: $N$206 | C31: Scenario | D31: 206
A32: =TABLE(,E203) | B32: $O$206 | C32: Scenario | D32: 206
A33: =TABLE(,E203) | B33: $P$206 | C33: Scenario | D33: 206
A34: =TABLE(,E203) | B34: $F$207 | C34: Scenario | D34: 207
A35: =TABLE(,E203) | B35: $G$207 | C35: Scenario | D35: 207
A36: =TABLE(,E203) | B36: $H$207 | C36: Scenario | D36: 207
A37: =TABLE(,E203) | B37: $I$207 | C37: Scenario | D37: 207
A38: =TABLE(,E203) | B38: $J$207 | C38: Scenario | D38: 207
A39: =TABLE(,E203) | B39: $K$207 | C39: Scenario | D39: 207
A40: =TABLE(,E203) | B40: $L$207 | C40: Scenario | D40: 207
A41: =TABLE(,E203) | B41: $M$207 | C41: Scenario | D41: 207
A42: =TABLE(,E203) | B42: $N$207 | C42: Scenario | D42: 207
A43: =TABLE(,E203) | B43: $O$207 | C43: Scenario | D43: 207
A44: =TABLE(,E203) | B44: $P$207 | C44: Scenario | D44: 207
A45: =TABLE(,E203) | B45: $F$208 | C45: Scenario | D45: 208
A46: =TABLE(,E203) | B46: $G$208 | C46: Scenario | D46: 208
A47: =TABLE(,E203) | B47: $H$208 | C47: Scenario | D47: 208
A48: =TABLE(,E203) | B48: $I$208 | C48: Scenario | D48: 208
A49: =TABLE(,E203) | B49: $J$208 | C49: Scenario | D49: 208
A50: =TABLE(,E203) | B50: $K$208 | C50: Scenario | D50: 208
A51: =TABLE(,E203) | B51: $L$208 | C51: Scenario | D51: 208
A52: =TABLE(,E203) | B52: $M$208 | C52: Scenario | D52: 208
A53: =TABLE(,E203) | B53: $N$208 | C53: Scenario | D53: 208
A54: =TABLE(,E203) | B54: $O$208 | C54: Scenario | D54: 208
A55: =TABLE(,E203) | B55: $P$208 | C55: Scenario | D55: 208
A56: =TABLE(,E203) | B56: $F$209 | C56: Scenario | D56: 209
A57: =TABLE(,E203) | B57: $G$209 | C57: Scenario | D57: 209
A58: =TABLE(,E203) | B58: $H$209 | C58: Scenario | D58: 209
A59: =TABLE(,E203) | B59: $I$209 | C59: Scenario | D59: 209
A60: =TABLE(,E203) | B60: $J$209 | C60: Scenario | D60: 209
A61: =TABLE(,E203) | B61: $K$209 | C61: Scenario | D61: 209
A62: =TABLE(,E203) | B62: $L$209 | C62: Scenario | D62: 209
A63: =TABLE(,E203) | B63: $M$209 | C63: Scenario | D63: 209
A64: =TABLE(,E203) | B64: $N$209 | C64: Scenario | D64: 209
A65: =TABLE(,E203) | B65: $O$209 | C65: Scenario | D65: 209
A66: =TABLE(,E203) | B66: $P$209 | C66: Scenario | D66: 209
A67: =TABLE(,E203) | B67: $F$210 | C67: Scenario | D67: 210
A68: =TABLE(,E203) | B68: $G$210 | C68: Scenario | D68: 210
A69: =TABLE(,E203) | B69: $H$210 | C69: Scenario | D69: 210
A70: =TABLE(,E203) | B70: $I$210 | C70: Scenario | D70: 210
A71: =TABLE(,E203) | B71: $J$210 | C71: Scenario | D71: 210
A72: =TABLE(,E203) | B72: $K$210 | C72: Scenario | D72: 210
A73: =TABLE(,E203) | B73: $L$210 | C73: Scenario | D73: 210
A74: =TABLE(,E203) | B74: $M$210 | C74: Scenario | D74: 210
A75: =TABLE(,E203) | B75: $N$210 | C75: Scenario | D75: 210
A76: =TABLE(,E203) | B76: $O$210 | C76: Scenario | D76: 210
A77: =TABLE(,E203) | B77: $P$210 | C77: Scenario | D77: 210
A78: =TABLE(,E203) | B78: $F$211 | C78: Scenario | D78: 211
A79: =TABLE(,E203) | B79: $G$211 | C79: Scenario | D79: 211
A80: =TABLE(,E203) | B80: $H$211 | C80: Scenario | D80: 211
A81: =TABLE(,E203) | B81: $I$211 | C81: Scenario | D81: 211
A82: =TABLE(,E203) | B82: $J$211 | C82: Scenario | D82: 211
A83: =TABLE(,E203) | B83: $K$211 | C83: Scenario | D83: 211
A84: =TABLE(,E203) | B84: $L$211 | C84: Scenario | D84: 211
A85: =TABLE(,E203) | B85: $M$211 | C85: Scenario | D85: 211
A86: =TABLE(,E203) | B86: $N$211 | C86: Scenario | D86: 211
A87: =TABLE(,E203) | B87: $O$211 | C87: Scenario | D87: 211
A88: =TABLE(,E203) | B88: $P$211 | C88: Scenario | D88: 211
A89: =TABLE(,E203) | B89: $F$212 | C89: Scenario | D89: 212
A90: =TABLE(,E203) | B90: $G$212 | C90: Scenario | D90: 212
A91: =TABLE(,E203) | B91: $H$212 | C91: Scenario | D91: 212
A92: =TABLE(,E203) | B92: $I$212 | C92: Scenario | D92: 212
A93: =TABLE(,E203) | B93: $J$212 | C93: Scenario | D93: 212
A94: =TABLE(,E203) | B94: $K$212 | C94: Scenario | D94: 212
A95: =TABLE(,E203) | B95: $L$212 | C95: Scenario | D95: 212
A96: =TABLE(,E203) | B96: $M$212 | C96: Scenario | D96: 212
A97: =TABLE(,E203) | B97: $N$212 | C97: Scenario | D97: 212
A98: =TABLE(,E203) | B98: $O$212 | C98: Scenario | D98: 212
A99: =TABLE(,E203) | B99: $P$212 | C99: Scenario | D99: 212
A100: =TABLE(,E203) | B100: $F$213 | C100: Scenario | D100: 213
A101: =TABLE(,E203) | B101: $G$213 | C101: Scenario | D101: 213
A102: =TABLE(,E203) | B102: $H$213 | C102: Scenario | D102: 213
A103: =TABLE(,E203) | B103: $I$213 | C103: Scenario | D103: 213
A104: =TABLE(,E203) | B104: $J$213 | C104: Scenario | D104: 213
A105: =TABLE(,E203) | B105: $K$213 | C105: Scenario | D105: 213
A106: =TABLE(,E203) | B106: $L$213 | C106: Scenario | D106: 213
A107: =TABLE(,E203) | B107: $M$213 | C107: Scenario | D107: 213
A108: =TABLE(,E203) | B108: $N$213 | C108: Scenario | D108: 213
A109: =TABLE(,E203) | B109: $O$213 | C109: Scenario | D109: 213
A110: =TABLE(,E203) | B110: $P$213 | C110: Scenario | D110: 213
A111: =TABLE(,E203) | B111: $F$214 | C111: Scenario | D111: 214
A112: =TABLE(,E203) | B112: $G$214 | C112: Scenario | D112: 214
A113: =TABLE(,E203) | B113: $H$214 | C113: Scenario | D113: 214
A114: =TABLE(,E203) | B114: $I$214 | C114: Scenario | D114: 214
A115: =TABLE(,E203) | B115: $J$214 | C115: Scenario | D115: 214
A116: =TABLE(,E203) | B116: $K$214 | C116: Scenario | D116: 214
A117: =TABLE(,E203) | B117: $L$214 | C117: Scenario | D117: 214
A118: =TABLE(,E203) | B118: $M$214 | C118: Scenario | D118: 214
A119: =TABLE(,E203) | B119: $N$214 | C119: Scenario | D119: 214
A120: =TABLE(,E203) | B120: $O$214 | C120: Scenario | D120: 214
A121: =TABLE(,E203) | B121: $P$214 | C121: Scenario | D121: 214
A122: =TABLE(,E203) | B122: $F$215 | C122: Scenario | D122: 215
A123: =TABLE(,E203) | B123: $G$215 | C123: Scenario | D123: 215
A124: =TABLE(,E203) | B124: $H$215 | C124: Scenario | D124: 215
A125: =TABLE(,E203) | B125: $I$215 | C125: Scenario | D125: 215
A126: =TABLE(,E203) | B126: $J$215 | C126: Scenario | D126: 215
A127: =TABLE(,E203) | B127: $K$215 | C127: Scenario | D127: 215
A128: =TABLE(,E203) | B128: $L$215 | C128: Scenario | D128: 215
A129: =TABLE(,E203) | B129: $M$215 | C129: Scenario | D129: 215
A130: =TABLE(,E203) | B130: $N$215 | C130: Scenario | D130: 215
A131: =TABLE(,E203) | B131: $O$215 | C131: Scenario | D131: 215
A132: =TABLE(,E203) | B132: $P$215 | C132: Scenario | D132: 215
A133: =TABLE(,E203) | B133: $F$216 | C133: Scenario | D133: 216
A134: =TABLE(,E203) | B134: $G$216 | C134: Scenario | D134: 216
A135: =TABLE(,E203) | B135: $H$216 | C135: Scenario | D135: 216
A136: =TABLE(,E203) | B136: $I$216 | C136: Scenario | D136: 216
A137: =TABLE(,E203) | B137: $J$216 | C137: Scenario | D137: 216
A138: =TABLE(,E203) | B138: $K$216 | C138: Scenario | D138: 216
A139: =TABLE(,E203) | B139: $L$216 | C139: Scenario | D139: 216
A140: =TABLE(,E203) | B140: $M$216 | C140: Scenario | D140: 216
A141: =TABLE(,E203) | B141: $N$216 | C141: Scenario | D141: 216
A142: =TABLE(,E203) | B142: $O$216 | C142: Scenario | D142: 216
A143: =TABLE(,E203) | B143: $P$216 | C143: Scenario | D143: 216
A144: =TABLE(,E203) | B144: $F$217 | C144: Scenario | D144: 217
A145: =TABLE(,E203) | B145: $G$217 | C145: Scenario | D145: 217
A146: =TABLE(,E203) | B146: $H$217 | C146: Scenario | D146: 217
A147: =TABLE(,E203) | B147: $I$217 | C147: Scenario | D147: 217
A148: =TABLE(,E203) | B148: $J$217 | C148: Scenario | D148: 217
A149: =TABLE(,E203) | B149: $K$217 | C149: Scenario | D149: 217
A150: =TABLE(,E203) | B150: $L$217 | C150: Scenario | D150: 217
A151: =TABLE(,E203) | B151: $M$217 | C151: Scenario | D151: 217
A152: =TABLE(,E203) | B152: $N$217 | C152: Scenario | D152: 217
A153: =TABLE(,E203) | B153: $O$217 | C153: Scenario | D153: 217
A154: =TABLE(,E203) | B154: $P$217 | C154: Scenario | D154: 217
A155: =TABLE(,E203) | B155: $F$218 | C155: Scenario | D155: 218
A156: =TABLE(,E203) | B156: $G$218 | C156: Scenario | D156: 218
A157: =TABLE(,E203) | B157: $H$218 | C157: Scenario | D157: 218
A158: =TABLE(,E203) | B158: $I$218 | C158: Scenario | D158: 218
A159: =TABLE(,E203) | B159: $J$218 | C159: Scenario | D159: 218
A160: =TABLE(,E203) | B160: $K$218 | C160: Scenario | D160: 218
A161: =TABLE(,E203) | B161: $L$218 | C161: Scenario | D161: 218
A162: =TABLE(,E203) | B162: $M$218 | C162: Scenario | D162: 218
A163: =TABLE(,E203) | B163: $N$218 | C163: Scenario | D163: 218
A164: =TABLE(,E203) | B164: $O$218 | C164: Scenario | D164: 218
A165: =TABLE(,E203) | B165: $P$218 | C165: Scenario | D165: 218
A166: =TABLE(,E203) | B166: $F$219 | C166: Scenario | D166: 219
A167: =TABLE(,E203) | B167: $G$219 | C167: Scenario | D167: 219
A168: =TABLE(,E203) | B168: $H$219 | C168: Scenario | D168: 219
A169: =TABLE(,E203) | B169: $I$219 | C169: Scenario | D169: 219
A170: =TABLE(,E203) | B170: $J$219 | C170: Scenario | D170: 219
A171: =TABLE(,E203) | B171: $K$219 | C171: Scenario | D171: 219
A172: =TABLE(,E203) | B172: $L$219 | C172: Scenario | D172: 219
A173: =TABLE(,E203) | B173: $M$219 | C173: Scenario | D173: 219
A174: =TABLE(,E203) | B174: $N$219 | C174: Scenario | D174: 219
A175: =TABLE(,E203) | B175: $O$219 | C175: Scenario | D175: 219
A176: =TABLE(,E203) | B176: $P$219 | C176: Scenario | D176: 219
A177: =TABLE(,E203) | B177: $F$220 | C177: Scenario | D177: 220
A178: =TABLE(,E203) | B178: $G$220 | C178: Scenario | D178: 220
A179: =TABLE(,E203) | B179: $H$220 | C179: Scenario | D179: 220
A180: =TABLE(,E203) | B180: $I$220 | C180: Scenario | D180: 220
A181: =TABLE(,E203) | B181: $J$220 | C181: Scenario | D181: 220
A182: =TABLE(,E203) | B182: $K$220 | C182: Scenario | D182: 220
A183: =TABLE(,E203) | B183: $L$220 | C183: Scenario | D183: 220
A184: =TABLE(,E203) | B184: $M$220 | C184: Scenario | D184: 220
A185: =TABLE(,E203) | B185: $N$220 | C185: Scenario | D185: 220
A186: =TABLE(,E203) | B186: $O$220 | C186: Scenario | D186: 220
A187: =TABLE(,E203) | B187: $P$220 | C187: Scenario | D187: 220
A188: =TABLE(,E203) | B188: $F$221 | C188: Scenario | D188: 221
A189: =TABLE(,E203) | B189: $G$221 | C189: Scenario | D189: 221
A190: =TABLE(,E203) | B190: $H$221 | C190: Scenario | D190: 221
A191: =TABLE(,E203) | B191: $I$221 | C191: Scenario | D191: 221
A192: =TABLE(,E203) | B192: $J$221 | C192: Scenario | D192: 221
A193: =TABLE(,E203) | B193: $K$221 | C193: Scenario | D193: 221
A194: =TABLE(,E203) | B194: $L$221 | C194: Scenario | D194: 221
A195: =TABLE(,E203) | B195: $M$221 | C195: Scenario | D195: 221
A196: =TABLE(,E203) | B196: $N$221 | C196: Scenario | D196: 221
A197: =TABLE(,E203) | B197: $O$221 | C197: Scenario | D197: 221
A198: =TABLE(,E203) | B198: $P$221 | C198: Scenario | D198: 221
A199: =TABLE(,E203) | B199: $F$222 | C199: Scenario | D199: 222
A200: =TABLE(,E203) | B200: $G$222 | C200: Scenario | D200: 222
... 141 more rows

Sheet Rapport imprimable
B2: Outil d'analyse de la rentabilité des projets PV en Tunisie
B3: Autoproduction MT et HT
B4: ="Rapport de synthèse imprimé le "&TEXT(TODAY(),"dd mmmm yyyy") -> Rapport de synthèse imprimé le dd juin yyyy
B6: Hypothèses de bases
C8: variable | D8: valeur | E8: unité
C9: Coût de l'installation | D9: ='Entrées Utilisateur'!C10 -> 2750 | E9: ='Entrées Utilisateur'!D10 -> DT/kW
D10: ='Entrées Utilisateur'!C11 -> 275000 | E10: ='Entrées Utilisateur'!D11 -> DT
C11: Subvention | D11: ='Entrées Utilisateur'!C13 -> 0.2 | E11: ='Entrées Utilisateur'!D13 -> %
D12: ='Entrées Utilisateur'!C14 -> 55000 | E12: ='Entrées Utilisateur'!D14 -> DT
C13: Taille de l'installation | D13: ='Entrées Utilisateur'!C17 -> 100 | E13: ='Entrées Utilisateur'!D17 -> kWc
C14: Courbe de charge | D14: ='Entrées Utilisateur'!C25 -> Industrie alimentaire
C15: Consommation annuelle moyenne | D15: ='Entrées Utilisateur'!C26 -> 200000 | E15: kWh
C16: Tarif Souscrit STEG | D16: ='Entrées Utilisateur'!C21 -> Tarif Uniforme
C17: Région (pour courbe de production PV) | D17: ='Entrées Utilisateur'!C30 -> Tunis
C18: Orientation des panneaux | D18: ='Entrées Utilisateur'!C31 -> Sud
C20: ** Voir modèle excel pour hypothèses détaillées
B22: Résultats
C24: variable | D24: valeur | E24: unité
C25: Consommation brute annuelle | D25: =Résultats!C5 -> 200000 | E25: =Résultats!D5 -> kWh
C26: Production annuelle | D26: =Résultats!C6 -> 156147.748 | E26: =Résultats!D6 -> kWh
C27: Ratio Production PV – consommation | D27: =Résultats!C7 -> 0.7807387398 | E27: =Résultats!D7 -> -
C28: Pourcentage de la production en excédent | D28: =Résultats!C8 -> 0.2313172046 | E28: =Résultats!D8 -> -
C29: Montant à rembourser à la fin de l'année | D29: =Résultats!C9 -> 0 | E29: =Résultats!D9 -> DT/an
C30: Coût Moyen Actualisé de l'Énergie (LCOE) avec subvention | D30: =Résultats!C10 -> 0.1753383169 | E30: =Résultats!D10 -> DT/kWh
C31: Facture annuelle sans PV | D31: =Résultats!C11 -> 36200 | E31: =Résultats!D11 -> DT/an
C32: Facture annuelle avec PV | D32: =Résultats!C12 -> 14474.91618 | E32: =Résultats!D12 -> DT/an
C33: Vente annuelle de l'excédent à la STEG | D33: =Résultats!C13 -> 4965.687781 | E33: =Résultats!D13 -> DT/an
C34: Temps de retour sur investissement | D34: =Résultats!C14 -> 12.71498748 | E34: =Résultats!D14 -> années
C35: Taux de rentabilité interne du projet | D35: =Résultats!C15 -> 0.08932659924 | E35: =Résultats!D15 -> -
C36: Réduction d'émissions de gaz à effet de serre sur la vie du système PV | D36: =Résultats!C16 -> 1780.084327 | E36: =Résultats!D16 -> tonnes équivalent CO2
B54: Outil d'analyse de la rentabilité des projets PV en Tunisie version mai 2017
B55: Page 1
B113: Outil d'analyse de la rentabilité des projets PV en Tunisie (version mai 2017)
B114: Page 2
B172: Outil d'analyse de la rentabilité des projets PV en Tunisie (version mai 2017)
B173: Page 3

Sheet Données
C1: Assumptions | D1: Hypothèses
D2: Tunisie Moyenne Tension
C5: Timing | D5: Délais
C6: Start | D6: Départ
C7: Model Start Date | D7: Date de début de la modélisation | E7: date | G7: ='Entrées Utilisateur'!C44 -> 2016-10-01
C9: Construction | D9: Construction
C10: Start | D10: Début | E10: date | G10: =Model_Start -> 2016-10-01
D11: Durée | E11: mois | G11: ='Entrées Utilisateur'!C47 -> 3
C12: End | D12: Fin | E12: date | G12: =EOMONTH(G10,G11-1) -> 2016-12-31
C14: Operations | D14: Exploitation
C15: Start | D15: Début | E15: date | G15: =G12+1 -> 2017-01-01
D16: Durée de l'hypothèse de référence | E16: ans | G16: ='Entrées Utilisateur'!C50 -> 20
C17: Base Case Duration | D17: Durée appliqué | E17: ans | F17: =Scénarios!D182 -> 0 | G17: =G16+F17 -> 20
C18: End | D18: Fin | E18: date | G18: =EOMONTH(G15,G17*12-1) -> 2036-12-31
C20: Construction | D20: Construction
C21: System Cost | D21: Coût de l'installation
C22: Turnkey System Cost | D22: Coût de l'installation | E22: DT | G22: =IF('Entrées Utilisateur'!C10="DT",'Entrées Utilisateur'!C10,'Entrées Utilisateur'!C10*Données!G37) -> 275000
C23: Applied Scenario | D23: Coût de l'installation appliqué | E23: DT | F23: =Scénarios!D30 -> 0 | G23: =(1+F23)*G22 -> 275000
C25: Payment Profile | D25: Liste des dépenses
C26: Construction Month | D26: Mois de construction | G26: Total | H26: 1 | I26: =H26+1 -> 2 | J26: =I26+1 -> 3 | K26: =J26+1 -> 4 | L26: =K26+1 -> 5 | M26: =L26+1 -> 6
C27: Relative Costs | D27: Coûts relatifs | G27: =SUM(H27:M27) -> 1 | H27: ='Entrées Utilisateur'!D55 -> 0.8 | I27: ='Entrées Utilisateur'!D56 -> 0 | J27: ='Entrées Utilisateur'!D57 -> 0.2 | K27: ='Entrées Utilisateur'!D58 -> 0 | L27: ='Entrées Utilisateur'!D59 -> 0 | M27: ='Entrées Utilisateur'!D60 -> 0
C29: Subsidy | D29: Subvention
C30: Subsidy | D30: Subvention | E30: DT | G30: =IF('Entrées Utilisateur'!D13="DT",'Entrées Utilisateur'!C13,MIN(Données!G23*'Entrées Utilisateur'!C13,100000)) -> 55000 | I30: limite de 100.000 DT
C31: Applied Subsidy | D31: Subvention appliquée | E31: DT | F31: =Scénarios!D52 -> 0 | G31: =G30*(1+F31) -> 55000
C32: Year of Subsidy Payment | D32: Années d'allocation de la subvention | E32: an(s) | G32: ='Entrées Utilisateur'!C63 -> 0
C34: Operations | D34: Exploitation
C35: Generation | D35: Production
C36: System Size | D36: Taille de l'installation | E36: kWc | G36: ='Entrées Utilisateur'!C17 -> 100
D37: Taille de l'installation appliquée | E37: kWc | F37: =Scénarios!D8 -> 0 | G37: =G36*(1+F37) -> 100
C39: Degradation | D39: Dégradation des performances | E39: % p.a. | G39: ='Entrées Utilisateur'!C67 -> 0.007
C40: Overall Efficiency | D40: Rendement global | E40: x | G40: ='Entrées Utilisateur'!C68 -> 1
C42: Applied Yield | D42: Rendement appliqué | E42: kWh/kWc/a | G42: ='Courbes de Production PV'!C6 -> 1561.47748
C44: Electricity Savings | D44: Economies d'électricité
C45: Net-metering | D45: Net-metering
D46: Tarifs de Consommation | E46: ='Entrées Utilisateur'!C21 -> Tarif Uniforme
D48: Choix de Tarif
D50: Tarif Uniforme | E50: DT/kWh | G50: ='Entrées Utilisateur'!C75 -> 0.176
J51: Postes horaires
D52: Tarif jour | E52: DT/kWh | G52: ='Entrées Utilisateur'!C78 -> 0.161 | K52: Saison 1 | O52: Saison 2
D53: Tarif pointe matin été | E53: DT/kWh | G53: ='Entrées Utilisateur'!C79 -> 0.25 | K53: début (mois) | L53: fin (mois) | M53: début (heure) | N53: fin (heure) | O53: début (mois) | P53: fin (mois) | Q53: début (heure) | R53: fin (heure) | S53: début (heure) | T53: fin (heure)
D54: Tarif pointe soir | E54: DT/kWh | G54: ='Entrées Utilisateur'!C80 -> 0.227 | J54: Tarif jour | K54: 9 | L54: 6 | M54: 7 | N54: 18 | O54: 6 | P54: 9 | Q54: 7 | R54: 9 | S54: 14 | T54: 19
D55: Tarif nuit / dim | E55: DT/kWh | G55: ='Entrées Utilisateur'!C81 -> 0.124 | J55: Tarif pointe matin été | K55: 9 | L55: 6 | O55: 6 | P55: 9 | Q55: 9 | R55: 14
J56: Tarif pointe soir | K56: 9 | L56: 6 | M56: 18 | N56: 21 | O56: 6 | P56: 9 | Q56: 19 | R56: 22
D57: TVA payé par le client pour consommation | E57: % | G57: ='Entrées Utilisateur'!C83 -> 0 | J57: Tarif nuit / dim | K57: 9 | L57: 6 | M57: 21 | N57: 7 | O57: 6 | P57: 9 | Q57: 22 | R57: 7
D58: surtaxe municipale | E58: DT/kWh | G58: ='Entrées Utilisateur'!C84 -> 0.005
D60: Tarifs d'Achat de l'Excèdent
D61: Tarif jour | E61: DT/kWh | G61: ='Entrées Utilisateur'!C87 -> 0.115
D62: Tarif pointe matin été | E62: DT/kWh | G62: ='Entrées Utilisateur'!C88 -> 0.182
D63: Tarif pointe soir | E63: DT/kWh | G63: ='Entrées Utilisateur'!C89 -> 0.168
D64: Tarif nuit / dim | E64: DT/kWh | G64: ='Entrées Utilisateur'!C90 -> 0.087
C66: Net-metering | D66: Net-metering
C67: Yearly Consumption | D67: Consommation annuelle | E67: kWh | G67: ='Entrées Utilisateur'!C26 -> 200000
C68: Yearly Consumption | D68: Consommation annuelle appliqué | E68: kWh | F68: =Scénarios!D74 -> 0 | G68: =G67*(1+F68) -> 200000
C69: Average Yearly PV Generation | D69: Production annuelle moyenne | E69: kWh | G69: =SUM('Compensation PV'!K31:K8790) -> 156147.748
C70: Annual Net-metering Limit | D70: Limite facturation par poste horaire | E70: % | G70: ='Entrées Utilisateur'!C93 -> 0.3
C72: Price Forecast | D72: Valeur de la production PV et projections de prix | G72: =YEAR(Model_Start) -> 2016 | H72: =G72+1 -> 2017 | I72: =H72+1 -> 2018 | J72: =I72+1 -> 2019 | K72: =J72+1 -> 2020 | L72: 2021 | M72: 2022 | N72: 2023 | O72: 2024 | P72: 2025 | Q72: 2026 | R72: 2027 | S72: 2028 | T72: 2029 | U72: 2030 | V72: 2031 | W72: 2032 | X72: 2033 | Y72: 2034 | Z72: 2035 | AA72: 2036 | AB72: 2037 | AC72: 2038 | AD72: 2039 | AE72: 2040 | AF72: 2041 | AG72: 2042 | AH72: 2043
C73: Price Escalation | D73: Augmentation du tarif de vente | E73: % | G73: ='Entrées Utilisateur'!D96 -> 0 | H73: ='Entrées Utilisateur'!E96 -> 0.05 | I73: ='Entrées Utilisateur'!G96 -> 0.05 | J73: ='Entrées Utilisateur'!H96 -> 0.05 | K73: ='Entrées Utilisateur'!I96 -> 0.05 | L73: =Scénarios!D95 -> 0.05 | M73: =$L$73 -> 0.05 | N73: =$L$73 -> 0.05 | O73: 0.05 | P73: 0.05 | Q73: 0.05 | R73: 0.05 | S73: 0.05 | T73: 0.05 | U73: 0.05 | V73: 0.05 | W73: 0.05 | X73: 0.05 | Y73: 0.05 | Z73: 0.05 | AA73: 0.05 | AB73: 0.05 | AC73: 0.05 | AD73: 0.05 | AE73: 0.05 | AF73: 0.05 | AG73: 0.05 | AH73: 0.05
D74: Augmentation du tarif d'achat de l'excédent | E74: % | G74: ='Entrées Utilisateur'!D97 -> 0 | H74: ='Entrées Utilisateur'!E97 -> 0.05 | I74: ='Entrées Utilisateur'!G97 -> 0.05 | J74: ='Entrées Utilisateur'!H97 -> 0.05 | K74: ='Entrées Utilisateur'!I97 -> 0.05 | L74: ='Entrées Utilisateur'!J97 -> 0 | M74: =L74 -> 0 | N74: 0 | O74: 0 | P74: 0 | Q74: 0 | R74: 0 | S74: 0 | T74: 0 | U74: 0 | V74: 0 | W74: 0 | X74: 0 | Y74: 0 | Z74: 0 | AA74: 0 | AB74: 0 | AC74: 0 | AD74: 0 | AE74: 0 | AF74: 0 | AG74: 0 | AH74: 0
D75: Valeur de l’électricité PV pour le consommateur (venant de la partie de la production PV autoconsommée) | G75: ='Compensation PV'!C25 -> 0.139131586 | H75: =G75*(1+H73) -> 0.1460881653 | I75: =H75*(1+I73) -> 0.1533925735 | J75: 0.1610622022 | K75: 0.1691153123 | L75: 0.1775710779 | M75: 0.1864496318 | N75: 0.1957721134 | O75: 0.2055607191 | P75: 0.215838755 | Q75: 0.2266306928 | R75: 0.2379622274 | S75: 0.2498603388 | T75: 0.2623533557 | U75: 0.2754710235 | V75: 0.2892445747 | W75: 0.3037068034 | X75: 0.3188921436 | Y75: 0.3348367508 | Z75: 0.3515785883 | AA75: 0.3691575178 | AB75: 0.3876153936 | AC75: 0.4069961633 | AD75: 0.4273459715 | AE75: 0.4487132701 | AF75: 0.4711489336 | AG75: 0.4947063802 | AH75: 0.5194416993
D76: Valeur de l’électricité PV pour le consommateur (venant de la partie de la production PV vendu comme excédent) | G76: ='Compensation PV'!C26 -> 0.03180121293 | H76: =G76*(1+H74) -> 0.03339127357 | I76: =H76*(1+I74) -> 0.03506083725 | J76: 0.03681387912 | K76: 0.03865457307 | L76: 0.03865457307 | M76: 0.03865457307 | N76: 0.03865457307 | O76: 0.03865457307 | P76: 0.03865457307 | Q76: 0.03865457307 | R76: 0.03865457307 | S76: 0.03865457307 | T76: 0.03865457307 | U76: 0.03865457307 | V76: 0.03865457307 | W76: 0.03865457307 | X76: 0.03865457307 | Y76: 0.03865457307 | Z76: 0.03865457307 | AA76: 0.03865457307 | AB76: 0.03865457307 | AC76: 0.03865457307 | AD76: 0.03865457307 | AE76: 0.03865457307 | AF76: 0.03865457307 | AG76: 0.03865457307 | AH76: 0.03865457307
C77: Escalated Price | D77: Valeur de l’électricité PV pour le consommateur (totale) | E77: DT/kWh | G77: =G75+G76 -> 0.1709327989 | H77: =SUM(H75:H76) -> 0.1794794388 | I77: =SUM(I75:I76) -> 0.1884534108 | J77: 0.1978760813 | K77: 0.2077698854 | L77: 0.216225651 | M77: 0.2251042049 | N77: 0.2344266865 | O77: 0.2442152922 | P77: 0.2544933281 | Q77: 0.2652852659 | R77: 0.2766168005 | S77: 0.2885149119 | T77: 0.3010079288 | U77: 0.3141255966 | V77: 0.3278991478 | W77: 0.3423613765 | X77: 0.3575467167 | Y77: 0.3734913239 | Z77: 0.3902331614 | AA77: 0.4078120908 | AB77: 0.4262699667 | AC77: 0.4456507364 | AD77: 0.4660005446 | AE77: 0.4873678431 | AF77: 0.5098035066 | AG77: 0.5333609533 | AH77: 0.5580962723
C79: OpEx | D79: Coûts d’exploitation
C80: O&M | D80: Exploitation & Maintenance
C81: Fixed Operation Costs | D81: Coûts fixes d'exploitation | E81: % de l'investissement | G81: ='Entrées Utilisateur'!C101 -> 0.015
C82: Fixed Operation Costs | D82: Coûts fixes d'exploitation | E82: DT/p.a. | G82: =G81*G23 -> 4125
C84: Cost Categories | D84: Catégories de coûts
C85: Absolute Costs | D85: Coûts fixes
C86: Fixed Operation | D86: Coût d'exploitation fixe | E86: DT p.a. | G86: =G82 -> 4125
C87: Spare | D87: Autre | E87: DT p.a. | G87: ='Entrées Utilisateur'!C105 -> 0
C88: Spare | D88: Autre | E88: DT p.a. | G88: ='Entrées Utilisateur'!C106 -> 0
C89: Spare | D89: Autre | E89: DT p.a. | G89: ='Entrées Utilisateur'!C107 -> 0
C90: Spare | D90: Autre | E90: DT p.a. | G90: ='Entrées Utilisateur'!C108 -> 0
C91: Total | D91: Sommaire | E91: DT p.a. | G91: =SUM(G86:G90) -> 4125
C93: Variable Costs | D93: Coûts variables
C94: Land Lease | D94: Bail Foncier | E94: DT/kWh | G94: ='Entrées Utilisateur'!C111 -> 0
C95: Spare | D95: Autre | E95: DT/kWh | G95: ='Entrées Utilisateur'!C112 -> 0
C96: Spare | D96: Autre | E96: DT/kWh | G96: ='Entrées Utilisateur'!C113 -> 0
C97: Spare | D97: Autre | E97: DT/kWh | G97: ='Entrées Utilisateur'!C114 -> 0
C98: Total | D98: Sommaire | E98: DT/kWh | G98: =SUM(G94:G97) -> 0
C100: Ongoing CapEx | D100: Dépenses en immobilisations permanentes (valeure nominale)
G101: 1 | H101: 2 | I101: 3 | J101: 4 | K101: 5 | L101: 6 | M101: 7 | N101: 8 | O101: 9 | P101: 10 | Q101: 11 | R101: 12 | S101: 13 | T101: 14 | U101: 15 | V101: 16 | W101: 17 | X101: 18 | Y101: 19 | Z101: 20
C102: Spare | D102: Autre | E102: DT | G102: ='Entrées Utilisateur'!D118 -> 0 | H102: ='Entrées Utilisateur'!E118 -> 0 | I102: ='Entrées Utilisateur'!G118 -> 0 | J102: ='Entrées Utilisateur'!H118 -> 0 | K102: ='Entrées Utilisateur'!I118 -> 0 | L102: ='Entrées Utilisateur'!J118 -> 0 | M102: ='Entrées Utilisateur'!K118 -> 0 | N102: ='Entrées Utilisateur'!L118 -> 0 | O102: ='Entrées Utilisateur'!M118 -> 0 | P102: ='Entrées Utilisateur'!N118 -> 0 | Q102: ='Entrées Utilisateur'!O118 -> 0 | R102: ='Entrées Utilisateur'!P118 -> 0 | S102: ='Entrées Utilisateur'!Q118 -> 0 | T102: ='Entrées Utilisateur'!R118 -> 0 | U102: ='Entrées Utilisateur'!S118 -> 0 | V102: ='Entrées Utilisateur'!T118 -> 0 | W102: ='Entrées Utilisateur'!U118 -> 0 | X102: ='Entrées Utilisateur'!V118 -> 0 | Y102: ='Entrées Utilisateur'!W118 -> 0 | Z102: ='Entrées Utilisateur'!X118 -> 0
C103: Spare | D103: Autre | E103: DT | G103: ='Entrées Utilisateur'!D119 -> 0 | H103: ='Entrées Utilisateur'!E119 -> 0 | I103: ='Entrées Utilisateur'!G119 -> 0 | J103: ='Entrées Utilisateur'!H119 -> 0 | K103: ='Entrées Utilisateur'!I119 -> 0 | L103: ='Entrées Utilisateur'!J119 -> 0 | M103: ='Entrées Utilisateur'!K119 -> 0 | N103: ='Entrées Utilisateur'!L119 -> 0 | O103: ='Entrées Utilisateur'!M119 -> 0 | P103: ='Entrées Utilisateur'!N119 -> 0 | Q103: ='Entrées Utilisateur'!O119 -> 0 | R103: ='Entrées Utilisateur'!P119 -> 0 | S103: ='Entrées Utilisateur'!Q119 -> 0 | T103: ='Entrées Utilisateur'!R119 -> 0 | U103: ='Entrées Utilisateur'!S119 -> 0 | V103: ='Entrées Utilisateur'!T119 -> 0 | W103: ='Entrées Utilisateur'!U119 -> 0 | X103: ='Entrées Utilisateur'!V119 -> 0 | Y103: ='Entrées Utilisateur'!W119 -> 0 | Z103: ='Entrées Utilisateur'!X119 -> 0
C104: Spare | D104: Autre | E104: DT | G104: ='Entrées Utilisateur'!D120 -> 0 | H104: ='Entrées Utilisateur'!E120 -> 0 | I104: ='Entrées Utilisateur'!G120 -> 0 | J104: ='Entrées Utilisateur'!H120 -> 0 | K104: ='Entrées Utilisateur'!I120 -> 0 | L104: ='Entrées Utilisateur'!J120 -> 0 | M104: ='Entrées Utilisateur'!K120 -> 0 | N104: ='Entrées Utilisateur'!L120 -> 0 | O104: ='Entrées Utilisateur'!M120 -> 0 | P104: ='Entrées Utilisateur'!N120 -> 0 | Q104: ='Entrées Utilisateur'!O120 -> 0 | R104: ='Entrées Utilisateur'!P120 -> 0 | S104: ='Entrées Utilisateur'!Q120 -> 0 | T104: ='Entrées Utilisateur'!R120 -> 0 | U104: ='Entrées Utilisateur'!S120 -> 0 | V104: ='Entrées Utilisateur'!T120 -> 0 | W104: ='Entrées Utilisateur'!U120 -> 0 | X104: ='Entrées Utilisateur'!V120 -> 0 | Y104: ='Entrées Utilisateur'!W120 -> 0 | Z104: ='Entrées Utilisateur'!X120 -> 0
C106: Funding | D106: Financement
C107: Senior Debt | D107: Dette de premier rang
C108: Fixed Debt Limit | D108: Limite | E108: DT | G108: ='Entrées Utilisateur'!C124 -> 200000
C109: Debt Gearing Base Case | D109: Ratio | E109: % | G109: ='Entrées Utilisateur'!C125 -> 0.7
C110: Selection | D110: Sélection | F110: Ratio | G110: =IF(F110=D109,G109,G108) -> 0.7
C111: Applied Debt Limit | D111: Limite d'endettement appliquée | F111: =Scénarios!D116 -> 0 | G111: =(1+F111)*IF(G110=G109,G23*G110,G108) -> 192500
D113: Ratio d´endettement | E113: % | G113: =G111/G23 -> 0.7
C115: Period | D115: Période | G115: Cons | H115: 1 | I115: 2 | J115: 3 | K115: 4
C116: Margin | D116: Marge | E116: % p.a. | G116: ='Entrées Utilisateur'!D129 -> 0.0125 | H116: ='Entrées Utilisateur'!E129 -> 0.0125 | I116: ='Entrées Utilisateur'!G129 -> 0.0125 | J116: ='Entrées Utilisateur'!H129 -> 0.0125 | K116: ='Entrées Utilisateur'!I129 -> 0.0125
C118: Financing Fees | D118: Frais de financement
C119: Upfront Fee | D119: Commission initiale | E119: % crédit | G119: ='Entrées Utilisateur'!C132 -> 0.01 | H119: =G111*G119 -> 1925
C120: Commitment Fee | D120: Commission d'engagement | E120: % marge | G120: ='Entrées Utilisateur'!C133 -> 0.25
C121: Commitment Fee | D121: Commission d'engagement | E121: % p.a. | G121: =G116*G120 -> 0.003125
C123: Repayment Terms | D123: Modalités de remboursement
D124: Durée du crédit | E124: an(s) | G124: ='Entrées Utilisateur'!C136 -> 10 | I124: From | J124: To
D125: Durée du crédit appliquée | E125: an(s) | F125: =Scénarios!D160 -> 0 | G125: =G124+F125 -> 10 | I125: =G15 -> 2017-01-01 | J125: =EOMONTH(I125,G125*12-1) -> 2026-12-31
C126: Tenor | D126: Délai de grâce | E126: an(s) | G126: ='Entrées Utilisateur'!C137 -> 0 | I126: =I125 -> 2017-01-01 | J126: =EOMONTH(I126,G126*12-1) -> 2016-12-31
C128: Equity | D128: Capitaux propres
C129: Equity | D129: Capitaux propres
C130: Initial Equity | D130: Capital initial | E130: DT | G130: =IF(G111>Construction!I21,0,Construction!I21-G111) -> 82500
C131: Additional Equity | D131: Capitaux propres supplémentaires | E131: DT | G131: =ROUND(-Construction!I33,6) -> 3288.655466
C132: Total | D132: Total | E132: DT | G132: =SUM(G130:G131) -> 85788.65547
C134: WACC | D134: Coût moyen pondéré du capital
C135: Target Equity IRR | D135: Taux d'actualisation | E135: % | G135: ='Entrées Utilisateur'!C141 -> 0.08
C136: Debt All-in Rate | D136: Taux global de la dette | E136: % | G136: =AVERAGE(G143:J143)+AVERAGE(G116:K116) -> 0.055
C137: WACC nominal | D137: Coût moyen pondéré du capital | E137: % | G137: =(G111/(G111+G132))*G136+(G132/(G111+G132))*G135 -> 0.06270680495
C139: Macroeconomics | D139: Elements macroéconomiques
C140: Interest Rate | D140: Taux d'intérêt
C141: Calendar Year | D141: Année civile | G141: =YEAR(Model_Start) -> 2016 | H141: =G141+1 -> 2017 | I141: =H141+1 -> 2018 | J141: =I141+1 -> 2019
D142: Taux de référence | E142: % p.a. | G142: ='Entrées Utilisateur'!D146 -> 0.0425 | H142: ='Entrées Utilisateur'!E146 -> 0.0425 | I142: ='Entrées Utilisateur'!G146 -> 0.0425 | J142: ='Entrées Utilisateur'!H146 -> 0.0425
C143: Base Rate | D143: Taux appliqué | E143: % p.a. | F143: =Scénarios!D138 -> 0 | G143: =G142*(1+$F$143) -> 0.0425 | H143: =H142*(1+$F$143) -> 0.0425 | I143: =I142*(1+$F$143) -> 0.0425 | J143: =J142*(1+$F$143) -> 0.0425
C145: Cost Escalation | D145: Inflation
C146: Calendar Year | D146: Année civile | G146: =YEAR(Model_Start) -> 2016 | H146: =G146+1 -> 2017 | I146: =H146+1 -> 2018 | J146: =I146+1 -> 2019
C147: Escalation Rate | D147: Taux d'augmentation | E147: % p.a. | G147: ='Entrées Utilisateur'!D150 -> 0.04 | H147: ='Entrées Utilisateur'!E150 -> 0.04 | I147: ='Entrées Utilisateur'!G150 -> 0.04 | J147: ='Entrées Utilisateur'!H150 -> 0.04

Sheet Courbes de Charge
B2: Courbe de Charge Moyenne | G2: Courbe de charge moyenne
G3: =C4 -> Industrie alimentaire | H3: (sélectionné dans 'Entrées Utilisateur)
B4: Type de client | C4: ='Entrées Utilisateur'!C25 -> Industrie alimentaire | G4: Mois | H4: juin | I4: =HYPERLINK("#"&ADDRESS(ROW(),COLUMN()-1),CHAR(128)) -> €
B5: Consommation annuelle moyenne (kWh, le cas échéant) | C5: =Données!G68 -> 200000
B7: facteur de multiplication de la courbe de charge | C7: =IF(C4="Saisie Manuelle",1,IF(C5>0,C5/SUM(O10:O8769),1)) -> 0.2423149804 | E7: Saisie Manuelle: Entrer l'année des données | F7: 2008
B9: mois | C9: jour | D9: heure | E9: Saisie Manuelle | F9: Administration | G9: Education | H9: Hôtellerie | I9: Industrie alimentaire | J9: Industrie chimique | K9: Industrie mécanique et électrique | L9: Industrie de plastique | M9: Santé | O9: selection | V9: =G3&" ("&H4&")" -> Industrie alimentaire (juin) | W9: Industrie alimentaire (juin)
A10: 2 | B10: 1 | C10: 1 | D10: 0 | F10: 17.5 | G10: 2 | H10: 125.5 | I10: 17.5 | J10: 330 | K10: 0.5 | L10: 18 | M10: 6.5 | O10: =IF($C$4="Saisie Manuelle",E10,HLOOKUP($C$4,$F$9:$M$8769,A10,FALSE)) -> 17.5 | Q10: 1_0 | R10: janvier | S10: 1 | T10: =VLOOKUP(H4,$R$10:$S$21,2,FALSE) -> 6 | U10: =$T$10&"_"&D10 -> 6_0 | W10: 39.88333333
A11: =A10+1 -> 3 | B11: 1 | C11: 1 | D11: 1 | F11: 18 | G11: 2 | H11: 119 | I11: 16 | J11: 340.5 | K11: 1 | L11: 18 | M11: 6.5 | O11: =IF($C$4="Saisie Manuelle",E11,HLOOKUP($C$4,$F$9:$M$8769,A11,FALSE)) -> 16 | Q11: 1_1 | R11: février | S11: 2 | U11: =$T$10&"_"&D11 -> 6_1 | W11: 32.31666667
A12: =A11+1 -> 4 | B12: 1 | C12: 1 | D12: 2 | F12: 17 | G12: 2 | H12: 111 | I12: 16 | J12: 333.5 | K12: 0.5 | L12: 18 | M12: 7.5 | O12: 16 | Q12: 1_2 | R12: mars | S12: 3 | U12: 6_2 | W12: 26.35
A13: 5 | B13: 1 | C13: 1 | D13: 3 | F13: 17 | G13: 2 | H13: 106 | I13: 19 | J13: 297.5 | K13: 0.5 | L13: 17.5 | M13: 7.5 | O13: 19 | Q13: 1_3 | R13: avril | S13: 4 | U13: 6_3 | W13: 26.88333333
A14: 6 | B14: 1 | C14: 1 | D14: 4 | F14: 17 | G14: 2 | H14: 104.5 | I14: 17.5 | J14: 268.5 | K14: 0.5 | L14: 17.5 | M14: 7.5 | O14: 17.5 | Q14: 1_4 | R14: mai | S14: 5 | U14: 6_4 | W14: 62.93333333
A15: 7 | B15: 1 | C15: 1 | D15: 5 | F15: 16.5 | G15: 2 | H15: 112.5 | I15: 17 | J15: 271 | K15: 1 | L15: 2 | M15: 7.5 | O15: 17 | Q15: 1_5 | R15: juin | S15: 6 | U15: 6_5 | W15: 111.2
A16: 8 | B16: 1 | C16: 1 | D16: 6 | F16: 19.5 | G16: 2 | H16: 111.5 | I16: 14 | J16: 333.5 | K16: 0.5 | L16: 2 | M16: 7 | O16: 14 | Q16: 1_6 | R16: juillet | S16: 7 | U16: 6_6 | W16: 123.5333333
A17: 9 | B17: 1 | C17: 1 | D17: 7 | F17: 17 | G17: 1 | H17: 109.5 | I17: 9 | J17: 328 | K17: 0.5 | L17: 1.5 | M17: 6 | O17: 9 | Q17: 1_7 | R17: août | S17: 8 | U17: 6_7 | W17: 131.8666667
A18: 10 | B18: 1 | C18: 1 | D18: 8 | F18: 19 | G18: 0.5 | H18: 113 | I18: 9 | J18: 316.5 | K18: 0.5 | L18: 2 | M18: 5.5 | O18: 9 | Q18: 1_8 | R18: septembre | S18: 9 | U18: 6_8 | W18: 138.0666667
A19: 11 | B19: 1 | C19: 1 | D19: 9 | F19: 17.5 | G19: 0.5 | H19: 122.5 | I19: 9 | J19: 304.5 | K19: 0.5 | L19: 1.5 | M19: 6 | O19: 9 | Q19: 1_9 | R19: octobre | S19: 10 | U19: 6_9 | W19: 138.15
A20: 12 | B20: 1 | C20: 1 | D20: 10 | F20: 21 | G20: 0.5 | H20: 113 | I20: 11 | J20: 325.5 | K20: 0.5 | L20: 2 | M20: 8 | O20: 11 | Q20: 1_10 | R20: novembre | S20: 11 | U20: 6_10 | W20: 136.2833333
A21: 13 | B21: 1 | C21: 1 | D21: 11 | F21: 17.5 | G21: 1 | H21: 111.5 | I21: 8 | J21: 323.5 | K21: 0.5 | L21: 1.5 | M21: 7 | O21: 8 | Q21: 1_11 | R21: décembre | S21: 12 | U21: 6_11 | W21: 133.9
A22: 14 | B22: 1 | C22: 1 | D22: 12 | F22: 13.5 | G22: 1 | H22: 110 | I22: 8.5 | J22: 252 | K22: 0.5 | L22: 2 | M22: 5.5 | O22: 8.5 | Q22: 1_12 | U22: 6_12 | W22: 129.1166667
A23: 15 | B23: 1 | C23: 1 | D23: 13 | F23: 16 | G23: 0.5 | H23: 105 | I23: 9 | J23: 220 | K23: 0.5 | L23: 1.5 | M23: 6 | O23: 9 | Q23: 1_13 | U23: 6_13 | W23: 127.5666667
A24: 16 | B24: 1 | C24: 1 | D24: 14 | F24: 17 | G24: 1 | H24: 100 | I24: 11 | J24: 204.5 | K24: 0.5 | L24: 2 | M24: 5.5 | O24: 11 | Q24: 1_14 | U24: 6_14 | W24: 125.6666667
A25: 17 | B25: 1 | C25: 1 | D25: 15 | F25: 15 | G25: 0.5 | H25: 95 | I25: 10 | J25: 330.5 | K25: 0 | L25: 1.5 | M25: 5 | O25: 10 | Q25: 1_15 | U25: 6_15 | W25: 123.8666667
A26: 18 | B26: 1 | C26: 1 | D26: 16 | F26: 14.5 | G26: 0.5 | H26: 98 | I26: 12 | J26: 338 | K26: 0.5 | L26: 2.5 | M26: 5.5 | O26: 12 | Q26: 1_16 | U26: 6_16 | W26: 125.2333333
A27: 19 | B27: 1 | C27: 1 | D27: 17 | F27: 19 | G27: 1.5 | H27: 109.5 | I27: 15.5 | J27: 339.5 | K27: 0.5 | L27: 3 | M27: 6 | O27: 15.5 | Q27: 1_17 | U27: 6_17 | W27: 127.4333333
A28: 20 | B28: 1 | C28: 1 | D28: 18 | F28: 22 | G28: 2 | H28: 129 | I28: 14 | J28: 341.5 | K28: 1 | L28: 2.5 | M28: 7.5 | O28: 14 | Q28: 1_18 | U28: 6_18 | W28: 129.2833333
A29: 21 | B29: 1 | C29: 1 | D29: 19 | F29: 21.5 | G29: 2 | H29: 131.5 | I29: 14 | J29: 321.5 | K29: 1.5 | L29: 3 | M29: 8 | O29: 14 | Q29: 1_19 | U29: 6_19 | W29: 132.3
A30: 22 | B30: 1 | C30: 1 | D30: 20 | F30: 20.5 | G30: 2.5 | H30: 128.5 | I30: 16.5 | J30: 173.5 | K30: 2 | L30: 3 | M30: 9.5 | O30: 16.5 | Q30: 1_20 | U30: 6_20 | W30: 130.1666667
A31: 23 | B31: 1 | C31: 1 | D31: 21 | F31: 19.5 | G31: 2 | H31: 106.5 | I31: 16 | J31: 11.5 | K31: 2 | L31: 2.5 | M31: 9.5 | O31: 16 | Q31: 1_21 | U31: 6_21 | W31: 112.5833333
A32: 24 | B32: 1 | C32: 1 | D32: 22 | F32: 19.5 | G32: 2 | H32: 98 | I32: 18.5 | J32: 6 | K32: 0.5 | L32: 3 | M32: 9 | O32: 18.5 | Q32: 1_22 | U32: 6_22 | W32: 79.46666667
A33: 25 | B33: 1 | C33: 1 | D33: 23 | F33: 18 | G33: 2 | H33: 104.5 | I33: 41.5 | J33: 6.5 | K33: 0.5 | L33: 3 | M33: 9 | O33: 41.5 | Q33: 1_23 | U33: 6_23 | W33: 49.75
A34: 26 | B34: 1 | C34: 2 | D34: 0 | F34: 18 | G34: 2 | H34: 102.5 | I34: 52 | J34: 6 | K34: 1 | L34: 3 | M34: 9 | O34: 52 | Q34: 1_0
A35: 27 | B35: 1 | C35: 2 | D35: 1 | F35: 18 | G35: 2 | H35: 96 | I35: 38 | J35: 6 | K35: 0.5 | L35: 3 | M35: 9 | O35: 38 | Q35: 1_1
A36: 28 | B36: 1 | C36: 2 | D36: 2 | F36: 19 | G36: 2 | H36: 84.5 | I36: 42.5 | J36: 6 | K36: 0.5 | L36: 2.5 | M36: 8 | O36: 42.5 | Q36: 1_2
A37: 29 | B37: 1 | C37: 2 | D37: 3 | F37: 18 | G37: 2 | H37: 85.5 | I37: 78.5 | J37: 6 | K37: 1 | L37: 3 | M37: 8.5 | O37: 78.5 | Q37: 1_3
A38: 30 | B38: 1 | C38: 2 | D38: 4 | F38: 18 | G38: 2 | H38: 81.5 | I38: 148 | J38: 5.5 | K38: 0.5 | L38: 11 | M38: 8.5 | O38: 148 | Q38: 1_4
A39: 31 | B39: 1 | C39: 2 | D39: 5 | F39: 18 | G39: 2 | H39: 91.5 | I39: 171.5 | J39: 5.5 | K39: 0.5 | L39: 19 | M39: 6 | O39: 171.5 | Q39: 1_5
A40: 32 | B40: 1 | C40: 2 | D40: 6 | F40: 19.5 | G40: 3 | H40: 96 | I40: 181 | J40: 5 | K40: 9 | L40: 19.5 | M40: 6 | O40: 181 | Q40: 1_6
A41: 33 | B41: 1 | C41: 2 | D41: 7 | F41: 28 | G41: 7 | H41: 97 | I41: 170 | J41: 78 | K41: 15 | L41: 23 | M41: 8 | O41: 170 | Q41: 1_7
A42: 34 | B42: 1 | C42: 2 | D42: 8 | F42: 36.5 | G42: 22 | H42: 88.5 | I42: 181.5 | J42: 70 | K42: 23.5 | L42: 22.5 | M42: 11.5 | O42: 181.5 | Q42: 1_8
A43: 35 | B43: 1 | C43: 2 | D43: 9 | F43: 56.5 | G43: 22 | H43: 89.5 | I43: 174 | J43: 61.5 | K43: 23.5 | L43: 20.5 | M43: 19.5 | O43: 174 | Q43: 1_9
A44: 36 | B44: 1 | C44: 2 | D44: 10 | F44: 63 | G44: 20.5 | H44: 87 | I44: 140.5 | J44: 85 | K44: 26 | L44: 21.5 | M44: 18.5 | O44: 140.5 | Q44: 1_10
A45: 37 | B45: 1 | C45: 2 | D45: 11 | F45: 65 | G45: 18 | H45: 91.5 | I45: 91 | J45: 83.5 | K45: 23.5 | L45: 21 | M45: 11 | O45: 91 | Q45: 1_11
A46: 38 | B46: 1 | C46: 2 | D46: 12 | F46: 47.5 | G46: 8 | H46: 88 | I46: 47.5 | J46: 82 | K46: 20.5 | L46: 21 | M46: 9.5 | O46: 47.5 | Q46: 1_12
A47: 39 | B47: 1 | C47: 2 | D47: 13 | F47: 42 | G47: 6 | H47: 89.5 | I47: 34 | J47: 80.5 | K47: 23 | L47: 20 | M47: 6.5 | O47: 34 | Q47: 1_13
A48: 40 | B48: 1 | C48: 2 | D48: 14 | F48: 52 | G48: 13.5 | H48: 79.5 | I48: 30 | J48: 78.5 | K48: 12.5 | L48: 19 | M48: 6.5 | O48: 30 | Q48: 1_14
A49: 41 | B49: 1 | C49: 2 | D49: 15 | F49: 50.5 | G49: 16.5 | H49: 75 | I49: 34 | J49: 7 | K49: 12.5 | L49: 19 | M49: 7 | O49: 34 | Q49: 1_15
A50: 42 | B50: 1 | C50: 2 | D50: 16 | F50: 47.5 | G50: 14 | H50: 78 | I50: 44 | J50: 7.5 | K50: 13 | L50: 19.5 | M50: 7.5 | O50: 44 | Q50: 1_16
A51: 43 | B51: 1 | C51: 2 | D51: 17 | F51: 35 | G51: 8 | H51: 98.5 | I51: 32.5 | J51: 9 | K51: 3 | L51: 21 | M51: 7 | O51: 32.5 | Q51: 1_17
A52: 44 | B52: 1 | C52: 2 | D52: 18 | F52: 28 | G52: 3 | H52: 122.5 | I52: 20.5 | J52: 9.5 | K52: 2.5 | L52: 19.5 | M52: 8.5 | O52: 20.5 | Q52: 1_18
A53: 45 | B53: 1 | C53: 2 | D53: 19 | F53: 28 | G53: 3 | H53: 120.5 | I53: 18.5 | J53: 9.5 | K53: 4.5 | L53: 22.5 | M53: 9 | O53: 18.5 | Q53: 1_19
A54: 46 | B54: 1 | C54: 2 | D54: 20 | F54: 29.5 | G54: 3 | H54: 116 | I54: 16.5 | J54: 24.5 | K54: 5 | L54: 22 | M54: 10 | O54: 16.5 | Q54: 1_20
A55: 47 | B55: 1 | C55: 2 | D55: 21 | F55: 27.5 | G55: 3.5 | H55: 100.5 | I55: 16.5 | J55: 230.5 | K55: 4.5 | L55: 19.5 | M55: 10 | O55: 16.5 | Q55: 1_21
A56: 48 | B56: 1 | C56: 2 | D56: 22 | F56: 27 | G56: 3.5 | H56: 93.5 | I56: 18.5 | J56: 319.5 | K56: 3 | L56: 19 | M56: 9 | O56: 18.5 | Q56: 1_22
A57: 49 | B57: 1 | C57: 2 | D57: 23 | F57: 26 | G57: 3 | H57: 100 | I57: 16.5 | J57: 335 | K57: 1 | L57: 19 | M57: 8.5 | O57: 16.5 | Q57: 1_23
A58: 50 | B58: 1 | C58: 3 | D58: 0 | F58: 25.5 | G58: 3.5 | H58: 93 | I58: 16 | J58: 333 | K58: 1 | L58: 18 | M58: 7.5 | O58: 16 | Q58: 1_0
A59: 51 | B59: 1 | C59: 3 | D59: 1 | F59: 25.5 | G59: 3.5 | H59: 88.5 | I59: 17 | J59: 339 | K59: 1 | L59: 18.5 | M59: 9 | O59: 17 | Q59: 1_1
A60: 52 | B60: 1 | C60: 3 | D60: 2 | F60: 25 | G60: 3 | H60: 86 | I60: 46.5 | J60: 322.5 | K60: 0.5 | L60: 18 | M60: 8 | O60: 46.5 | Q60: 1_2
A61: 53 | B61: 1 | C61: 3 | D61: 3 | F61: 25 | G61: 3.5 | H61: 84.5 | I61: 91.5 | J61: 292 | K61: 1 | L61: 18 | M61: 6 | O61: 91.5 | Q61: 1_3
A62: 54 | B62: 1 | C62: 3 | D62: 4 | F62: 25 | G62: 3 | H62: 82.5 | I62: 142.5 | J62: 268 | K62: 0.5 | L62: 18.5 | M62: 4.5 | O62: 142.5 | Q62: 1_4
A63: 55 | B63: 1 | C63: 3 | D63: 5 | F63: 26 | G63: 3.5 | H63: 88 | I63: 178 | J63: 295.5 | K63: 4.5 | L63: 14.5 | M63: 5 | O63: 178 | Q63: 1_5
A64: 56 | B64: 1 | C64: 3 | D64: 6 | F64: 25 | G64: 3.5 | H64: 92.5 | I64: 156 | J64: 338.5 | K64: 12 | L64: 15 | M64: 4.5 | O64: 156 | Q64: 1_6
A65: 57 | B65: 1 | C65: 3 | D65: 7 | F65: 34 | G65: 6 | H65: 87 | I65: 179.5 | J65: 348 | K65: 13 | L65: 18.5 | M65: 14 | O65: 179.5 | Q65: 1_7
A66: 58 | B66: 1 | C66: 3 | D66: 8 | F66: 47 | G66: 17.5 | H66: 91 | I66: 176 | J66: 349 | K66: 12 | L66: 18.5 | M66: 17 | O66: 176 | Q66: 1_8
A67: 59 | B67: 1 | C67: 3 | D67: 9 | F67: 63.5 | G67: 19.5 | H67: 95.5 | I67: 174.5 | J67: 332.5 | K67: 15.5 | L67: 19.5 | M67: 20 | O67: 174.5 | Q67: 1_9
A68: 60 | B68: 1 | C68: 3 | D68: 10 | F68: 63.5 | G68: 19 | H68: 90 | I68: 170.5 | J68: 343.5 | K68: 18.5 | L68: 19 | M68: 18.5 | O68: 170.5 | Q68: 1_10
A69: 61 | B69: 1 | C69: 3 | D69: 11 | F69: 59.5 | G69: 14.5 | H69: 102.5 | I69: 159 | J69: 349 | K69: 19.5 | L69: 18 | M69: 18 | O69: 159 | Q69: 1_11
A70: 62 | B70: 1 | C70: 3 | D70: 12 | F70: 50.5 | G70: 7.5 | H70: 102 | I70: 136 | J70: 272.5 | K70: 12 | L70: 18.5 | M70: 8.5 | O70: 136 | Q70: 1_12
A71: 63 | B71: 1 | C71: 3 | D71: 13 | F71: 45 | G71: 5.5 | H71: 101 | I71: 20 | J71: 332 | K71: 12.5 | L71: 21.5 | M71: 6.5 | O71: 20 | Q71: 1_13
A72: 64 | B72: 1 | C72: 3 | D72: 14 | F72: 53 | G72: 14 | H72: 87 | I72: 15 | J72: 347.5 | K72: 18 | L72: 20 | M72: 7 | O72: 15 | Q72: 1_14
A73: 65 | B73: 1 | C73: 3 | D73: 15 | F73: 58 | G73: 19 | H73: 76.5 | I73: 11.5 | J73: 351 | K73: 15 | L73: 19 | M73: 7.5 | O73: 11.5 | Q73: 1_15
A74: 66 | B74: 1 | C74: 3 | D74: 16 | F74: 48 | G74: 12 | H74: 87 | I74: 15 | J74: 345 | K74: 13 | L74: 18.5 | M74: 8 | O74: 15 | Q74: 1_16
A75: 67 | B75: 1 | C75: 3 | D75: 17 | F75: 32 | G75: 5 | H75: 103 | I75: 17 | J75: 350 | K75: 7.5 | L75: 18.5 | M75: 9.5 | O75: =IF($C$4="Saisie Manuelle",E75,HLOOKUP($C$4,$F$9:$M$8769,A75,FALSE)) -> 17 | Q75: 1_17
A76: =A75+1 -> 68 | B76: 1 | C76: 3 | D76: 18 | F76: 28.5 | G76: 2.5 | H76: 121.5 | I76: 18 | J76: 342 | K76: 4.5 | L76: 19 | M76: 11 | O76: 18 | Q76: 1_18
A77: 69 | B77: 1 | C77: 3 | D77: 19 | F77: 27.5 | G77: 3.5 | H77: 120.5 | I77: 16.5 | J77: 337.5 | K77: 3.5 | L77: 19 | M77: 9.5 | O77: 16.5 | Q77: 1_19
A78: 70 | B78: 1 | C78: 3 | D78: 20 | F78: 25.5 | G78: 4 | H78: 118 | I78: 18 | J78: 254 | K78: 3.5 | L78: 18 | M78: 7.5 | O78: 18 | Q78: 1_20
A79: 71 | B79: 1 | C79: 3 | D79: 21 | F79: 25.5 | G79: 3.5 | H79: 108 | I79: 20.5 | J79: 317.5 | K79: 3.5 | L79: 15 | M79: 8.5 | O79: 20.5 | Q79: 1_21
A80: 72 | B80: 1 | C80: 3 | D80: 22 | F80: 24 | G80: 3.5 | H80: 102 | I80: 17.5 | J80: 341 | K80: 1.5 | L80: 15 | M80: 9 | O80: 17.5 | Q80: 1_22
A81: 73 | B81: 1 | C81: 3 | D81: 23 | F81: 22 | G81: 3.5 | H81: 102 | I81: 18 | J81: 339.5 | K81: 1.5 | L81: 15 | M81: 9.5 | O81: 18 | Q81: 1_23
A82: 74 | B82: 1 | C82: 4 | D82: 0 | F82: 22 | G82: 3 | H82: 106 | I82: 19 | J82: 347.5 | K82: 1 | L82: 14.5 | M82: 9 | O82: 19 | Q82: 1_0
A83: 75 | B83: 1 | C83: 4 | D83: 1 | F83: 20.5 | G83: 3.5 | H83: 90 | I83: 18 | J83: 345.5 | K83: 1 | L83: 14 | M83: 10 | O83: 18 | Q83: 1_1
A84: 76 | B84: 1 | C84: 4 | D84: 2 | F84: 21.5 | G84: 3.5 | H84: 82.5 | I84: 49.5 | J84: 330 | K84: 0.5 | L84: 14 | M84: 8.5 | O84: 49.5 | Q84: 1_2
A85: 77 | B85: 1 | C85: 4 | D85: 3 | F85: 20.5 | G85: 3 | H85: 86 | I85: 61.5 | J85: 329 | K85: 1 | L85: 13.5 | M85: 8.5 | O85: 61.5 | Q85: 1_3
A86: 78 | B86: 1 | C86: 4 | D86: 4 | F86: 22.5 | G86: 3.5 | H86: 82.5 | I86: 150 | J86: 279.5 | K86: 1 | L86: 13.5 | M86: 8.5 | O86: 150 | Q86: 1_4
A87: 79 | B87: 1 | C87: 4 | D87: 5 | F87: 22.5 | G87: 3 | H87: 94 | I87: 171.5 | J87: 300.5 | K87: 0.5 | L87: 18 | M87: 6.5 | O87: 171.5 | Q87: 1_5
A88: 80 | B88: 1 | C88: 4 | D88: 6 | F88: 23.5 | G88: 2 | H88: 96 | I88: 179 | J88: 343 | K88: 1 | L88: 18.5 | M88: 5.5 | O88: 179 | Q88: 1_6
A89: 81 | B89: 1 | C89: 4 | D89: 7 | F89: 31.5 | G89: 5 | H89: 91.5 | I89: 180 | J89: 352.5 | K89: 2.5 | L89: 21 | M89: 13.5 | O89: 180 | Q89: 1_7
A90: 82 | B90: 1 | C90: 4 | D90: 8 | F90: 45 | G90: 21 | H90: 88.5 | I90: 170 | J90: 353.5 | K90: 15.5 | L90: 21.5 | M90: 15.5 | O90: 170 | Q90: 1_8
A91: 83 | B91: 1 | C91: 4 | D91: 9 | F91: 57 | G91: 23.5 | H91: 84.5 | I91: 161.5 | J91: 353 | K91: 16 | L91: 20.5 | M91: 17 | O91: 161.5 | Q91: 1_9
A92: 84 | B92: 1 | C92: 4 | D92: 10 | F92: 62.5 | G92: 16 | H92: 84 | I92: 165 | J92: 346 | K92: 18 | L92: 21 | M92: 21 | O92: 165 | Q92: 1_10
A93: 85 | B93: 1 | C93: 4 | D93: 11 | F93: 55 | G93: 10 | H93: 88 | I93: 161.5 | J93: 353.5 | K93: 18 | L93: 20.5 | M93: 18.5 | O93: 161.5 | Q93: 1_11
A94: 86 | B94: 1 | C94: 4 | D94: 12 | F94: 40 | G94: 3 | H94: 93 | I94: 76 | J94: 338 | K94: 12.5 | L94: 21 | M94: 7.5 | O94: 76 | Q94: 1_12
A95: 87 | B95: 1 | C95: 4 | D95: 13 | F95: 36.5 | G95: 2.5 | H95: 89.5 | I95: 18.5 | J95: 317 | K95: 18.5 | L95: 18.5 | M95: 5 | O95: 18.5 | Q95: 1_13
A96: 88 | B96: 1 | C96: 4 | D96: 14 | F96: 40 | G96: 4 | H96: 94 | I96: 12.5 | J96: 331.5 | K96: 18.5 | L96: 18 | M96: 6 | O96: 12.5 | Q96: 1_14
A97: 89 | B97: 1 | C97: 4 | D97: 15 | F97: 54.5 | G97: 4.5 | H97: 86 | I97: 14.5 | J97: 310.5 | K97: 18.5 | L97: 18 | M97: 6.5 | O97: 14.5 | Q97: 1_15
A98: 90 | B98: 1 | C98: 4 | D98: 16 | F98: 50 | G98: 3.5 | H98: 91.5 | I98: 15 | J98: 309.5 | K98: 14.5 | L98: 16.5 | M98: 7 | O98: 15 | Q98: 1_16
A99: 91 | B99: 1 | C99: 4 | D99: 17 | F99: 31 | G99: 2.5 | H99: 118 | I99: 18 | J99: 340 | K99: 2.5 | L99: 15.5 | M99: 7.5 | O99: 18 | Q99: 1_17
A100: 92 | B100: 1 | C100: 4 | D100: 18 | F100: 26.5 | G100: 3.5 | H100: 139 | I100: 19 | J100: 346 | K100: 1.5 | L100: 16 | M100: 8 | O100: 19 | Q100: 1_18
A101: 93 | B101: 1 | C101: 4 | D101: 19 | F101: 23 | G101: 4.5 | H101: 135.5 | I101: 17 | J101: 350 | K101: 5.5 | L101: 15.5 | M101: 7.5 | O101: 17 | Q101: 1_19
A102: 94 | B102: 1 | C102: 4 | D102: 20 | F102: 20.5 | G102: 5 | H102: 121.5 | I102: 17 | J102: 293.5 | K102: 2 | L102: 15.5 | M102: 7 | O102: 17 | Q102: 1_20
A103: 95 | B103: 1 | C103: 4 | D103: 21 | F103: 19 | G103: 4 | H103: 110 | I103: 17 | J103: 172 | K103: 1.5 | L103: 15.5 | M103: 8.5 | O103: 17 | Q103: 1_21
A104: 96 | B104: 1 | C104: 4 | D104: 22 | F104: 20.5 | G104: 4 | H104: 94 | I104: 19.5 | J104: 231 | K104: 1.5 | L104: 15 | M104: 8 | O104: 19.5 | Q104: 1_22
A105: 97 | B105: 1 | C105: 4 | D105: 23 | F105: 20 | G105: 3.5 | H105: 95.5 | I105: 19.5 | J105: 322 | K105: 1 | L105: 14 | M105: 6.5 | O105: 19.5 | Q105: 1_23
A106: 98 | B106: 1 | C106: 5 | D106: 0 | F106: 18 | G106: 3.5 | H106: 103.5 | I106: 19 | J106: 356.5 | K106: 1.5 | L106: 14.5 | M106: 6.5 | O106: 19 | Q106: 1_0
A107: 99 | B107: 1 | C107: 5 | D107: 1 | F107: 17 | G107: 3.5 | H107: 101.5 | I107: 21 | J107: 351.5 | K107: 1 | L107: 14 | M107: 6 | O107: 21 | Q107: 1_1
A108: 100 | B108: 1 | C108: 5 | D108: 2 | F108: 17 | G108: 3.5 | H108: 86 | I108: 48.5 | J108: 354 | K108: 0.5 | L108: 14.5 | M108: 6 | O108: 48.5 | Q108: 1_2
A109: 101 | B109: 1 | C109: 5 | D109: 3 | F109: 18 | G109: 3.5 | H109: 88 | I109: 81 | J109: 340.5 | K109: 1 | L109: 14 | M109: 6 | O109: 81 | Q109: 1_3
A110: 102 | B110: 1 | C110: 5 | D110: 4 | F110: 18.5 | G110: 3.5 | H110: 88 | I110: 150 | J110: 258.5 | K110: 1 | L110: 14 | M110: 6 | O110: 150 | Q110: 1_4
A111: 103 | B111: 1 | C111: 5 | D111: 5 | F111: 17.5 | G111: 3.5 | H111: 95 | I111: 168.5 | J111: 292.5 | K111: 1 | L111: 17.5 | M111: 4 | O111: 168.5 | Q111: 1_5
A112: 104 | B112: 1 | C112: 5 | D112: 6 | F112: 17.5 | G112: 3.5 | H112: 101 | I112: 177 | J112: 336.5 | K112: 0.5 | L112: 17 | M112: 4 | O112: 177 | Q112: 1_6
A113: 105 | B113: 1 | C113: 5 | D113: 7 | F113: 19 | G113: 5.5 | H113: 96.5 | I113: 172.5 | J113: 321 | K113: 1 | L113: 19 | M113: 12 | O113: 172.5 | Q113: 1_7
A114: 106 | B114: 1 | C114: 5 | D114: 8 | F114: 20.5 | G114: 21.5 | H114: 92.5 | I114: 164 | J114: 341 | K114: 4 | L114: 18.5 | M114: 18.5 | O114: 164 | Q114: 1_8
A115: 107 | B115: 1 | C115: 5 | D115: 9 | F115: 18.5 | G115: 21.5 | H115: 87 | I115: 163 | J115: 357 | K115: 8.5 | L115: 18 | M115: 17 | O115: 163 | Q115: 1_9
A116: 108 | B116: 1 | C116: 5 | D116: 10 | F116: 18.5 | G116: 14.5 | H116: 92.5 | I116: 146.5 | J116: 346.5 | K116: 9.5 | L116: 20.5 | M116: 17.5 | O116: 146.5 | Q116: 1_10
A117: 109 | B117: 1 | C117: 5 | D117: 11 | F117: 15.5 | G117: 11 | H117: 95.5 | I117: 40 | J117: 354 | K117: 10 | L117: 19.5 | M117: 14.5 | O117: 40 | Q117: 1_11
A118: 110 | B118: 1 | C118: 5 | D118: 12 | F118: 16 | G118: 4.5 | H118: 95.5 | I118: 14 | J118: 278 | K118: 7 | L118: 20 | M118: 7 | O118: 14 | Q118: 1_12
A119: 111 | B119: 1 | C119: 5 | D119: 13 | F119: 12.5 | G119: 3.5 | H119: 88 | I119: 12.5 | J119: 295.5 | K119: 9.5 | L119: 20 | M119: 6.5 | O119: 12.5 | Q119: 1_13
A120: 112 | B120: 1 | C120: 5 | D120: 14 | F120: 15.5 | G120: 4.5 | H120: 86 | I120: 12.5 | J120: 344.5 | K120: 8 | L120: 21 | M120: 7.5 | O120: 12.5 | Q120: 1_14
A121: 113 | B121: 1 | C121: 5 | D121: 15 | F121: 16.5 | G121: 4 | H121: 80 | I121: 14 | J121: 355 | K121: 7 | L121: 20 | M121: 8.5 | O121: 14 | Q121: 1_15
A122: 114 | B122: 1 | C122: 5 | D122: 16 | F122: 16.5 | G122: 2.5 | H122: 83 | I122: 18 | J122: 357.5 | K122: 6 | L122: 20 | M122: 10 | O122: 18 | Q122: 1_16
A123: 115 | B123: 1 | C123: 5 | D123: 17 | F123: 22 | G123: 2.5 | H123: 114.5 | I123: 20 | J123: 349.5 | K123: 0.5 | L123: 19.5 | M123: 10 | O123: 20 | Q123: 1_17
A124: 116 | B124: 1 | C124: 5 | D124: 18 | F124: 24.5 | G124: 3.5 | H124: 135 | I124: 19 | J124: 338 | K124: 1 | L124: 19 | M124: 11 | O124: 19 | Q124: 1_18
A125: 117 | B125: 1 | C125: 5 | D125: 19 | F125: 20.5 | G125: 4.5 | H125: 127 | I125: 18 | J125: 332 | K125: 0.5 | L125: 18.5 | M125: 9.5 | O125: 18 | Q125: 1_19
A126: 118 | B126: 1 | C126: 5 | D126: 20 | F126: 20 | G126: 4 | H126: 119.5 | I126: 18 | J126: 327.5 | K126: 1 | L126: 19.5 | M126: 10 | O126: 18 | Q126: 1_20
A127: 119 | B127: 1 | C127: 5 | D127: 21 | F127: 21 | G127: 4.5 | H127: 107 | I127: 18.5 | J127: 312 | K127: 0.5 | L127: 14.5 | M127: 9.5 | O127: 18.5 | Q127: 1_21
A128: 120 | B128: 1 | C128: 5 | D128: 22 | F128: 21.5 | G128: 3.5 | H128: 96 | I128: 18.5 | J128: 349.5 | K128: 0.5 | L128: 14.5 | M128: 7.5 | O128: 18.5 | Q128: 1_22
A129: 121 | B129: 1 | C129: 5 | D129: 23 | F129: 20.5 | G129: 3.5 | H129: 90 | I129: 18.5 | J129: 352 | K129: 1 | L129: 15 | M129: 7.5 | O129: 18.5 | Q129: 1_23
A130: 122 | B130: 1 | C130: 6 | D130: 0 | F130: 20.5 | G130: 4 | H130: 100.5 | I130: 18 | J130: 330.5 | K130: 0.5 | L130: 14 | M130: 8.5 | O130: 18 | Q130: 1_0
A131: 123 | B131: 1 | C131: 6 | D131: 1 | F131: 21 | G131: 3.5 | H131: 92 | I131: 18 | J131: 350.5 | K131: 0.5 | L131: 14.5 | M131: 8.5 | O131: 18 | Q131: 1_1
A132: 124 | B132: 1 | C132: 6 | D132: 2 | F132: 20 | G132: 4 | H132: 85 | I132: 18.5 | J132: 262.5 | K132: 1 | L132: 14.5 | M132: 8.5 | O132: 18.5 | Q132: 1_2
A133: 125 | B133: 1 | C133: 6 | D133: 3 | F133: 22 | G133: 3.5 | H133: 85 | I133: 16.5 | J133: 177.5 | K133: 0.5 | L133: 14 | M133: 8.5 | O133: 16.5 | Q133: 1_3
A134: 126 | B134: 1 | C134: 6 | D134: 4 | F134: 20.5 | G134: 3.5 | H134: 81.5 | I134: 16 | J134: 157 | K134: 0.5 | L134: 13.5 | M134: 8 | O134: 16 | Q134: 1_4
A135: 127 | B135: 1 | C135: 6 | D135: 5 | F135: 20 | G135: 3.5 | H135: 93.5 | I135: 17.5 | J135: 174.5 | K135: 1 | L135: 2 | M135: 7 | O135: 17.5 | Q135: 1_5
A136: 128 | B136: 1 | C136: 6 | D136: 6 | F136: 19 | G136: 2.5 | H136: 93.5 | I136: 13.5 | J136: 235 | K136: 0.5 | L136: 1.5 | M136: 4 | O136: 13.5 | Q136: 1_6
A137: 129 | B137: 1 | C137: 6 | D137: 7 | F137: 17.5 | G137: 2 | H137: 90 | I137: 13 | J137: 346 | K137: 0.5 | L137: 2 | M137: 4.5 | O137: 13 | Q137: 1_7
A138: 130 | B138: 1 | C138: 6 | D138: 8 | F138: 20 | G138: 2.5 | H138: 90.5 | I138: 14 | J138: 297 | K138: 0.5 | L138: 1.5 | M138: 4 | O138: 14 | Q138: 1_8
A139: 131 | B139: 1 | C139: 6 | D139: 9 | F139: 17 | G139: 2 | H139: 92.5 | I139: 13.5 | J139: 335 | K139: 0.5 | L139: 1.5 | M139: 4 | O139: =IF($C$4="Saisie Manuelle",E139,HLOOKUP($C$4,$F$9:$M$8769,A139,FALSE)) -> 13.5 | Q139: 1_9
A140: =A139+1 -> 132 | B140: 1 | C140: 6 | D140: 10 | F140: 16.5 | G140: 1.5 | H140: 84.5 | I140: 12 | J140: 333.5 | K140: 0.5 | L140: 2 | M140: 4 | O140: 12 | Q140: 1_10
A141: 133 | B141: 1 | C141: 6 | D141: 11 | F141: 15 | G141: 2 | H141: 81.5 | I141: 9.5 | J141: 208 | K141: 0.5 | L141: 1.5 | M141: 4 | O141: 9.5 | Q141: 1_11
A142: 134 | B142: 1 | C142: 6 | D142: 12 | F142: 10.5 | G142: 1.5 | H142: 80.5 | I142: 8.5 | J142: 165.5 | K142: 0.5 | L142: 2 | M142: 4 | O142: 8.5 | Q142: 1_12
A143: 135 | B143: 1 | C143: 6 | D143: 13 | F143: 10.5 | G143: 1.5 | H143: 85.5 | I143: 9 | J143: 144 | K143: 0.5 | L143: 1.5 | M143: 4 | O143: 9 | Q143: 1_13
A144: 136 | B144: 1 | C144: 6 | D144: 14 | F144: 11 | G144: 1.5 | H144: 76.5 | I144: 8 | J144: 249 | K144: 0.5 | L144: 1.5 | M144: 5.5 | O144: 8 | Q144: 1_14
A145: 137 | B145: 1 | C145: 6 | D145: 15 | F145: 12 | G145: 1.5 | H145: 73.5 | I145: 9.5 | J145: 249.5 | K145: 1 | L145: 2 | M145: 6.5 | O145: 9.5 | Q145: 1_15
A146: 138 | B146: 1 | C146: 6 | D146: 16 | F146: 14.5 | G146: 2 | H146: 81.5 | I146: 11.5 | J146: 274.5 | K146: 0.5 | L146: 2.5 | M146: 6 | O146: 11.5 | Q146: 1_16
A147: 139 | B147: 1 | C147: 6 | D147: 17 | F147: 19 | G147: 1.5 | H147: 101.5 | I147: 15 | J147: 295.5 | K147: 1 | L147: 3 | M147: 6 | O147: 15 | Q147: 1_17
A148: 140 | B148: 1 | C148: 6 | D148: 18 | F148: 22.5 | G148: 3 | H148: 118.5 | I148: 14.5 | J148: 320 | K148: 1.5 | L148: 3.5 | M148: 7 | O148: 14.5 | Q148: 1_18
A149: 141 | B149: 1 | C149: 6 | D149: 19 | F149: 22.5 | G149: 2.5 | H149: 111.5 | I149: 14 | J149: 331 | K149: 0.5 | L149: 3.5 | M149: 8.5 | O149: 14 | Q149: 1_19
A150: 142 | B150: 1 | C150: 6 | D150: 20 | F150: 20.5 | G150: 2.5 | H150: 107.5 | I150: 16.5 | J150: 227.5 | K150: 1 | L150: 4 | M150: 10 | O150: 16.5 | Q150: 1_20
A151: 143 | B151: 1 | C151: 6 | D151: 21 | F151: 20 | G151: 2.5 | H151: 98.5 | I151: 16.5 | J151: 227 | K151: 0.5 | L151: 3.5 | M151: 10.5 | O151: 16.5 | Q151: 1_21
A152: 144 | B152: 1 | C152: 6 | D152: 22 | F152: 22 | G152: 2 | H152: 87.5 | I152: 14.5 | J152: 321.5 | K152: 1 | L152: 3.5 | M152: 9 | O152: 14.5 | Q152: 1_22
A153: 145 | B153: 1 | C153: 6 | D153: 23 | F153: 20 | G153: 2.5 | H153: 84.5 | I153: 17 | J153: 345.5 | K153: 0.5 | L153: 3.5 | M153: 9 | O153: 17 | Q153: 1_23
A154: 146 | B154: 1 | C154: 7 | D154: 0 | F154: 18.5 | G154: 2.5 | H154: 84 | I154: 18 | J154: 342 | K154: 0.5 | L154: 3.5 | M154: 7.5 | O154: 18 | Q154: 1_0
A155: 147 | B155: 1 | C155: 7 | D155: 1 | F155: 19 | G155: 2 | H155: 80 | I155: 19 | J155: 338.5 | K155: 1 | L155: 4 | M155: 6.5 | O155: 19 | Q155: 1_1
A156: 148 | B156: 1 | C156: 7 | D156: 2 | F156: 18.5 | G156: 2.5 | H156: 77.5 | I156: 16 | J156: 349.5 | K156: 0.5 | L156: 3.5 | M156: 6 | O156: 16 | Q156: 1_2
A157: 149 | B157: 1 | C157: 7 | D157: 3 | F157: 18 | G157: 2.5 | H157: 77 | I157: 15 | J157: 349 | K157: 1 | L157: 3.5 | M157: 6 | O157: 15 | Q157: 1_3
A158: 150 | B158: 1 | C158: 7 | D158: 4 | F158: 16 | G158: 2 | H158: 85 | I158: 31 | J158: 273 | K158: 0.5 | L158: 8.5 | M158: 5.5 | O158: 31 | Q158: 1_4
A159: 151 | B159: 1 | C159: 7 | D159: 5 | F159: 16.5 | G159: 2.5 | H159: 84.5 | I159: 50 | J159: 282 | K159: 1 | L159: 18 | M159: 3.5 | O159: 50 | Q159: 1_5
A160: 152 | B160: 1 | C160: 7 | D160: 6 | F160: 18 | G160: 6 | H160: 91 | I160: 74.5 | J160: 303.5 | K160: 0.5 | L160: 19 | M160: 3.5 | O160: 74.5 | Q160: 1_6
A161: 153 | B161: 1 | C161: 7 | D161: 7 | F161: 24 | G161: 20 | H161: 84.5 | I161: 70 | J161: 308 | K161: 2 | L161: 21 | M161: 11.5 | O161: 70 | Q161: 1_7
A162: 154 | B162: 1 | C162: 7 | D162: 8 | F162: 36.5 | G162: 22.5 | H162: 87.5 | I162: 61 | J162: 334 | K162: 10.5 | L162: 20.5 | M162: 15 | O162: 61 | Q162: 1_8
A163: 155 | B163: 1 | C163: 7 | D163: 9 | F163: 62 | G163: 22 | H163: 84.5 | I163: 52 | J163: 341 | K163: 12 | L163: 19 | M163: 16.5 | O163: 52 | Q163: 1_9
A164: 156 | B164: 1 | C164: 7 | D164: 10 | F164: 67.5 | G164: 17 | H164: 91.5 | I164: 55.5 | J164: 349 | K164: 12 | L164: 20.5 | M164: 15.5 | O164: 55.5 | Q164: 1_10
A165: 157 | B165: 1 | C165: 7 | D165: 11 | F165: 64 | G165: 4 | H165: 90.5 | I165: 51.5 | J165: 346 | K165: 12.5 | L165: 21.5 | M165: 15 | O165: 51.5 | Q165: 1_11
A166: 158 | B166: 1 | C166: 7 | D166: 12 | F166: 44 | G166: 3 | H166: 86 | I166: 35 | J166: 274.5 | K166: 11.5 | L166: 21 | M166: 4.5 | O166: 35 | Q166: 1_12
A167: 159 | B167: 1 | C167: 7 | D167: 13 | F167: 41 | G167: 10.5 | H167: 85.5 | I167: 13 | J167: 249.5 | K167: 12.5 | L167: 20 | M167: 3 | O167: 13 | Q167: 1_13
A168: 160 | B168: 1 | C168: 7 | D168: 14 | F168: 48.5 | G168: 14 | H168: 77 | I168: 10.5 | J168: 317 | K168: 10.5 | L168: 19.5 | M168: 3 | O168: 10.5 | Q168: 1_14
A169: 161 | B169: 1 | C169: 7 | D169: 15 | F169: 50 | G169: 16.5 | H169: 91 | I169: 15.5 | J169: 342 | K169: 10.5 | L169: 18 | M169: 3.5 | O169: 15.5 | Q169: 1_15
A170: 162 | B170: 1 | C170: 7 | D170: 16 | F170: 48 | G170: 15 | H170: 93.5 | I170: 18 | J170: 346 | K170: 9 | L170: 17.5 | M170: 3 | O170: 18 | Q170: 1_16
A171: 163 | B171: 1 | C171: 7 | D171: 17 | F171: 30.5 | G171: 4 | H171: 113 | I171: 20 | J171: 341 | K171: 2.5 | L171: 15.5 | M171: 6 | O171: 20 | Q171: 1_17
A172: 164 | B172: 1 | C172: 7 | D172: 18 | F172: 30.5 | G172: 3 | H172: 140.5 | I172: 17 | J172: 348 | K172: 1 | L172: 15 | M172: 6.5 | O172: 17 | Q172: 1_18
A173: 165 | B173: 1 | C173: 7 | D173: 19 | F173: 30.5 | G173: 3 | H173: 133.5 | I173: 17.5 | J173: 347 | K173: 4 | L173: 13 | M173: 6.5 | O173: 17.5 | Q173: 1_19
A174: 166 | B174: 1 | C174: 7 | D174: 20 | F174: 27 | G174: 2.5 | H174: 123 | I174: 17.5 | J174: 267 | K174: 3 | L174: 13 | M174: 8.5 | O174: 17.5 | Q174: 1_20
A175: 167 | B175: 1 | C175: 7 | D175: 21 | F175: 32 | G175: 2.5 | H175: 106.5 | I175: 17.5 | J175: 309 | K175: 1 | L175: 13 | M175: 7.5 | O175: 17.5 | Q175: 1_21
A176: 168 | B176: 1 | C176: 7 | D176: 22 | F176: 31 | G176: 2 | H176: 106 | I176: 19.5 | J176: 348.5 | K176: 2.5 | L176: 13.5 | M176: 7.5 | O176: 19.5 | Q176: 1_22
A177: 169 | B177: 1 | C177: 7 | D177: 23 | F177: 28.5 | G177: 2 | H177: 103.5 | I177: 17 | J177: 357.5 | K177: 2 | L177: 14 | M177: 7 | O177: 17 | Q177: 1_23
A178: 170 | B178: 1 | C178: 8 | D178: 0 | F178: 27.5 | G178: 2.5 | H178: 109 | I178: 17 | J178: 332.5 | K178: 1 | L178: 13.5 | M178: 7 | O178: 17 | Q178: 1_0
A179: 171 | B179: 1 | C179: 8 | D179: 1 | F179: 27.5 | G179: 2 | H179: 99.5 | I179: 18 | J179: 352.5 | K179: 0.5 | L179: 14 | M179: 7 | O179: 18 | Q179: 1_1
A180: 172 | B180: 1 | C180: 8 | D180: 2 | F180: 28 | G180: 2 | H180: 93 | I180: 18 | J180: 355 | K180: 1 | L180: 13.5 | M180: 6.5 | O180: 18 | Q180: 1_2
A181: 173 | B181: 1 | C181: 8 | D181: 3 | F181: 27.5 | G181: 1.5 | H181: 93 | I181: 17 | J181: 336 | K181: 0.5 | L181: 14 | M181: 7 | O181: 17 | Q181: 1_3
A182: 174 | B182: 1 | C182: 8 | D182: 4 | F182: 29.5 | G182: 2 | H182: 98.5 | I182: 31.5 | J182: 213.5 | K182: 1 | L182: 14 | M182: 5.5 | O182: 31.5 | Q182: 1_4
A183: 175 | B183: 1 | C183: 8 | D183: 5 | F183: 29.5 | G183: 2.5 | H183: 101 | I183: 42 | J183: 156 | K183: 0.5 | L183: 18 | M183: 4 | O183: 42 | Q183: 1_5
A184: 176 | B184: 1 | C184: 8 | D184: 6 | F184: 28.5 | G184: 6.5 | H184: 101.5 | I184: 43 | J184: 165 | K184: 1 | L184: 15 | M184: 3.5 | O184: 43 | Q184: 1_6
A185: 177 | B185: 1 | C185: 8 | D185: 7 | F185: 32.5 | G185: 22 | H185: 98.5 | I185: 50 | J185: 168 | K185: 2 | L185: 19 | M185: 12 | O185: 50 | Q185: 1_7
A186: 178 | B186: 1 | C186: 8 | D186: 8 | F186: 40 | G186: 22.5 | H186: 90.5 | I186: 53 | J186: 165.5 | K186: 9.5 | L186: 19 | M186: 16 | O186: 53 | Q186: 1_8
A187: 179 | B187: 1 | C187: 8 | D187: 9 | F187: 48 | G187: 21 | H187: 84.5 | I187: 49.5 | J187: 159 | K187: 9.5 | L187: 20 | M187: 15 | O187: 49.5 | Q187: 1_9
A188: 180 | B188: 1 | C188: 8 | D188: 10 | F188: 53.5 | G188: 20.5 | H188: 84 | I188: 49.5 | J188: 164 | K188: 9.5 | L188: 20 | M188: 15 | O188: 49.5 | Q188: 1_10
A189: 181 | B189: 1 | C189: 8 | D189: 11 | F189: 50.5 | G189: 9 | H189: 90 | I189: 39.5 | J189: 161 | K189: 9 | L189: 19.5 | M189: 12 | O189: 39.5 | Q189: 1_11
A190: 182 | B190: 1 | C190: 8 | D190: 12 | F190: 34 | G190: 7.5 | H190: 96 | I190: 26 | J190: 171 | K190: 9.5 | L190: 19 | M190: 4 | O190: 26 | Q190: 1_12
A191: 183 | B191: 1 | C191: 8 | D191: 13 | F191: 30.5 | G191: 13 | H191: 99 | I191: 13 | J191: 226 | K191: 9.5 | L191: 18 | M191: 3 | O191: 13 | Q191: 1_13
A192: 184 | B192: 1 | C192: 8 | D192: 14 | F192: 35.5 | G192: 17.5 | H192: 90 | I192: 13 | J192: 307.5 | K192: 9.5 | L192: 17 | M192: 3 | O192: 13 | Q192: 1_14
A193: 185 | B193: 1 | C193: 8 | D193: 15 | F193: 40 | G193: 17 | H193: 83.5 | I193: 13 | J193: 329.5 | K193: 10.5 | L193: 17 | M193: 4 | O193: 13 | Q193: 1_15
A194: 186 | B194: 1 | C194: 8 | D194: 16 | F194: 41 | G194: 12.5 | H194: 92 | I194: 15.5 | J194: 338.5 | K194: 9.5 | L194: 16.5 | M194: 4 | O194: 15.5 | Q194: 1_16
A195: 187 | B195: 1 | C195: 8 | D195: 17 | F195: 28.5 | G195: 3 | H195: 115 | I195: 17.5 | J195: 329 | K195: 2.5 | L195: 17 | M195: 4 | O195: 17.5 | Q195: 1_17
A196: 188 | B196: 1 | C196: 8 | D196: 18 | F196: 28 | G196: 3 | H196: 125.5 | I196: 17 | J196: 334.5 | K196: 3 | L196: 17.5 | M196: 4.5 | O196: 17 | Q196: 1_18
A197: 189 | B197: 1 | C197: 8 | D197: 19 | F197: 24 | G197: 3.5 | H197: 113 | I197: 19 | J197: 327 | K197: 3 | L197: 16 | M197: 6.5 | O197: 19 | Q197: 1_19
A198: 190 | B198: 1 | C198: 8 | D198: 20 | F198: 24 | G198: 3 | H198: 113 | I198: 16 | J198: 258 | K198: 3 | L198: 17 | M198: 7.5 | O198: 16 | Q198: 1_20
A199: 191 | B199: 1 | C199: 8 | D199: 21 | F199: 22.5 | G199: 3.5 | H199: 105 | I199: 16 | J199: 305 | K199: 3 | L199: 13.5 | M199: 9.5 | O199: 16 | Q199: 1_21
A200: 192 | B200: 1 | C200: 8 | D200: 22 | F200: 21 | G200: 3 | H200: 100 | I200: 19 | J200: 346.5 | K200: 1 | L200: 14 | M200: 8.5 | O200: 19 | Q200: 1_22
A201: 193 | B201: 1 | C201: 8 | D201: 23 | F201: 21 | G201: 3.5 | H201: 92 | I201: 19 | J201: 340.5 | K201: 1 | L201: 14.5 | M201: 7.5 | O201: 19 | Q201: 1_23
A202: 194 | B202: 1 | C202: 9 | D202: 0 | F202: 21 | G202: 3 | H202: 97.5 | I202: 19.5 | J202: 348.5 | K202: 1 | L202: 14.5 | M202: 7 | O202: 19.5 | Q202: 1_0
A203: 195 | B203: 1 | C203: 9 | D203: 1 | F203: 21 | G203: 3.5 | H203: 97 | I203: 19.5 | J203: 354.5 | K203: 1 | L203: 14 | M203: 7 | O203: =IF($C$4="Saisie Manuelle",E203,HLOOKUP($C$4,$F$9:$M$8769,A203,FALSE)) -> 19.5 | Q203: 1_1
... 4297 more rows

Sheet Courbes de Production PV
B2: Courbe de Production PV moyenne (kWh/kW)
B4: Région | C4: ='Entrées Utilisateur'!C30 -> Tunis
B5: Orientation des panneaux | C5: ='Entrées Utilisateur'!C31 -> Sud
B6: rendement spécifique | C6: =IF('Entrées Utilisateur'!H67="Calcul Automatique",SUM(AV9:AV8768)/Données!G37,'Entrées Utilisateur'!H68) -> 1561.47748 | D6: kWh/kWc/a | G6: =$G$7&G8 -> BizerteHorizontal | H6: BizerteSud-est | I6: BizerteSud | J6: BizerteSud-ouest | K6: =$K$7&K8 -> GafsaHorizontal | L6: GafsaSud-est | M6: GafsaSud | N6: GafsaSud-ouest | O6: =$O$7&O8 -> JendoubaHorizontal | P6: JendoubaSud-est | Q6: JendoubaSud | R6: JendoubaSud-ouest | S6: =$S$7&S8 -> JerbaHorizontal | T6: JerbaSud-est | U6: JerbaSud | V6: JerbaSud-ouest | W6: =$W$7&W8 -> KairouanHorizontal | X6: KairouanSud-est | Y6: KairouanSud | Z6: KairouanSud-ouest | AA6: =$AA$7&AA8 -> MonastirHorizontal | AB6: =$AA$7&AB8 -> MonastirSud-est | AC6: =$AA$7&AC8 -> MonastirSud | AD6: =$AA$7&AD8 -> MonastirSud-ouest | AE6: =$AE$7&AE8 -> SfaxHorizontal | AF6: =$AE$7&AF8 -> SfaxSud-est | AG6: =$AE$7&AG8 -> SfaxSud | AH6: =$AE$7&AH8 -> SfaxSud-ouest | AI6: =$AI$7&AI8 -> TataouineHorizontal | AJ6: =$AI$7&AJ8 -> TataouineSud-est | AK6: =$AI$7&AK8 -> TataouineSud | AL6: =$AI$7&AL8 -> TataouineSud-ouest | AM6: =$AM$7&AM8 -> TozeurHorizontal | AN6: =$AM$7&AN8 -> TozeurSud-est | AO6: TozeurSud | AP6: TozeurSud-ouest | AQ6: =$AQ$7&AQ8 -> TunisHorizontal | AR6: =$AQ$7&AR8 -> TunisSud-est | AS6: TunisSud | AT6: TunisSud-ouest | AV6: modulation | AW6: =IF('Entrées Utilisateur'!H67="Calcul Automatique",1,'Entrées Utilisateur'!H68/(SUM(AV9:AV8768)/Données!G37)) -> 1
G7: Bizerte | K7: Gafsa | O7: Jendouba | S7: Jerba | W7: Kairouan | AA7: Monastir | AE7: Sfax | AI7: Tataouine | AM7: Tozeur | AQ7: Tunis
C8: mois | D8: jour | E8: heure | F8: Saisie Manuelle | G8: Horizontal | H8: Sud-est | I8: Sud | J8: Sud-ouest | K8: Horizontal | L8: Sud-est | M8: Sud | N8: Sud-ouest | O8: Horizontal | P8: Sud-est | Q8: Sud | R8: Sud-ouest | S8: Horizontal | T8: Sud-est | U8: Sud | V8: Sud-ouest | W8: Horizontal | X8: Sud-est | Y8: Sud | Z8: Sud-ouest | AA8: Horizontal | AB8: Sud-est | AC8: Sud | AD8: Sud-ouest | AE8: Horizontal | AF8: Sud-est | AG8: Sud | AH8: Sud-ouest | AI8: Horizontal | AJ8: Sud-est | AK8: Sud | AL8: Sud-ouest | AM8: Horizontal | AN8: Sud-est | AO8: Sud | AP8: Sud-ouest | AQ8: Horizontal | AR8: Sud-est | AS8: Sud | AT8: Sud-ouest | AV8: Production non modulée | AW8: Production modulée
C9: 1 | D9: 1 | E9: 0 | G9: 0 | H9: 0 | I9: 0 | J9: 0 | K9: 0 | L9: 0 | M9: 0 | N9: 0 | O9: 0 | P9: 0 | Q9: 0 | R9: 0 | S9: 0 | T9: 0 | U9: 0 | V9: 0 | W9: 0 | X9: 0 | Y9: 0 | Z9: 0 | AA9: 0 | AB9: 0 | AC9: 0 | AD9: 0 | AE9: 0 | AF9: 0 | AG9: 0 | AH9: 0 | AI9: 0 | AJ9: 0 | AK9: 0 | AL9: 0 | AM9: 0 | AN9: 0 | AO9: 0 | AP9: 0 | AQ9: 0 | AR9: 0 | AS9: 0 | AT9: 0 | AV9: =IF('Courbes de Production PV'!$C$4="Saisie Manuelle",'Courbes de Production PV'!F9*Données!$G$37,HLOOKUP('Courbes de Production PV'!$C$4&'Courbes de Production PV'!$C$5,'Courbes de Production PV'!$G$6:$AT$8768,'Compensation PV'!A31+2,FALSE)*Données!$G$37) -> 0 | AW9: =AV9*$AW$6 -> 0
C10: 1 | D10: 1 | E10: 1 | G10: 0 | H10: 0 | I10: 0 | J10: 0 | K10: 0 | L10: 0 | M10: 0 | N10: 0 | O10: 0 | P10: 0 | Q10: 0 | R10: 0 | S10: 0 | T10: 0 | U10: 0 | V10: 0 | W10: 0 | X10: 0 | Y10: 0 | Z10: 0 | AA10: 0 | AB10: 0 | AC10: 0 | AD10: 0 | AE10: 0 | AF10: 0 | AG10: 0 | AH10: 0 | AI10: 0 | AJ10: 0 | AK10: 0 | AL10: 0 | AM10: 0 | AN10: 0 | AO10: 0 | AP10: 0 | AQ10: 0 | AR10: 0 | AS10: 0 | AT10: 0 | AV10: =IF('Courbes de Production PV'!$C$4="Saisie Manuelle",'Courbes de Production PV'!F10*Données!$G$37,HLOOKUP('Courbes de Production PV'!$C$4&'Courbes de Production PV'!$C$5,'Courbes de Production PV'!$G$6:$AT$8768,'Compensation PV'!A32+2,FALSE)*Données!$G$37) -> 0 | AW10: =AV10*$AW$6 -> 0
C11: 1 | D11: 1 | E11: 2 | G11: 0 | H11: 0 | I11: 0 | J11: 0 | K11: 0 | L11: 0 | M11: 0 | N11: 0 | O11: 0 | P11: 0 | Q11: 0 | R11: 0 | S11: 0 | T11: 0 | U11: 0 | V11: 0 | W11: 0 | X11: 0 | Y11: 0 | Z11: 0 | AA11: 0 | AB11: 0 | AC11: 0 | AD11: 0 | AE11: 0 | AF11: 0 | AG11: 0 | AH11: 0 | AI11: 0 | AJ11: 0 | AK11: 0 | AL11: 0 | AM11: 0 | AN11: 0 | AO11: 0 | AP11: 0 | AQ11: 0 | AR11: 0 | AS11: 0 | AT11: 0 | AV11: =IF('Courbes de Production PV'!$C$4="Saisie Manuelle",'Courbes de Production PV'!F11*Données!$G$37,HLOOKUP('Courbes de Production PV'!$C$4&'Courbes de Production PV'!$C$5,'Courbes de Production PV'!$G$6:$AT$8768,'Compensation PV'!A33+2,FALSE)*Données!$G$37) -> 0 | AW11: 0
C12: 1 | D12: 1 | E12: 3 | G12: 0 | H12: 0 | I12: 0 | J12: 0 | K12: 0 | L12: 0 | M12: 0 | N12: 0 | O12: 0 | P12: 0 | Q12: 0 | R12: 0 | S12: 0 | T12: 0 | U12: 0 | V12: 0 | W12: 0 | X12: 0 | Y12: 0 | Z12: 0 | AA12: 0 | AB12: 0 | AC12: 0 | AD12: 0 | AE12: 0 | AF12: 0 | AG12: 0 | AH12: 0 | AI12: 0 | AJ12: 0 | AK12: 0 | AL12: 0 | AM12: 0 | AN12: 0 | AO12: 0 | AP12: 0 | AQ12: 0 | AR12: 0 | AS12: 0 | AT12: 0 | AV12: =IF('Courbes de Production PV'!$C$4="Saisie Manuelle",'Courbes de Production PV'!F12*Données!$G$37,HLOOKUP('Courbes de Production PV'!$C$4&'Courbes de Production PV'!$C$5,'Courbes de Production PV'!$G$6:$AT$8768,'Compensation PV'!A34+2,FALSE)*Données!$G$37) -> 0 | AW12: 0
C13: 1 | D13: 1 | E13: 4 | G13: 0 | H13: 0 | I13: 0 | J13: 0 | K13: 0 | L13: 0 | M13: 0 | N13: 0 | O13: 0 | P13: 0 | Q13: 0 | R13: 0 | S13: 0 | T13: 0 | U13: 0 | V13: 0 | W13: 0 | X13: 0 | Y13: 0 | Z13: 0 | AA13: 0 | AB13: 0 | AC13: 0 | AD13: 0 | AE13: 0 | AF13: 0 | AG13: 0 | AH13: 0 | AI13: 0 | AJ13: 0 | AK13: 0 | AL13: 0 | AM13: 0 | AN13: 0 | AO13: 0 | AP13: 0 | AQ13: 0 | AR13: 0 | AS13: 0 | AT13: 0 | AV13: =IF('Courbes de Production PV'!$C$4="Saisie Manuelle",'Courbes de Production PV'!F13*Données!$G$37,HLOOKUP('Courbes de Production PV'!$C$4&'Courbes de Production PV'!$C$5,'Courbes de Production PV'!$G$6:$AT$8768,'Compensation PV'!A35+2,FALSE)*Données!$G$37) -> 0 | AW13: 0
C14: 1 | D14: 1 | E14: 5 | G14: 0 | H14: 0 | I14: 0 | J14: 0 | K14: 0 | L14: 0 | M14: 0 | N14: 0 | O14: 0 | P14: 0 | Q14: 0 | R14: 0 | S14: 0 | T14: 0 | U14: 0 | V14: 0 | W14: 0 | X14: 0 | Y14: 0 | Z14: 0 | AA14: 0 | AB14: 0 | AC14: 0 | AD14: 0 | AE14: 0 | AF14: 0 | AG14: 0 | AH14: 0 | AI14: 0 | AJ14: 0 | AK14: 0 | AL14: 0 | AM14: 0 | AN14: 0 | AO14: 0 | AP14: 0 | AQ14: 0 | AR14: 0 | AS14: 0 | AT14: 0 | AV14: =IF('Courbes de Production PV'!$C$4="Saisie Manuelle",'Courbes de Production PV'!F14*Données!$G$37,HLOOKUP('Courbes de Production PV'!$C$4&'Courbes de Production PV'!$C$5,'Courbes de Production PV'!$G$6:$AT$8768,'Compensation PV'!A36+2,FALSE)*Données!$G$37) -> 0 | AW14: 0
C15: 1 | D15: 1 | E15: 6 | G15: 0 | H15: 0 | I15: 0 | J15: 0 | K15: 0 | L15: 0 | M15: 0 | N15: 0 | O15: 0 | P15: 0 | Q15: 0 | R15: 0 | S15: 0 | T15: 0 | U15: 0 | V15: 0 | W15: 0 | X15: 0 | Y15: 0 | Z15: 0 | AA15: 0 | AB15: 0 | AC15: 0 | AD15: 0 | AE15: 0 | AF15: 0 | AG15: 0 | AH15: 0 | AI15: 0 | AJ15: 0 | AK15: 0 | AL15: 0 | AM15: 0 | AN15: 0 | AO15: 0 | AP15: 0 | AQ15: 0 | AR15: 0 | AS15: 0 | AT15: 0 | AV15: =IF('Courbes de Production PV'!$C$4="Saisie Manuelle",'Courbes de Production PV'!F15*Données!$G$37,HLOOKUP('Courbes de Production PV'!$C$4&'Courbes de Production PV'!$C$5,'Courbes de Production PV'!$G$6:$AT$8768,'Compensation PV'!A37+2,FALSE)*Données!$G$37) -> 0 | AW15: 0
C16: 1 | D16: 1 | E16: 7 | G16: 0 | H16: 0 | I16: 0 | J16: 0 | K16: 0 | L16: 0 | M16: 0 | N16: 0 | O16: 0 | P16: 0 | Q16: 0 | R16: 0 | S16: 0 | T16: 0 | U16: 0 | V16: 0 | W16: 0 | X16: 0 | Y16: 0 | Z16: 0 | AA16: 0 | AB16: 0 | AC16: 0 | AD16: 0 | AE16: 0 | AF16: 0 | AG16: 0 | AH16: 0 | AI16: 0 | AJ16: 0 | AK16: 0 | AL16: 0 | AM16: 0 | AN16: 0 | AO16: 0 | AP16: 0 | AQ16: 0 | AR16: 0 | AS16: 0 | AT16: 0 | AV16: =IF('Courbes de Production PV'!$C$4="Saisie Manuelle",'Courbes de Production PV'!F16*Données!$G$37,HLOOKUP('Courbes de Production PV'!$C$4&'Courbes de Production PV'!$C$5,'Courbes de Production PV'!$G$6:$AT$8768,'Compensation PV'!A38+2,FALSE)*Données!$G$37) -> 0 | AW16: 0
C17: 1 | D17: 1 | E17: 8 | G17: 0.0333214 | H17: 0.0325591 | I17: 0.0314226 | J17: 0.0292211 | K17: 0.0336673 | L17: 0.0314289 | M17: 0.0308281 | N17: 0.0296982 | O17: 0.0336063 | P17: 0.0332733 | Q17: 0.0319253 | R17: 0.0293673 | S17: 0.0330768 | T17: 0.0294005 | U17: 0.0294005 | V17: 0.0294005 | W17: 0.0332196 | X17: 0.0308249 | Y17: 0.0303226 | Z17: 0.0293509 | AA17: 0.033138 | AB17: 0.030316 | AC17: 0.0299878 | AD17: 0.0293449 | AE17: 0.0332807 | AF17: 0.0299233 | AG17: 0.0297937 | AH17: 0.0295408 | AI17: 0.0333214 | AJ17: 0.0296186 | AK17: 0.0296186 | AL17: 0.0296186 | AM17: 0.0333011 | AN17: 0.0311901 | AO17: 0.0305442 | AP17: 0.0293412 | AQ17: 0.0332603 | AR17: 0.0316722 | AS17: 0.0308622 | AT17: 0.0292857 | AV17: =IF('Courbes de Production PV'!$C$4="Saisie Manuelle",'Courbes de Production PV'!F17*Données!$G$37,HLOOKUP('Courbes de Production PV'!$C$4&'Courbes de Production PV'!$C$5,'Courbes de Production PV'!$G$6:$AT$8768,'Compensation PV'!A39+2,FALSE)*Données!$G$37) -> 3.08622 | AW17: 3.08622
C18: 1 | D18: 1 | E18: 9 | G18: 0.103418 | H18: 0.113939 | I18: 0.108769 | J18: 0.0941965 | K18: 0.10558 | L18: 0.114474 | M18: 0.109286 | N18: 0.0954844 | O18: 0.1041 | P18: 0.114366 | Q18: 0.108984 | R18: 0.0944416 | S18: 0.104472 | T18: 0.111027 | U18: 0.106825 | V18: 0.0948755 | W18: 0.104351 | X18: 0.113793 | Y18: 0.108835 | Z18: 0.0948754 | AA18: 0.104255 | AB18: 0.113195 | AC18: 0.108507 | AD18: 0.0949619 | AE18: 0.104927 | AF18: 0.112687 | AG18: 0.108211 | AH18: 0.0954084 | AI18: 0.105111 | AJ18: 0.110746 | AK18: 0.106653 | AL18: 0.0952636 | AM18: 0.104455 | AN18: 0.113207 | AO18: 0.107963 | AP18: 0.0942833 | AQ18: 0.103357 | AR18: 0.112682 | AS18: 0.10786 | AT18: 0.0941411 | AV18: =IF('Courbes de Production PV'!$C$4="Saisie Manuelle",'Courbes de Production PV'!F18*Données!$G$37,HLOOKUP('Courbes de Production PV'!$C$4&'Courbes de Production PV'!$C$5,'Courbes de Production PV'!$G$6:$AT$8768,'Compensation PV'!A40+2,FALSE)*Données!$G$37) -> 10.786 | AW18: 10.786
C19: 1 | D19: 1 | E19: 10 | G19: 0.163917 | H19: 0.178154 | I19: 0.175605 | J19: 0.156705 | K19: 0.168581 | L19: 0.193664 | M19: 0.189382 | N19: 0.164106 | O19: 0.164833 | P19: 0.178218 | Q19: 0.175283 | R19: 0.156667 | S19: 0.167091 | T19: 0.189438 | U19: 0.186375 | V19: 0.163319 | W19: 0.166696 | X19: 0.192899 | Y19: 0.189383 | Z19: 0.163877 | AA19: 0.166575 | AB19: 0.19232 | AC19: 0.18921 | AD19: 0.164162 | AE19: 0.167758 | AF19: 0.191902 | AG19: 0.188765 | AH19: 0.164583 | AI19: 0.167928 | AJ19: 0.188876 | AK19: 0.185644 | AL19: 0.163308 | AM19: 0.166884 | AN19: 0.19147 | AO19: 0.18695 | AP19: 0.16194 | AQ19: 0.163856 | AR19: 0.176961 | AS19: 0.174602 | AT19: 0.156456 | AV19: =IF('Courbes de Production PV'!$C$4="Saisie Manuelle",'Courbes de Production PV'!F19*Données!$G$37,HLOOKUP('Courbes de Production PV'!$C$4&'Courbes de Production PV'!$C$5,'Courbes de Production PV'!$G$6:$AT$8768,'Compensation PV'!A41+2,FALSE)*Données!$G$37) -> 17.4602 | AW19: 17.4602
C20: 1 | D20: 1 | E20: 11 | G20: 0.203791 | H20: 0.211246 | I20: 0.214755 | J20: 0.200496 | K20: 0.208062 | L20: 0.212908 | M20: 0.215464 | N20: 0.20209 | O20: 0.205209 | P20: 0.211806 | Q20: 0.214696 | R20: 0.200603 | S20: 0.205288 | T20: 0.208485 | U20: 0.211668 | V20: 0.199692 | W20: 0.205504 | X20: 0.211579 | Y20: 0.214946 | Z20: 0.201333 | AA20: 0.20515 | AB20: 0.211011 | AC20: 0.21467 | AD20: 0.201328 | AE20: 0.206325 | AF20: 0.210826 | AG20: 0.214228 | AH20: 0.201515 | AI20: 0.206508 | AJ20: 0.208592 | AK20: 0.211433 | AL20: 0.199904 | AM20: 0.205951 | AN20: 0.210443 | AO20: 0.212695 | AP20: 0.199519 | AQ20: 0.203554 | AR20: 0.210023 | AS20: 0.213537 | AT20: 0.199876 | AV20: =IF('Courbes de Production PV'!$C$4="Saisie Manuelle",'Courbes de Production PV'!F20*Données!$G$37,HLOOKUP('Courbes de Production PV'!$C$4&'Courbes de Production PV'!$C$5,'Courbes de Production PV'!$G$6:$AT$8768,'Compensation PV'!A42+2,FALSE)*Données!$G$37) -> 21.3537 | AW20: 21.3537
C21: 1 | D21: 1 | E21: 12 | G21: 0.213511 | H21: 0.214919 | I21: 0.224742 | J21: 0.216241 | K21: 0.217998 | L21: 0.217062 | M21: 0.225367 | N21: 0.217368 | O21: 0.215028 | P21: 0.215584 | Q21: 0.224465 | R21: 0.215994 | S21: 0.214969 | T21: 0.212906 | U21: 0.221761 | V21: 0.214812 | W21: 0.215264 | X21: 0.21551 | Y21: 0.225029 | Z21: 0.216983 | AA21: 0.214847 | AB21: 0.214989 | AC21: 0.224867 | AD21: 0.217052 | AE21: 0.216055 | AF21: 0.215041 | AG21: 0.2244 | AH21: 0.216982 | AI21: 0.216251 | AJ21: 0.213231 | AK21: 0.221478 | AL21: 0.214775 | AM21: 0.21585 | AN21: 0.214629 | AO21: 0.222448 | AP21: 0.214533 | AQ21: 0.213243 | AR21: 0.213898 | AS21: 0.223584 | AT21: 0.215481 | AV21: =IF('Courbes de Production PV'!$C$4="Saisie Manuelle",'Courbes de Production PV'!F21*Données!$G$37,HLOOKUP('Courbes de Production PV'!$C$4&'Courbes de Production PV'!$C$5,'Courbes de Production PV'!$G$6:$AT$8768,'Compensation PV'!A43+2,FALSE)*Données!$G$37) -> 22.3584 | AW21: 22.3584
C22: 1 | D22: 1 | E22: 13 | G22: 0.167549 | H22: 0.161493 | I22: 0.172051 | J22: 0.170565 | K22: 0.171321 | L22: 0.164033 | M22: 0.173265 | N22: 0.171755 | O22: 0.16892 | P22: 0.162346 | Q22: 0.171945 | R22: 0.170306 | S22: 0.168561 | T22: 0.160826 | U22: 0.170539 | V22: 0.169623 | W22: 0.168879 | X22: 0.162291 | Y22: 0.172715 | Z22: 0.171401 | AA22: 0.168471 | AB22: 0.161849 | AC22: 0.172621 | AD22: 0.171485 | AE22: 0.169496 | AF22: 0.162254 | AG22: 0.172501 | AH22: 0.17146 | AI22: 0.169711 | AJ22: 0.16144 | AK22: 0.170517 | AL22: 0.169601 | AM22: 0.16951 | AN22: 0.162156 | AO22: 0.170911 | AP22: 0.169348 | AQ22: 0.167299 | AR22: 0.160884 | AS22: 0.171283 | AT22: 0.169955 | AV22: =IF('Courbes de Production PV'!$C$4="Saisie Manuelle",'Courbes de Production PV'!F22*Données!$G$37,HLOOKUP('Courbes de Production PV'!$C$4&'Courbes de Production PV'!$C$5,'Courbes de Production PV'!$G$6:$AT$8768,'Compensation PV'!A44+2,FALSE)*Données!$G$37) -> 17.1283 | AW22: 17.1283
C23: 1 | D23: 1 | E23: 14 | G23: 0.105572 | H23: 0.0969556 | I23: 0.101648 | J23: 0.102559 | K23: 0.106732 | L23: 0.0975634 | M23: 0.100842 | N23: 0.101456 | O23: 0.106531 | P23: 0.0977175 | Q23: 0.101796 | R23: 0.102526 | S23: 0.104743 | T23: 0.0956058 | U23: 0.099102 | V23: 0.0998914 | W23: 0.105224 | X23: 0.0963347 | Y23: 0.100356 | Z23: 0.101181 | AA23: 0.104949 | AB23: 0.0960757 | AC23: 0.100316 | AD23: 0.101233 | AE23: 0.105429 | AF23: 0.0963624 | AG23: 0.100198 | AH23: 0.101042 | AI23: 0.105567 | AJ23: 0.0962695 | AK23: 0.0994289 | AL23: 0.100136 | AM23: 0.105498 | AN23: 0.0963844 | AO23: 0.0993875 | AP23: 0.0999282 | AQ23: 0.105366 | AR23: 0.0966668 | AS23: 0.101244 | AT23: 0.102169 | AV23: =IF('Courbes de Production PV'!$C$4="Saisie Manuelle",'Courbes de Production PV'!F23*Données!$G$37,HLOOKUP('Courbes de Production PV'!$C$4&'Courbes de Production PV'!$C$5,'Courbes de Production PV'!$G$6:$AT$8768,'Compensation PV'!A45+2,FALSE)*Données!$G$37) -> 10.1244 | AW23: 10.1244
C24: 1 | D24: 1 | E24: 15 | G24: 0.0434341 | H24: 0.0387971 | I24: 0.0387931 | J24: 0.0387923 | K24: 0.0439358 | L24: 0.0392396 | M24: 0.0392367 | N24: 0.0392362 | O24: 0.0438474 | P24: 0.0391646 | Q24: 0.0391611 | R24: 0.0391604 | S24: 0.0430793 | T24: 0.0384677 | U24: 0.0384647 | V24: 0.038464 | W24: 0.0432864 | X24: 0.0386582 | Y24: 0.0386547 | Z24: 0.038654 | AA24: 0.0431681 | AB24: 0.0385536 | AC24: 0.0385499 | AD24: 0.0385491 | AE24: 0.043375 | AF24: 0.0387373 | AG24: 0.0387339 | AH24: 0.0387332 | AI24: 0.0434341 | AJ24: 0.0387863 | AK24: 0.0387835 | AL24: 0.0387829 | AM24: 0.0434046 | AN24: 0.0387583 | AO24: 0.0387557 | AP24: 0.0387552 | AQ24: 0.0433455 | AR24: 0.0387163 | AS24: 0.0387124 | AT24: 0.0387116 | AV24: =IF('Courbes de Production PV'!$C$4="Saisie Manuelle",'Courbes de Production PV'!F24*Données!$G$37,HLOOKUP('Courbes de Production PV'!$C$4&'Courbes de Production PV'!$C$5,'Courbes de Production PV'!$G$6:$AT$8768,'Compensation PV'!A46+2,FALSE)*Données!$G$37) -> 3.87124 | AW24: 3.87124
C25: 1 | D25: 1 | E25: 16 | G25: 0.00649685 | H25: 0.00533248 | I25: 0.00533248 | J25: 0.00533248 | K25: 0.00660957 | L25: 0.00543123 | M25: 0.00543123 | N25: 0.00543123 | O25: 0.0065897 | P25: 0.00541421 | Q25: 0.00541421 | R25: 0.00541421 | S25: 0.00641714 | T25: 0.00525882 | U25: 0.00525882 | V25: 0.00525882 | W25: 0.00646365 | X25: 0.0053013 | Y25: 0.0053013 | Z25: 0.0053013 | AA25: 0.00643708 | AB25: 0.00527823 | AC25: 0.00527823 | AD25: 0.00527823 | AE25: 0.00648358 | AF25: 0.00531911 | AG25: 0.00531911 | AH25: 0.00531911 | AI25: 0.00649685 | AJ25: 0.00532999 | AK25: 0.00532999 | AL25: 0.00532999 | AM25: 0.00649021 | AN25: 0.00532381 | AO25: 0.00532381 | AP25: 0.00532381 | AQ25: 0.00647694 | AR25: 0.00531452 | AS25: 0.00531452 | AT25: 0.00531452 | AV25: =IF('Courbes de Production PV'!$C$4="Saisie Manuelle",'Courbes de Production PV'!F25*Données!$G$37,HLOOKUP('Courbes de Production PV'!$C$4&'Courbes de Production PV'!$C$5,'Courbes de Production PV'!$G$6:$AT$8768,'Compensation PV'!A47+2,FALSE)*Données!$G$37) -> 0.531452 | AW25: 0.531452
C26: 1 | D26: 1 | E26: 17 | G26: 0 | H26: 0 | I26: 0 | J26: 0 | K26: 0 | L26: 0 | M26: 0 | N26: 0 | O26: 0 | P26: 0 | Q26: 0 | R26: 0 | S26: 0 | T26: 0 | U26: 0 | V26: 0 | W26: 0 | X26: 0 | Y26: 0 | Z26: 0 | AA26: 0 | AB26: 0 | AC26: 0 | AD26: 0 | AE26: 0 | AF26: 0 | AG26: 0 | AH26: 0 | AI26: 0 | AJ26: 0 | AK26: 0 | AL26: 0 | AM26: 0 | AN26: 0 | AO26: 0 | AP26: 0 | AQ26: 0 | AR26: 0 | AS26: 0 | AT26: 0 | AV26: =IF('Courbes de Production PV'!$C$4="Saisie Manuelle",'Courbes de Production PV'!F26*Données!$G$37,HLOOKUP('Courbes de Production PV'!$C$4&'Courbes de Production PV'!$C$5,'Courbes de Production PV'!$G$6:$AT$8768,'Compensation PV'!A48+2,FALSE)*Données!$G$37) -> 0 | AW26: 0
C27: 1 | D27: 1 | E27: 18 | G27: 0 | H27: 0 | I27: 0 | J27: 0 | K27: 0 | L27: 0 | M27: 0 | N27: 0 | O27: 0 | P27: 0 | Q27: 0 | R27: 0 | S27: 0 | T27: 0 | U27: 0 | V27: 0 | W27: 0 | X27: 0 | Y27: 0 | Z27: 0 | AA27: 0 | AB27: 0 | AC27: 0 | AD27: 0 | AE27: 0 | AF27: 0 | AG27: 0 | AH27: 0 | AI27: 0 | AJ27: 0 | AK27: 0 | AL27: 0 | AM27: 0 | AN27: 0 | AO27: 0 | AP27: 0 | AQ27: 0 | AR27: 0 | AS27: 0 | AT27: 0 | AV27: =IF('Courbes de Production PV'!$C$4="Saisie Manuelle",'Courbes de Production PV'!F27*Données!$G$37,HLOOKUP('Courbes de Production PV'!$C$4&'Courbes de Production PV'!$C$5,'Courbes de Production PV'!$G$6:$AT$8768,'Compensation PV'!A49+2,FALSE)*Données!$G$37) -> 0 | AW27: 0
C28: 1 | D28: 1 | E28: 19 | G28: 0 | H28: 0 | I28: 0 | J28: 0 | K28: 0 | L28: 0 | M28: 0 | N28: 0 | O28: 0 | P28: 0 | Q28: 0 | R28: 0 | S28: 0 | T28: 0 | U28: 0 | V28: 0 | W28: 0 | X28: 0 | Y28: 0 | Z28: 0 | AA28: 0 | AB28: 0 | AC28: 0 | AD28: 0 | AE28: 0 | AF28: 0 | AG28: 0 | AH28: 0 | AI28: 0 | AJ28: 0 | AK28: 0 | AL28: 0 | AM28: 0 | AN28: 0 | AO28: 0 | AP28: 0 | AQ28: 0 | AR28: 0 | AS28: 0 | AT28: 0 | AV28: =IF('Courbes de Production PV'!$C$4="Saisie Manuelle",'Courbes de Production PV'!F28*Données!$G$37,HLOOKUP('Courbes de Production PV'!$C$4&'Courbes de Production PV'!$C$5,'Courbes de Production PV'!$G$6:$AT$8768,'Compensation PV'!A50+2,FALSE)*Données!$G$37) -> 0 | AW28: 0
C29: 1 | D29: 1 | E29: 20 | G29: 0 | H29: 0 | I29: 0 | J29: 0 | K29: 0 | L29: 0 | M29: 0 | N29: 0 | O29: 0 | P29: 0 | Q29: 0 | R29: 0 | S29: 0 | T29: 0 | U29: 0 | V29: 0 | W29: 0 | X29: 0 | Y29: 0 | Z29: 0 | AA29: 0 | AB29: 0 | AC29: 0 | AD29: 0 | AE29: 0 | AF29: 0 | AG29: 0 | AH29: 0 | AI29: 0 | AJ29: 0 | AK29: 0 | AL29: 0 | AM29: 0 | AN29: 0 | AO29: 0 | AP29: 0 | AQ29: 0 | AR29: 0 | AS29: 0 | AT29: 0 | AV29: =IF('Courbes de Production PV'!$C$4="Saisie Manuelle",'Courbes de Production PV'!F29*Données!$G$37,HLOOKUP('Courbes de Production PV'!$C$4&'Courbes de Production PV'!$C$5,'Courbes de Production PV'!$G$6:$AT$8768,'Compensation PV'!A51+2,FALSE)*Données!$G$37) -> 0 | AW29: 0
C30: 1 | D30: 1 | E30: 21 | G30: 0 | H30: 0 | I30: 0 | J30: 0 | K30: 0 | L30: 0 | M30: 0 | N30: 0 | O30: 0 | P30: 0 | Q30: 0 | R30: 0 | S30: 0 | T30: 0 | U30: 0 | V30: 0 | W30: 0 | X30: 0 | Y30: 0 | Z30: 0 | AA30: 0 | AB30: 0 | AC30: 0 | AD30: 0 | AE30: 0 | AF30: 0 | AG30: 0 | AH30: 0 | AI30: 0 | AJ30: 0 | AK30: 0 | AL30: 0 | AM30: 0 | AN30: 0 | AO30: 0 | AP30: 0 | AQ30: 0 | AR30: 0 | AS30: 0 | AT30: 0 | AV30: =IF('Courbes de Production PV'!$C$4="Saisie Manuelle",'Courbes de Production PV'!F30*Données!$G$37,HLOOKUP('Courbes de Production PV'!$C$4&'Courbes de Production PV'!$C$5,'Courbes de Production PV'!$G$6:$AT$8768,'Compensation PV'!A52+2,FALSE)*Données!$G$37) -> 0 | AW30: 0
C31: 1 | D31: 1 | E31: 22 | G31: 0 | H31: 0 | I31: 0 | J31: 0 | K31: 0 | L31: 0 | M31: 0 | N31: 0 | O31: 0 | P31: 0 | Q31: 0 | R31: 0 | S31: 0 | T31: 0 | U31: 0 | V31: 0 | W31: 0 | X31: 0 | Y31: 0 | Z31: 0 | AA31: 0 | AB31: 0 | AC31: 0 | AD31: 0 | AE31: 0 | AF31: 0 | AG31: 0 | AH31: 0 | AI31: 0 | AJ31: 0 | AK31: 0 | AL31: 0 | AM31: 0 | AN31: 0 | AO31: 0 | AP31: 0 | AQ31: 0 | AR31: 0 | AS31: 0 | AT31: 0 | AV31: =IF('Courbes de Production PV'!$C$4="Saisie Manuelle",'Courbes de Production PV'!F31*Données!$G$37,HLOOKUP('Courbes de Production PV'!$C$4&'Courbes de Production PV'!$C$5,'Courbes de Production PV'!$G$6:$AT$8768,'Compensation PV'!A53+2,FALSE)*Données!$G$37) -> 0 | AW31: 0
C32: 1 | D32: 1 | E32: 23 | G32: 0 | H32: 0 | I32: 0 | J32: 0 | K32: 0 | L32: 0 | M32: 0 | N32: 0 | O32: 0 | P32: 0 | Q32: 0 | R32: 0 | S32: 0 | T32: 0 | U32: 0 | V32: 0 | W32: 0 | X32: 0 | Y32: 0 | Z32: 0 | AA32: 0 | AB32: 0 | AC32: 0 | AD32: 0 | AE32: 0 | AF32: 0 | AG32: 0 | AH32: 0 | AI32: 0 | AJ32: 0 | AK32: 0 | AL32: 0 | AM32: 0 | AN32: 0 | AO32: 0 | AP32: 0 | AQ32: 0 | AR32: 0 | AS32: 0 | AT32: 0 | AV32: =IF('Courbes de Production PV'!$C$4="Saisie Manuelle",'Courbes de Production PV'!F32*Données!$G$37,HLOOKUP('Courbes de Production PV'!$C$4&'Courbes de Production PV'!$C$5,'Courbes de Production PV'!$G$6:$AT$8768,'Compensation PV'!A54+2,FALSE)*Données!$G$37) -> 0 | AW32: 0
C33: 1 | D33: 2 | E33: 0 | G33: 0 | H33: 0 | I33: 0 | J33: 0 | K33: 0 | L33: 0 | M33: 0 | N33: 0 | O33: 0 | P33: 0 | Q33: 0 | R33: 0 | S33: 0 | T33: 0 | U33: 0 | V33: 0 | W33: 0 | X33: 0 | Y33: 0 | Z33: 0 | AA33: 0 | AB33: 0 | AC33: 0 | AD33: 0 | AE33: 0 | AF33: 0 | AG33: 0 | AH33: 0 | AI33: 0 | AJ33: 0 | AK33: 0 | AL33: 0 | AM33: 0 | AN33: 0 | AO33: 0 | AP33: 0 | AQ33: 0 | AR33: 0 | AS33: 0 | AT33: 0 | AV33: =IF('Courbes de Production PV'!$C$4="Saisie Manuelle",'Courbes de Production PV'!F33*Données!$G$37,HLOOKUP('Courbes de Production PV'!$C$4&'Courbes de Production PV'!$C$5,'Courbes de Production PV'!$G$6:$AT$8768,'Compensation PV'!A55+2,FALSE)*Données!$G$37) -> 0 | AW33: 0
C34: 1 | D34: 2 | E34: 1 | G34: 0 | H34: 0 | I34: 0 | J34: 0 | K34: 0 | L34: 0 | M34: 0 | N34: 0 | O34: 0 | P34: 0 | Q34: 0 | R34: 0 | S34: 0 | T34: 0 | U34: 0 | V34: 0 | W34: 0 | X34: 0 | Y34: 0 | Z34: 0 | AA34: 0 | AB34: 0 | AC34: 0 | AD34: 0 | AE34: 0 | AF34: 0 | AG34: 0 | AH34: 0 | AI34: 0 | AJ34: 0 | AK34: 0 | AL34: 0 | AM34: 0 | AN34: 0 | AO34: 0 | AP34: 0 | AQ34: 0 | AR34: 0 | AS34: 0 | AT34: 0 | AV34: =IF('Courbes de Production PV'!$C$4="Saisie Manuelle",'Courbes de Production PV'!F34*Données!$G$37,HLOOKUP('Courbes de Production PV'!$C$4&'Courbes de Production PV'!$C$5,'Courbes de Production PV'!$G$6:$AT$8768,'Compensation PV'!A56+2,FALSE)*Données!$G$37) -> 0 | AW34: 0
C35: 1 | D35: 2 | E35: 2 | G35: 0 | H35: 0 | I35: 0 | J35: 0 | K35: 0 | L35: 0 | M35: 0 | N35: 0 | O35: 0 | P35: 0 | Q35: 0 | R35: 0 | S35: 0 | T35: 0 | U35: 0 | V35: 0 | W35: 0 | X35: 0 | Y35: 0 | Z35: 0 | AA35: 0 | AB35: 0 | AC35: 0 | AD35: 0 | AE35: 0 | AF35: 0 | AG35: 0 | AH35: 0 | AI35: 0 | AJ35: 0 | AK35: 0 | AL35: 0 | AM35: 0 | AN35: 0 | AO35: 0 | AP35: 0 | AQ35: 0 | AR35: 0 | AS35: 0 | AT35: 0 | AV35: =IF('Courbes de Production PV'!$C$4="Saisie Manuelle",'Courbes de Production PV'!F35*Données!$G$37,HLOOKUP('Courbes de Production PV'!$C$4&'Courbes de Production PV'!$C$5,'Courbes de Production PV'!$G$6:$AT$8768,'Compensation PV'!A57+2,FALSE)*Données!$G$37) -> 0 | AW35: 0
C36: 1 | D36: 2 | E36: 3 | G36: 0 | H36: 0 | I36: 0 | J36: 0 | K36: 0 | L36: 0 | M36: 0 | N36: 0 | O36: 0 | P36: 0 | Q36: 0 | R36: 0 | S36: 0 | T36: 0 | U36: 0 | V36: 0 | W36: 0 | X36: 0 | Y36: 0 | Z36: 0 | AA36: 0 | AB36: 0 | AC36: 0 | AD36: 0 | AE36: 0 | AF36: 0 | AG36: 0 | AH36: 0 | AI36: 0 | AJ36: 0 | AK36: 0 | AL36: 0 | AM36: 0 | AN36: 0 | AO36: 0 | AP36: 0 | AQ36: 0 | AR36: 0 | AS36: 0 | AT36: 0 | AV36: =IF('Courbes de Production PV'!$C$4="Saisie Manuelle",'Courbes de Production PV'!F36*Données!$G$37,HLOOKUP('Courbes de Production PV'!$C$4&'Courbes de Production PV'!$C$5,'Courbes de Production PV'!$G$6:$AT$8768,'Compensation PV'!A58+2,FALSE)*Données!$G$37) -> 0 | AW36: 0
C37: 1 | D37: 2 | E37: 4 | G37: 0 | H37: 0 | I37: 0 | J37: 0 | K37: 0 | L37: 0 | M37: 0 | N37: 0 | O37: 0 | P37: 0 | Q37: 0 | R37: 0 | S37: 0 | T37: 0 | U37: 0 | V37: 0 | W37: 0 | X37: 0 | Y37: 0 | Z37: 0 | AA37: 0 | AB37: 0 | AC37: 0 | AD37: 0 | AE37: 0 | AF37: 0 | AG37: 0 | AH37: 0 | AI37: 0 | AJ37: 0 | AK37: 0 | AL37: 0 | AM37: 0 | AN37: 0 | AO37: 0 | AP37: 0 | AQ37: 0 | AR37: 0 | AS37: 0 | AT37: 0 | AV37: =IF('Courbes de Production PV'!$C$4="Saisie Manuelle",'Courbes de Production PV'!F37*Données!$G$37,HLOOKUP('Courbes de Production PV'!$C$4&'Courbes de Production PV'!$C$5,'Courbes de Production PV'!$G$6:$AT$8768,'Compensation PV'!A59+2,FALSE)*Données!$G$37) -> 0 | AW37: 0
C38: 1 | D38: 2 | E38: 5 | G38: 0 | H38: 0 | I38: 0 | J38: 0 | K38: 0 | L38: 0 | M38: 0 | N38: 0 | O38: 0 | P38: 0 | Q38: 0 | R38: 0 | S38: 0 | T38: 0 | U38: 0 | V38: 0 | W38: 0 | X38: 0 | Y38: 0 | Z38: 0 | AA38: 0 | AB38: 0 | AC38: 0 | AD38: 0 | AE38: 0 | AF38: 0 | AG38: 0 | AH38: 0 | AI38: 0 | AJ38: 0 | AK38: 0 | AL38: 0 | AM38: 0 | AN38: 0 | AO38: 0 | AP38: 0 | AQ38: 0 | AR38: 0 | AS38: 0 | AT38: 0 | AV38: =IF('Courbes de Production PV'!$C$4="Saisie Manuelle",'Courbes de Production PV'!F38*Données!$G$37,HLOOKUP('Courbes de Production PV'!$C$4&'Courbes de Production PV'!$C$5,'Courbes de Production PV'!$G$6:$AT$8768,'Compensation PV'!A60+2,FALSE)*Données!$G$37) -> 0 | AW38: 0
C39: 1 | D39: 2 | E39: 6 | G39: 0 | H39: 0 | I39: 0 | J39: 0 | K39: 0 | L39: 0 | M39: 0 | N39: 0 | O39: 0 | P39: 0 | Q39: 0 | R39: 0 | S39: 0 | T39: 0 | U39: 0 | V39: 0 | W39: 0 | X39: 0 | Y39: 0 | Z39: 0 | AA39: 0 | AB39: 0 | AC39: 0 | AD39: 0 | AE39: 0 | AF39: 0 | AG39: 0 | AH39: 0 | AI39: 0 | AJ39: 0 | AK39: 0 | AL39: 0 | AM39: 0 | AN39: 0 | AO39: 0 | AP39: 0 | AQ39: 0 | AR39: 0 | AS39: 0 | AT39: 0 | AV39: =IF('Courbes de Production PV'!$C$4="Saisie Manuelle",'Courbes de Production PV'!F39*Données!$G$37,HLOOKUP('Courbes de Production PV'!$C$4&'Courbes de Production PV'!$C$5,'Courbes de Production PV'!$G$6:$AT$8768,'Compensation PV'!A61+2,FALSE)*Données!$G$37) -> 0 | AW39: 0
C40: 1 | D40: 2 | E40: 7 | G40: 0 | H40: 0 | I40: 0 | J40: 0 | K40: 0 | L40: 0 | M40: 0 | N40: 0 | O40: 0 | P40: 0 | Q40: 0 | R40: 0 | S40: 0 | T40: 0 | U40: 0 | V40: 0 | W40: 0 | X40: 0 | Y40: 0 | Z40: 0 | AA40: 0 | AB40: 0 | AC40: 0 | AD40: 0 | AE40: 0 | AF40: 0 | AG40: 0 | AH40: 0 | AI40: 0 | AJ40: 0 | AK40: 0 | AL40: 0 | AM40: 0 | AN40: 0 | AO40: 0 | AP40: 0 | AQ40: 0 | AR40: 0 | AS40: 0 | AT40: 0 | AV40: =IF('Courbes de Production PV'!$C$4="Saisie Manuelle",'Courbes de Production PV'!F40*Données!$G$37,HLOOKUP('Courbes de Production PV'!$C$4&'Courbes de Production PV'!$C$5,'Courbes de Production PV'!$G$6:$AT$8768,'Compensation PV'!A62+2,FALSE)*Données!$G$37) -> 0 | AW40: 0
C41: 1 | D41: 2 | E41: 8 | G41: 0.0576796 | H41: 0.129857 | I41: 0.0998532 | J41: 0.0442452 | K41: 0.0616413 | L41: 0.149724 | M41: 0.112612 | N41: 0.0452481 | O41: 0.0572594 | P41: 0.128087 | Q41: 0.0978077 | R41: 0.0433207 | S41: 0.065036 | T41: 0.149979 | U41: 0.115755 | V41: 0.0495192 | W41: 0.0618822 | X41: 0.151654 | Y41: 0.115216 | Z41: 0.0465051 | AA41: 0.0627563 | AB41: 0.151948 | AC41: 0.11635 | AD41: 0.0478045 | AE41: 0.0641947 | AF41: 0.15185 | AG41: 0.116656 | AH41: 0.0488098 | AI41: 0.0651667 | AJ41: 0.146755 | AK41: 0.113407 | AL41: 0.049493 | AM41: 0.0609456 | AN41: 0.148533 | AO41: 0.111144 | AP41: 0.0442447 | AQ41: 0.058352 | AR41: 0.128023 | AS41: 0.0992182 | AT41: 0.0451626 | AV41: =IF('Courbes de Production PV'!$C$4="Saisie Manuelle",'Courbes de Production PV'!F41*Données!$G$37,HLOOKUP('Courbes de Production PV'!$C$4&'Courbes de Production PV'!$C$5,'Courbes de Production PV'!$G$6:$AT$8768,'Compensation PV'!A63+2,FALSE)*Données!$G$37) -> 9.92182 | AW41: 9.92182
C42: 1 | D42: 2 | E42: 9 | G42: 0.165671 | H42: 0.357784 | I42: 0.309139 | J42: 0.163124 | K42: 0.195108 | L42: 0.413217 | M42: 0.353654 | N42: 0.183608 | O42: 0.162043 | P42: 0.3472 | Q42: 0.297838 | R42: 0.155974 | S42: 0.210142 | T42: 0.426558 | U42: 0.371509 | V42: 0.203796 | W42: 0.196737 | X42: 0.420599 | Y42: 0.363643 | Z42: 0.191405 | AA42: 0.200264 | AB42: 0.424492 | AC42: 0.369085 | AD42: 0.197253 | AE42: 0.206785 | AF42: 0.429007 | AG42: 0.373153 | AH42: 0.201807 | AI42: 0.208487 | AJ42: 0.416504 | AK42: 0.361968 | AL42: 0.199772 | AM42: 0.193401 | AN42: 0.409313 | AO42: 0.348911 | AP42: 0.179716 | AQ42: 0.168621 | AR42: 0.358745 | AS42: 0.311006 | AT42: 0.166455 | AV42: =IF('Courbes de Production PV'!$C$4="Saisie Manuelle",'Courbes de Production PV'!F42*Données!$G$37,HLOOKUP('Courbes de Production PV'!$C$4&'Courbes de Production PV'!$C$5,'Courbes de Production PV'!$G$6:$AT$8768,'Compensation PV'!A64+2,FALSE)*Données!$G$37) -> 31.1006 | AW42: 31.1006
C43: 1 | D43: 2 | E43: 10 | G43: 0.267296 | H43: 0.48935 | I43: 0.469973 | J43: 0.318679 | K43: 0.326437 | L43: 0.576654 | M43: 0.548711 | N43: 0.372297 | O43: 0.2612 | P43: 0.47573 | Q43: 0.453541 | R43: 0.305384 | S43: 0.345929 | T43: 0.591234 | U43: 0.570003 | V43: 0.399364 | W43: 0.327341 | X43: 0.583431 | Y43: 0.560656 | Z43: 0.383953 | AA43: 0.331601 | AB43: 0.587521 | AC43: 0.567163 | AD43: 0.391814 | AE43: 0.342029 | AF43: 0.594974 | AG43: 0.573762 | AH43: 0.398991 | AI43: 0.341985 | AJ43: 0.578033 | AK43: 0.555504 | AL43: 0.389678 | AM43: 0.324334 | AN43: 0.571494 | AO43: 0.541843 | AP43: 0.366188 | AQ43: 0.271167 | AR43: 0.490447 | AS43: 0.471982 | AT43: 0.322619 | AV43: =IF('Courbes de Production PV'!$C$4="Saisie Manuelle",'Courbes de Production PV'!F43*Données!$G$37,HLOOKUP('Courbes de Production PV'!$C$4&'Courbes de Production PV'!$C$5,'Courbes de Production PV'!$G$6:$AT$8768,'Compensation PV'!A65+2,FALSE)*Données!$G$37) -> 47.1982 | AW43: 47.1982
C44: 1 | D44: 2 | E44: 11 | G44: 0.330806 | H44: 0.532248 | I44: 0.560015 | J44: 0.443493 | K44: 0.411122 | L44: 0.631368 | M44: 0.6559 | N44: 0.522987 | O44: 0.324088 | P44: 0.519055 | Q44: 0.541892 | R44: 0.426612 | S44: 0.429447 | T44: 0.642261 | U44: 0.674615 | V44: 0.549285 | W44: 0.409656 | X44: 0.63498 | Y44: 0.666463 | Z44: 0.534974 | AA44: 0.413187 | AB44: 0.637731 | AC44: 0.672183 | AD44: 0.542636 | AE44: 0.425814 | AF44: 0.646595 | AG44: 0.680054 | AH44: 0.551216 | AI44: 0.424354 | AJ44: 0.628756 | AK44: 0.658018 | AL44: 0.535692 | AM44: 0.409342 | AN44: 0.626574 | AO44: 0.648446 | AP44: 0.51583 | AQ44: 0.334616 | AR44: 0.532658 | AS44: 0.561199 | AT44: 0.44675 | AV44: =IF('Courbes de Production PV'!$C$4="Saisie Manuelle",'Courbes de Production PV'!F44*Données!$G$37,HLOOKUP('Courbes de Production PV'!$C$4&'Courbes de Production PV'!$C$5,'Courbes de Production PV'!$G$6:$AT$8768,'Compensation PV'!A66+2,FALSE)*Données!$G$37) -> 56.1199 | AW44: 56.1199
C45: 1 | D45: 2 | E45: 12 | G45: 0.347974 | H45: 0.502294 | I45: 0.579947 | J45: 0.513189 | K45: 0.434916 | L45: 0.601908 | M45: 0.682025 | N45: 0.605477 | O45: 0.342986 | P45: 0.492867 | Q45: 0.56377 | R45: 0.496334 | S45: 0.447855 | T45: 0.60608 | U45: 0.694661 | V45: 0.626269 | W45: 0.429823 | X45: 0.600292 | Y45: 0.688716 | Z45: 0.614934 | AA45: 0.431642 | AB45: 0.600797 | AC45: 0.692614 | AD45: 0.62109 | AE45: 0.444767 | AF45: 0.610109 | AG45: 0.700917 | AH45: 0.630085 | AI45: 0.44353 | AJ45: 0.59513 | AK45: 0.678981 | AL45: 0.611773 | AM45: 0.433817 | AN45: 0.598437 | AO45: 0.67492 | AP45: 0.598001 | AQ45: 0.351057 | AR45: 0.502039 | AS45: 0.58025 | AT45: 0.515329 | AV45: =IF('Courbes de Production PV'!$C$4="Saisie Manuelle",'Courbes de Production PV'!F45*Données!$G$37,HLOOKUP('Courbes de Production PV'!$C$4&'Courbes de Production PV'!$C$5,'Courbes de Production PV'!$G$6:$AT$8768,'Compensation PV'!A67+2,FALSE)*Données!$G$37) -> 58.025 | AW45: 58.025
C46: 1 | D46: 2 | E46: 13 | G46: 0.316602 | H46: 0.414163 | I46: 0.536627 | J46: 0.520286 | K46: 0.3981 | L46: 0.504044 | M46: 0.636985 | N46: 0.616554 | O46: 0.314772 | P46: 0.410347 | Q46: 0.524519 | R46: 0.50588 | S46: 0.404151 | T46: 0.499069 | U46: 0.638992 | V46: 0.626933 | W46: 0.389135 | X46: 0.496486 | Y46: 0.638974 | Z46: 0.622326 | AA46: 0.388911 | AB46: 0.494387 | AC46: 0.640679 | AD46: 0.626502 | AE46: 0.401347 | AF46: 0.501806 | AG46: 0.644966 | AH46: 0.631642 | AI46: 0.40197 | AJ46: 0.493906 | AK46: 0.629572 | AL46: 0.616948 | AM46: 0.398073 | AN46: 0.502682 | AO46: 0.631023 | AP46: 0.609425 | AQ46: 0.318762 | AR46: 0.413355 | AS46: 0.536171 | AT46: 0.521338 | AV46: =IF('Courbes de Production PV'!$C$4="Saisie Manuelle",'Courbes de Production PV'!F46*Données!$G$37,HLOOKUP('Courbes de Production PV'!$C$4&'Courbes de Production PV'!$C$5,'Courbes de Production PV'!$G$6:$AT$8768,'Compensation PV'!A68+2,FALSE)*Données!$G$37) -> 53.6171 | AW46: 53.6171
C47: 1 | D47: 2 | E47: 14 | G47: 0.239738 | H47: 0.276867 | I47: 0.422533 | J47: 0.44884 | K47: 0.30074 | L47: 0.339919 | M47: 0.501439 | N47: 0.529503 | O47: 0.241468 | P47: 0.276348 | Q47: 0.411722 | R47: 0.434406 | S47: 0.300006 | T47: 0.330101 | U47: 0.500587 | V47: 0.535885 | W47: 0.289535 | X47: 0.327625 | Y47: 0.498641 | Z47: 0.53093 | AA47: 0.28753 | AB47: 0.32337 | AC47: 0.498099 | AD47: 0.532774 | AE47: 0.297385 | AF47: 0.33081 | AG47: 0.504972 | AH47: 0.540142 | AI47: 0.300644 | AJ47: 0.329091 | AK47: 0.49243 | AL47: 0.526093 | AM47: 0.301999 | AN47: 0.341237 | AO47: 0.498079 | AP47: 0.524359 | AQ47: 0.240881 | AR47: 0.275793 | AS47: 0.421669 | AT47: 0.449054 | AV47: =IF('Courbes de Production PV'!$C$4="Saisie Manuelle",'Courbes de Production PV'!F47*Données!$G$37,HLOOKUP('Courbes de Production PV'!$C$4&'Courbes de Production PV'!$C$5,'Courbes de Production PV'!$G$6:$AT$8768,'Compensation PV'!A69+2,FALSE)*Données!$G$37) -> 42.1669 | AW47: 42.1669
C48: 1 | D48: 2 | E48: 15 | G48: 0.13359 | H48: 0.125024 | I48: 0.25931 | J48: 0.308695 | K48: 0.166769 | L48: 0.155456 | M48: 0.306891 | N48: 0.361239 | O48: 0.137179 | P48: 0.130557 | Q48: 0.257493 | R48: 0.303025 | S48: 0.162209 | T48: 0.144154 | U48: 0.302752 | V48: 0.363179 | W48: 0.156699 | X48: 0.14322 | Y48: 0.302533 | Z48: 0.361372 | AA48: 0.154095 | AB48: 0.138742 | AC48: 0.300887 | AD48: 0.361895 | AE48: 0.160071 | AF48: 0.143297 | AG48: 0.305118 | AH48: 0.366277 | AI48: 0.16467 | AJ48: 0.146982 | AK48: 0.298972 | AL48: 0.356792 | AM48: 0.168735 | AN48: 0.158238 | AO48: 0.30602 | AP48: 0.358431 | AQ48: 0.133916 | AR48: 0.124062 | AS48: 0.258306 | AT48: 0.308318 | AV48: =IF('Courbes de Production PV'!$C$4="Saisie Manuelle",'Courbes de Production PV'!F48*Données!$G$37,HLOOKUP('Courbes de Production PV'!$C$4&'Courbes de Production PV'!$C$5,'Courbes de Production PV'!$G$6:$AT$8768,'Compensation PV'!A70+2,FALSE)*Données!$G$37) -> 25.8306 | AW48: 25.8306
C49: 1 | D49: 2 | E49: 16 | G49: 0.0324498 | H49: 0.0251713 | I49: 0.0512244 | J49: 0.0665831 | K49: 0.0349358 | L49: 0.027583 | M49: 0.0524991 | N49: 0.066582 | O49: 0.0332087 | P49: 0.0265586 | Q49: 0.0495736 | R49: 0.062666 | S49: 0.0336548 | T49: 0.0257098 | U49: 0.052187 | V49: 0.0682064 | W49: 0.0334107 | X49: 0.0256506 | Y49: 0.0532266 | Z49: 0.0696511 | AA49: 0.0330028 | AB49: 0.0249648 | AC49: 0.0536766 | AD49: 0.0711948 | AE49: 0.033574 | AF49: 0.0255738 | AG49: 0.053159 | AH49: 0.0698884 | AI49: 0.0342811 | AJ49: 0.0265113 | AK49: 0.0513998 | AL49: 0.0661837 | AM49: 0.0349846 | AN49: 0.0277882 | AO49: 0.0519186 | AP49: 0.0653115 | AQ49: 0.032394 | AR49: 0.0250298 | AS49: 0.0509394 | AT49: 0.0663618 | AV49: =IF('Courbes de Production PV'!$C$4="Saisie Manuelle",'Courbes de Production PV'!F49*Données!$G$37,HLOOKUP('Courbes de Production PV'!$C$4&'Courbes de Production PV'!$C$5,'Courbes de Production PV'!$G$6:$AT$8768,'Compensation PV'!A71+2,FALSE)*Données!$G$37) -> 5.09394 | AW49: 5.09394
C50: 1 | D50: 2 | E50: 17 | G50: 0 | H50: 0 | I50: 0 | J50: 0 | K50: 0 | L50: 0 | M50: 0 | N50: 0 | O50: 0 | P50: 0 | Q50: 0 | R50: 0 | S50: 0 | T50: 0 | U50: 0 | V50: 0 | W50: 0 | X50: 0 | Y50: 0 | Z50: 0 | AA50: 0 | AB50: 0 | AC50: 0 | AD50: 0 | AE50: 0 | AF50: 0 | AG50: 0 | AH50: 0 | AI50: 0 | AJ50: 0 | AK50: 0 | AL50: 0 | AM50: 0 | AN50: 0 | AO50: 0 | AP50: 0 | AQ50: 0 | AR50: 0 | AS50: 0 | AT50: 0 | AV50: =IF('Courbes de Production PV'!$C$4="Saisie Manuelle",'Courbes de Production PV'!F50*Données!$G$37,HLOOKUP('Courbes de Production PV'!$C$4&'Courbes de Production PV'!$C$5,'Courbes de Production PV'!$G$6:$AT$8768,'Compensation PV'!A72+2,FALSE)*Données!$G$37) -> 0 | AW50: 0
C51: 1 | D51: 2 | E51: 18 | G51: 0 | H51: 0 | I51: 0 | J51: 0 | K51: 0 | L51: 0 | M51: 0 | N51: 0 | O51: 0 | P51: 0 | Q51: 0 | R51: 0 | S51: 0 | T51: 0 | U51: 0 | V51: 0 | W51: 0 | X51: 0 | Y51: 0 | Z51: 0 | AA51: 0 | AB51: 0 | AC51: 0 | AD51: 0 | AE51: 0 | AF51: 0 | AG51: 0 | AH51: 0 | AI51: 0 | AJ51: 0 | AK51: 0 | AL51: 0 | AM51: 0 | AN51: 0 | AO51: 0 | AP51: 0 | AQ51: 0 | AR51: 0 | AS51: 0 | AT51: 0 | AV51: =IF('Courbes de Production PV'!$C$4="Saisie Manuelle",'Courbes de Production PV'!F51*Données!$G$37,HLOOKUP('Courbes de Production PV'!$C$4&'Courbes de Production PV'!$C$5,'Courbes de Production PV'!$G$6:$AT$8768,'Compensation PV'!A73+2,FALSE)*Données!$G$37) -> 0 | AW51: 0
C52: 1 | D52: 2 | E52: 19 | G52: 0 | H52: 0 | I52: 0 | J52: 0 | K52: 0 | L52: 0 | M52: 0 | N52: 0 | O52: 0 | P52: 0 | Q52: 0 | R52: 0 | S52: 0 | T52: 0 | U52: 0 | V52: 0 | W52: 0 | X52: 0 | Y52: 0 | Z52: 0 | AA52: 0 | AB52: 0 | AC52: 0 | AD52: 0 | AE52: 0 | AF52: 0 | AG52: 0 | AH52: 0 | AI52: 0 | AJ52: 0 | AK52: 0 | AL52: 0 | AM52: 0 | AN52: 0 | AO52: 0 | AP52: 0 | AQ52: 0 | AR52: 0 | AS52: 0 | AT52: 0 | AV52: =IF('Courbes de Production PV'!$C$4="Saisie Manuelle",'Courbes de Production PV'!F52*Données!$G$37,HLOOKUP('Courbes de Production PV'!$C$4&'Courbes de Production PV'!$C$5,'Courbes de Production PV'!$G$6:$AT$8768,'Compensation PV'!A74+2,FALSE)*Données!$G$37) -> 0 | AW52: 0
C53: 1 | D53: 2 | E53: 20 | G53: 0 | H53: 0 | I53: 0 | J53: 0 | K53: 0 | L53: 0 | M53: 0 | N53: 0 | O53: 0 | P53: 0 | Q53: 0 | R53: 0 | S53: 0 | T53: 0 | U53: 0 | V53: 0 | W53: 0 | X53: 0 | Y53: 0 | Z53: 0 | AA53: 0 | AB53: 0 | AC53: 0 | AD53: 0 | AE53: 0 | AF53: 0 | AG53: 0 | AH53: 0 | AI53: 0 | AJ53: 0 | AK53: 0 | AL53: 0 | AM53: 0 | AN53: 0 | AO53: 0 | AP53: 0 | AQ53: 0 | AR53: 0 | AS53: 0 | AT53: 0 | AV53: =IF('Courbes de Production PV'!$C$4="Saisie Manuelle",'Courbes de Production PV'!F53*Données!$G$37,HLOOKUP('Courbes de Production PV'!$C$4&'Courbes de Production PV'!$C$5,'Courbes de Production PV'!$G$6:$AT$8768,'Compensation PV'!A75+2,FALSE)*Données!$G$37) -> 0 | AW53: 0
C54: 1 | D54: 2 | E54: 21 | G54: 0 | H54: 0 | I54: 0 | J54: 0 | K54: 0 | L54: 0 | M54: 0 | N54: 0 | O54: 0 | P54: 0 | Q54: 0 | R54: 0 | S54: 0 | T54: 0 | U54: 0 | V54: 0 | W54: 0 | X54: 0 | Y54: 0 | Z54: 0 | AA54: 0 | AB54: 0 | AC54: 0 | AD54: 0 | AE54: 0 | AF54: 0 | AG54: 0 | AH54: 0 | AI54: 0 | AJ54: 0 | AK54: 0 | AL54: 0 | AM54: 0 | AN54: 0 | AO54: 0 | AP54: 0 | AQ54: 0 | AR54: 0 | AS54: 0 | AT54: 0 | AV54: =IF('Courbes de Production PV'!$C$4="Saisie Manuelle",'Courbes de Production PV'!F54*Données!$G$37,HLOOKUP('Courbes de Production PV'!$C$4&'Courbes de Production PV'!$C$5,'Courbes de Production PV'!$G$6:$AT$8768,'Compensation PV'!A76+2,FALSE)*Données!$G$37) -> 0 | AW54: 0
C55: 1 | D55: 2 | E55: 22 | G55: 0 | H55: 0 | I55: 0 | J55: 0 | K55: 0 | L55: 0 | M55: 0 | N55: 0 | O55: 0 | P55: 0 | Q55: 0 | R55: 0 | S55: 0 | T55: 0 | U55: 0 | V55: 0 | W55: 0 | X55: 0 | Y55: 0 | Z55: 0 | AA55: 0 | AB55: 0 | AC55: 0 | AD55: 0 | AE55: 0 | AF55: 0 | AG55: 0 | AH55: 0 | AI55: 0 | AJ55: 0 | AK55: 0 | AL55: 0 | AM55: 0 | AN55: 0 | AO55: 0 | AP55: 0 | AQ55: 0 | AR55: 0 | AS55: 0 | AT55: 0 | AV55: =IF('Courbes de Production PV'!$C$4="Saisie Manuelle",'Courbes de Production PV'!F55*Données!$G$37,HLOOKUP('Courbes de Production PV'!$C$4&'Courbes de Production PV'!$C$5,'Courbes de Production PV'!$G$6:$AT$8768,'Compensation PV'!A77+2,FALSE)*Données!$G$37) -> 0 | AW55: 0
C56: 1 | D56: 2 | E56: 23 | G56: 0 | H56: 0 | I56: 0 | J56: 0 | K56: 0 | L56: 0 | M56: 0 | N56: 0 | O56: 0 | P56: 0 | Q56: 0 | R56: 0 | S56: 0 | T56: 0 | U56: 0 | V56: 0 | W56: 0 | X56: 0 | Y56: 0 | Z56: 0 | AA56: 0 | AB56: 0 | AC56: 0 | AD56: 0 | AE56: 0 | AF56: 0 | AG56: 0 | AH56: 0 | AI56: 0 | AJ56: 0 | AK56: 0 | AL56: 0 | AM56: 0 | AN56: 0 | AO56: 0 | AP56: 0 | AQ56: 0 | AR56: 0 | AS56: 0 | AT56: 0 | AV56: =IF('Courbes de Production PV'!$C$4="Saisie Manuelle",'Courbes de Production PV'!F56*Données!$G$37,HLOOKUP('Courbes de Production PV'!$C$4&'Courbes de Production PV'!$C$5,'Courbes de Production PV'!$G$6:$AT$8768,'Compensation PV'!A78+2,FALSE)*Données!$G$37) -> 0 | AW56: 0
C57: 1 | D57: 3 | E57: 0 | G57: 0 | H57: 0 | I57: 0 | J57: 0 | K57: 0 | L57: 0 | M57: 0 | N57: 0 | O57: 0 | P57: 0 | Q57: 0 | R57: 0 | S57: 0 | T57: 0 | U57: 0 | V57: 0 | W57: 0 | X57: 0 | Y57: 0 | Z57: 0 | AA57: 0 | AB57: 0 | AC57: 0 | AD57: 0 | AE57: 0 | AF57: 0 | AG57: 0 | AH57: 0 | AI57: 0 | AJ57: 0 | AK57: 0 | AL57: 0 | AM57: 0 | AN57: 0 | AO57: 0 | AP57: 0 | AQ57: 0 | AR57: 0 | AS57: 0 | AT57: 0 | AV57: =IF('Courbes de Production PV'!$C$4="Saisie Manuelle",'Courbes de Production PV'!F57*Données!$G$37,HLOOKUP('Courbes de Production PV'!$C$4&'Courbes de Production PV'!$C$5,'Courbes de Production PV'!$G$6:$AT$8768,'Compensation PV'!A79+2,FALSE)*Données!$G$37) -> 0 | AW57: 0
C58: 1 | D58: 3 | E58: 1 | G58: 0 | H58: 0 | I58: 0 | J58: 0 | K58: 0 | L58: 0 | M58: 0 | N58: 0 | O58: 0 | P58: 0 | Q58: 0 | R58: 0 | S58: 0 | T58: 0 | U58: 0 | V58: 0 | W58: 0 | X58: 0 | Y58: 0 | Z58: 0 | AA58: 0 | AB58: 0 | AC58: 0 | AD58: 0 | AE58: 0 | AF58: 0 | AG58: 0 | AH58: 0 | AI58: 0 | AJ58: 0 | AK58: 0 | AL58: 0 | AM58: 0 | AN58: 0 | AO58: 0 | AP58: 0 | AQ58: 0 | AR58: 0 | AS58: 0 | AT58: 0 | AV58: =IF('Courbes de Production PV'!$C$4="Saisie Manuelle",'Courbes de Production PV'!F58*Données!$G$37,HLOOKUP('Courbes de Production PV'!$C$4&'Courbes de Production PV'!$C$5,'Courbes de Production PV'!$G$6:$AT$8768,'Compensation PV'!A80+2,FALSE)*Données!$G$37) -> 0 | AW58: 0
C59: 1 | D59: 3 | E59: 2 | G59: 0 | H59: 0 | I59: 0 | J59: 0 | K59: 0 | L59: 0 | M59: 0 | N59: 0 | O59: 0 | P59: 0 | Q59: 0 | R59: 0 | S59: 0 | T59: 0 | U59: 0 | V59: 0 | W59: 0 | X59: 0 | Y59: 0 | Z59: 0 | AA59: 0 | AB59: 0 | AC59: 0 | AD59: 0 | AE59: 0 | AF59: 0 | AG59: 0 | AH59: 0 | AI59: 0 | AJ59: 0 | AK59: 0 | AL59: 0 | AM59: 0 | AN59: 0 | AO59: 0 | AP59: 0 | AQ59: 0 | AR59: 0 | AS59: 0 | AT59: 0 | AV59: =IF('Courbes de Production PV'!$C$4="Saisie Manuelle",'Courbes de Production PV'!F59*Données!$G$37,HLOOKUP('Courbes de Production PV'!$C$4&'Courbes de Production PV'!$C$5,'Courbes de Production PV'!$G$6:$AT$8768,'Compensation PV'!A81+2,FALSE)*Données!$G$37) -> 0 | AW59: 0
C60: 1 | D60: 3 | E60: 3 | G60: 0 | H60: 0 | I60: 0 | J60: 0 | K60: 0 | L60: 0 | M60: 0 | N60: 0 | O60: 0 | P60: 0 | Q60: 0 | R60: 0 | S60: 0 | T60: 0 | U60: 0 | V60: 0 | W60: 0 | X60: 0 | Y60: 0 | Z60: 0 | AA60: 0 | AB60: 0 | AC60: 0 | AD60: 0 | AE60: 0 | AF60: 0 | AG60: 0 | AH60: 0 | AI60: 0 | AJ60: 0 | AK60: 0 | AL60: 0 | AM60: 0 | AN60: 0 | AO60: 0 | AP60: 0 | AQ60: 0 | AR60: 0 | AS60: 0 | AT60: 0 | AV60: =IF('Courbes de Production PV'!$C$4="Saisie Manuelle",'Courbes de Production PV'!F60*Données!$G$37,HLOOKUP('Courbes de Production PV'!$C$4&'Courbes de Production PV'!$C$5,'Courbes de Production PV'!$G$6:$AT$8768,'Compensation PV'!A82+2,FALSE)*Données!$G$37) -> 0 | AW60: 0
C61: 1 | D61: 3 | E61: 4 | G61: 0 | H61: 0 | I61: 0 | J61: 0 | K61: 0 | L61: 0 | M61: 0 | N61: 0 | O61: 0 | P61: 0 | Q61: 0 | R61: 0 | S61: 0 | T61: 0 | U61: 0 | V61: 0 | W61: 0 | X61: 0 | Y61: 0 | Z61: 0 | AA61: 0 | AB61: 0 | AC61: 0 | AD61: 0 | AE61: 0 | AF61: 0 | AG61: 0 | AH61: 0 | AI61: 0 | AJ61: 0 | AK61: 0 | AL61: 0 | AM61: 0 | AN61: 0 | AO61: 0 | AP61: 0 | AQ61: 0 | AR61: 0 | AS61: 0 | AT61: 0 | AV61: =IF('Courbes de Production PV'!$C$4="Saisie Manuelle",'Courbes de Production PV'!F61*Données!$G$37,HLOOKUP('Courbes de Production PV'!$C$4&'Courbes de Production PV'!$C$5,'Courbes de Production PV'!$G$6:$AT$8768,'Compensation PV'!A83+2,FALSE)*Données!$G$37) -> 0 | AW61: 0
C62: 1 | D62: 3 | E62: 5 | G62: 0 | H62: 0 | I62: 0 | J62: 0 | K62: 0 | L62: 0 | M62: 0 | N62: 0 | O62: 0 | P62: 0 | Q62: 0 | R62: 0 | S62: 0 | T62: 0 | U62: 0 | V62: 0 | W62: 0 | X62: 0 | Y62: 0 | Z62: 0 | AA62: 0 | AB62: 0 | AC62: 0 | AD62: 0 | AE62: 0 | AF62: 0 | AG62: 0 | AH62: 0 | AI62: 0 | AJ62: 0 | AK62: 0 | AL62: 0 | AM62: 0 | AN62: 0 | AO62: 0 | AP62: 0 | AQ62: 0 | AR62: 0 | AS62: 0 | AT62: 0 | AV62: =IF('Courbes de Production PV'!$C$4="Saisie Manuelle",'Courbes de Production PV'!F62*Données!$G$37,HLOOKUP('Courbes de Production PV'!$C$4&'Courbes de Production PV'!$C$5,'Courbes de Production PV'!$G$6:$AT$8768,'Compensation PV'!A84+2,FALSE)*Données!$G$37) -> 0 | AW62: 0
C63: 1 | D63: 3 | E63: 6 | G63: 0 | H63: 0 | I63: 0 | J63: 0 | K63: 0 | L63: 0 | M63: 0 | N63: 0 | O63: 0 | P63: 0 | Q63: 0 | R63: 0 | S63: 0 | T63: 0 | U63: 0 | V63: 0 | W63: 0 | X63: 0 | Y63: 0 | Z63: 0 | AA63: 0 | AB63: 0 | AC63: 0 | AD63: 0 | AE63: 0 | AF63: 0 | AG63: 0 | AH63: 0 | AI63: 0 | AJ63: 0 | AK63: 0 | AL63: 0 | AM63: 0 | AN63: 0 | AO63: 0 | AP63: 0 | AQ63: 0 | AR63: 0 | AS63: 0 | AT63: 0 | AV63: =IF('Courbes de Production PV'!$C$4="Saisie Manuelle",'Courbes de Production PV'!F63*Données!$G$37,HLOOKUP('Courbes de Production PV'!$C$4&'Courbes de Production PV'!$C$5,'Courbes de Production PV'!$G$6:$AT$8768,'Compensation PV'!A85+2,FALSE)*Données!$G$37) -> 0 | AW63: 0
C64: 1 | D64: 3 | E64: 7 | G64: 0 | H64: 0 | I64: 0 | J64: 0 | K64: 0 | L64: 0 | M64: 0 | N64: 0 | O64: 0 | P64: 0 | Q64: 0 | R64: 0 | S64: 0 | T64: 0 | U64: 0 | V64: 0 | W64: 0 | X64: 0 | Y64: 0 | Z64: 0 | AA64: 0 | AB64: 0 | AC64: 0 | AD64: 0 | AE64: 0 | AF64: 0 | AG64: 0 | AH64: 0 | AI64: 0 | AJ64: 0 | AK64: 0 | AL64: 0 | AM64: 0 | AN64: 0 | AO64: 0 | AP64: 0 | AQ64: 0 | AR64: 0 | AS64: 0 | AT64: 0 | AV64: =IF('Courbes de Production PV'!$C$4="Saisie Manuelle",'Courbes de Production PV'!F64*Données!$G$37,HLOOKUP('Courbes de Production PV'!$C$4&'Courbes de Production PV'!$C$5,'Courbes de Production PV'!$G$6:$AT$8768,'Compensation PV'!A86+2,FALSE)*Données!$G$37) -> 0 | AW64: 0
C65: 1 | D65: 3 | E65: 8 | G65: 0.0579414 | H65: 0.129026 | I65: 0.099309 | J65: 0.0444763 | K65: 0.0616935 | L65: 0.148338 | M65: 0.111646 | N65: 0.0453475 | O65: 0.0574691 | P65: 0.127227 | Q65: 0.0972407 | R65: 0.0435112 | S65: 0.0651335 | T65: 0.148739 | U65: 0.114872 | V65: 0.0496449 | W65: 0.0620387 | X65: 0.15045 | Y65: 0.114375 | Z65: 0.0466676 | AA65: 0.0629095 | AB65: 0.150737 | AC65: 0.115495 | AD65: 0.0479594 | AE65: 0.0642685 | AF65: 0.150496 | AG65: 0.115689 | AH65: 0.0489118 | AI65: 0.0651962 | AJ65: 0.145437 | AK65: 0.112465 | AL65: 0.0495732 | AM65: 0.0611 | AN65: 0.147401 | AO65: 0.110376 | AP65: 0.0444268 | AQ65: 0.0586072 | AR65: 0.12718 | AS65: 0.0986644 | AT65: 0.0453957 | AV65: =IF('Courbes de Production PV'!$C$4="Saisie Manuelle",'Courbes de Production PV'!F65*Données!$G$37,HLOOKUP('Courbes de Production PV'!$C$4&'Courbes de Production PV'!$C$5,'Courbes de Production PV'!$G$6:$AT$8768,'Compensation PV'!A87+2,FALSE)*Données!$G$37) -> 9.86644 | AW65: 9.86644
C66: 1 | D66: 3 | E66: 9 | G66: 0.167154 | H66: 0.361731 | I66: 0.311773 | J66: 0.16397 | K66: 0.196473 | L66: 0.417742 | M66: 0.35647 | N66: 0.1842 | O66: 0.163373 | P66: 0.350679 | Q66: 0.300082 | R66: 0.15668 | S66: 0.211916 | T66: 0.432105 | U66: 0.375261 | V66: 0.204804 | W66: 0.198388 | X66: 0.425871 | Y66: 0.367127 | Z66: 0.192284 | AA66: 0.201987 | AB66: 0.42996 | AC66: 0.372763 | AD66: 0.198216 | AE66: 0.208442 | AF66: 0.434363 | AG66: 0.376721 | AH66: 0.202695 | AI66: 0.210082 | AJ66: 0.421492 | AK66: 0.365274 | AL66: 0.200619 | AM66: 0.194936 | AN66: 0.4142 | AO66: 0.352016 | AP66: 0.180462 | AQ66: 0.170133 | AR66: 0.36276 | AS66: 0.313715 | AT66: 0.167338 | AV66: =IF('Courbes de Production PV'!$C$4="Saisie Manuelle",'Courbes de Production PV'!F66*Données!$G$37,HLOOKUP('Courbes de Production PV'!$C$4&'Courbes de Production PV'!$C$5,'Courbes de Production PV'!$G$6:$AT$8768,'Compensation PV'!A88+2,FALSE)*Données!$G$37) -> 31.3715 | AW66: 31.3715
C67: 1 | D67: 3 | E67: 10 | G67: 0.267609 | H67: 0.469542 | I67: 0.451088 | J67: 0.311325 | K67: 0.319888 | L67: 0.550234 | M67: 0.523719 | N67: 0.360805 | O67: 0.262199 | P67: 0.457007 | Q67: 0.435988 | R67: 0.299295 | S67: 0.337374 | T67: 0.564456 | U67: 0.54407 | V67: 0.385639 | W67: 0.320845 | X67: 0.556665 | Y67: 0.534915 | Z67: 0.37152 | AA67: 0.324664 | AB67: 0.56053 | AC67: 0.541008 | AD67: 0.378704 | AE67: 0.333869 | AF67: 0.567376 | AG67: 0.547039 | AH67: 0.38512 | AI67: 0.333753 | AJ67: 0.552362 | AK67: 0.530791 | AL67: 0.376865 | AM67: 0.318079 | AN67: 0.546029 | AO67: 0.517885 | AP67: 0.355432 | AQ67: 0.271026 | AR67: 0.470298 | AS67: 0.452705 | AT67: 0.314798 | AV67: =IF('Courbes de Production PV'!$C$4="Saisie Manuelle",'Courbes de Production PV'!F67*Données!$G$37,HLOOKUP('Courbes de Production PV'!$C$4&'Courbes de Production PV'!$C$5,'Courbes de Production PV'!$G$6:$AT$8768,'Compensation PV'!A89+2,FALSE)*Données!$G$37) -> 45.2705 | AW67: 45.2705
C68: 1 | D68: 3 | E68: 11 | G68: 0.321955 | H68: 0.475664 | I68: 0.497335 | J68: 0.404929 | K68: 0.377224 | L68: 0.548044 | M68: 0.567262 | N68: 0.460766 | O68: 0.318138 | P68: 0.467362 | Q68: 0.485153 | R68: 0.393595 | S68: 0.388446 | T68: 0.553867 | U68: 0.579442 | V68: 0.47867 | W68: 0.375254 | X68: 0.549681 | Y68: 0.574515 | Z68: 0.469021 | AA68: 0.377499 | AB68: 0.551303 | AC68: 0.578537 | AD68: 0.474522 | AE68: 0.386443 | AF68: 0.557619 | AG68: 0.584047 | AH68: 0.48059 | AI68: 0.385449 | AJ68: 0.544579 | AK68: 0.567667 | AL68: 0.469327 | AM68: 0.375135 | AN68: 0.54393 | AO68: 0.561029 | AP68: 0.454689 | AQ68: 0.324357 | AR68: 0.475653 | AS68: 0.497954 | AT68: 0.407118 | AV68: =IF('Courbes de Production PV'!$C$4="Saisie Manuelle",'Courbes de Production PV'!F68*Données!$G$37,HLOOKUP('Courbes de Production PV'!$C$4&'Courbes de Production PV'!$C$5,'Courbes de Production PV'!$G$6:$AT$8768,'Compensation PV'!A90+2,FALSE)*Données!$G$37) -> 49.7954 | AW68: 49.7954
C69: 1 | D69: 3 | E69: 12 | G69: 0.311263 | H69: 0.405707 | I69: 0.457495 | J69: 0.412382 | K69: 0.362086 | L69: 0.474917 | M69: 0.531134 | N69: 0.476625 | O69: 0.309478 | P69: 0.401064 | Q69: 0.448315 | R69: 0.402824 | S69: 0.367513 | T69: 0.474356 | U69: 0.53652 | V69: 0.487681 | W69: 0.357645 | X69: 0.472143 | Y69: 0.534114 | Z69: 0.481566 | AA69: 0.358423 | AB69: 0.471901 | AC69: 0.536232 | AD69: 0.485264 | AE69: 0.366466 | AF69: 0.477721 | AG69: 0.541367 | AH69: 0.490862 | AI69: 0.365815 | AJ69: 0.468609 | AK69: 0.52753 | AL69: 0.479509 | AM69: 0.360143 | AN69: 0.471648 | AO69: 0.525371 | AP69: 0.470556 | AQ69: 0.312773 | AR69: 0.404988 | AS69: 0.457094 | AT69: 0.413251 | AV69: =IF('Courbes de Production PV'!$C$4="Saisie Manuelle",'Courbes de Production PV'!F69*Données!$G$37,HLOOKUP('Courbes de Production PV'!$C$4&'Courbes de Production PV'!$C$5,'Courbes de Production PV'!$G$6:$AT$8768,'Compensation PV'!A91+2,FALSE)*Données!$G$37) -> 45.7094 | AW69: 45.7094
C70: 1 | D70: 3 | E70: 13 | G70: 0.270427 | H70: 0.32325 | I70: 0.39839 | J70: 0.388094 | K70: 0.314209 | L70: 0.378475 | M70: 0.462958 | N70: 0.449617 | O70: 0.270426 | P70: 0.322034 | Q70: 0.392047 | R70: 0.380354 | S70: 0.315553 | T70: 0.373775 | U70: 0.463887 | V70: 0.455805 | W70: 0.3081 | X70: 0.37265 | Y70: 0.462975 | Z70: 0.452071 | AA70: 0.307734 | AB70: 0.370993 | AC70: 0.463646 | AD70: 0.454333 | AE70: 0.314737 | AF70: 0.376126 | AG70: 0.468197 | AH70: 0.459296 | AI70: 0.315135 | AJ70: 0.370989 | AK70: 0.457265 | AL70: 0.448947 | AM70: 0.313009 | AN70: 0.376723 | AO70: 0.458438 | AP70: 0.44432 | AQ70: 0.271337 | AR70: 0.322347 | AS70: 0.397619 | AT70: 0.388271 | AV70: =IF('Courbes de Production PV'!$C$4="Saisie Manuelle",'Courbes de Production PV'!F70*Données!$G$37,HLOOKUP('Courbes de Production PV'!$C$4&'Courbes de Production PV'!$C$5,'Courbes de Production PV'!$G$6:$AT$8768,'Compensation PV'!A92+2,FALSE)*Données!$G$37) -> 39.7619 | AW70: 39.7619
C71: 1 | D71: 3 | E71: 14 | G71: 0.200957 | H71: 0.210256 | I71: 0.280957 | J71: 0.294027 | K71: 0.225537 | L71: 0.239484 | M71: 0.320082 | N71: 0.334432 | O71: 0.202655 | P71: 0.211957 | Q71: 0.277843 | R71: 0.289104 | S71: 0.22315 | T71: 0.232774 | U71: 0.317633 | V71: 0.335771 | W71: 0.219644 | X71: 0.233158 | Y71: 0.318967 | Z71: 0.335646 | AA71: 0.218588 | AB71: 0.231025 | AC71: 0.318757 | AD71: 0.336719 | AE71: 0.222893 | AF71: 0.234085 | AG71: 0.321008 | AH71: 0.339124 | AI71: 0.224243 | AJ71: 0.233058 | AK71: 0.314293 | AL71: 0.331538 | AM71: 0.224683 | AN71: 0.238736 | AO71: 0.316913 | AP71: 0.33032 | AQ71: 0.201156 | AR71: 0.209366 | AS71: 0.279921 | AT71: 0.293492 | AV71: =IF('Courbes de Production PV'!$C$4="Saisie Manuelle",'Courbes de Production PV'!F71*Données!$G$37,HLOOKUP('Courbes de Production PV'!$C$4&'Courbes de Production PV'!$C$5,'Courbes de Production PV'!$G$6:$AT$8768,'Compensation PV'!A93+2,FALSE)*Données!$G$37) -> 27.9921 | AW71: 27.9921
C72: 1 | D72: 3 | E72: 15 | G72: 0.109733 | H72: 0.100059 | I72: 0.143493 | J72: 0.160079 | K72: 0.118799 | L72: 0.110208 | M72: 0.160085 | N72: 0.178782 | O72: 0.111397 | P72: 0.102179 | Q72: 0.141668 | R72: 0.156347 | S72: 0.116033 | T72: 0.105329 | U72: 0.157967 | V72: 0.178982 | W72: 0.115092 | X72: 0.105763 | Y72: 0.159785 | Z72: 0.180668 | AA72: 0.114231 | AB72: 0.104247 | AC72: 0.159741 | AD72: 0.181609 | AE72: 0.116091 | AF72: 0.105706 | AG72: 0.160067 | AH72: 0.181592 | AI72: 0.117311 | AJ72: 0.106723 | AK72: 0.156703 | AL72: 0.176594 | AM72: 0.118245 | AN72: 0.11002 | AO72: 0.15818 | AP72: 0.176015 | AQ72: 0.109637 | AR72: 0.0995664 | AS72: 0.142755 | AT72: 0.159466 | AV72: =IF('Courbes de Production PV'!$C$4="Saisie Manuelle",'Courbes de Production PV'!F72*Données!$G$37,HLOOKUP('Courbes de Production PV'!$C$4&'Courbes de Production PV'!$C$5,'Courbes de Production PV'!$G$6:$AT$8768,'Compensation PV'!A94+2,FALSE)*Données!$G$37) -> 14.2755 | AW72: 14.2755
C73: 1 | D73: 3 | E73: 16 | G73: 0.0318661 | H73: 0.0263327 | I73: 0.0387633 | J73: 0.0459506 | K73: 0.0330212 | L73: 0.0280746 | M73: 0.0371628 | N73: 0.0423144 | O73: 0.0323507 | P73: 0.0274278 | Q73: 0.0370051 | R73: 0.0424171 | S73: 0.0321202 | T73: 0.0267669 | U73: 0.0373643 | V73: 0.0437383 | W73: 0.0321396 | X73: 0.0267059 | Y73: 0.0383824 | Z73: 0.0452636 | AA73: 0.0319324 | AB73: 0.0261907 | AC73: 0.0391014 | AD73: 0.0468384 | AE73: 0.0322445 | AF73: 0.0267217 | AG73: 0.0383028 | AH73: 0.045252 | AI73: 0.032527 | AJ73: 0.027388 | AK73: 0.0367228 | AL73: 0.0422696 | AM73: 0.0327634 | AN73: 0.0279739 | AO73: 0.0364167 | AP73: 0.0411271 | AQ73: 0.0318003 | AR73: 0.0262294 | AS73: 0.0385689 | AT73: 0.0457689 | AV73: =IF('Courbes de Production PV'!$C$4="Saisie Manuelle",'Courbes de Production PV'!F73*Données!$G$37,HLOOKUP('Courbes de Production PV'!$C$4&'Courbes de Production PV'!$C$5,'Courbes de Production PV'!$G$6:$AT$8768,'Compensation PV'!A95+2,FALSE)*Données!$G$37) -> 3.85689 | AW73: 3.85689
C74: 1 | D74: 3 | E74: 17 | G74: 0 | H74: 0 | I74: 0 | J74: 0 | K74: 0 | L74: 0 | M74: 0 | N74: 0 | O74: 0 | P74: 0 | Q74: 0 | R74: 0 | S74: 0 | T74: 0 | U74: 0 | V74: 0 | W74: 0 | X74: 0 | Y74: 0 | Z74: 0 | AA74: 0 | AB74: 0 | AC74: 0 | AD74: 0 | AE74: 0 | AF74: 0 | AG74: 0 | AH74: 0 | AI74: 0 | AJ74: 0 | AK74: 0 | AL74: 0 | AM74: 0 | AN74: 0 | AO74: 0 | AP74: 0 | AQ74: 0 | AR74: 0 | AS74: 0 | AT74: 0 | AV74: =IF('Courbes de Production PV'!$C$4="Saisie Manuelle",'Courbes de Production PV'!F74*Données!$G$37,HLOOKUP('Courbes de Production PV'!$C$4&'Courbes de Production PV'!$C$5,'Courbes de Production PV'!$G$6:$AT$8768,'Compensation PV'!A96+2,FALSE)*Données!$G$37) -> 0 | AW74: =AV74*$AW$6 -> 0
C75: 1 | D75: 3 | E75: 18 | G75: 0 | H75: 0 | I75: 0 | J75: 0 | K75: 0 | L75: 0 | M75: 0 | N75: 0 | O75: 0 | P75: 0 | Q75: 0 | R75: 0 | S75: 0 | T75: 0 | U75: 0 | V75: 0 | W75: 0 | X75: 0 | Y75: 0 | Z75: 0 | AA75: 0 | AB75: 0 | AC75: 0 | AD75: 0 | AE75: 0 | AF75: 0 | AG75: 0 | AH75: 0 | AI75: 0 | AJ75: 0 | AK75: 0 | AL75: 0 | AM75: 0 | AN75: 0 | AO75: 0 | AP75: 0 | AQ75: 0 | AR75: 0 | AS75: 0 | AT75: 0 | AV75: =IF('Courbes de Production PV'!$C$4="Saisie Manuelle",'Courbes de Production PV'!F75*Données!$G$37,HLOOKUP('Courbes de Production PV'!$C$4&'Courbes de Production PV'!$C$5,'Courbes de Production PV'!$G$6:$AT$8768,'Compensation PV'!A97+2,FALSE)*Données!$G$37) -> 0 | AW75: 0
C76: 1 | D76: 3 | E76: 19 | G76: 0 | H76: 0 | I76: 0 | J76: 0 | K76: 0 | L76: 0 | M76: 0 | N76: 0 | O76: 0 | P76: 0 | Q76: 0 | R76: 0 | S76: 0 | T76: 0 | U76: 0 | V76: 0 | W76: 0 | X76: 0 | Y76: 0 | Z76: 0 | AA76: 0 | AB76: 0 | AC76: 0 | AD76: 0 | AE76: 0 | AF76: 0 | AG76: 0 | AH76: 0 | AI76: 0 | AJ76: 0 | AK76: 0 | AL76: 0 | AM76: 0 | AN76: 0 | AO76: 0 | AP76: 0 | AQ76: 0 | AR76: 0 | AS76: 0 | AT76: 0 | AV76: =IF('Courbes de Production PV'!$C$4="Saisie Manuelle",'Courbes de Production PV'!F76*Données!$G$37,HLOOKUP('Courbes de Production PV'!$C$4&'Courbes de Production PV'!$C$5,'Courbes de Production PV'!$G$6:$AT$8768,'Compensation PV'!A98+2,FALSE)*Données!$G$37) -> 0 | AW76: 0
C77: 1 | D77: 3 | E77: 20 | G77: 0 | H77: 0 | I77: 0 | J77: 0 | K77: 0 | L77: 0 | M77: 0 | N77: 0 | O77: 0 | P77: 0 | Q77: 0 | R77: 0 | S77: 0 | T77: 0 | U77: 0 | V77: 0 | W77: 0 | X77: 0 | Y77: 0 | Z77: 0 | AA77: 0 | AB77: 0 | AC77: 0 | AD77: 0 | AE77: 0 | AF77: 0 | AG77: 0 | AH77: 0 | AI77: 0 | AJ77: 0 | AK77: 0 | AL77: 0 | AM77: 0 | AN77: 0 | AO77: 0 | AP77: 0 | AQ77: 0 | AR77: 0 | AS77: 0 | AT77: 0 | AV77: =IF('Courbes de Production PV'!$C$4="Saisie Manuelle",'Courbes de Production PV'!F77*Données!$G$37,HLOOKUP('Courbes de Production PV'!$C$4&'Courbes de Production PV'!$C$5,'Courbes de Production PV'!$G$6:$AT$8768,'Compensation PV'!A99+2,FALSE)*Données!$G$37) -> 0 | AW77: 0
C78: 1 | D78: 3 | E78: 21 | G78: 0 | H78: 0 | I78: 0 | J78: 0 | K78: 0 | L78: 0 | M78: 0 | N78: 0 | O78: 0 | P78: 0 | Q78: 0 | R78: 0 | S78: 0 | T78: 0 | U78: 0 | V78: 0 | W78: 0 | X78: 0 | Y78: 0 | Z78: 0 | AA78: 0 | AB78: 0 | AC78: 0 | AD78: 0 | AE78: 0 | AF78: 0 | AG78: 0 | AH78: 0 | AI78: 0 | AJ78: 0 | AK78: 0 | AL78: 0 | AM78: 0 | AN78: 0 | AO78: 0 | AP78: 0 | AQ78: 0 | AR78: 0 | AS78: 0 | AT78: 0 | AV78: =IF('Courbes de Production PV'!$C$4="Saisie Manuelle",'Courbes de Production PV'!F78*Données!$G$37,HLOOKUP('Courbes de Production PV'!$C$4&'Courbes de Production PV'!$C$5,'Courbes de Production PV'!$G$6:$AT$8768,'Compensation PV'!A100+2,FALSE)*Données!$G$37) -> 0 | AW78: 0
C79: 1 | D79: 3 | E79: 22 | G79: 0 | H79: 0 | I79: 0 | J79: 0 | K79: 0 | L79: 0 | M79: 0 | N79: 0 | O79: 0 | P79: 0 | Q79: 0 | R79: 0 | S79: 0 | T79: 0 | U79: 0 | V79: 0 | W79: 0 | X79: 0 | Y79: 0 | Z79: 0 | AA79: 0 | AB79: 0 | AC79: 0 | AD79: 0 | AE79: 0 | AF79: 0 | AG79: 0 | AH79: 0 | AI79: 0 | AJ79: 0 | AK79: 0 | AL79: 0 | AM79: 0 | AN79: 0 | AO79: 0 | AP79: 0 | AQ79: 0 | AR79: 0 | AS79: 0 | AT79: 0 | AV79: =IF('Courbes de Production PV'!$C$4="Saisie Manuelle",'Courbes de Production PV'!F79*Données!$G$37,HLOOKUP('Courbes de Production PV'!$C$4&'Courbes de Production PV'!$C$5,'Courbes de Production PV'!$G$6:$AT$8768,'Compensation PV'!A101+2,FALSE)*Données!$G$37) -> 0 | AW79: 0
C80: 1 | D80: 3 | E80: 23 | G80: 0 | H80: 0 | I80: 0 | J80: 0 | K80: 0 | L80: 0 | M80: 0 | N80: 0 | O80: 0 | P80: 0 | Q80: 0 | R80: 0 | S80: 0 | T80: 0 | U80: 0 | V80: 0 | W80: 0 | X80: 0 | Y80: 0 | Z80: 0 | AA80: 0 | AB80: 0 | AC80: 0 | AD80: 0 | AE80: 0 | AF80: 0 | AG80: 0 | AH80: 0 | AI80: 0 | AJ80: 0 | AK80: 0 | AL80: 0 | AM80: 0 | AN80: 0 | AO80: 0 | AP80: 0 | AQ80: 0 | AR80: 0 | AS80: 0 | AT80: 0 | AV80: =IF('Courbes de Production PV'!$C$4="Saisie Manuelle",'Courbes de Production PV'!F80*Données!$G$37,HLOOKUP('Courbes de Production PV'!$C$4&'Courbes de Production PV'!$C$5,'Courbes de Production PV'!$G$6:$AT$8768,'Compensation PV'!A102+2,FALSE)*Données!$G$37) -> 0 | AW80: 0
C81: 1 | D81: 4 | E81: 0 | G81: 0 | H81: 0 | I81: 0 | J81: 0 | K81: 0 | L81: 0 | M81: 0 | N81: 0 | O81: 0 | P81: 0 | Q81: 0 | R81: 0 | S81: 0 | T81: 0 | U81: 0 | V81: 0 | W81: 0 | X81: 0 | Y81: 0 | Z81: 0 | AA81: 0 | AB81: 0 | AC81: 0 | AD81: 0 | AE81: 0 | AF81: 0 | AG81: 0 | AH81: 0 | AI81: 0 | AJ81: 0 | AK81: 0 | AL81: 0 | AM81: 0 | AN81: 0 | AO81: 0 | AP81: 0 | AQ81: 0 | AR81: 0 | AS81: 0 | AT81: 0 | AV81: =IF('Courbes de Production PV'!$C$4="Saisie Manuelle",'Courbes de Production PV'!F81*Données!$G$37,HLOOKUP('Courbes de Production PV'!$C$4&'Courbes de Production PV'!$C$5,'Courbes de Production PV'!$G$6:$AT$8768,'Compensation PV'!A103+2,FALSE)*Données!$G$37) -> 0 | AW81: 0
C82: 1 | D82: 4 | E82: 1 | G82: 0 | H82: 0 | I82: 0 | J82: 0 | K82: 0 | L82: 0 | M82: 0 | N82: 0 | O82: 0 | P82: 0 | Q82: 0 | R82: 0 | S82: 0 | T82: 0 | U82: 0 | V82: 0 | W82: 0 | X82: 0 | Y82: 0 | Z82: 0 | AA82: 0 | AB82: 0 | AC82: 0 | AD82: 0 | AE82: 0 | AF82: 0 | AG82: 0 | AH82: 0 | AI82: 0 | AJ82: 0 | AK82: 0 | AL82: 0 | AM82: 0 | AN82: 0 | AO82: 0 | AP82: 0 | AQ82: 0 | AR82: 0 | AS82: 0 | AT82: 0 | AV82: =IF('Courbes de Production PV'!$C$4="Saisie Manuelle",'Courbes de Production PV'!F82*Données!$G$37,HLOOKUP('Courbes de Production PV'!$C$4&'Courbes de Production PV'!$C$5,'Courbes de Production PV'!$G$6:$AT$8768,'Compensation PV'!A104+2,FALSE)*Données!$G$37) -> 0 | AW82: 0
C83: 1 | D83: 4 | E83: 2 | G83: 0 | H83: 0 | I83: 0 | J83: 0 | K83: 0 | L83: 0 | M83: 0 | N83: 0 | O83: 0 | P83: 0 | Q83: 0 | R83: 0 | S83: 0 | T83: 0 | U83: 0 | V83: 0 | W83: 0 | X83: 0 | Y83: 0 | Z83: 0 | AA83: 0 | AB83: 0 | AC83: 0 | AD83: 0 | AE83: 0 | AF83: 0 | AG83: 0 | AH83: 0 | AI83: 0 | AJ83: 0 | AK83: 0 | AL83: 0 | AM83: 0 | AN83: 0 | AO83: 0 | AP83: 0 | AQ83: 0 | AR83: 0 | AS83: 0 | AT83: 0 | AV83: =IF('Courbes de Production PV'!$C$4="Saisie Manuelle",'Courbes de Production PV'!F83*Données!$G$37,HLOOKUP('Courbes de Production PV'!$C$4&'Courbes de Production PV'!$C$5,'Courbes de Production PV'!$G$6:$AT$8768,'Compensation PV'!A105+2,FALSE)*Données!$G$37) -> 0 | AW83: 0
C84: 1 | D84: 4 | E84: 3 | G84: 0 | H84: 0 | I84: 0 | J84: 0 | K84: 0 | L84: 0 | M84: 0 | N84: 0 | O84: 0 | P84: 0 | Q84: 0 | R84: 0 | S84: 0 | T84: 0 | U84: 0 | V84: 0 | W84: 0 | X84: 0 | Y84: 0 | Z84: 0 | AA84: 0 | AB84: 0 | AC84: 0 | AD84: 0 | AE84: 0 | AF84: 0 | AG84: 0 | AH84: 0 | AI84: 0 | AJ84: 0 | AK84: 0 | AL84: 0 | AM84: 0 | AN84: 0 | AO84: 0 | AP84: 0 | AQ84: 0 | AR84: 0 | AS84: 0 | AT84: 0 | AV84: =IF('Courbes de Production PV'!$C$4="Saisie Manuelle",'Courbes de Production PV'!F84*Données!$G$37,HLOOKUP('Courbes de Production PV'!$C$4&'Courbes de Production PV'!$C$5,'Courbes de Production PV'!$G$6:$AT$8768,'Compensation PV'!A106+2,FALSE)*Données!$G$37) -> 0 | AW84: 0
C85: 1 | D85: 4 | E85: 4 | G85: 0 | H85: 0 | I85: 0 | J85: 0 | K85: 0 | L85: 0 | M85: 0 | N85: 0 | O85: 0 | P85: 0 | Q85: 0 | R85: 0 | S85: 0 | T85: 0 | U85: 0 | V85: 0 | W85: 0 | X85: 0 | Y85: 0 | Z85: 0 | AA85: 0 | AB85: 0 | AC85: 0 | AD85: 0 | AE85: 0 | AF85: 0 | AG85: 0 | AH85: 0 | AI85: 0 | AJ85: 0 | AK85: 0 | AL85: 0 | AM85: 0 | AN85: 0 | AO85: 0 | AP85: 0 | AQ85: 0 | AR85: 0 | AS85: 0 | AT85: 0 | AV85: =IF('Courbes de Production PV'!$C$4="Saisie Manuelle",'Courbes de Production PV'!F85*Données!$G$37,HLOOKUP('Courbes de Production PV'!$C$4&'Courbes de Production PV'!$C$5,'Courbes de Production PV'!$G$6:$AT$8768,'Compensation PV'!A107+2,FALSE)*Données!$G$37) -> 0 | AW85: 0
C86: 1 | D86: 4 | E86: 5 | G86: 0 | H86: 0 | I86: 0 | J86: 0 | K86: 0 | L86: 0 | M86: 0 | N86: 0 | O86: 0 | P86: 0 | Q86: 0 | R86: 0 | S86: 0 | T86: 0 | U86: 0 | V86: 0 | W86: 0 | X86: 0 | Y86: 0 | Z86: 0 | AA86: 0 | AB86: 0 | AC86: 0 | AD86: 0 | AE86: 0 | AF86: 0 | AG86: 0 | AH86: 0 | AI86: 0 | AJ86: 0 | AK86: 0 | AL86: 0 | AM86: 0 | AN86: 0 | AO86: 0 | AP86: 0 | AQ86: 0 | AR86: 0 | AS86: 0 | AT86: 0 | AV86: =IF('Courbes de Production PV'!$C$4="Saisie Manuelle",'Courbes de Production PV'!F86*Données!$G$37,HLOOKUP('Courbes de Production PV'!$C$4&'Courbes de Production PV'!$C$5,'Courbes de Production PV'!$G$6:$AT$8768,'Compensation PV'!A108+2,FALSE)*Données!$G$37) -> 0 | AW86: 0
C87: 1 | D87: 4 | E87: 6 | G87: 0 | H87: 0 | I87: 0 | J87: 0 | K87: 0 | L87: 0 | M87: 0 | N87: 0 | O87: 0 | P87: 0 | Q87: 0 | R87: 0 | S87: 0 | T87: 0 | U87: 0 | V87: 0 | W87: 0 | X87: 0 | Y87: 0 | Z87: 0 | AA87: 0 | AB87: 0 | AC87: 0 | AD87: 0 | AE87: 0 | AF87: 0 | AG87: 0 | AH87: 0 | AI87: 0 | AJ87: 0 | AK87: 0 | AL87: 0 | AM87: 0 | AN87: 0 | AO87: 0 | AP87: 0 | AQ87: 0 | AR87: 0 | AS87: 0 | AT87: 0 | AV87: =IF('Courbes de Production PV'!$C$4="Saisie Manuelle",'Courbes de Production PV'!F87*Données!$G$37,HLOOKUP('Courbes de Production PV'!$C$4&'Courbes de Production PV'!$C$5,'Courbes de Production PV'!$G$6:$AT$8768,'Compensation PV'!A109+2,FALSE)*Données!$G$37) -> 0 | AW87: 0
C88: 1 | D88: 4 | E88: 7 | G88: 0 | H88: 0 | I88: 0 | J88: 0 | K88: 0 | L88: 0 | M88: 0 | N88: 0 | O88: 0 | P88: 0 | Q88: 0 | R88: 0 | S88: 0 | T88: 0 | U88: 0 | V88: 0 | W88: 0 | X88: 0 | Y88: 0 | Z88: 0 | AA88: 0 | AB88: 0 | AC88: 0 | AD88: 0 | AE88: 0 | AF88: 0 | AG88: 0 | AH88: 0 | AI88: 0 | AJ88: 0 | AK88: 0 | AL88: 0 | AM88: 0 | AN88: 0 | AO88: 0 | AP88: 0 | AQ88: 0 | AR88: 0 | AS88: 0 | AT88: 0 | AV88: =IF('Courbes de Production PV'!$C$4="Saisie Manuelle",'Courbes de Production PV'!F88*Données!$G$37,HLOOKUP('Courbes de Production PV'!$C$4&'Courbes de Production PV'!$C$5,'Courbes de Production PV'!$G$6:$AT$8768,'Compensation PV'!A110+2,FALSE)*Données!$G$37) -> 0 | AW88: 0
C89: 1 | D89: 4 | E89: 8 | G89: 0.0580777 | H89: 0.131789 | I89: 0.100829 | J89: 0.0441745 | K89: 0.0620499 | L89: 0.152003 | M89: 0.113699 | N89: 0.0450752 | O89: 0.0575931 | P89: 0.129876 | Q89: 0.0986615 | R89: 0.043209 | S89: 0.0656379 | T89: 0.152561 | U89: 0.117153 | V89: 0.0494659 | W89: 0.0623902 | X89: 0.154165 | Y89: 0.116503 | Z89: 0.046398 | AA89: 0.063305 | AB89: 0.154519 | AC89: 0.117707 | AD89: 0.0477232 | AE89: 0.0647456 | AF89: 0.154388 | AG89: 0.117996 | AH89: 0.0487194 | AI89: 0.0657191 | AJ89: 0.149153 | AK89: 0.114681 | AL89: 0.0494115 | AM89: 0.0613939 | AN89: 0.150916 | AO89: 0.112298 | AP89: 0.0441065 | AQ89: 0.0587755 | AR89: 0.129962 | AS89: 0.100225 | AT89: 0.0451126 | AV89: =IF('Courbes de Production PV'!$C$4="Saisie Manuelle",'Courbes de Production PV'!F89*Données!$G$37,HLOOKUP('Courbes de Production PV'!$C$4&'Courbes de Production PV'!$C$5,'Courbes de Production PV'!$G$6:$AT$8768,'Compensation PV'!A111+2,FALSE)*Données!$G$37) -> 10.0225 | AW89: 10.0225
C90: 1 | D90: 4 | E90: 9 | G90: 0.170663 | H90: 0.374339 | I90: 0.321415 | J90: 0.166718 | K90: 0.201345 | L90: 0.43371 | M90: 0.36858 | N90: 0.187776 | O90: 0.166563 | P90: 0.362393 | Q90: 0.308888 | R90: 0.159002 | S90: 0.217861 | T90: 0.449515 | U90: 0.388932 | V90: 0.209618 | W90: 0.203583 | X90: 0.442741 | Y90: 0.380182 | Z90: 0.196421 | AA90: 0.207417 | AB90: 0.44718 | AC90: 0.386226 | AD90: 0.202678 | AE90: 0.214138 | AF90: 0.451766 | AG90: 0.390339 | AH90: 0.207322 | AI90: 0.215796 | AJ90: 0.438003 | AK90: 0.378166 | AL90: 0.205128 | AM90: 0.199854 | AN90: 0.43019 | AO90: 0.364088 | AP90: 0.183992 | AQ90: 0.173811 | AR90: 0.375476 | AS90: 0.323507 | AT90: 0.170263 | AV90: =IF('Courbes de Production PV'!$C$4="Saisie Manuelle",'Courbes de Production PV'!F90*Données!$G$37,HLOOKUP('Courbes de Production PV'!$C$4&'Courbes de Production PV'!$C$5,'Courbes de Production PV'!$G$6:$AT$8768,'Compensation PV'!A112+2,FALSE)*Données!$G$37) -> 32.3507 | AW90: 32.3507
C91: 1 | D91: 4 | E91: 10 | G91: 0.277003 | H91: 0.499603 | I91: 0.478523 | J91: 0.324161 | K91: 0.335708 | L91: 0.592719 | M91: 0.562178 | N91: 0.38002 | O91: 0.270715 | P91: 0.485057 | Q91: 0.461214 | R91: 0.310575 | S91: 0.355768 | T91: 0.609168 | U91: 0.585472 | V91: 0.408119 | W91: 0.337093 | X91: 0.600549 | Y91: 0.575301 | Z91: 0.392307 | AA91: 0.341463 | AB91: 0.605016 | AC91: 0.582258 | AD91: 0.400399 | AE91: 0.35175 | AF91: 0.61259 | AG91: 0.588912 | AH91: 0.407501 | AI91: 0.351504 | AJ91: 0.595032 | AK91: 0.57008 | AL91: 0.398066 | AM91: 0.333823 | AN91: 0.58801 | AO91: 0.555674 | AP91: 0.374162 | AQ91: 0.280869 | AR91: 0.500529 | AS91: 0.480403 | AT91: 0.328067 | AV91: =IF('Courbes de Production PV'!$C$4="Saisie Manuelle",'Courbes de Production PV'!F91*Données!$G$37,HLOOKUP('Courbes de Production PV'!$C$4&'Courbes de Production PV'!$C$5,'Courbes de Production PV'!$G$6:$AT$8768,'Compensation PV'!A113+2,FALSE)*Données!$G$37) -> 48.0403 | AW91: 48.0403
C92: 1 | D92: 4 | E92: 11 | G92: 0.342365 | H92: 0.554494 | I92: 0.582797 | J92: 0.457907 | K92: 0.425353 | L92: 0.663964 | M92: 0.689256 | N92: 0.542665 | O92: 0.335354 | P92: 0.540381 | Q92: 0.563397 | R92: 0.44023 | S92: 0.444571 | T92: 0.67214 | U92: 0.70564 | V92: 0.568832 | W92: 0.424066 | X92: 0.668256 | Y92: 0.701253 | Z92: 0.555819 | AA92: 0.427802 | AB92: 0.671272 | AC92: 0.707572 | AD92: 0.564079 | AE92: 0.440866 | AF92: 0.676727 | AG92: 0.711395 | AH92: 0.570806 | AI92: 0.439086 | AJ92: 0.660927 | AK92: 0.691504 | AL92: 0.556237 | AM92: 0.423439 | AN92: 0.65882 | AO92: 0.681199 | AP92: 0.535026 | AQ92: 0.346254 | AR92: 0.554964 | AS92: 0.584118 | AT92: 0.461343 | AV92: =IF('Courbes de Production PV'!$C$4="Saisie Manuelle",'Courbes de Production PV'!F92*Données!$G$37,HLOOKUP('Courbes de Production PV'!$C$4&'Courbes de Production PV'!$C$5,'Courbes de Production PV'!$G$6:$AT$8768,'Compensation PV'!A114+2,FALSE)*Données!$G$37) -> 58.4118 | AW92: 58.4118
C93: 1 | D93: 4 | E93: 12 | G93: 0.364195 | H93: 0.530761 | I93: 0.614729 | J93: 0.539975 | K93: 0.45684 | L93: 0.639866 | M93: 0.727764 | N93: 0.640506 | O93: 0.358547 | P93: 0.519999 | Q93: 0.596334 | R93: 0.521211 | S93: 0.471517 | T93: 0.645769 | U93: 0.74363 | V93: 0.664902 | W93: 0.452058 | X93: 0.639041 | Y93: 0.736462 | Z93: 0.651934 | AA93: 0.454174 | AB93: 0.639831 | AC93: 0.741144 | AD93: 0.659011 | AE93: 0.468097 | AF93: 0.649974 | AG93: 0.750282 | AH93: 0.668788 | AI93: 0.466398 | AJ93: 0.632953 | AK93: 0.725183 | AL93: 0.648216 | AM93: 0.4559 | AN93: 0.636535 | AO93: 0.720464 | AP93: 0.63278 | AQ93: 0.367483 | AR93: 0.530557 | AS93: 0.615177 | AT93: 0.542406 | AV93: =IF('Courbes de Production PV'!$C$4="Saisie Manuelle",'Courbes de Production PV'!F93*Données!$G$37,HLOOKUP('Courbes de Production PV'!$C$4&'Courbes de Production PV'!$C$5,'Courbes de Production PV'!$G$6:$AT$8768,'Compensation PV'!A115+2,FALSE)*Données!$G$37) -> 61.5177 | AW93: 61.5177
C94: 1 | D94: 4 | E94: 13 | G94: 0.320769 | H94: 0.416295 | I94: 0.535444 | J94: 0.51892 | K94: 0.399602 | L94: 0.503383 | M94: 0.632613 | N94: 0.612023 | O94: 0.318804 | P94: 0.412461 | Q94: 0.523544 | R94: 0.504779 | S94: 0.405826 | T94: 0.500314 | U94: 0.638569 | V94: 0.625993 | W94: 0.391282 | X94: 0.496392 | Y94: 0.634993 | Z94: 0.618093 | AA94: 0.39115 | AB94: 0.494415 | AC94: 0.636739 | AD94: 0.622261 | AE94: 0.403086 | AF94: 0.503003 | AG94: 0.644386 | AH94: 0.630542 | AI94: 0.403477 | AJ94: 0.493686 | AK94: 0.625742 | AL94: 0.612817 | AM94: 0.399673 | AN94: 0.502277 | AO94: 0.627159 | AP94: 0.60541 | AQ94: 0.322865 | AR94: 0.415528 | AS94: 0.53506 | AT94: 0.520016 | AV94: =IF('Courbes de Production PV'!$C$4="Saisie Manuelle",'Courbes de Production PV'!F94*Données!$G$37,HLOOKUP('Courbes de Production PV'!$C$4&'Courbes de Production PV'!$C$5,'Courbes de Production PV'!$G$6:$AT$8768,'Compensation PV'!A116+2,FALSE)*Données!$G$37) -> 53.506 | AW94: 53.506
C95: 1 | D95: 4 | E95: 14 | G95: 0.239462 | H95: 0.270478 | I95: 0.402116 | J95: 0.425792 | K95: 0.292164 | L95: 0.325182 | M95: 0.471177 | N95: 0.496398 | O95: 0.241151 | P95: 0.272744 | Q95: 0.396478 | R95: 0.417038 | S95: 0.290976 | T95: 0.3159 | U95: 0.470011 | V95: 0.502034 | W95: 0.282212 | X95: 0.314254 | Y95: 0.469052 | Z95: 0.498265 | AA95: 0.280457 | AB95: 0.310485 | AC95: 0.468669 | AD95: 0.500124 | AE95: 0.289045 | AF95: 0.316914 | AG95: 0.474445 | AH95: 0.506345 | AI95: 0.291659 | AJ95: 0.315104 | AK95: 0.46257 | AL95: 0.493023 | AM95: 0.292735 | AN95: 0.325864 | AO95: 0.467647 | AP95: 0.491228 | AQ95: 0.240345 | AR95: 0.269376 | AS95: 0.401133 | AT95: 0.425804 | AV95: =IF('Courbes de Production PV'!$C$4="Saisie Manuelle",'Courbes de Production PV'!F95*Données!$G$37,HLOOKUP('Courbes de Production PV'!$C$4&'Courbes de Production PV'!$C$5,'Courbes de Production PV'!$G$6:$AT$8768,'Compensation PV'!A117+2,FALSE)*Données!$G$37) -> 40.1133 | AW95: 40.1133
C96: 1 | D96: 4 | E96: 15 | G96: 0.128358 | H96: 0.118262 | I96: 0.194996 | J96: 0.224222 | K96: 0.145466 | L96: 0.136084 | M96: 0.22548 | N96: 0.25891 | O96: 0.130714 | P96: 0.121615 | Q96: 0.192852 | R96: 0.219246 | S96: 0.141889 | T96: 0.128646 | U96: 0.222244 | V96: 0.259571 | W96: 0.139554 | X96: 0.128864 | Y96: 0.223697 | Z96: 0.260298 | AA96: 0.138116 | AB96: 0.126302 | AC96: 0.223074 | AD96: 0.261168 | AE96: 0.141368 | AF96: 0.128794 | AG96: 0.224733 | AH96: 0.26268 | AI96: 0.143606 | AJ96: 0.13057 | AK96: 0.220081 | AL96: 0.255657 | AM96: 0.145511 | AN96: 0.13668 | AO96: 0.223586 | AP96: 0.255685 | AQ96: 0.128366 | AR96: 0.117559 | AS96: 0.194051 | AT96: 0.22358 | AV96: =IF('Courbes de Production PV'!$C$4="Saisie Manuelle",'Courbes de Production PV'!F96*Données!$G$37,HLOOKUP('Courbes de Production PV'!$C$4&'Courbes de Production PV'!$C$5,'Courbes de Production PV'!$G$6:$AT$8768,'Compensation PV'!A118+2,FALSE)*Données!$G$37) -> 19.4051 | AW96: 19.4051
C97: 1 | D97: 4 | E97: 16 | G97: 0.028462 | H97: 0.0245718 | I97: 0.027422 | J97: 0.0289719 | K97: 0.0288057 | L97: 0.025522 | M97: 0.0255389 | N97: 0.0255524 | O97: 0.0287505 | P97: 0.0252307 | Q97: 0.0263862 | R97: 0.0270073 | S97: 0.0282075 | T97: 0.02475 | U97: 0.025691 | V97: 0.0262182 | W97: 0.0283532 | X97: 0.0247422 | Y97: 0.0263407 | Z97: 0.0272191 | AA97: 0.0282709 | AB97: 0.0244598 | AC97: 0.0268512 | AD97: 0.0281766 | AE97: 0.0284145 | AF97: 0.024803 | AG97: 0.0263027 | AH97: 0.0271374 | AI97: 0.0284554 | AJ97: 0.0251425 | AK97: 0.025413 | AL97: 0.0255672 | AM97: 0.028434 | AN97: 0.0251903 | AO97: 0.0251599 | AP97: 0.0251482 | AQ97: 0.0284 | AR97: 0.0245065 | AS97: 0.0273193 | AT97: 0.0288594 | AV97: =IF('Courbes de Production PV'!$C$4="Saisie Manuelle",'Courbes de Production PV'!F97*Données!$G$37,HLOOKUP('Courbes de Production PV'!$C$4&'Courbes de Production PV'!$C$5,'Courbes de Production PV'!$G$6:$AT$8768,'Compensation PV'!A119+2,FALSE)*Données!$G$37) -> 2.73193 | AW97: 2.73193
C98: 1 | D98: 4 | E98: 17 | G98: 0 | H98: 0 | I98: 0 | J98: 0 | K98: 0 | L98: 0 | M98: 0 | N98: 0 | O98: 0 | P98: 0 | Q98: 0 | R98: 0 | S98: 0 | T98: 0 | U98: 0 | V98: 0 | W98: 0 | X98: 0 | Y98: 0 | Z98: 0 | AA98: 0 | AB98: 0 | AC98: 0 | AD98: 0 | AE98: 0 | AF98: 0 | AG98: 0 | AH98: 0 | AI98: 0 | AJ98: 0 | AK98: 0 | AL98: 0 | AM98: 0 | AN98: 0 | AO98: 0 | AP98: 0 | AQ98: 0 | AR98: 0 | AS98: 0 | AT98: 0 | AV98: =IF('Courbes de Production PV'!$C$4="Saisie Manuelle",'Courbes de Production PV'!F98*Données!$G$37,HLOOKUP('Courbes de Production PV'!$C$4&'Courbes de Production PV'!$C$5,'Courbes de Production PV'!$G$6:$AT$8768,'Compensation PV'!A120+2,FALSE)*Données!$G$37) -> 0 | AW98: 0
C99: 1 | D99: 4 | E99: 18 | G99: 0 | H99: 0 | I99: 0 | J99: 0 | K99: 0 | L99: 0 | M99: 0 | N99: 0 | O99: 0 | P99: 0 | Q99: 0 | R99: 0 | S99: 0 | T99: 0 | U99: 0 | V99: 0 | W99: 0 | X99: 0 | Y99: 0 | Z99: 0 | AA99: 0 | AB99: 0 | AC99: 0 | AD99: 0 | AE99: 0 | AF99: 0 | AG99: 0 | AH99: 0 | AI99: 0 | AJ99: 0 | AK99: 0 | AL99: 0 | AM99: 0 | AN99: 0 | AO99: 0 | AP99: 0 | AQ99: 0 | AR99: 0 | AS99: 0 | AT99: 0 | AV99: =IF('Courbes de Production PV'!$C$4="Saisie Manuelle",'Courbes de Production PV'!F99*Données!$G$37,HLOOKUP('Courbes de Production PV'!$C$4&'Courbes de Production PV'!$C$5,'Courbes de Production PV'!$G$6:$AT$8768,'Compensation PV'!A121+2,FALSE)*Données!$G$37) -> 0 | AW99: 0
C100: 1 | D100: 4 | E100: 19 | G100: 0 | H100: 0 | I100: 0 | J100: 0 | K100: 0 | L100: 0 | M100: 0 | N100: 0 | O100: 0 | P100: 0 | Q100: 0 | R100: 0 | S100: 0 | T100: 0 | U100: 0 | V100: 0 | W100: 0 | X100: 0 | Y100: 0 | Z100: 0 | AA100: 0 | AB100: 0 | AC100: 0 | AD100: 0 | AE100: 0 | AF100: 0 | AG100: 0 | AH100: 0 | AI100: 0 | AJ100: 0 | AK100: 0 | AL100: 0 | AM100: 0 | AN100: 0 | AO100: 0 | AP100: 0 | AQ100: 0 | AR100: 0 | AS100: 0 | AT100: 0 | AV100: =IF('Courbes de Production PV'!$C$4="Saisie Manuelle",'Courbes de Production PV'!F100*Données!$G$37,HLOOKUP('Courbes de Production PV'!$C$4&'Courbes de Production PV'!$C$5,'Courbes de Production PV'!$G$6:$AT$8768,'Compensation PV'!A122+2,FALSE)*Données!$G$37) -> 0 | AW100: 0
C101: 1 | D101: 4 | E101: 20 | G101: 0 | H101: 0 | I101: 0 | J101: 0 | K101: 0 | L101: 0 | M101: 0 | N101: 0 | O101: 0 | P101: 0 | Q101: 0 | R101: 0 | S101: 0 | T101: 0 | U101: 0 | V101: 0 | W101: 0 | X101: 0 | Y101: 0 | Z101: 0 | AA101: 0 | AB101: 0 | AC101: 0 | AD101: 0 | AE101: 0 | AF101: 0 | AG101: 0 | AH101: 0 | AI101: 0 | AJ101: 0 | AK101: 0 | AL101: 0 | AM101: 0 | AN101: 0 | AO101: 0 | AP101: 0 | AQ101: 0 | AR101: 0 | AS101: 0 | AT101: 0 | AV101: =IF('Courbes de Production PV'!$C$4="Saisie Manuelle",'Courbes de Production PV'!F101*Données!$G$37,HLOOKUP('Courbes de Production PV'!$C$4&'Courbes de Production PV'!$C$5,'Courbes de Production PV'!$G$6:$AT$8768,'Compensation PV'!A123+2,FALSE)*Données!$G$37) -> 0 | AW101: 0
C102: 1 | D102: 4 | E102: 21 | G102: 0 | H102: 0 | I102: 0 | J102: 0 | K102: 0 | L102: 0 | M102: 0 | N102: 0 | O102: 0 | P102: 0 | Q102: 0 | R102: 0 | S102: 0 | T102: 0 | U102: 0 | V102: 0 | W102: 0 | X102: 0 | Y102: 0 | Z102: 0 | AA102: 0 | AB102: 0 | AC102: 0 | AD102: 0 | AE102: 0 | AF102: 0 | AG102: 0 | AH102: 0 | AI102: 0 | AJ102: 0 | AK102: 0 | AL102: 0 | AM102: 0 | AN102: 0 | AO102: 0 | AP102: 0 | AQ102: 0 | AR102: 0 | AS102: 0 | AT102: 0 | AV102: =IF('Courbes de Production PV'!$C$4="Saisie Manuelle",'Courbes de Production PV'!F102*Données!$G$37,HLOOKUP('Courbes de Production PV'!$C$4&'Courbes de Production PV'!$C$5,'Courbes de Production PV'!$G$6:$AT$8768,'Compensation PV'!A124+2,FALSE)*Données!$G$37) -> 0 | AW102: 0
C103: 1 | D103: 4 | E103: 22 | G103: 0 | H103: 0 | I103: 0 | J103: 0 | K103: 0 | L103: 0 | M103: 0 | N103: 0 | O103: 0 | P103: 0 | Q103: 0 | R103: 0 | S103: 0 | T103: 0 | U103: 0 | V103: 0 | W103: 0 | X103: 0 | Y103: 0 | Z103: 0 | AA103: 0 | AB103: 0 | AC103: 0 | AD103: 0 | AE103: 0 | AF103: 0 | AG103: 0 | AH103: 0 | AI103: 0 | AJ103: 0 | AK103: 0 | AL103: 0 | AM103: 0 | AN103: 0 | AO103: 0 | AP103: 0 | AQ103: 0 | AR103: 0 | AS103: 0 | AT103: 0 | AV103: =IF('Courbes de Production PV'!$C$4="Saisie Manuelle",'Courbes de Production PV'!F103*Données!$G$37,HLOOKUP('Courbes de Production PV'!$C$4&'Courbes de Production PV'!$C$5,'Courbes de Production PV'!$G$6:$AT$8768,'Compensation PV'!A125+2,FALSE)*Données!$G$37) -> 0 | AW103: 0
C104: 1 | D104: 4 | E104: 23 | G104: 0 | H104: 0 | I104: 0 | J104: 0 | K104: 0 | L104: 0 | M104: 0 | N104: 0 | O104: 0 | P104: 0 | Q104: 0 | R104: 0 | S104: 0 | T104: 0 | U104: 0 | V104: 0 | W104: 0 | X104: 0 | Y104: 0 | Z104: 0 | AA104: 0 | AB104: 0 | AC104: 0 | AD104: 0 | AE104: 0 | AF104: 0 | AG104: 0 | AH104: 0 | AI104: 0 | AJ104: 0 | AK104: 0 | AL104: 0 | AM104: 0 | AN104: 0 | AO104: 0 | AP104: 0 | AQ104: 0 | AR104: 0 | AS104: 0 | AT104: 0 | AV104: =IF('Courbes de Production PV'!$C$4="Saisie Manuelle",'Courbes de Production PV'!F104*Données!$G$37,HLOOKUP('Courbes de Production PV'!$C$4&'Courbes de Production PV'!$C$5,'Courbes de Production PV'!$G$6:$AT$8768,'Compensation PV'!A126+2,FALSE)*Données!$G$37) -> 0 | AW104: 0
C105: 1 | D105: 5 | E105: 0 | G105: 0 | H105: 0 | I105: 0 | J105: 0 | K105: 0 | L105: 0 | M105: 0 | N105: 0 | O105: 0 | P105: 0 | Q105: 0 | R105: 0 | S105: 0 | T105: 0 | U105: 0 | V105: 0 | W105: 0 | X105: 0 | Y105: 0 | Z105: 0 | AA105: 0 | AB105: 0 | AC105: 0 | AD105: 0 | AE105: 0 | AF105: 0 | AG105: 0 | AH105: 0 | AI105: 0 | AJ105: 0 | AK105: 0 | AL105: 0 | AM105: 0 | AN105: 0 | AO105: 0 | AP105: 0 | AQ105: 0 | AR105: 0 | AS105: 0 | AT105: 0 | AV105: =IF('Courbes de Production PV'!$C$4="Saisie Manuelle",'Courbes de Production PV'!F105*Données!$G$37,HLOOKUP('Courbes de Production PV'!$C$4&'Courbes de Production PV'!$C$5,'Courbes de Production PV'!$G$6:$AT$8768,'Compensation PV'!A127+2,FALSE)*Données!$G$37) -> 0 | AW105: 0
C106: 1 | D106: 5 | E106: 1 | G106: 0 | H106: 0 | I106: 0 | J106: 0 | K106: 0 | L106: 0 | M106: 0 | N106: 0 | O106: 0 | P106: 0 | Q106: 0 | R106: 0 | S106: 0 | T106: 0 | U106: 0 | V106: 0 | W106: 0 | X106: 0 | Y106: 0 | Z106: 0 | AA106: 0 | AB106: 0 | AC106: 0 | AD106: 0 | AE106: 0 | AF106: 0 | AG106: 0 | AH106: 0 | AI106: 0 | AJ106: 0 | AK106: 0 | AL106: 0 | AM106: 0 | AN106: 0 | AO106: 0 | AP106: 0 | AQ106: 0 | AR106: 0 | AS106: 0 | AT106: 0 | AV106: =IF('Courbes de Production PV'!$C$4="Saisie Manuelle",'Courbes de Production PV'!F106*Données!$G$37,HLOOKUP('Courbes de Production PV'!$C$4&'Courbes de Production PV'!$C$5,'Courbes de Production PV'!$G$6:$AT$8768,'Compensation PV'!A128+2,FALSE)*Données!$G$37) -> 0 | AW106: 0
C107: 1 | D107: 5 | E107: 2 | G107: 0 | H107: 0 | I107: 0 | J107: 0 | K107: 0 | L107: 0 | M107: 0 | N107: 0 | O107: 0 | P107: 0 | Q107: 0 | R107: 0 | S107: 0 | T107: 0 | U107: 0 | V107: 0 | W107: 0 | X107: 0 | Y107: 0 | Z107: 0 | AA107: 0 | AB107: 0 | AC107: 0 | AD107: 0 | AE107: 0 | AF107: 0 | AG107: 0 | AH107: 0 | AI107: 0 | AJ107: 0 | AK107: 0 | AL107: 0 | AM107: 0 | AN107: 0 | AO107: 0 | AP107: 0 | AQ107: 0 | AR107: 0 | AS107: 0 | AT107: 0 | AV107: =IF('Courbes de Production PV'!$C$4="Saisie Manuelle",'Courbes de Production PV'!F107*Données!$G$37,HLOOKUP('Courbes de Production PV'!$C$4&'Courbes de Production PV'!$C$5,'Courbes de Production PV'!$G$6:$AT$8768,'Compensation PV'!A129+2,FALSE)*Données!$G$37) -> 0 | AW107: 0
C108: 1 | D108: 5 | E108: 3 | G108: 0 | H108: 0 | I108: 0 | J108: 0 | K108: 0 | L108: 0 | M108: 0 | N108: 0 | O108: 0 | P108: 0 | Q108: 0 | R108: 0 | S108: 0 | T108: 0 | U108: 0 | V108: 0 | W108: 0 | X108: 0 | Y108: 0 | Z108: 0 | AA108: 0 | AB108: 0 | AC108: 0 | AD108: 0 | AE108: 0 | AF108: 0 | AG108: 0 | AH108: 0 | AI108: 0 | AJ108: 0 | AK108: 0 | AL108: 0 | AM108: 0 | AN108: 0 | AO108: 0 | AP108: 0 | AQ108: 0 | AR108: 0 | AS108: 0 | AT108: 0 | AV108: =IF('Courbes de Production PV'!$C$4="Saisie Manuelle",'Courbes de Production PV'!F108*Données!$G$37,HLOOKUP('Courbes de Production PV'!$C$4&'Courbes de Production PV'!$C$5,'Courbes de Production PV'!$G$6:$AT$8768,'Compensation PV'!A130+2,FALSE)*Données!$G$37) -> 0 | AW108: 0
C109: 1 | D109: 5 | E109: 4 | G109: 0 | H109: 0 | I109: 0 | J109: 0 | K109: 0 | L109: 0 | M109: 0 | N109: 0 | O109: 0 | P109: 0 | Q109: 0 | R109: 0 | S109: 0 | T109: 0 | U109: 0 | V109: 0 | W109: 0 | X109: 0 | Y109: 0 | Z109: 0 | AA109: 0 | AB109: 0 | AC109: 0 | AD109: 0 | AE109: 0 | AF109: 0 | AG109: 0 | AH109: 0 | AI109: 0 | AJ109: 0 | AK109: 0 | AL109: 0 | AM109: 0 | AN109: 0 | AO109: 0 | AP109: 0 | AQ109: 0 | AR109: 0 | AS109: 0 | AT109: 0 | AV109: =IF('Courbes de Production PV'!$C$4="Saisie Manuelle",'Courbes de Production PV'!F109*Données!$G$37,HLOOKUP('Courbes de Production PV'!$C$4&'Courbes de Production PV'!$C$5,'Courbes de Production PV'!$G$6:$AT$8768,'Compensation PV'!A131+2,FALSE)*Données!$G$37) -> 0 | AW109: 0
C110: 1 | D110: 5 | E110: 5 | G110: 0 | H110: 0 | I110: 0 | J110: 0 | K110: 0 | L110: 0 | M110: 0 | N110: 0 | O110: 0 | P110: 0 | Q110: 0 | R110: 0 | S110: 0 | T110: 0 | U110: 0 | V110: 0 | W110: 0 | X110: 0 | Y110: 0 | Z110: 0 | AA110: 0 | AB110: 0 | AC110: 0 | AD110: 0 | AE110: 0 | AF110: 0 | AG110: 0 | AH110: 0 | AI110: 0 | AJ110: 0 | AK110: 0 | AL110: 0 | AM110: 0 | AN110: 0 | AO110: 0 | AP110: 0 | AQ110: 0 | AR110: 0 | AS110: 0 | AT110: 0 | AV110: =IF('Courbes de Production PV'!$C$4="Saisie Manuelle",'Courbes de Production PV'!F110*Données!$G$37,HLOOKUP('Courbes de Production PV'!$C$4&'Courbes de Production PV'!$C$5,'Courbes de Production PV'!$G$6:$AT$8768,'Compensation PV'!A132+2,FALSE)*Données!$G$37) -> 0 | AW110: 0
C111: 1 | D111: 5 | E111: 6 | G111: 0 | H111: 0 | I111: 0 | J111: 0 | K111: 0 | L111: 0 | M111: 0 | N111: 0 | O111: 0 | P111: 0 | Q111: 0 | R111: 0 | S111: 0 | T111: 0 | U111: 0 | V111: 0 | W111: 0 | X111: 0 | Y111: 0 | Z111: 0 | AA111: 0 | AB111: 0 | AC111: 0 | AD111: 0 | AE111: 0 | AF111: 0 | AG111: 0 | AH111: 0 | AI111: 0 | AJ111: 0 | AK111: 0 | AL111: 0 | AM111: 0 | AN111: 0 | AO111: 0 | AP111: 0 | AQ111: 0 | AR111: 0 | AS111: 0 | AT111: 0 | AV111: =IF('Courbes de Production PV'!$C$4="Saisie Manuelle",'Courbes de Production PV'!F111*Données!$G$37,HLOOKUP('Courbes de Production PV'!$C$4&'Courbes de Production PV'!$C$5,'Courbes de Production PV'!$G$6:$AT$8768,'Compensation PV'!A133+2,FALSE)*Données!$G$37) -> 0 | AW111: 0
C112: 1 | D112: 5 | E112: 7 | G112: 0 | H112: 0 | I112: 0 | J112: 0 | K112: 0 | L112: 0 | M112: 0 | N112: 0 | O112: 0 | P112: 0 | Q112: 0 | R112: 0 | S112: 0 | T112: 0 | U112: 0 | V112: 0 | W112: 0 | X112: 0 | Y112: 0 | Z112: 0 | AA112: 0 | AB112: 0 | AC112: 0 | AD112: 0 | AE112: 0 | AF112: 0 | AG112: 0 | AH112: 0 | AI112: 0 | AJ112: 0 | AK112: 0 | AL112: 0 | AM112: 0 | AN112: 0 | AO112: 0 | AP112: 0 | AQ112: 0 | AR112: 0 | AS112: 0 | AT112: 0 | AV112: =IF('Courbes de Production PV'!$C$4="Saisie Manuelle",'Courbes de Production PV'!F112*Données!$G$37,HLOOKUP('Courbes de Production PV'!$C$4&'Courbes de Production PV'!$C$5,'Courbes de Production PV'!$G$6:$AT$8768,'Compensation PV'!A134+2,FALSE)*Données!$G$37) -> 0 | AW112: 0
C113: 1 | D113: 5 | E113: 8 | G113: 0.0337836 | H113: 0.0330545 | I113: 0.0318635 | J113: 0.02959 | K113: 0.0340465 | L113: 0.0318489 | M113: 0.031203 | N113: 0.0300049 | O113: 0.0340002 | P113: 0.0337343 | Q113: 0.0323165 | R113: 0.0296641 | S113: 0.0335979 | T113: 0.0298653 | U113: 0.0298653 | V113: 0.0298653 | W113: 0.0337062 | X113: 0.031319 | Y113: 0.0307832 | Z113: 0.0297619 | AA113: 0.0336443 | AB113: 0.0308118 | AC113: 0.03046 | AD113: 0.0297808 | AE113: 0.0337527 | AF113: 0.0303806 | AG113: 0.0302339 | AH113: 0.0299519 | AI113: 0.0337836 | AJ113: 0.0300302 | AK113: 0.0300302 | AL113: 0.0300302 | AM113: 0.0337681 | AN113: 0.0317044 | AO113: 0.031006 | AP113: 0.0297232 | AQ113: 0.0337372 | AR113: 0.0321651 | AS113: 0.0313131 | AT113: 0.0296788 | AV113: =IF('Courbes de Production PV'!$C$4="Saisie Manuelle",'Courbes de Production PV'!F113*Données!$G$37,HLOOKUP('Courbes de Production PV'!$C$4&'Courbes de Production PV'!$C$5,'Courbes de Production PV'!$G$6:$AT$8768,'Compensation PV'!A135+2,FALSE)*Données!$G$37) -> 3.13131 | AW113: 3.13131
C114: 1 | D114: 5 | E114: 9 | G114: 0.106818 | H114: 0.11755 | I114: 0.112085 | J114: 0.0970764 | K114: 0.108662 | L114: 0.117584 | M114: 0.112158 | N114: 0.0980722 | O114: 0.107295 | P114: 0.117798 | Q114: 0.112114 | R114: 0.097129 | S114: 0.107965 | T114: 0.114424 | U114: 0.11003 | V114: 0.0978642 | W114: 0.107766 | X114: 0.117233 | Y114: 0.112033 | Z114: 0.0977697 | AA114: 0.107726 | AB114: 0.116655 | AC114: 0.111739 | AD114: 0.0979132 | AE114: 0.108277 | AF114: 0.11597 | AG114: 0.111289 | AH114: 0.0982564 | AI114: 0.108422 | AJ114: 0.113949 | AK114: 0.109677 | AL114: 0.0980928 | AM114: 0.107809 | AN114: 0.116621 | AO114: 0.111122 | AP114: 0.0971178 | AQ114: 0.106795 | AR114: 0.116283 | AS114: 0.111188 | AT114: 0.0970676 | AV114: =IF('Courbes de Production PV'!$C$4="Saisie Manuelle",'Courbes de Production PV'!F114*Données!$G$37,HLOOKUP('Courbes de Production PV'!$C$4&'Courbes de Production PV'!$C$5,'Courbes de Production PV'!$G$6:$AT$8768,'Compensation PV'!A136+2,FALSE)*Données!$G$37) -> 11.1188 | AW114: 11.1188
C115: 1 | D115: 5 | E115: 10 | G115: 0.196946 | H115: 0.266518 | I115: 0.258698 | J115: 0.204902 | K115: 0.210425 | L115: 0.28408 | M115: 0.273679 | N115: 0.215398 | O115: 0.196394 | P115: 0.25224 | Q115: 0.244365 | R115: 0.197301 | S115: 0.213202 | T115: 0.284084 | U115: 0.27611 | V115: 0.220455 | W115: 0.20955 | X115: 0.28553 | Y115: 0.276834 | Z115: 0.218008 | AA115: 0.210283 | AB115: 0.285917 | AC115: 0.27808 | AD115: 0.219829 | AE115: 0.212876 | AF115: 0.286605 | AG115: 0.278569 | AH115: 0.221217 | AI115: 0.212903 | AJ115: 0.280605 | AK115: 0.272257 | AL115: 0.218368 | AM115: 0.209035 | AN115: 0.281892 | AO115: 0.270897 | AP115: 0.212855 | AQ115: 0.197596 | AR115: 0.265493 | AS115: 0.258084 | AT115: 0.205451 | AV115: =IF('Courbes de Production PV'!$C$4="Saisie Manuelle",'Courbes de Production PV'!F115*Données!$G$37,HLOOKUP('Courbes de Production PV'!$C$4&'Courbes de Production PV'!$C$5,'Courbes de Production PV'!$G$6:$AT$8768,'Compensation PV'!A137+2,FALSE)*Données!$G$37) -> 25.8084 | AW115: 25.8084
C116: 1 | D116: 5 | E116: 11 | G116: 0.271525 | H116: 0.354635 | I116: 0.367206 | J116: 0.31102 | K116: 0.299425 | L116: 0.401024 | M116: 0.412447 | N116: 0.344923 | O116: 0.270107 | P116: 0.3502 | Q116: 0.36038 | R116: 0.304961 | S116: 0.304205 | T116: 0.402277 | U116: 0.417709 | V116: 0.353771 | W116: 0.297847 | X116: 0.402006 | Y116: 0.417058 | Z116: 0.349802 | AA116: 0.298869 | AB116: 0.402579 | AC116: 0.419157 | AD116: 0.35281 | AE116: 0.303523 | AF116: 0.405176 | AG116: 0.421158 | AH116: 0.355457 | AI116: 0.302997 | AJ116: 0.397098 | AK116: 0.410949 | AL116: 0.348683 | AM116: 0.297808 | AN116: 0.398362 | AO116: 0.408456 | AP116: 0.340979 | AQ116: 0.272595 | AR116: 0.353803 | AS116: 0.366697 | AT116: 0.31171 | AV116: =IF('Courbes de Production PV'!$C$4="Saisie Manuelle",'Courbes de Production PV'!F116*Données!$G$37,HLOOKUP('Courbes de Production PV'!$C$4&'Courbes de Production PV'!$C$5,'Courbes de Production PV'!$G$6:$AT$8768,'Compensation PV'!A138+2,FALSE)*Données!$G$37) -> 36.6697 | AW116: 36.6697
C117: 1 | D117: 5 | E117: 12 | G117: 0.289766 | H117: 0.332631 | I117: 0.36268 | J117: 0.335637 | K117: 0.31042 | L117: 0.363064 | M117: 0.394746 | N117: 0.362959 | O117: 0.289907 | P117: 0.330653 | Q117: 0.357864 | R117: 0.330826 | S117: 0.310963 | T117: 0.360001 | U117: 0.394862 | V117: 0.366437 | W117: 0.307509 | X117: 0.361983 | Y117: 0.397421 | Z117: 0.366289 | AA117: 0.307606 | AB117: 0.361523 | AC117: 0.398335 | AD117: 0.368091 | AE117: 0.311123 | AF117: 0.36294 | AG117: 0.398873 | AH117: 0.36929 | AI117: 0.310913 | AJ117: 0.357387 | AK117: 0.390231 | AL117: 0.362467 | AM117: 0.308633 | AN117: 0.36057 | AO117: 0.3908 | AP117: 0.358895 | AQ117: 0.290158 | AR117: 0.331287 | AS117: 0.361291 | AT117: 0.335196 | AV117: =IF('Courbes de Production PV'!$C$4="Saisie Manuelle",'Courbes de Production PV'!F117*Données!$G$37,HLOOKUP('Courbes de Production PV'!$C$4&'Courbes de Production PV'!$C$5,'Courbes de Production PV'!$G$6:$AT$8768,'Compensation PV'!A139+2,FALSE)*Données!$G$37) -> 36.1291 | AW117: 36.1291
C118: 1 | D118: 5 | E118: 13 | G118: 0.278171 | H118: 0.330262 | I118: 0.40524 | J118: 0.394001 | K118: 0.31802 | L118: 0.374377 | M118: 0.454474 | N118: 0.440614 | O118: 0.27737 | P118: 0.32816 | Q118: 0.397769 | R118: 0.385194 | S118: 0.321194 | T118: 0.372433 | U118: 0.458729 | V118: 0.449861 | W118: 0.313802 | X118: 0.371322 | Y118: 0.457978 | Z118: 0.446314 | AA118: 0.313753 | AB118: 0.370212 | AC118: 0.459307 | AD118: 0.449174 | AE118: 0.319848 | AF118: 0.374167 | AG118: 0.462339 | AH118: 0.452644 | AI118: 0.319922 | AJ118: 0.36838 | AK118: 0.450334 | AL118: 0.441351 | AM118: 0.317947 | AN118: 0.373965 | AO118: 0.451693 | AP118: 0.43705 | AQ118: 0.279158 | AR118: 0.329497 | AS118: 0.404647 | AT118: 0.394371 | AV118: =IF('Courbes de Production PV'!$C$4="Saisie Manuelle",'Courbes de Production PV'!F118*Données!$G$37,HLOOKUP('Courbes de Production PV'!$C$4&'Courbes de Production PV'!$C$5,'Courbes de Production PV'!$G$6:$AT$8768,'Compensation PV'!A140+2,FALSE)*Données!$G$37) -> 40.4647 | AW118: 40.4647
C119: 1 | D119: 5 | E119: 14 | G119: 0.225627 | H119: 0.243443 | I119: 0.337822 | J119: 0.354903 | K119: 0.257711 | L119: 0.276323 | M119: 0.378314 | N119: 0.396013 | O119: 0.226457 | P119: 0.244489 | Q119: 0.332668 | R119: 0.347365 | S119: 0.257678 | T119: 0.270937 | U119: 0.37944 | V119: 0.40225 | W119: 0.252117 | X119: 0.270336 | Y119: 0.379604 | Z119: 0.400411 | AA119: 0.25114 | AB119: 0.268016 | AC119: 0.379877 | AD119: 0.402368 | AE119: 0.256285 | AF119: 0.271544 | AG119: 0.382342 | AH119: 0.405031 | AI119: 0.257763 | AJ119: 0.269884 | AK119: 0.373187 | AL119: 0.39474 | AM119: 0.258426 | AN119: 0.277244 | AO119: 0.37672 | AP119: 0.393316 | AQ119: 0.226197 | AR119: 0.242602 | AS119: 0.337011 | AT119: 0.354819 | AV119: =IF('Courbes de Production PV'!$C$4="Saisie Manuelle",'Courbes de Production PV'!F119*Données!$G$37,HLOOKUP('Courbes de Production PV'!$C$4&'Courbes de Production PV'!$C$5,'Courbes de Production PV'!$G$6:$AT$8768,'Compensation PV'!A141+2,FALSE)*Données!$G$37) -> 33.7011 | AW119: 33.7011
C120: 1 | D120: 5 | E120: 15 | G120: 0.132719 | H120: 0.123891 | I120: 0.219516 | J120: 0.255559 | K120: 0.15382 | L120: 0.143257 | M120: 0.248278 | N120: 0.287058 | O120: 0.134766 | P120: 0.127281 | Q120: 0.216706 | R120: 0.249523 | S120: 0.151438 | T120: 0.136165 | U120: 0.247298 | V120: 0.291039 | W120: 0.147838 | X120: 0.135736 | Y120: 0.247704 | Z120: 0.290354 | AA120: 0.14627 | AB120: 0.132843 | AC120: 0.247177 | AD120: 0.291587 | AE120: 0.149984 | AF120: 0.135613 | AG120: 0.248992 | AH120: 0.293246 | AI120: 0.152719 | AJ120: 0.137728 | AK120: 0.243529 | AL120: 0.285047 | AM120: 0.155279 | AN120: 0.145264 | AO120: 0.248109 | AP120: 0.285623 | AQ120: 0.132945 | AR120: 0.123202 | AS120: 0.218766 | AT120: 0.255274 | AV120: =IF('Courbes de Production PV'!$C$4="Saisie Manuelle",'Courbes de Production PV'!F120*Données!$G$37,HLOOKUP('Courbes de Production PV'!$C$4&'Courbes de Production PV'!$C$5,'Courbes de Production PV'!$G$6:$AT$8768,'Compensation PV'!A142+2,FALSE)*Données!$G$37) -> 21.8766 | AW120: 21.8766
C121: 1 | D121: 5 | E121: 16 | G121: 0.0351421 | H121: 0.028668 | I121: 0.0449358 | J121: 0.0544832 | K121: 0.0367676 | L121: 0.0305852 | M121: 0.0443282 | N121: 0.0521306 | O121: 0.0356458 | P121: 0.0297787 | Q121: 0.0430351 | R121: 0.0505856 | S121: 0.0359079 | T121: 0.0292535 | U121: 0.0446489 | V121: 0.0539875 | W121: 0.03577 | X121: 0.0291364 | Y121: 0.0456028 | Z121: 0.0554086 | AA121: 0.0355057 | AB121: 0.0285825 | AC121: 0.0462843 | AD121: 0.05705 | AE121: 0.0358826 | AF121: 0.0291134 | AG121: 0.0455161 | AH121: 0.0554668 | AI121: 0.0363194 | AJ121: 0.0298754 | AK121: 0.0438152 | AL121: 0.0521368 | AM121: 0.0367537 | AN121: 0.030696 | AO121: 0.0438058 | AP121: 0.0511165 | AQ121: 0.0350998 | AR121: 0.0285725 | AS121: 0.04474 | AT121: 0.0543209 | AV121: =IF('Courbes de Production PV'!$C$4="Saisie Manuelle",'Courbes de Production PV'!F121*Données!$G$37,HLOOKUP('Courbes de Production PV'!$C$4&'Courbes de Production PV'!$C$5,'Courbes de Production PV'!$G$6:$AT$8768,'Compensation PV'!A143+2,FALSE)*Données!$G$37) -> 4.474 | AW121: 4.474
C122: 1 | D122: 5 | E122: 17 | G122: 0 | H122: 0 | I122: 0 | J122: 0 | K122: 0 | L122: 0 | M122: 0 | N122: 0 | O122: 0 | P122: 0 | Q122: 0 | R122: 0 | S122: 0 | T122: 0 | U122: 0 | V122: 0 | W122: 0 | X122: 0 | Y122: 0 | Z122: 0 | AA122: 0 | AB122: 0 | AC122: 0 | AD122: 0 | AE122: 0 | AF122: 0 | AG122: 0 | AH122: 0 | AI122: 0 | AJ122: 0 | AK122: 0 | AL122: 0 | AM122: 0 | AN122: 0 | AO122: 0 | AP122: 0 | AQ122: 0 | AR122: 0 | AS122: 0 | AT122: 0 | AV122: =IF('Courbes de Production PV'!$C$4="Saisie Manuelle",'Courbes de Production PV'!F122*Données!$G$37,HLOOKUP('Courbes de Production PV'!$C$4&'Courbes de Production PV'!$C$5,'Courbes de Production PV'!$G$6:$AT$8768,'Compensation PV'!A144+2,FALSE)*Données!$G$37) -> 0 | AW122: 0
C123: 1 | D123: 5 | E123: 18 | G123: 0 | H123: 0 | I123: 0 | J123: 0 | K123: 0 | L123: 0 | M123: 0 | N123: 0 | O123: 0 | P123: 0 | Q123: 0 | R123: 0 | S123: 0 | T123: 0 | U123: 0 | V123: 0 | W123: 0 | X123: 0 | Y123: 0 | Z123: 0 | AA123: 0 | AB123: 0 | AC123: 0 | AD123: 0 | AE123: 0 | AF123: 0 | AG123: 0 | AH123: 0 | AI123: 0 | AJ123: 0 | AK123: 0 | AL123: 0 | AM123: 0 | AN123: 0 | AO123: 0 | AP123: 0 | AQ123: 0 | AR123: 0 | AS123: 0 | AT123: 0 | AV123: =IF('Courbes de Production PV'!$C$4="Saisie Manuelle",'Courbes de Production PV'!F123*Données!$G$37,HLOOKUP('Courbes de Production PV'!$C$4&'Courbes de Production PV'!$C$5,'Courbes de Production PV'!$G$6:$AT$8768,'Compensation PV'!A145+2,FALSE)*Données!$G$37) -> 0 | AW123: 0
C124: 1 | D124: 5 | E124: 19 | G124: 0 | H124: 0 | I124: 0 | J124: 0 | K124: 0 | L124: 0 | M124: 0 | N124: 0 | O124: 0 | P124: 0 | Q124: 0 | R124: 0 | S124: 0 | T124: 0 | U124: 0 | V124: 0 | W124: 0 | X124: 0 | Y124: 0 | Z124: 0 | AA124: 0 | AB124: 0 | AC124: 0 | AD124: 0 | AE124: 0 | AF124: 0 | AG124: 0 | AH124: 0 | AI124: 0 | AJ124: 0 | AK124: 0 | AL124: 0 | AM124: 0 | AN124: 0 | AO124: 0 | AP124: 0 | AQ124: 0 | AR124: 0 | AS124: 0 | AT124: 0 | AV124: =IF('Courbes de Production PV'!$C$4="Saisie Manuelle",'Courbes de Production PV'!F124*Données!$G$37,HLOOKUP('Courbes de Production PV'!$C$4&'Courbes de Production PV'!$C$5,'Courbes de Production PV'!$G$6:$AT$8768,'Compensation PV'!A146+2,FALSE)*Données!$G$37) -> 0 | AW124: 0
C125: 1 | D125: 5 | E125: 20 | G125: 0 | H125: 0 | I125: 0 | J125: 0 | K125: 0 | L125: 0 | M125: 0 | N125: 0 | O125: 0 | P125: 0 | Q125: 0 | R125: 0 | S125: 0 | T125: 0 | U125: 0 | V125: 0 | W125: 0 | X125: 0 | Y125: 0 | Z125: 0 | AA125: 0 | AB125: 0 | AC125: 0 | AD125: 0 | AE125: 0 | AF125: 0 | AG125: 0 | AH125: 0 | AI125: 0 | AJ125: 0 | AK125: 0 | AL125: 0 | AM125: 0 | AN125: 0 | AO125: 0 | AP125: 0 | AQ125: 0 | AR125: 0 | AS125: 0 | AT125: 0 | AV125: =IF('Courbes de Production PV'!$C$4="Saisie Manuelle",'Courbes de Production PV'!F125*Données!$G$37,HLOOKUP('Courbes de Production PV'!$C$4&'Courbes de Production PV'!$C$5,'Courbes de Production PV'!$G$6:$AT$8768,'Compensation PV'!A147+2,FALSE)*Données!$G$37) -> 0 | AW125: 0
C126: 1 | D126: 5 | E126: 21 | G126: 0 | H126: 0 | I126: 0 | J126: 0 | K126: 0 | L126: 0 | M126: 0 | N126: 0 | O126: 0 | P126: 0 | Q126: 0 | R126: 0 | S126: 0 | T126: 0 | U126: 0 | V126: 0 | W126: 0 | X126: 0 | Y126: 0 | Z126: 0 | AA126: 0 | AB126: 0 | AC126: 0 | AD126: 0 | AE126: 0 | AF126: 0 | AG126: 0 | AH126: 0 | AI126: 0 | AJ126: 0 | AK126: 0 | AL126: 0 | AM126: 0 | AN126: 0 | AO126: 0 | AP126: 0 | AQ126: 0 | AR126: 0 | AS126: 0 | AT126: 0 | AV126: =IF('Courbes de Production PV'!$C$4="Saisie Manuelle",'Courbes de Production PV'!F126*Données!$G$37,HLOOKUP('Courbes de Production PV'!$C$4&'Courbes de Production PV'!$C$5,'Courbes de Production PV'!$G$6:$AT$8768,'Compensation PV'!A148+2,FALSE)*Données!$G$37) -> 0 | AW126: 0
C127: 1 | D127: 5 | E127: 22 | G127: 0 | H127: 0 | I127: 0 | J127: 0 | K127: 0 | L127: 0 | M127: 0 | N127: 0 | O127: 0 | P127: 0 | Q127: 0 | R127: 0 | S127: 0 | T127: 0 | U127: 0 | V127: 0 | W127: 0 | X127: 0 | Y127: 0 | Z127: 0 | AA127: 0 | AB127: 0 | AC127: 0 | AD127: 0 | AE127: 0 | AF127: 0 | AG127: 0 | AH127: 0 | AI127: 0 | AJ127: 0 | AK127: 0 | AL127: 0 | AM127: 0 | AN127: 0 | AO127: 0 | AP127: 0 | AQ127: 0 | AR127: 0 | AS127: 0 | AT127: 0 | AV127: =IF('Courbes de Production PV'!$C$4="Saisie Manuelle",'Courbes de Production PV'!F127*Données!$G$37,HLOOKUP('Courbes de Production PV'!$C$4&'Courbes de Production PV'!$C$5,'Courbes de Production PV'!$G$6:$AT$8768,'Compensation PV'!A149+2,FALSE)*Données!$G$37) -> 0 | AW127: 0
C128: 1 | D128: 5 | E128: 23 | G128: 0 | H128: 0 | I128: 0 | J128: 0 | K128: 0 | L128: 0 | M128: 0 | N128: 0 | O128: 0 | P128: 0 | Q128: 0 | R128: 0 | S128: 0 | T128: 0 | U128: 0 | V128: 0 | W128: 0 | X128: 0 | Y128: 0 | Z128: 0 | AA128: 0 | AB128: 0 | AC128: 0 | AD128: 0 | AE128: 0 | AF128: 0 | AG128: 0 | AH128: 0 | AI128: 0 | AJ128: 0 | AK128: 0 | AL128: 0 | AM128: 0 | AN128: 0 | AO128: 0 | AP128: 0 | AQ128: 0 | AR128: 0 | AS128: 0 | AT128: 0 | AV128: =IF('Courbes de Production PV'!$C$4="Saisie Manuelle",'Courbes de Production PV'!F128*Données!$G$37,HLOOKUP('Courbes de Production PV'!$C$4&'Courbes de Production PV'!$C$5,'Courbes de Production PV'!$G$6:$AT$8768,'Compensation PV'!A150+2,FALSE)*Données!$G$37) -> 0 | AW128: 0
C129: 1 | D129: 6 | E129: 0 | G129: 0 | H129: 0 | I129: 0 | J129: 0 | K129: 0 | L129: 0 | M129: 0 | N129: 0 | O129: 0 | P129: 0 | Q129: 0 | R129: 0 | S129: 0 | T129: 0 | U129: 0 | V129: 0 | W129: 0 | X129: 0 | Y129: 0 | Z129: 0 | AA129: 0 | AB129: 0 | AC129: 0 | AD129: 0 | AE129: 0 | AF129: 0 | AG129: 0 | AH129: 0 | AI129: 0 | AJ129: 0 | AK129: 0 | AL129: 0 | AM129: 0 | AN129: 0 | AO129: 0 | AP129: 0 | AQ129: 0 | AR129: 0 | AS129: 0 | AT129: 0 | AV129: =IF('Courbes de Production PV'!$C$4="Saisie Manuelle",'Courbes de Production PV'!F129*Données!$G$37,HLOOKUP('Courbes de Production PV'!$C$4&'Courbes de Production PV'!$C$5,'Courbes de Production PV'!$G$6:$AT$8768,'Compensation PV'!A151+2,FALSE)*Données!$G$37) -> 0 | AW129: 0
C130: 1 | D130: 6 | E130: 1 | G130: 0 | H130: 0 | I130: 0 | J130: 0 | K130: 0 | L130: 0 | M130: 0 | N130: 0 | O130: 0 | P130: 0 | Q130: 0 | R130: 0 | S130: 0 | T130: 0 | U130: 0 | V130: 0 | W130: 0 | X130: 0 | Y130: 0 | Z130: 0 | AA130: 0 | AB130: 0 | AC130: 0 | AD130: 0 | AE130: 0 | AF130: 0 | AG130: 0 | AH130: 0 | AI130: 0 | AJ130: 0 | AK130: 0 | AL130: 0 | AM130: 0 | AN130: 0 | AO130: 0 | AP130: 0 | AQ130: 0 | AR130: 0 | AS130: 0 | AT130: 0 | AV130: =IF('Courbes de Production PV'!$C$4="Saisie Manuelle",'Courbes de Production PV'!F130*Données!$G$37,HLOOKUP('Courbes de Production PV'!$C$4&'Courbes de Production PV'!$C$5,'Courbes de Production PV'!$G$6:$AT$8768,'Compensation PV'!A152+2,FALSE)*Données!$G$37) -> 0 | AW130: 0
C131: 1 | D131: 6 | E131: 2 | G131: 0 | H131: 0 | I131: 0 | J131: 0 | K131: 0 | L131: 0 | M131: 0 | N131: 0 | O131: 0 | P131: 0 | Q131: 0 | R131: 0 | S131: 0 | T131: 0 | U131: 0 | V131: 0 | W131: 0 | X131: 0 | Y131: 0 | Z131: 0 | AA131: 0 | AB131: 0 | AC131: 0 | AD131: 0 | AE131: 0 | AF131: 0 | AG131: 0 | AH131: 0 | AI131: 0 | AJ131: 0 | AK131: 0 | AL131: 0 | AM131: 0 | AN131: 0 | AO131: 0 | AP131: 0 | AQ131: 0 | AR131: 0 | AS131: 0 | AT131: 0 | AV131: =IF('Courbes de Production PV'!$C$4="Saisie Manuelle",'Courbes de Production PV'!F131*Données!$G$37,HLOOKUP('Courbes de Production PV'!$C$4&'Courbes de Production PV'!$C$5,'Courbes de Production PV'!$G$6:$AT$8768,'Compensation PV'!A153+2,FALSE)*Données!$G$37) -> 0 | AW131: 0
C132: 1 | D132: 6 | E132: 3 | G132: 0 | H132: 0 | I132: 0 | J132: 0 | K132: 0 | L132: 0 | M132: 0 | N132: 0 | O132: 0 | P132: 0 | Q132: 0 | R132: 0 | S132: 0 | T132: 0 | U132: 0 | V132: 0 | W132: 0 | X132: 0 | Y132: 0 | Z132: 0 | AA132: 0 | AB132: 0 | AC132: 0 | AD132: 0 | AE132: 0 | AF132: 0 | AG132: 0 | AH132: 0 | AI132: 0 | AJ132: 0 | AK132: 0 | AL132: 0 | AM132: 0 | AN132: 0 | AO132: 0 | AP132: 0 | AQ132: 0 | AR132: 0 | AS132: 0 | AT132: 0 | AV132: =IF('Courbes de Production PV'!$C$4="Saisie Manuelle",'Courbes de Production PV'!F132*Données!$G$37,HLOOKUP('Courbes de Production PV'!$C$4&'Courbes de Production PV'!$C$5,'Courbes de Production PV'!$G$6:$AT$8768,'Compensation PV'!A154+2,FALSE)*Données!$G$37) -> 0 | AW132: 0
C133: 1 | D133: 6 | E133: 4 | G133: 0 | H133: 0 | I133: 0 | J133: 0 | K133: 0 | L133: 0 | M133: 0 | N133: 0 | O133: 0 | P133: 0 | Q133: 0 | R133: 0 | S133: 0 | T133: 0 | U133: 0 | V133: 0 | W133: 0 | X133: 0 | Y133: 0 | Z133: 0 | AA133: 0 | AB133: 0 | AC133: 0 | AD133: 0 | AE133: 0 | AF133: 0 | AG133: 0 | AH133: 0 | AI133: 0 | AJ133: 0 | AK133: 0 | AL133: 0 | AM133: 0 | AN133: 0 | AO133: 0 | AP133: 0 | AQ133: 0 | AR133: 0 | AS133: 0 | AT133: 0 | AV133: =IF('Courbes de Production PV'!$C$4="Saisie Manuelle",'Courbes de Production PV'!F133*Données!$G$37,HLOOKUP('Courbes de Production PV'!$C$4&'Courbes de Production PV'!$C$5,'Courbes de Production PV'!$G$6:$AT$8768,'Compensation PV'!A155+2,FALSE)*Données!$G$37) -> 0 | AW133: 0
C134: 1 | D134: 6 | E134: 5 | G134: 0 | H134: 0 | I134: 0 | J134: 0 | K134: 0 | L134: 0 | M134: 0 | N134: 0 | O134: 0 | P134: 0 | Q134: 0 | R134: 0 | S134: 0 | T134: 0 | U134: 0 | V134: 0 | W134: 0 | X134: 0 | Y134: 0 | Z134: 0 | AA134: 0 | AB134: 0 | AC134: 0 | AD134: 0 | AE134: 0 | AF134: 0 | AG134: 0 | AH134: 0 | AI134: 0 | AJ134: 0 | AK134: 0 | AL134: 0 | AM134: 0 | AN134: 0 | AO134: 0 | AP134: 0 | AQ134: 0 | AR134: 0 | AS134: 0 | AT134: 0 | AV134: =IF('Courbes de Production PV'!$C$4="Saisie Manuelle",'Courbes de Production PV'!F134*Données!$G$37,HLOOKUP('Courbes de Production PV'!$C$4&'Courbes de Production PV'!$C$5,'Courbes de Production PV'!$G$6:$AT$8768,'Compensation PV'!A156+2,FALSE)*Données!$G$37) -> 0 | AW134: 0
C135: 1 | D135: 6 | E135: 6 | G135: 0 | H135: 0 | I135: 0 | J135: 0 | K135: 0 | L135: 0 | M135: 0 | N135: 0 | O135: 0 | P135: 0 | Q135: 0 | R135: 0 | S135: 0 | T135: 0 | U135: 0 | V135: 0 | W135: 0 | X135: 0 | Y135: 0 | Z135: 0 | AA135: 0 | AB135: 0 | AC135: 0 | AD135: 0 | AE135: 0 | AF135: 0 | AG135: 0 | AH135: 0 | AI135: 0 | AJ135: 0 | AK135: 0 | AL135: 0 | AM135: 0 | AN135: 0 | AO135: 0 | AP135: 0 | AQ135: 0 | AR135: 0 | AS135: 0 | AT135: 0 | AV135: =IF('Courbes de Production PV'!$C$4="Saisie Manuelle",'Courbes de Production PV'!F135*Données!$G$37,HLOOKUP('Courbes de Production PV'!$C$4&'Courbes de Production PV'!$C$5,'Courbes de Production PV'!$G$6:$AT$8768,'Compensation PV'!A157+2,FALSE)*Données!$G$37) -> 0 | AW135: 0
C136: 1 | D136: 6 | E136: 7 | G136: 0 | H136: 0 | I136: 0 | J136: 0 | K136: 0 | L136: 0 | M136: 0 | N136: 0 | O136: 0 | P136: 0 | Q136: 0 | R136: 0 | S136: 0 | T136: 0 | U136: 0 | V136: 0 | W136: 0 | X136: 0 | Y136: 0 | Z136: 0 | AA136: 0 | AB136: 0 | AC136: 0 | AD136: 0 | AE136: 0 | AF136: 0 | AG136: 0 | AH136: 0 | AI136: 0 | AJ136: 0 | AK136: 0 | AL136: 0 | AM136: 0 | AN136: 0 | AO136: 0 | AP136: 0 | AQ136: 0 | AR136: 0 | AS136: 0 | AT136: 0 | AV136: =IF('Courbes de Production PV'!$C$4="Saisie Manuelle",'Courbes de Production PV'!F136*Données!$G$37,HLOOKUP('Courbes de Production PV'!$C$4&'Courbes de Production PV'!$C$5,'Courbes de Production PV'!$G$6:$AT$8768,'Compensation PV'!A158+2,FALSE)*Données!$G$37) -> 0 | AW136: 0
C137: 1 | D137: 6 | E137: 8 | G137: 0.0466168 | H137: 0.0674111 | I137: 0.0573746 | J137: 0.0389177 | K137: 0.0475812 | L137: 0.0669263 | M137: 0.057072 | N137: 0.0395714 | O137: 0.0466797 | P137: 0.0680684 | Q137: 0.0575243 | R137: 0.0385901 | S137: 0.047957 | T137: 0.0634323 | U137: 0.0555329 | V137: 0.0407164 | W137: 0.0474026 | X137: 0.0667133 | Y137: 0.0572217 | Z137: 0.0397706 | AA137: 0.0475374 | AB137: 0.0658426 | AC137: 0.0568981 | AD137: 0.0401513 | AE137: 0.0478965 | AF137: 0.0648059 | AG137: 0.0563572 | AH137: 0.0405511 | AI137: 0.0481057 | AJ137: 0.062517 | AK137: 0.0549416 | AL137: 0.0408659 | AM137: 0.047248 | AN137: 0.0667657 | AO137: 0.0567239 | AP137: 0.0391213 | AQ137: 0.0467187 | AR137: 0.0654408 | AS137: 0.0562886 | AT137: 0.0393255 | AV137: =IF('Courbes de Production PV'!$C$4="Saisie Manuelle",'Courbes de Production PV'!F137*Données!$G$37,HLOOKUP('Courbes de Production PV'!$C$4&'Courbes de Production PV'!$C$5,'Courbes de Production PV'!$G$6:$AT$8768,'Compensation PV'!A159+2,FALSE)*Données!$G$37) -> 5.62886 | AW137: 5.62886
C138: 1 | D138: 6 | E138: 9 | G138: 0.138961 | H138: 0.216991 | I138: 0.194239 | J138: 0.13098 | K138: 0.148324 | L138: 0.231725 | M138: 0.205572 | N138: 0.136766 | O138: 0.138343 | P138: 0.214161 | Q138: 0.190905 | R138: 0.128838 | S138: 0.151907 | T138: 0.232083 | U138: 0.208517 | V138: 0.142493 | W138: 0.148126 | X138: 0.233897 | Y138: 0.20879 | Z138: 0.139014 | AA138: 0.149069 | AB138: 0.234344 | AC138: 0.210053 | AD138: 0.140872 | AE138: 0.151249 | AF138: 0.234511 | AG138: 0.210363 | AH138: 0.142295 | AI138: 0.151765 | AJ138: 0.228341 | AK138: 0.205121 | AL138: 0.141455 | AM138: 0.147182 | AN138: 0.229867 | AO138: 0.203331 | AP138: 0.134822 | AQ138: 0.139728 | AR138: 0.215709 | AS138: 0.193687 | AT138: 0.131919 | AV138: =IF('Courbes de Production PV'!$C$4="Saisie Manuelle",'Courbes de Production PV'!F138*Données!$G$37,HLOOKUP('Courbes de Production PV'!$C$4&'Courbes de Production PV'!$C$5,'Courbes de Production PV'!$G$6:$AT$8768,'Compensation PV'!A160+2,FALSE)*Données!$G$37) -> 19.3687 | AW138: =AV138*$AW$6 -> 19.3687
C139: 1 | D139: 6 | E139: 10 | G139: 0.252157 | H139: 0.405274 | I139: 0.389261 | J139: 0.279421 | K139: 0.28912 | L139: 0.472857 | M139: 0.449258 | N139: 0.316797 | O139: 0.248397 | P139: 0.395696 | Q139: 0.377738 | R139: 0.270608 | S139: 0.301561 | T139: 0.483224 | U139: 0.464617 | V139: 0.335251 | W139: 0.289878 | X139: 0.47843 | Y139: 0.458668 | Z139: 0.32524 | AA139: 0.292625 | AB139: 0.481272 | AC139: 0.463343 | AD139: 0.330668 | AE139: 0.299139 | AF139: 0.485742 | AG139: 0.467155 | AH139: 0.335012 | AI139: 0.298884 | AJ139: 0.473486 | AK139: 0.454008 | AL139: 0.328602 | AM139: 0.287724 | AN139: 0.469908 | AO139: 0.444932 | AP139: 0.312698 | AQ139: 0.254516 | AR139: 0.405348 | AS139: 0.390048 | AT139: 0.281781 | AV139: =IF('Courbes de Production PV'!$C$4="Saisie Manuelle",'Courbes de Production PV'!F139*Données!$G$37,HLOOKUP('Courbes de Production PV'!$C$4&'Courbes de Production PV'!$C$5,'Courbes de Production PV'!$G$6:$AT$8768,'Compensation PV'!A161+2,FALSE)*Données!$G$37) -> 39.0048 | AW139: 39.0048
C140: 1 | D140: 6 | E140: 11 | G140: 0.339848 | H140: 0.518733 | I140: 0.542391 | J140: 0.433514 | K140: 0.404577 | L140: 0.605679 | M140: 0.626432 | N140: 0.499254 | O140: 0.334084 | P140: 0.506751 | Q140: 0.525793 | R140: 0.418678 | S140: 0.420756 | T140: 0.617096 | U140: 0.645642 | V140: 0.523983 | W140: 0.404369 | X140: 0.610926 | Y140: 0.638507 | Z140: 0.511566 | AA140: 0.40749 | AB140: 0.61362 | AC140: 0.644119 | AD140: 0.518663 | AE140: 0.417551 | AF140: 0.620486 | AG140: 0.649994 | AH140: 0.525244 | AI140: 0.415882 | AJ140: 0.6038 | AK140: 0.629279 | AL140: 0.511265 | AM140: 0.403536 | AN140: 0.60277 | AO140: 0.621071 | AP140: 0.493802 | AQ140: 0.342919 | AR140: 0.519073 | AS140: 0.543489 | AT140: 0.436369 | AV140: =IF('Courbes de Production PV'!$C$4="Saisie Manuelle",'Courbes de Production PV'!F140*Données!$G$37,HLOOKUP('Courbes de Production PV'!$C$4&'Courbes de Production PV'!$C$5,'Courbes de Production PV'!$G$6:$AT$8768,'Compensation PV'!A162+2,FALSE)*Données!$G$37) -> 54.3489 | AW140: 54.3489
C141: 1 | D141: 6 | E141: 12 | G141: 0.374159 | H141: 0.535587 | I141: 0.616799 | J141: 0.542736 | K141: 0.459962 | L141: 0.640973 | M141: 0.727442 | N141: 0.639365 | O141: 0.368076 | P141: 0.524446 | Q141: 0.598066 | R141: 0.523857 | S141: 0.475918 | T141: 0.649386 | U141: 0.746448 | V141: 0.66626 | W141: 0.457165 | X141: 0.642475 | Y141: 0.738818 | Z141: 0.653036 | AA141: 0.459494 | AB141: 0.643592 | AC141: 0.743913 | AD141: 0.660431 | AE141: 0.472059 | AF141: 0.652438 | AG141: 0.75166 | AH141: 0.668903 | AI141: 0.470063 | AJ141: 0.635737 | AK141: 0.726956 | AL141: 0.648783 | AM141: 0.46022 | AN141: 0.63969 | AO141: 0.722567 | AP141: 0.633708 | AQ141: 0.377362 | AR141: 0.535673 | AS141: 0.61763 | AT141: 0.545416 | AV141: =IF('Courbes de Production PV'!$C$4="Saisie Manuelle",'Courbes de Production PV'!F141*Données!$G$37,HLOOKUP('Courbes de Production PV'!$C$4&'Courbes de Production PV'!$C$5,'Courbes de Production PV'!$G$6:$AT$8768,'Compensation PV'!A163+2,FALSE)*Données!$G$37) -> 61.763 | AW141: 61.763
C142: 1 | D142: 6 | E142: 13 | G142: 0.342836 | H142: 0.449562 | I142: 0.584244 | J142: 0.563843 | K142: 0.429137 | L142: 0.546998 | M142: 0.695646 | N142: 0.669698 | O142: 0.339177 | P142: 0.44327 | Q142: 0.567965 | R142: 0.545225 | S142: 0.439765 | T142: 0.548197 | U142: 0.709063 | V142: 0.692322 | W142: 0.422643 | X142: 0.542641 | Y142: 0.703301 | Z142: 0.68146 | AA142: 0.42306 | AB142: 0.541097 | AC142: 0.706353 | AD142: 0.687339 | AE142: 0.435621 | AF142: 0.5499 | AG142: 0.714009 | AH142: 0.695749 | AI142: 0.435407 | AJ142: 0.538389 | AK142: 0.690949 | AL142: 0.674013 | AM142: 0.431155 | AN142: 0.548314 | AO142: 0.692693 | AP142: 0.665271 | AQ142: 0.345406 | AR142: 0.449051 | AS142: 0.584292 | AT142: 0.565593 | AV142: =IF('Courbes de Production PV'!$C$4="Saisie Manuelle",'Courbes de Production PV'!F142*Données!$G$37,HLOOKUP('Courbes de Production PV'!$C$4&'Courbes de Production PV'!$C$5,'Courbes de Production PV'!$G$6:$AT$8768,'Compensation PV'!A164+2,FALSE)*Données!$G$37) -> 58.4292 | AW142: 58.4292
C143: 1 | D143: 6 | E143: 14 | G143: 0.262369 | H143: 0.300296 | I143: 0.459536 | J143: 0.487863 | K143: 0.327613 | L143: 0.371343 | M143: 0.552008 | N143: 0.582819 | O143: 0.262814 | P143: 0.301045 | Q143: 0.449616 | R143: 0.473951 | S143: 0.329958 | T143: 0.363921 | U143: 0.556413 | V143: 0.596208 | W143: 0.317935 | X143: 0.360566 | Y143: 0.552944 | Z143: 0.588938 | AA143: 0.316274 | AB143: 0.356419 | AC143: 0.55314 | AD143: 0.592009 | AE143: 0.326319 | AF143: 0.363824 | AG143: 0.559811 | AH143: 0.599264 | AI143: 0.329082 | AJ143: 0.361111 | AK143: 0.544531 | AL143: 0.582188 | AM143: 0.330506 | AN143: 0.374603 | AO143: 0.551172 | AP143: 0.580114 | AQ143: 0.263801 | AR143: 0.29933 | AS143: 0.458849 | AT143: 0.488435 | AV143: =IF('Courbes de Production PV'!$C$4="Saisie Manuelle",'Courbes de Production PV'!F143*Données!$G$37,HLOOKUP('Courbes de Production PV'!$C$4&'Courbes de Production PV'!$C$5,'Courbes de Production PV'!$G$6:$AT$8768,'Compensation PV'!A165+2,FALSE)*Données!$G$37) -> 45.8849 | AW143: 45.8849
C144: 1 | D144: 6 | E144: 15 | G144: 0.149791 | H144: 0.140555 | I144: 0.285171 | J144: 0.339173 | K144: 0.18478 | L144: 0.1727 | M144: 0.336277 | N144: 0.396086 | O144: 0.152711 | P144: 0.14561 | Q144: 0.281684 | R144: 0.331171 | S144: 0.181805 | T144: 0.162242 | U144: 0.33507 | V144: 0.402396 | W144: 0.175544 | X144: 0.160997 | Y144: 0.334113 | Z144: 0.399372 | AA144: 0.173066 | AB144: 0.15645 | AC144: 0.332797 | AD144: 0.400579 | AE144: 0.179057 | AF144: 0.160945 | AG144: 0.336688 | AH144: 0.404572 | AI144: 0.183497 | AJ144: 0.16442 | AK144: 0.329307 | AL144: 0.393377 | AM144: 0.187809 | AN144: 0.17655 | AO144: 0.337211 | AP144: 0.395245 | AQ144: 0.150271 | AR144: 0.139633 | AS144: 0.284336 | AT144: 0.339103 | AV144: =IF('Courbes de Production PV'!$C$4="Saisie Manuelle",'Courbes de Production PV'!F144*Données!$G$37,HLOOKUP('Courbes de Production PV'!$C$4&'Courbes de Production PV'!$C$5,'Courbes de Production PV'!$G$6:$AT$8768,'Compensation PV'!A166+2,FALSE)*Données!$G$37) -> 28.4336 | AW144: 28.4336
C145: 1 | D145: 6 | E145: 16 | G145: 0.0392819 | H145: 0.0304115 | I145: 0.06162 | J145: 0.0798773 | K145: 0.0422775 | L145: 0.0332582 | M145: 0.0634065 | N145: 0.0803394 | O145: 0.0400766 | P145: 0.031968 | Q145: 0.0596701 | R145: 0.0753149 | S145: 0.0409926 | T145: 0.0311446 | U145: 0.0633206 | V145: 0.0826297 | W145: 0.0406207 | X145: 0.0310458 | Y145: 0.0644154 | Z145: 0.0841248 | AA145: 0.0401553 | AB145: 0.0302327 | AC145: 0.0649103 | AD145: 0.0858828 | AE145: 0.040803 | AF145: 0.030914 | AG145: 0.0643137 | AH145: 0.0843972 | AI145: 0.0416307 | AJ145: 0.0320337 | AK145: 0.0622544 | AL145: 0.0800784 | AM145: 0.0425013 | AN145: 0.0336581 | AO145: 0.0629523 | AP145: 0.0791223 | AQ145: 0.0392405 | AR145: 0.0302522 | AS145: 0.0613178 | AT145: 0.0796665 | AV145: =IF('Courbes de Production PV'!$C$4="Saisie Manuelle",'Courbes de Production PV'!F145*Données!$G$37,HLOOKUP('Courbes de Production PV'!$C$4&'Courbes de Production PV'!$C$5,'Courbes de Production PV'!$G$6:$AT$8768,'Compensation PV'!A167+2,FALSE)*Données!$G$37) -> 6.13178 | AW145: 6.13178
C146: 1 | D146: 6 | E146: 17 | G146: 0 | H146: 0 | I146: 0 | J146: 0 | K146: 0 | L146: 0 | M146: 0 | N146: 0 | O146: 0 | P146: 0 | Q146: 0 | R146: 0 | S146: 0 | T146: 0 | U146: 0 | V146: 0 | W146: 0 | X146: 0 | Y146: 0 | Z146: 0 | AA146: 0 | AB146: 0 | AC146: 0 | AD146: 0 | AE146: 0 | AF146: 0 | AG146: 0 | AH146: 0 | AI146: 0 | AJ146: 0 | AK146: 0 | AL146: 0 | AM146: 0 | AN146: 0 | AO146: 0 | AP146: 0 | AQ146: 0 | AR146: 0 | AS146: 0 | AT146: 0 | AV146: =IF('Courbes de Production PV'!$C$4="Saisie Manuelle",'Courbes de Production PV'!F146*Données!$G$37,HLOOKUP('Courbes de Production PV'!$C$4&'Courbes de Production PV'!$C$5,'Courbes de Production PV'!$G$6:$AT$8768,'Compensation PV'!A168+2,FALSE)*Données!$G$37) -> 0 | AW146: 0
C147: 1 | D147: 6 | E147: 18 | G147: 0 | H147: 0 | I147: 0 | J147: 0 | K147: 0 | L147: 0 | M147: 0 | N147: 0 | O147: 0 | P147: 0 | Q147: 0 | R147: 0 | S147: 0 | T147: 0 | U147: 0 | V147: 0 | W147: 0 | X147: 0 | Y147: 0 | Z147: 0 | AA147: 0 | AB147: 0 | AC147: 0 | AD147: 0 | AE147: 0 | AF147: 0 | AG147: 0 | AH147: 0 | AI147: 0 | AJ147: 0 | AK147: 0 | AL147: 0 | AM147: 0 | AN147: 0 | AO147: 0 | AP147: 0 | AQ147: 0 | AR147: 0 | AS147: 0 | AT147: 0 | AV147: =IF('Courbes de Production PV'!$C$4="Saisie Manuelle",'Courbes de Production PV'!F147*Données!$G$37,HLOOKUP('Courbes de Production PV'!$C$4&'Courbes de Production PV'!$C$5,'Courbes de Production PV'!$G$6:$AT$8768,'Compensation PV'!A169+2,FALSE)*Données!$G$37) -> 0 | AW147: 0
C148: 1 | D148: 6 | E148: 19 | G148: 0 | H148: 0 | I148: 0 | J148: 0 | K148: 0 | L148: 0 | M148: 0 | N148: 0 | O148: 0 | P148: 0 | Q148: 0 | R148: 0 | S148: 0 | T148: 0 | U148: 0 | V148: 0 | W148: 0 | X148: 0 | Y148: 0 | Z148: 0 | AA148: 0 | AB148: 0 | AC148: 0 | AD148: 0 | AE148: 0 | AF148: 0 | AG148: 0 | AH148: 0 | AI148: 0 | AJ148: 0 | AK148: 0 | AL148: 0 | AM148: 0 | AN148: 0 | AO148: 0 | AP148: 0 | AQ148: 0 | AR148: 0 | AS148: 0 | AT148: 0 | AV148: =IF('Courbes de Production PV'!$C$4="Saisie Manuelle",'Courbes de Production PV'!F148*Données!$G$37,HLOOKUP('Courbes de Production PV'!$C$4&'Courbes de Production PV'!$C$5,'Courbes de Production PV'!$G$6:$AT$8768,'Compensation PV'!A170+2,FALSE)*Données!$G$37) -> 0 | AW148: 0
C149: 1 | D149: 6 | E149: 20 | G149: 0 | H149: 0 | I149: 0 | J149: 0 | K149: 0 | L149: 0 | M149: 0 | N149: 0 | O149: 0 | P149: 0 | Q149: 0 | R149: 0 | S149: 0 | T149: 0 | U149: 0 | V149: 0 | W149: 0 | X149: 0 | Y149: 0 | Z149: 0 | AA149: 0 | AB149: 0 | AC149: 0 | AD149: 0 | AE149: 0 | AF149: 0 | AG149: 0 | AH149: 0 | AI149: 0 | AJ149: 0 | AK149: 0 | AL149: 0 | AM149: 0 | AN149: 0 | AO149: 0 | AP149: 0 | AQ149: 0 | AR149: 0 | AS149: 0 | AT149: 0 | AV149: =IF('Courbes de Production PV'!$C$4="Saisie Manuelle",'Courbes de Production PV'!F149*Données!$G$37,HLOOKUP('Courbes de Production PV'!$C$4&'Courbes de Production PV'!$C$5,'Courbes de Production PV'!$G$6:$AT$8768,'Compensation PV'!A171+2,FALSE)*Données!$G$37) -> 0 | AW149: 0
C150: 1 | D150: 6 | E150: 21 | G150: 0 | H150: 0 | I150: 0 | J150: 0 | K150: 0 | L150: 0 | M150: 0 | N150: 0 | O150: 0 | P150: 0 | Q150: 0 | R150: 0 | S150: 0 | T150: 0 | U150: 0 | V150: 0 | W150: 0 | X150: 0 | Y150: 0 | Z150: 0 | AA150: 0 | AB150: 0 | AC150: 0 | AD150: 0 | AE150: 0 | AF150: 0 | AG150: 0 | AH150: 0 | AI150: 0 | AJ150: 0 | AK150: 0 | AL150: 0 | AM150: 0 | AN150: 0 | AO150: 0 | AP150: 0 | AQ150: 0 | AR150: 0 | AS150: 0 | AT150: 0 | AV150: =IF('Courbes de Production PV'!$C$4="Saisie Manuelle",'Courbes de Production PV'!F150*Données!$G$37,HLOOKUP('Courbes de Production PV'!$C$4&'Courbes de Production PV'!$C$5,'Courbes de Production PV'!$G$6:$AT$8768,'Compensation PV'!A172+2,FALSE)*Données!$G$37) -> 0 | AW150: 0
C151: 1 | D151: 6 | E151: 22 | G151: 0 | H151: 0 | I151: 0 | J151: 0 | K151: 0 | L151: 0 | M151: 0 | N151: 0 | O151: 0 | P151: 0 | Q151: 0 | R151: 0 | S151: 0 | T151: 0 | U151: 0 | V151: 0 | W151: 0 | X151: 0 | Y151: 0 | Z151: 0 | AA151: 0 | AB151: 0 | AC151: 0 | AD151: 0 | AE151: 0 | AF151: 0 | AG151: 0 | AH151: 0 | AI151: 0 | AJ151: 0 | AK151: 0 | AL151: 0 | AM151: 0 | AN151: 0 | AO151: 0 | AP151: 0 | AQ151: 0 | AR151: 0 | AS151: 0 | AT151: 0 | AV151: =IF('Courbes de Production PV'!$C$4="Saisie Manuelle",'Courbes de Production PV'!F151*Données!$G$37,HLOOKUP('Courbes de Production PV'!$C$4&'Courbes de Production PV'!$C$5,'Courbes de Production PV'!$G$6:$AT$8768,'Compensation PV'!A173+2,FALSE)*Données!$G$37) -> 0 | AW151: 0
C152: 1 | D152: 6 | E152: 23 | G152: 0 | H152: 0 | I152: 0 | J152: 0 | K152: 0 | L152: 0 | M152: 0 | N152: 0 | O152: 0 | P152: 0 | Q152: 0 | R152: 0 | S152: 0 | T152: 0 | U152: 0 | V152: 0 | W152: 0 | X152: 0 | Y152: 0 | Z152: 0 | AA152: 0 | AB152: 0 | AC152: 0 | AD152: 0 | AE152: 0 | AF152: 0 | AG152: 0 | AH152: 0 | AI152: 0 | AJ152: 0 | AK152: 0 | AL152: 0 | AM152: 0 | AN152: 0 | AO152: 0 | AP152: 0 | AQ152: 0 | AR152: 0 | AS152: 0 | AT152: 0 | AV152: =IF('Courbes de Production PV'!$C$4="Saisie Manuelle",'Courbes de Production PV'!F152*Données!$G$37,HLOOKUP('Courbes de Production PV'!$C$4&'Courbes de Production PV'!$C$5,'Courbes de Production PV'!$G$6:$AT$8768,'Compensation PV'!A174+2,FALSE)*Données!$G$37) -> 0 | AW152: 0
C153: 1 | D153: 7 | E153: 0 | G153: 0 | H153: 0 | I153: 0 | J153: 0 | K153: 0 | L153: 0 | M153: 0 | N153: 0 | O153: 0 | P153: 0 | Q153: 0 | R153: 0 | S153: 0 | T153: 0 | U153: 0 | V153: 0 | W153: 0 | X153: 0 | Y153: 0 | Z153: 0 | AA153: 0 | AB153: 0 | AC153: 0 | AD153: 0 | AE153: 0 | AF153: 0 | AG153: 0 | AH153: 0 | AI153: 0 | AJ153: 0 | AK153: 0 | AL153: 0 | AM153: 0 | AN153: 0 | AO153: 0 | AP153: 0 | AQ153: 0 | AR153: 0 | AS153: 0 | AT153: 0 | AV153: =IF('Courbes de Production PV'!$C$4="Saisie Manuelle",'Courbes de Production PV'!F153*Données!$G$37,HLOOKUP('Courbes de Production PV'!$C$4&'Courbes de Production PV'!$C$5,'Courbes de Production PV'!$G$6:$AT$8768,'Compensation PV'!A175+2,FALSE)*Données!$G$37) -> 0 | AW153: 0
C154: 1 | D154: 7 | E154: 1 | G154: 0 | H154: 0 | I154: 0 | J154: 0 | K154: 0 | L154: 0 | M154: 0 | N154: 0 | O154: 0 | P154: 0 | Q154: 0 | R154: 0 | S154: 0 | T154: 0 | U154: 0 | V154: 0 | W154: 0 | X154: 0 | Y154: 0 | Z154: 0 | AA154: 0 | AB154: 0 | AC154: 0 | AD154: 0 | AE154: 0 | AF154: 0 | AG154: 0 | AH154: 0 | AI154: 0 | AJ154: 0 | AK154: 0 | AL154: 0 | AM154: 0 | AN154: 0 | AO154: 0 | AP154: 0 | AQ154: 0 | AR154: 0 | AS154: 0 | AT154: 0 | AV154: =IF('Courbes de Production PV'!$C$4="Saisie Manuelle",'Courbes de Production PV'!F154*Données!$G$37,HLOOKUP('Courbes de Production PV'!$C$4&'Courbes de Production PV'!$C$5,'Courbes de Production PV'!$G$6:$AT$8768,'Compensation PV'!A176+2,FALSE)*Données!$G$37) -> 0 | AW154: 0
C155: 1 | D155: 7 | E155: 2 | G155: 0 | H155: 0 | I155: 0 | J155: 0 | K155: 0 | L155: 0 | M155: 0 | N155: 0 | O155: 0 | P155: 0 | Q155: 0 | R155: 0 | S155: 0 | T155: 0 | U155: 0 | V155: 0 | W155: 0 | X155: 0 | Y155: 0 | Z155: 0 | AA155: 0 | AB155: 0 | AC155: 0 | AD155: 0 | AE155: 0 | AF155: 0 | AG155: 0 | AH155: 0 | AI155: 0 | AJ155: 0 | AK155: 0 | AL155: 0 | AM155: 0 | AN155: 0 | AO155: 0 | AP155: 0 | AQ155: 0 | AR155: 0 | AS155: 0 | AT155: 0 | AV155: =IF('Courbes de Production PV'!$C$4="Saisie Manuelle",'Courbes de Production PV'!F155*Données!$G$37,HLOOKUP('Courbes de Production PV'!$C$4&'Courbes de Production PV'!$C$5,'Courbes de Production PV'!$G$6:$AT$8768,'Compensation PV'!A177+2,FALSE)*Données!$G$37) -> 0 | AW155: 0
C156: 1 | D156: 7 | E156: 3 | G156: 0 | H156: 0 | I156: 0 | J156: 0 | K156: 0 | L156: 0 | M156: 0 | N156: 0 | O156: 0 | P156: 0 | Q156: 0 | R156: 0 | S156: 0 | T156: 0 | U156: 0 | V156: 0 | W156: 0 | X156: 0 | Y156: 0 | Z156: 0 | AA156: 0 | AB156: 0 | AC156: 0 | AD156: 0 | AE156: 0 | AF156: 0 | AG156: 0 | AH156: 0 | AI156: 0 | AJ156: 0 | AK156: 0 | AL156: 0 | AM156: 0 | AN156: 0 | AO156: 0 | AP156: 0 | AQ156: 0 | AR156: 0 | AS156: 0 | AT156: 0 | AV156: =IF('Courbes de Production PV'!$C$4="Saisie Manuelle",'Courbes de Production PV'!F156*Données!$G$37,HLOOKUP('Courbes de Production PV'!$C$4&'Courbes de Production PV'!$C$5,'Courbes de Production PV'!$G$6:$AT$8768,'Compensation PV'!A178+2,FALSE)*Données!$G$37) -> 0 | AW156: 0
C157: 1 | D157: 7 | E157: 4 | G157: 0 | H157: 0 | I157: 0 | J157: 0 | K157: 0 | L157: 0 | M157: 0 | N157: 0 | O157: 0 | P157: 0 | Q157: 0 | R157: 0 | S157: 0 | T157: 0 | U157: 0 | V157: 0 | W157: 0 | X157: 0 | Y157: 0 | Z157: 0 | AA157: 0 | AB157: 0 | AC157: 0 | AD157: 0 | AE157: 0 | AF157: 0 | AG157: 0 | AH157: 0 | AI157: 0 | AJ157: 0 | AK157: 0 | AL157: 0 | AM157: 0 | AN157: 0 | AO157: 0 | AP157: 0 | AQ157: 0 | AR157: 0 | AS157: 0 | AT157: 0 | AV157: =IF('Courbes de Production PV'!$C$4="Saisie Manuelle",'Courbes de Production PV'!F157*Données!$G$37,HLOOKUP('Courbes de Production PV'!$C$4&'Courbes de Production PV'!$C$5,'Courbes de Production PV'!$G$6:$AT$8768,'Compensation PV'!A179+2,FALSE)*Données!$G$37) -> 0 | AW157: 0
C158: 1 | D158: 7 | E158: 5 | G158: 0 | H158: 0 | I158: 0 | J158: 0 | K158: 0 | L158: 0 | M158: 0 | N158: 0 | O158: 0 | P158: 0 | Q158: 0 | R158: 0 | S158: 0 | T158: 0 | U158: 0 | V158: 0 | W158: 0 | X158: 0 | Y158: 0 | Z158: 0 | AA158: 0 | AB158: 0 | AC158: 0 | AD158: 0 | AE158: 0 | AF158: 0 | AG158: 0 | AH158: 0 | AI158: 0 | AJ158: 0 | AK158: 0 | AL158: 0 | AM158: 0 | AN158: 0 | AO158: 0 | AP158: 0 | AQ158: 0 | AR158: 0 | AS158: 0 | AT158: 0 | AV158: =IF('Courbes de Production PV'!$C$4="Saisie Manuelle",'Courbes de Production PV'!F158*Données!$G$37,HLOOKUP('Courbes de Production PV'!$C$4&'Courbes de Production PV'!$C$5,'Courbes de Production PV'!$G$6:$AT$8768,'Compensation PV'!A180+2,FALSE)*Données!$G$37) -> 0 | AW158: 0
C159: 1 | D159: 7 | E159: 6 | G159: 0 | H159: 0 | I159: 0 | J159: 0 | K159: 0 | L159: 0 | M159: 0 | N159: 0 | O159: 0 | P159: 0 | Q159: 0 | R159: 0 | S159: 0 | T159: 0 | U159: 0 | V159: 0 | W159: 0 | X159: 0 | Y159: 0 | Z159: 0 | AA159: 0 | AB159: 0 | AC159: 0 | AD159: 0 | AE159: 0 | AF159: 0 | AG159: 0 | AH159: 0 | AI159: 0 | AJ159: 0 | AK159: 0 | AL159: 0 | AM159: 0 | AN159: 0 | AO159: 0 | AP159: 0 | AQ159: 0 | AR159: 0 | AS159: 0 | AT159: 0 | AV159: =IF('Courbes de Production PV'!$C$4="Saisie Manuelle",'Courbes de Production PV'!F159*Données!$G$37,HLOOKUP('Courbes de Production PV'!$C$4&'Courbes de Production PV'!$C$5,'Courbes de Production PV'!$G$6:$AT$8768,'Compensation PV'!A181+2,FALSE)*Données!$G$37) -> 0 | AW159: 0
C160: 1 | D160: 7 | E160: 7 | G160: 0 | H160: 0 | I160: 0 | J160: 0 | K160: 0 | L160: 0 | M160: 0 | N160: 0 | O160: 0 | P160: 0 | Q160: 0 | R160: 0 | S160: 0 | T160: 0 | U160: 0 | V160: 0 | W160: 0 | X160: 0 | Y160: 0 | Z160: 0 | AA160: 0 | AB160: 0 | AC160: 0 | AD160: 0 | AE160: 0 | AF160: 0 | AG160: 0 | AH160: 0 | AI160: 0 | AJ160: 0 | AK160: 0 | AL160: 0 | AM160: 0 | AN160: 0 | AO160: 0 | AP160: 0 | AQ160: 0 | AR160: 0 | AS160: 0 | AT160: 0 | AV160: =IF('Courbes de Production PV'!$C$4="Saisie Manuelle",'Courbes de Production PV'!F160*Données!$G$37,HLOOKUP('Courbes de Production PV'!$C$4&'Courbes de Production PV'!$C$5,'Courbes de Production PV'!$G$6:$AT$8768,'Compensation PV'!A182+2,FALSE)*Données!$G$37) -> 0 | AW160: 0
C161: 1 | D161: 7 | E161: 8 | G161: 0.0339925 | H161: 0.0332116 | I161: 0.0320227 | J161: 0.0297705 | K161: 0.0342298 | L161: 0.032011 | M161: 0.0313616 | N161: 0.030166 | O161: 0.0341879 | P161: 0.0338794 | Q161: 0.0324592 | R161: 0.029822 | S161: 0.0338249 | T161: 0.0300736 | U161: 0.0300736 | V161: 0.0300736 | W161: 0.0339227 | X161: 0.0315013 | Y161: 0.0309668 | Z161: 0.0299557 | AA161: 0.0338668 | AB161: 0.030999 | AC161: 0.0306503 | AD161: 0.0299826 | AE161: 0.0339646 | AF161: 0.0305638 | AG161: 0.0304202 | AH161: 0.0301464 | AI161: 0.0339925 | AJ161: 0.0302222 | AK161: 0.0302222 | AL161: 0.0302222 | AM161: 0.0339786 | AN161: 0.0318966 | AO161: 0.0311921 | AP161: 0.0299073 | AQ161: 0.0339506 | AR161: 0.0323336 | AS161: 0.031484 | AT161: 0.0298669 | AV161: =IF('Courbes de Production PV'!$C$4="Saisie Manuelle",'Courbes de Production PV'!F161*Données!$G$37,HLOOKUP('Courbes de Production PV'!$C$4&'Courbes de Production PV'!$C$5,'Courbes de Production PV'!$G$6:$AT$8768,'Compensation PV'!A183+2,FALSE)*Données!$G$37) -> 3.1484 | AW161: 3.1484
C162: 1 | D162: 7 | E162: 9 | G162: 0.107483 | H162: 0.118158 | I162: 0.112594 | J162: 0.0975174 | K162: 0.109265 | L162: 0.118166 | M162: 0.112637 | N162: 0.0984621 | O162: 0.107897 | P162: 0.118347 | Q162: 0.112564 | R162: 0.0975132 | S162: 0.108701 | T162: 0.115142 | U162: 0.110653 | V162: 0.0983897 | W162: 0.108469 | X162: 0.11791 | Y162: 0.112605 | Z162: 0.0982487 | AA162: 0.108448 | AB162: 0.11735 | AC162: 0.112332 | AD162: 0.0984136 | AE162: 0.10897 | AF162: 0.116639 | AG162: 0.111861 | AH162: 0.0987359 | AI162: 0.109103 | AJ162: 0.114611 | AK162: 0.110247 | AL162: 0.0985722 | AM162: 0.108488 | AN162: 0.117291 | AO162: 0.111684 | AP162: 0.0975765 | AQ162: 0.107475 | AR162: 0.11691 | AS162: 0.111719 | AT162: 0.097528 | AV162: =IF('Courbes de Production PV'!$C$4="Saisie Manuelle",'Courbes de Production PV'!F162*Données!$G$37,HLOOKUP('Courbes de Production PV'!$C$4&'Courbes de Production PV'!$C$5,'Courbes de Production PV'!$G$6:$AT$8768,'Compensation PV'!A184+2,FALSE)*Données!$G$37) -> 11.1719 | AW162: 11.1719
C163: 1 | D163: 7 | E163: 10 | G163: 0.190119 | H163: 0.240315 | I163: 0.23384 | J163: 0.19117 | K163: 0.201167 | L163: 0.265671 | M163: 0.256066 | N163: 0.204216 | O163: 0.18978 | P163: 0.237972 | Q163: 0.230698 | R163: 0.18888 | S163: 0.203182 | T163: 0.264979 | U163: 0.257568 | V163: 0.208223 | W163: 0.200299 | X163: 0.266797 | Y163: 0.258709 | Z163: 0.206398 | AA163: 0.200865 | AB163: 0.266992 | AC163: 0.259675 | AD163: 0.207915 | AE163: 0.203012 | AF163: 0.267348 | AG163: 0.259871 | AH163: 0.208993 | AI163: 0.203022 | AJ163: 0.262094 | AK163: 0.254355 | AL163: 0.206525 | AM163: 0.199882 | AN163: 0.263706 | AO163: 0.253571 | AP163: 0.201924 | AQ163: 0.190616 | AR163: 0.239131 | AS163: 0.233016 | AT163: 0.191472 | AV163: =IF('Courbes de Production PV'!$C$4="Saisie Manuelle",'Courbes de Production PV'!F163*Données!$G$37,HLOOKUP('Courbes de Production PV'!$C$4&'Courbes de Production PV'!$C$5,'Courbes de Production PV'!$G$6:$AT$8768,'Compensation PV'!A185+2,FALSE)*Données!$G$37) -> 23.3016 | AW163: 23.3016
C164: 1 | D164: 7 | E164: 11 | G164: 0.256483 | H164: 0.324316 | I164: 0.334493 | J164: 0.28705 | K164: 0.276501 | L164: 0.348197 | M164: 0.356485 | N164: 0.304754 | O164: 0.255785 | P164: 0.321327 | Q164: 0.329531 | R164: 0.282623 | S164: 0.279246 | T164: 0.347868 | U164: 0.359162 | V164: 0.310406 | W164: 0.274943 | X164: 0.349052 | Y164: 0.360166 | Z164: 0.308356 | AA164: 0.275586 | AB164: 0.349305 | AC164: 0.361585 | AD164: 0.310492 | AE164: 0.279005 | AF164: 0.350652 | AG164: 0.362406 | AH164: 0.312102 | AI164: 0.278627 | AJ164: 0.343981 | AK164: 0.35405 | AL164: 0.306727 | AM164: 0.274946 | AN164: 0.345812 | AO164: 0.353081 | AP164: 0.301442 | AQ164: 0.25716 | AR164: 0.323302 | AS164: 0.333738 | AT164: 0.287376 | AV164: =IF('Courbes de Production PV'!$C$4="Saisie Manuelle",'Courbes de Production PV'!F164*Données!$G$37,HLOOKUP('Courbes de Production PV'!$C$4&'Courbes de Production PV'!$C$5,'Courbes de Production PV'!$G$6:$AT$8768,'Compensation PV'!A186+2,FALSE)*Données!$G$37) -> 33.3738 | AW164: 33.3738
C165: 1 | D165: 7 | E165: 12 | G165: 0.29023 | H165: 0.349964 | I165: 0.386064 | J165: 0.352827 | K165: 0.318939 | L165: 0.382678 | M165: 0.418833 | N165: 0.381651 | O165: 0.289472 | P165: 0.347053 | Q165: 0.379828 | R165: 0.34649 | S165: 0.321642 | T165: 0.391415 | U165: 0.434695 | V165: 0.398538 | W165: 0.316241 | X165: 0.382175 | Y165: 0.422686 | Z165: 0.386245 | AA165: 0.31666 | AB165: 0.382034 | AC165: 0.424187 | AD165: 0.388733 | AE165: 0.321252 | AF165: 0.394085 | AG165: 0.438438 | AH165: 0.401036 | AI165: 0.320743 | AJ165: 0.377582 | AK165: 0.41532 | AL165: 0.382632 | AM165: 0.31751 | AN165: 0.380515 | AO165: 0.415059 | AP165: 0.377671 | AQ165: 0.290987 | AR165: 0.349003 | AS165: 0.385234 | AT165: 0.352998 | AV165: =IF('Courbes de Production PV'!$C$4="Saisie Manuelle",'Courbes de Production PV'!F165*Données!$G$37,HLOOKUP('Courbes de Production PV'!$C$4&'Courbes de Production PV'!$C$5,'Courbes de Production PV'!$G$6:$AT$8768,'Compensation PV'!A187+2,FALSE)*Données!$G$37) -> 38.5234 | AW165: 38.5234
C166: 1 | D166: 7 | E166: 13 | G166: 0.268119 | H166: 0.289458 | I166: 0.33574 | J166: 0.32853 | K166: 0.287598 | L166: 0.315724 | M166: 0.366266 | N166: 0.357186 | O166: 0.268839 | P166: 0.288843 | Q166: 0.331431 | R166: 0.323468 | S166: 0.286748 | T166: 0.311388 | U166: 0.365256 | V166: 0.359445 | W166: 0.283965 | X166: 0.313071 | Y166: 0.368097 | Z166: 0.360363 | AA166: 0.283635 | AB166: 0.31208 | AC166: 0.368659 | AD166: 0.361909 | AE166: 0.286957 | AF166: 0.313681 | AG166: 0.369109 | AH166: 0.362721 | AI166: 0.287094 | AJ166: 0.310062 | AK166: 0.361269 | AL166: 0.35538 | AM166: 0.28611 | AN166: 0.313904 | AO166: 0.362673 | AP166: 0.353149 | AQ166: 0.268323 | AR166: 0.288315 | AS166: 0.33438 | AT166: 0.327823 | AV166: =IF('Courbes de Production PV'!$C$4="Saisie Manuelle",'Courbes de Production PV'!F166*Données!$G$37,HLOOKUP('Courbes de Production PV'!$C$4&'Courbes de Production PV'!$C$5,'Courbes de Production PV'!$G$6:$AT$8768,'Compensation PV'!A188+2,FALSE)*Données!$G$37) -> 33.438 | AW166: 33.438
C167: 1 | D167: 7 | E167: 14 | G167: 0.20831 | H167: 0.209351 | I167: 0.262479 | J167: 0.272148 | K167: 0.222978 | L167: 0.227623 | M167: 0.286254 | N167: 0.296487 | O167: 0.209605 | P167: 0.210282 | Q167: 0.259099 | R167: 0.267256 | S167: 0.220932 | T167: 0.222568 | U167: 0.28453 | V167: 0.297704 | W167: 0.219116 | X167: 0.223743 | Y167: 0.28726 | Z167: 0.299466 | AA167: 0.218436 | AB167: 0.222333 | AC167: 0.287507 | AD167: 0.300754 | AE167: 0.22108 | AF167: 0.2239 | AG167: 0.287721 | AH167: 0.300935 | AI167: 0.221786 | AJ167: 0.222736 | AK167: 0.281669 | AL167: 0.294095 | AM167: 0.221983 | AN167: 0.226708 | AO167: 0.283422 | AP167: 0.292925 | AQ167: 0.208334 | AR167: 0.208488 | AS167: 0.261302 | AT167: 0.271328 | AV167: =IF('Courbes de Production PV'!$C$4="Saisie Manuelle",'Courbes de Production PV'!F167*Données!$G$37,HLOOKUP('Courbes de Production PV'!$C$4&'Courbes de Production PV'!$C$5,'Courbes de Production PV'!$G$6:$AT$8768,'Compensation PV'!A189+2,FALSE)*Données!$G$37) -> 26.1302 | AW167: 26.1302
C168: 1 | D168: 7 | E168: 15 | G168: 0.121793 | H168: 0.111227 | I168: 0.156334 | J168: 0.1736 | K168: 0.130188 | L168: 0.120933 | M168: 0.171832 | N168: 0.190992 | O168: 0.123037 | P168: 0.112979 | Q168: 0.153759 | R168: 0.168946 | S168: 0.128252 | T168: 0.11673 | U168: 0.170838 | V168: 0.19257 | W168: 0.127205 | X168: 0.117116 | Y168: 0.172698 | Z168: 0.194288 | AA168: 0.126491 | AB168: 0.115702 | AC168: 0.172903 | AD168: 0.195561 | AE168: 0.128107 | AF168: 0.116934 | AG168: 0.172747 | AH168: 0.194971 | AI168: 0.129146 | AJ168: 0.117781 | AK168: 0.16899 | AL168: 0.189491 | AM168: 0.130039 | AN168: 0.121134 | AO168: 0.170423 | AP168: 0.188749 | AQ168: 0.121763 | AR168: 0.110771 | AS168: 0.155631 | AT168: 0.173038 | AV168: =IF('Courbes de Production PV'!$C$4="Saisie Manuelle",'Courbes de Production PV'!F168*Données!$G$37,HLOOKUP('Courbes de Production PV'!$C$4&'Courbes de Production PV'!$C$5,'Courbes de Production PV'!$G$6:$AT$8768,'Compensation PV'!A190+2,FALSE)*Données!$G$37) -> 15.5631 | AW168: 15.5631
C169: 1 | D169: 7 | E169: 16 | G169: 0.0360156 | H169: 0.0303751 | I169: 0.0388454 | J169: 0.0437464 | K169: 0.0369343 | L169: 0.0317293 | M169: 0.0400898 | N169: 0.0447551 | O169: 0.0363919 | P169: 0.0312318 | Q169: 0.0373869 | R169: 0.0408728 | S169: 0.0362348 | T169: 0.0305286 | U169: 0.0405555 | V169: 0.0464566 | W169: 0.0362505 | X169: 0.0304487 | Y169: 0.0415825 | Z169: 0.0480051 | AA169: 0.0360891 | AB169: 0.0299386 | AC169: 0.0423603 | AD169: 0.0496356 | AE169: 0.0363342 | AF169: 0.0304418 | AG169: 0.0414655 | AH169: 0.0479333 | AI169: 0.0365475 | AJ169: 0.0311039 | AK169: 0.0398171 | AL169: 0.0448962 | AM169: 0.0367292 | AN169: 0.0316998 | AO169: 0.0393745 | AP169: 0.0435998 | AQ169: 0.0359637 | AR169: 0.0302987 | AS169: 0.0387049 | AT169: 0.0436145 | AV169: =IF('Courbes de Production PV'!$C$4="Saisie Manuelle",'Courbes de Production PV'!F169*Données!$G$37,HLOOKUP('Courbes de Production PV'!$C$4&'Courbes de Production PV'!$C$5,'Courbes de Production PV'!$G$6:$AT$8768,'Compensation PV'!A191+2,FALSE)*Données!$G$37) -> 3.87049 | AW169: 3.87049
C170: 1 | D170: 7 | E170: 17 | G170: 0 | H170: 0 | I170: 0 | J170: 0 | K170: 0 | L170: 0 | M170: 0 | N170: 0 | O170: 0 | P170: 0 | Q170: 0 | R170: 0 | S170: 0 | T170: 0 | U170: 0 | V170: 0 | W170: 0 | X170: 0 | Y170: 0 | Z170: 0 | AA170: 0 | AB170: 0 | AC170: 0 | AD170: 0 | AE170: 0 | AF170: 0 | AG170: 0 | AH170: 0 | AI170: 0 | AJ170: 0 | AK170: 0 | AL170: 0 | AM170: 0 | AN170: 0 | AO170: 0 | AP170: 0 | AQ170: 0 | AR170: 0 | AS170: 0 | AT170: 0 | AV170: =IF('Courbes de Production PV'!$C$4="Saisie Manuelle",'Courbes de Production PV'!F170*Données!$G$37,HLOOKUP('Courbes de Production PV'!$C$4&'Courbes de Production PV'!$C$5,'Courbes de Production PV'!$G$6:$AT$8768,'Compensation PV'!A192+2,FALSE)*Données!$G$37) -> 0 | AW170: 0
C171: 1 | D171: 7 | E171: 18 | G171: 0 | H171: 0 | I171: 0 | J171: 0 | K171: 0 | L171: 0 | M171: 0 | N171: 0 | O171: 0 | P171: 0 | Q171: 0 | R171: 0 | S171: 0 | T171: 0 | U171: 0 | V171: 0 | W171: 0 | X171: 0 | Y171: 0 | Z171: 0 | AA171: 0 | AB171: 0 | AC171: 0 | AD171: 0 | AE171: 0 | AF171: 0 | AG171: 0 | AH171: 0 | AI171: 0 | AJ171: 0 | AK171: 0 | AL171: 0 | AM171: 0 | AN171: 0 | AO171: 0 | AP171: 0 | AQ171: 0 | AR171: 0 | AS171: 0 | AT171: 0 | AV171: =IF('Courbes de Production PV'!$C$4="Saisie Manuelle",'Courbes de Production PV'!F171*Données!$G$37,HLOOKUP('Courbes de Production PV'!$C$4&'Courbes de Production PV'!$C$5,'Courbes de Production PV'!$G$6:$AT$8768,'Compensation PV'!A193+2,FALSE)*Données!$G$37) -> 0 | AW171: 0
C172: 1 | D172: 7 | E172: 19 | G172: 0 | H172: 0 | I172: 0 | J172: 0 | K172: 0 | L172: 0 | M172: 0 | N172: 0 | O172: 0 | P172: 0 | Q172: 0 | R172: 0 | S172: 0 | T172: 0 | U172: 0 | V172: 0 | W172: 0 | X172: 0 | Y172: 0 | Z172: 0 | AA172: 0 | AB172: 0 | AC172: 0 | AD172: 0 | AE172: 0 | AF172: 0 | AG172: 0 | AH172: 0 | AI172: 0 | AJ172: 0 | AK172: 0 | AL172: 0 | AM172: 0 | AN172: 0 | AO172: 0 | AP172: 0 | AQ172: 0 | AR172: 0 | AS172: 0 | AT172: 0 | AV172: =IF('Courbes de Production PV'!$C$4="Saisie Manuelle",'Courbes de Production PV'!F172*Données!$G$37,HLOOKUP('Courbes de Production PV'!$C$4&'Courbes de Production PV'!$C$5,'Courbes de Production PV'!$G$6:$AT$8768,'Compensation PV'!A194+2,FALSE)*Données!$G$37) -> 0 | AW172: 0
C173: 1 | D173: 7 | E173: 20 | G173: 0 | H173: 0 | I173: 0 | J173: 0 | K173: 0 | L173: 0 | M173: 0 | N173: 0 | O173: 0 | P173: 0 | Q173: 0 | R173: 0 | S173: 0 | T173: 0 | U173: 0 | V173: 0 | W173: 0 | X173: 0 | Y173: 0 | Z173: 0 | AA173: 0 | AB173: 0 | AC173: 0 | AD173: 0 | AE173: 0 | AF173: 0 | AG173: 0 | AH173: 0 | AI173: 0 | AJ173: 0 | AK173: 0 | AL173: 0 | AM173: 0 | AN173: 0 | AO173: 0 | AP173: 0 | AQ173: 0 | AR173: 0 | AS173: 0 | AT173: 0 | AV173: =IF('Courbes de Production PV'!$C$4="Saisie Manuelle",'Courbes de Production PV'!F173*Données!$G$37,HLOOKUP('Courbes de Production PV'!$C$4&'Courbes de Production PV'!$C$5,'Courbes de Production PV'!$G$6:$AT$8768,'Compensation PV'!A195+2,FALSE)*Données!$G$37) -> 0 | AW173: 0
C174: 1 | D174: 7 | E174: 21 | G174: 0 | H174: 0 | I174: 0 | J174: 0 | K174: 0 | L174: 0 | M174: 0 | N174: 0 | O174: 0 | P174: 0 | Q174: 0 | R174: 0 | S174: 0 | T174: 0 | U174: 0 | V174: 0 | W174: 0 | X174: 0 | Y174: 0 | Z174: 0 | AA174: 0 | AB174: 0 | AC174: 0 | AD174: 0 | AE174: 0 | AF174: 0 | AG174: 0 | AH174: 0 | AI174: 0 | AJ174: 0 | AK174: 0 | AL174: 0 | AM174: 0 | AN174: 0 | AO174: 0 | AP174: 0 | AQ174: 0 | AR174: 0 | AS174: 0 | AT174: 0 | AV174: =IF('Courbes de Production PV'!$C$4="Saisie Manuelle",'Courbes de Production PV'!F174*Données!$G$37,HLOOKUP('Courbes de Production PV'!$C$4&'Courbes de Production PV'!$C$5,'Courbes de Production PV'!$G$6:$AT$8768,'Compensation PV'!A196+2,FALSE)*Données!$G$37) -> 0 | AW174: 0
C175: 1 | D175: 7 | E175: 22 | G175: 0 | H175: 0 | I175: 0 | J175: 0 | K175: 0 | L175: 0 | M175: 0 | N175: 0 | O175: 0 | P175: 0 | Q175: 0 | R175: 0 | S175: 0 | T175: 0 | U175: 0 | V175: 0 | W175: 0 | X175: 0 | Y175: 0 | Z175: 0 | AA175: 0 | AB175: 0 | AC175: 0 | AD175: 0 | AE175: 0 | AF175: 0 | AG175: 0 | AH175: 0 | AI175: 0 | AJ175: 0 | AK175: 0 | AL175: 0 | AM175: 0 | AN175: 0 | AO175: 0 | AP175: 0 | AQ175: 0 | AR175: 0 | AS175: 0 | AT175: 0 | AV175: =IF('Courbes de Production PV'!$C$4="Saisie Manuelle",'Courbes de Production PV'!F175*Données!$G$37,HLOOKUP('Courbes de Production PV'!$C$4&'Courbes de Production PV'!$C$5,'Courbes de Production PV'!$G$6:$AT$8768,'Compensation PV'!A197+2,FALSE)*Données!$G$37) -> 0 | AW175: 0
C176: 1 | D176: 7 | E176: 23 | G176: 0 | H176: 0 | I176: 0 | J176: 0 | K176: 0 | L176: 0 | M176: 0 | N176: 0 | O176: 0 | P176: 0 | Q176: 0 | R176: 0 | S176: 0 | T176: 0 | U176: 0 | V176: 0 | W176: 0 | X176: 0 | Y176: 0 | Z176: 0 | AA176: 0 | AB176: 0 | AC176: 0 | AD176: 0 | AE176: 0 | AF176: 0 | AG176: 0 | AH176: 0 | AI176: 0 | AJ176: 0 | AK176: 0 | AL176: 0 | AM176: 0 | AN176: 0 | AO176: 0 | AP176: 0 | AQ176: 0 | AR176: 0 | AS176: 0 | AT176: 0 | AV176: =IF('Courbes de Production PV'!$C$4="Saisie Manuelle",'Courbes de Production PV'!F176*Données!$G$37,HLOOKUP('Courbes de Production PV'!$C$4&'Courbes de Production PV'!$C$5,'Courbes de Production PV'!$G$6:$AT$8768,'Compensation PV'!A198+2,FALSE)*Données!$G$37) -> 0 | AW176: 0
C177: 1 | D177: 8 | E177: 0 | G177: 0 | H177: 0 | I177: 0 | J177: 0 | K177: 0 | L177: 0 | M177: 0 | N177: 0 | O177: 0 | P177: 0 | Q177: 0 | R177: 0 | S177: 0 | T177: 0 | U177: 0 | V177: 0 | W177: 0 | X177: 0 | Y177: 0 | Z177: 0 | AA177: 0 | AB177: 0 | AC177: 0 | AD177: 0 | AE177: 0 | AF177: 0 | AG177: 0 | AH177: 0 | AI177: 0 | AJ177: 0 | AK177: 0 | AL177: 0 | AM177: 0 | AN177: 0 | AO177: 0 | AP177: 0 | AQ177: 0 | AR177: 0 | AS177: 0 | AT177: 0 | AV177: =IF('Courbes de Production PV'!$C$4="Saisie Manuelle",'Courbes de Production PV'!F177*Données!$G$37,HLOOKUP('Courbes de Production PV'!$C$4&'Courbes de Production PV'!$C$5,'Courbes de Production PV'!$G$6:$AT$8768,'Compensation PV'!A199+2,FALSE)*Données!$G$37) -> 0 | AW177: 0
C178: 1 | D178: 8 | E178: 1 | G178: 0 | H178: 0 | I178: 0 | J178: 0 | K178: 0 | L178: 0 | M178: 0 | N178: 0 | O178: 0 | P178: 0 | Q178: 0 | R178: 0 | S178: 0 | T178: 0 | U178: 0 | V178: 0 | W178: 0 | X178: 0 | Y178: 0 | Z178: 0 | AA178: 0 | AB178: 0 | AC178: 0 | AD178: 0 | AE178: 0 | AF178: 0 | AG178: 0 | AH178: 0 | AI178: 0 | AJ178: 0 | AK178: 0 | AL178: 0 | AM178: 0 | AN178: 0 | AO178: 0 | AP178: 0 | AQ178: 0 | AR178: 0 | AS178: 0 | AT178: 0 | AV178: =IF('Courbes de Production PV'!$C$4="Saisie Manuelle",'Courbes de Production PV'!F178*Données!$G$37,HLOOKUP('Courbes de Production PV'!$C$4&'Courbes de Production PV'!$C$5,'Courbes de Production PV'!$G$6:$AT$8768,'Compensation PV'!A200+2,FALSE)*Données!$G$37) -> 0 | AW178: 0
C179: 1 | D179: 8 | E179: 2 | G179: 0 | H179: 0 | I179: 0 | J179: 0 | K179: 0 | L179: 0 | M179: 0 | N179: 0 | O179: 0 | P179: 0 | Q179: 0 | R179: 0 | S179: 0 | T179: 0 | U179: 0 | V179: 0 | W179: 0 | X179: 0 | Y179: 0 | Z179: 0 | AA179: 0 | AB179: 0 | AC179: 0 | AD179: 0 | AE179: 0 | AF179: 0 | AG179: 0 | AH179: 0 | AI179: 0 | AJ179: 0 | AK179: 0 | AL179: 0 | AM179: 0 | AN179: 0 | AO179: 0 | AP179: 0 | AQ179: 0 | AR179: 0 | AS179: 0 | AT179: 0 | AV179: =IF('Courbes de Production PV'!$C$4="Saisie Manuelle",'Courbes de Production PV'!F179*Données!$G$37,HLOOKUP('Courbes de Production PV'!$C$4&'Courbes de Production PV'!$C$5,'Courbes de Production PV'!$G$6:$AT$8768,'Compensation PV'!A201+2,FALSE)*Données!$G$37) -> 0 | AW179: 0
C180: 1 | D180: 8 | E180: 3 | G180: 0 | H180: 0 | I180: 0 | J180: 0 | K180: 0 | L180: 0 | M180: 0 | N180: 0 | O180: 0 | P180: 0 | Q180: 0 | R180: 0 | S180: 0 | T180: 0 | U180: 0 | V180: 0 | W180: 0 | X180: 0 | Y180: 0 | Z180: 0 | AA180: 0 | AB180: 0 | AC180: 0 | AD180: 0 | AE180: 0 | AF180: 0 | AG180: 0 | AH180: 0 | AI180: 0 | AJ180: 0 | AK180: 0 | AL180: 0 | AM180: 0 | AN180: 0 | AO180: 0 | AP180: 0 | AQ180: 0 | AR180: 0 | AS180: 0 | AT180: 0 | AV180: =IF('Courbes de Production PV'!$C$4="Saisie Manuelle",'Courbes de Production PV'!F180*Données!$G$37,HLOOKUP('Courbes de Production PV'!$C$4&'Courbes de Production PV'!$C$5,'Courbes de Production PV'!$G$6:$AT$8768,'Compensation PV'!A202+2,FALSE)*Données!$G$37) -> 0 | AW180: 0
C181: 1 | D181: 8 | E181: 4 | G181: 0 | H181: 0 | I181: 0 | J181: 0 | K181: 0 | L181: 0 | M181: 0 | N181: 0 | O181: 0 | P181: 0 | Q181: 0 | R181: 0 | S181: 0 | T181: 0 | U181: 0 | V181: 0 | W181: 0 | X181: 0 | Y181: 0 | Z181: 0 | AA181: 0 | AB181: 0 | AC181: 0 | AD181: 0 | AE181: 0 | AF181: 0 | AG181: 0 | AH181: 0 | AI181: 0 | AJ181: 0 | AK181: 0 | AL181: 0 | AM181: 0 | AN181: 0 | AO181: 0 | AP181: 0 | AQ181: 0 | AR181: 0 | AS181: 0 | AT181: 0 | AV181: =IF('Courbes de Production PV'!$C$4="Saisie Manuelle",'Courbes de Production PV'!F181*Données!$G$37,HLOOKUP('Courbes de Production PV'!$C$4&'Courbes de Production PV'!$C$5,'Courbes de Production PV'!$G$6:$AT$8768,'Compensation PV'!A203+2,FALSE)*Données!$G$37) -> 0 | AW181: 0
C182: 1 | D182: 8 | E182: 5 | G182: 0 | H182: 0 | I182: 0 | J182: 0 | K182: 0 | L182: 0 | M182: 0 | N182: 0 | O182: 0 | P182: 0 | Q182: 0 | R182: 0 | S182: 0 | T182: 0 | U182: 0 | V182: 0 | W182: 0 | X182: 0 | Y182: 0 | Z182: 0 | AA182: 0 | AB182: 0 | AC182: 0 | AD182: 0 | AE182: 0 | AF182: 0 | AG182: 0 | AH182: 0 | AI182: 0 | AJ182: 0 | AK182: 0 | AL182: 0 | AM182: 0 | AN182: 0 | AO182: 0 | AP182: 0 | AQ182: 0 | AR182: 0 | AS182: 0 | AT182: 0 | AV182: =IF('Courbes de Production PV'!$C$4="Saisie Manuelle",'Courbes de Production PV'!F182*Données!$G$37,HLOOKUP('Courbes de Production PV'!$C$4&'Courbes de Production PV'!$C$5,'Courbes de Production PV'!$G$6:$AT$8768,'Compensation PV'!A204+2,FALSE)*Données!$G$37) -> 0 | AW182: 0
C183: 1 | D183: 8 | E183: 6 | G183: 0 | H183: 0 | I183: 0 | J183: 0 | K183: 0 | L183: 0 | M183: 0 | N183: 0 | O183: 0 | P183: 0 | Q183: 0 | R183: 0 | S183: 0 | T183: 0 | U183: 0 | V183: 0 | W183: 0 | X183: 0 | Y183: 0 | Z183: 0 | AA183: 0 | AB183: 0 | AC183: 0 | AD183: 0 | AE183: 0 | AF183: 0 | AG183: 0 | AH183: 0 | AI183: 0 | AJ183: 0 | AK183: 0 | AL183: 0 | AM183: 0 | AN183: 0 | AO183: 0 | AP183: 0 | AQ183: 0 | AR183: 0 | AS183: 0 | AT183: 0 | AV183: =IF('Courbes de Production PV'!$C$4="Saisie Manuelle",'Courbes de Production PV'!F183*Données!$G$37,HLOOKUP('Courbes de Production PV'!$C$4&'Courbes de Production PV'!$C$5,'Courbes de Production PV'!$G$6:$AT$8768,'Compensation PV'!A205+2,FALSE)*Données!$G$37) -> 0 | AW183: 0
C184: 1 | D184: 8 | E184: 7 | G184: 0 | H184: 0 | I184: 0 | J184: 0 | K184: 0 | L184: 0 | M184: 0 | N184: 0 | O184: 0 | P184: 0 | Q184: 0 | R184: 0 | S184: 0 | T184: 0 | U184: 0 | V184: 0 | W184: 0 | X184: 0 | Y184: 0 | Z184: 0 | AA184: 0 | AB184: 0 | AC184: 0 | AD184: 0 | AE184: 0 | AF184: 0 | AG184: 0 | AH184: 0 | AI184: 0 | AJ184: 0 | AK184: 0 | AL184: 0 | AM184: 0 | AN184: 0 | AO184: 0 | AP184: 0 | AQ184: 0 | AR184: 0 | AS184: 0 | AT184: 0 | AV184: =IF('Courbes de Production PV'!$C$4="Saisie Manuelle",'Courbes de Production PV'!F184*Données!$G$37,HLOOKUP('Courbes de Production PV'!$C$4&'Courbes de Production PV'!$C$5,'Courbes de Production PV'!$G$6:$AT$8768,'Compensation PV'!A206+2,FALSE)*Données!$G$37) -> 0 | AW184: 0
C185: 1 | D185: 8 | E185: 8 | G185: 0.0458235 | H185: 0.0652404 | I185: 0.0556929 | J185: 0.0382571 | K185: 0.0468136 | L185: 0.0647399 | M185: 0.0554162 | N185: 0.0389779 | O185: 0.045985 | P185: 0.0660874 | Q185: 0.0560039 | R185: 0.0380139 | S185: 0.0469242 | T185: 0.0609625 | U185: 0.0535962 | V185: 0.0398984 | W185: 0.0464867 | X185: 0.0642586 | Y185: 0.0553302 | Z185: 0.0390415 | AA185: 0.0465767 | AB185: 0.063343 | AC185: 0.054956 | AD185: 0.0393806 | AE185: 0.0469506 | AF185: 0.0623816 | AG185: 0.0544734 | AH185: 0.0398022 | AI185: 0.0471494 | AJ185: 0.0602285 | AK185: 0.0531524 | AL185: 0.0401174 | AM185: 0.0463749 | AN185: 0.0644481 | AO185: 0.0549589 | AP185: 0.0384422 | AQ185: 0.0458913 | AR185: 0.0632928 | AS185: 0.0546113 | AT185: 0.038638 | AV185: =IF('Courbes de Production PV'!$C$4="Saisie Manuelle",'Courbes de Production PV'!F185*Données!$G$37,HLOOKUP('Courbes de Production PV'!$C$4&'Courbes de Production PV'!$C$5,'Courbes de Production PV'!$G$6:$AT$8768,'Compensation PV'!A207+2,FALSE)*Données!$G$37) -> 5.46113 | AW185: 5.46113
C186: 1 | D186: 8 | E186: 9 | G186: 0.136833 | H186: 0.211105 | I186: 0.189118 | J186: 0.12853 | K186: 0.145799 | L186: 0.225017 | M186: 0.199816 | N186: 0.134035 | O186: 0.136364 | P186: 0.208654 | Q186: 0.186152 | R186: 0.126602 | S186: 0.1489 | T186: 0.22482 | U186: 0.202153 | V186: 0.139221 | W186: 0.145424 | X186: 0.226738 | Y186: 0.202576 | Z186: 0.136 | AA186: 0.146278 | AB186: 0.227075 | AC186: 0.203701 | AD186: 0.137732 | AE186: 0.14839 | AF186: 0.227283 | AG186: 0.204045 | AH186: 0.139128 | AI186: 0.148871 | AJ186: 0.22147 | AK186: 0.19911 | AL186: 0.138349 | AM186: 0.144542 | AN186: 0.223016 | AO186: 0.197475 | AP186: 0.132029 | AQ186: 0.137526 | AR186: 0.209821 | AS186: 0.188541 | AT186: 0.1294 | AV186: =IF('Courbes de Production PV'!$C$4="Saisie Manuelle",'Courbes de Production PV'!F186*Données!$G$37,HLOOKUP('Courbes de Production PV'!$C$4&'Courbes de Production PV'!$C$5,'Courbes de Production PV'!$G$6:$AT$8768,'Compensation PV'!A208+2,FALSE)*Données!$G$37) -> 18.8541 | AW186: 18.8541
C187: 1 | D187: 8 | E187: 10 | G187: 0.238861 | H187: 0.370395 | I187: 0.356082 | J187: 0.261003 | K187: 0.269693 | L187: 0.415698 | M187: 0.395919 | N187: 0.28748 | O187: 0.236247 | P187: 0.363324 | Q187: 0.347281 | R187: 0.254131 | S187: 0.278726 | T187: 0.421655 | U187: 0.406055 | V187: 0.301062 | W187: 0.269516 | X187: 0.419535 | Y187: 0.402872 | Z187: 0.293712 | AA187: 0.271614 | AB187: 0.421463 | AC187: 0.406309 | AD187: 0.297933 | AE187: 0.27718 | AF187: 0.424775 | AG187: 0.409129 | AH187: 0.301486 | AI187: 0.276988 | AJ187: 0.414027 | AK187: 0.397745 | AL187: 0.295998 | AM187: 0.267834 | AN187: 0.412264 | AO187: 0.391413 | AP187: 0.28338 | AQ187: 0.240676 | AR187: 0.370135 | AS187: 0.35645 | AT187: 0.262818 | AV187: =IF('Courbes de Production PV'!$C$4="Saisie Manuelle",'Courbes de Production PV'!F187*Données!$G$37,HLOOKUP('Courbes de Production PV'!$C$4&'Courbes de Production PV'!$C$5,'Courbes de Production PV'!$G$6:$AT$8768,'Compensation PV'!A209+2,FALSE)*Données!$G$37) -> 35.645 | AW187: 35.645
C188: 1 | D188: 8 | E188: 11 | G188: 0.315401 | H188: 0.472958 | I188: 0.492919 | J188: 0.397238 | K188: 0.372484 | L188: 0.548063 | M188: 0.565269 | N188: 0.45449 | O188: 0.310849 | P188: 0.463445 | Q188: 0.479457 | R188: 0.384985 | S188: 0.385209 | T188: 0.555803 | U188: 0.579556 | V188: 0.474218 | W188: 0.371371 | X188: 0.551188 | Y188: 0.574148 | Z188: 0.464024 | AA188: 0.373938 | AB188: 0.553198 | AC188: 0.578637 | AD188: 0.469942 | AE188: 0.38292 | AF188: 0.559416 | AG188: 0.584004 | AH188: 0.475906 | AI188: 0.381472 | AJ188: 0.545264 | AK188: 0.566479 | AL188: 0.463929 | AM188: 0.370713 | AN188: 0.544443 | AO188: 0.559474 | AP188: 0.448748 | AQ188: 0.317952 | AR188: 0.47304 | AS188: 0.493655 | AT188: 0.399557 | AV188: =IF('Courbes de Production PV'!$C$4="Saisie Manuelle",'Courbes de Production PV'!F188*Données!$G$37,HLOOKUP('Courbes de Production PV'!$C$4&'Courbes de Production PV'!$C$5,'Courbes de Production PV'!$G$6:$AT$8768,'Compensation PV'!A210+2,FALSE)*Données!$G$37) -> 49.3655 | AW188: 49.3655
C189: 1 | D189: 8 | E189: 12 | G189: 0.344344 | H189: 0.4783 | I189: 0.545422 | J189: 0.483453 | K189: 0.417646 | L189: 0.570205 | M189: 0.641287 | N189: 0.567982 | O189: 0.340207 | P189: 0.47026 | Q189: 0.531316 | R189: 0.468938 | S189: 0.428301 | T189: 0.573258 | U189: 0.652413 | V189: 0.586358 | W189: 0.413446 | X189: 0.568587 | Y189: 0.647299 | Z189: 0.57646 | AA189: 0.41504 | AB189: 0.568946 | AC189: 0.650804 | AD189: 0.582003 | AE189: 0.426095 | AF189: 0.577038 | AG189: 0.658069 | AH189: 0.589805 | AI189: 0.424502 | AJ189: 0.5637 | AK189: 0.638508 | AL189: 0.573703 | AM189: 0.416212 | AN189: 0.566934 | AO189: 0.634803 | AP189: 0.561084 | AQ189: 0.346793 | AR189: 0.477883 | AS189: 0.545525 | AT189: 0.485204 | AV189: =IF('Courbes de Production PV'!$C$4="Saisie Manuelle",'Courbes de Production PV'!F189*Données!$G$37,HLOOKUP('Courbes de Production PV'!$C$4&'Courbes de Production PV'!$C$5,'Courbes de Production PV'!$G$6:$AT$8768,'Compensation PV'!A211+2,FALSE)*Données!$G$37) -> 54.5525 | AW189: 54.5525
C190: 1 | D190: 8 | E190: 13 | G190: 0.325191 | H190: 0.412478 | I190: 0.524802 | J190: 0.507539 | K190: 0.397639 | L190: 0.497049 | M190: 0.620868 | N190: 0.599025 | O190: 0.323217 | P190: 0.408611 | Q190: 0.513025 | R190: 0.493715 | S190: 0.403545 | T190: 0.494209 | U190: 0.627087 | V190: 0.61309 | W190: 0.39034 | X190: 0.490598 | Y190: 0.623394 | Z190: 0.605142 | AA190: 0.390328 | AB190: 0.488752 | AC190: 0.62514 | AD190: 0.609263 | AE190: 0.401225 | AF190: 0.496798 | AG190: 0.632502 | AH190: 0.617224 | AI190: 0.401083 | AJ190: 0.487778 | AK190: 0.614549 | AL190: 0.600296 | AM190: 0.397497 | AN190: 0.496038 | AO190: 0.615861 | AP190: 0.59287 | AQ190: 0.327042 | AR190: 0.411641 | AS190: 0.524313 | AT190: 0.508496 | AV190: =IF('Courbes de Production PV'!$C$4="Saisie Manuelle",'Courbes de Production PV'!F190*Données!$G$37,HLOOKUP('Courbes de Production PV'!$C$4&'Courbes de Production PV'!$C$5,'Courbes de Production PV'!$G$6:$AT$8768,'Compensation PV'!A212+2,FALSE)*Données!$G$37) -> 52.4313 | AW190: 52.4313
C191: 1 | D191: 8 | E191: 14 | G191: 0.253355 | H191: 0.287402 | I191: 0.43008 | J191: 0.455223 | K191: 0.312768 | L191: 0.351821 | M191: 0.512233 | N191: 0.539344 | O191: 0.254511 | P191: 0.289039 | Q191: 0.422799 | R191: 0.444506 | S191: 0.312717 | T191: 0.342692 | U191: 0.512281 | V191: 0.547023 | W191: 0.302671 | X191: 0.340404 | Y191: 0.510134 | Z191: 0.541586 | AA191: 0.30094 | AB191: 0.336379 | AC191: 0.509739 | AD191: 0.543659 | AE191: 0.310328 | AF191: 0.343494 | AG191: 0.51648 | AH191: 0.550977 | AI191: 0.31276 | AJ191: 0.341187 | AK191: 0.50355 | AL191: 0.536604 | AM191: 0.313925 | AN191: 0.353177 | AO191: 0.509286 | AP191: 0.534645 | AQ191: 0.254434 | AR191: 0.286287 | AS191: 0.429127 | AT191: 0.455379 | AV191: =IF('Courbes de Production PV'!$C$4="Saisie Manuelle",'Courbes de Production PV'!F191*Données!$G$37,HLOOKUP('Courbes de Production PV'!$C$4&'Courbes de Production PV'!$C$5,'Courbes de Production PV'!$G$6:$AT$8768,'Compensation PV'!A213+2,FALSE)*Données!$G$37) -> 42.9127 | AW191: 42.9127
C192: 1 | D192: 8 | E192: 15 | G192: 0.145455 | H192: 0.13631 | I192: 0.276202 | J192: 0.327911 | K192: 0.181241 | L192: 0.169096 | M192: 0.32768 | N192: 0.38506 | O192: 0.1489 | P192: 0.141793 | Q192: 0.273894 | R192: 0.32148 | S192: 0.176765 | T192: 0.157423 | U192: 0.32364 | V192: 0.38764 | W192: 0.171004 | X192: 0.156562 | Y192: 0.32345 | Z192: 0.385624 | AA192: 0.168377 | AB192: 0.151937 | AC192: 0.321804 | AD192: 0.386307 | AE192: 0.174642 | AF192: 0.156677 | AG192: 0.326263 | AH192: 0.390994 | AI192: 0.179001 | AJ192: 0.160058 | AK192: 0.31922 | AL192: 0.380397 | AM192: 0.183184 | AN192: 0.171898 | AO192: 0.32674 | AP192: 0.382089 | AQ192: 0.14579 | AR192: 0.135273 | AS192: 0.275131 | AT192: 0.32753 | AV192: =IF('Courbes de Production PV'!$C$4="Saisie Manuelle",'Courbes de Production PV'!F192*Données!$G$37,HLOOKUP('Courbes de Production PV'!$C$4&'Courbes de Production PV'!$C$5,'Courbes de Production PV'!$G$6:$AT$8768,'Compensation PV'!A214+2,FALSE)*Données!$G$37) -> 27.5131 | AW192: 27.5131
C193: 1 | D193: 8 | E193: 16 | G193: 0.0379629 | H193: 0.0303546 | I193: 0.0515196 | J193: 0.0640193 | K193: 0.0406623 | L193: 0.0325155 | M193: 0.058349 | N193: 0.0727482 | O193: 0.0387829 | P193: 0.0317027 | Q193: 0.0499299 | R193: 0.0603161 | S193: 0.0392492 | T193: 0.0303713 | U193: 0.0578654 | V193: 0.0741921 | W193: 0.0390314 | X193: 0.0303632 | Y193: 0.0589538 | Z193: 0.0756574 | AA193: 0.0385997 | AB193: 0.0296026 | AC193: 0.0593363 | AD193: 0.0771011 | AE193: 0.0392189 | AF193: 0.0302645 | AG193: 0.0588977 | AH193: 0.0759223 | AI193: 0.039916 | AJ193: 0.0312647 | AK193: 0.0571279 | AL193: 0.0722453 | AM193: 0.0406201 | AN193: 0.0326859 | AO193: 0.0576359 | AP193: 0.0713173 | AQ193: 0.0378924 | AR193: 0.0302186 | AS193: 0.0512539 | AT193: 0.0638033 | AV193: =IF('Courbes de Production PV'!$C$4="Saisie Manuelle",'Courbes de Production PV'!F193*Données!$G$37,HLOOKUP('Courbes de Production PV'!$C$4&'Courbes de Production PV'!$C$5,'Courbes de Production PV'!$G$6:$AT$8768,'Compensation PV'!A215+2,FALSE)*Données!$G$37) -> 5.12539 | AW193: 5.12539
C194: 1 | D194: 8 | E194: 17 | G194: 0 | H194: 0 | I194: 0 | J194: 0 | K194: 0 | L194: 0 | M194: 0 | N194: 0 | O194: 0 | P194: 0 | Q194: 0 | R194: 0 | S194: 0 | T194: 0 | U194: 0 | V194: 0 | W194: 0 | X194: 0 | Y194: 0 | Z194: 0 | AA194: 0 | AB194: 0 | AC194: 0 | AD194: 0 | AE194: 0 | AF194: 0 | AG194: 0 | AH194: 0 | AI194: 0 | AJ194: 0 | AK194: 0 | AL194: 0 | AM194: 0 | AN194: 0 | AO194: 0 | AP194: 0 | AQ194: 0 | AR194: 0 | AS194: 0 | AT194: 0 | AV194: =IF('Courbes de Production PV'!$C$4="Saisie Manuelle",'Courbes de Production PV'!F194*Données!$G$37,HLOOKUP('Courbes de Production PV'!$C$4&'Courbes de Production PV'!$C$5,'Courbes de Production PV'!$G$6:$AT$8768,'Compensation PV'!A216+2,FALSE)*Données!$G$37) -> 0 | AW194: 0
C195: 1 | D195: 8 | E195: 18 | G195: 0 | H195: 0 | I195: 0 | J195: 0 | K195: 0 | L195: 0 | M195: 0 | N195: 0 | O195: 0 | P195: 0 | Q195: 0 | R195: 0 | S195: 0 | T195: 0 | U195: 0 | V195: 0 | W195: 0 | X195: 0 | Y195: 0 | Z195: 0 | AA195: 0 | AB195: 0 | AC195: 0 | AD195: 0 | AE195: 0 | AF195: 0 | AG195: 0 | AH195: 0 | AI195: 0 | AJ195: 0 | AK195: 0 | AL195: 0 | AM195: 0 | AN195: 0 | AO195: 0 | AP195: 0 | AQ195: 0 | AR195: 0 | AS195: 0 | AT195: 0 | AV195: =IF('Courbes de Production PV'!$C$4="Saisie Manuelle",'Courbes de Production PV'!F195*Données!$G$37,HLOOKUP('Courbes de Production PV'!$C$4&'Courbes de Production PV'!$C$5,'Courbes de Production PV'!$G$6:$AT$8768,'Compensation PV'!A217+2,FALSE)*Données!$G$37) -> 0 | AW195: 0
C196: 1 | D196: 8 | E196: 19 | G196: 0 | H196: 0 | I196: 0 | J196: 0 | K196: 0 | L196: 0 | M196: 0 | N196: 0 | O196: 0 | P196: 0 | Q196: 0 | R196: 0 | S196: 0 | T196: 0 | U196: 0 | V196: 0 | W196: 0 | X196: 0 | Y196: 0 | Z196: 0 | AA196: 0 | AB196: 0 | AC196: 0 | AD196: 0 | AE196: 0 | AF196: 0 | AG196: 0 | AH196: 0 | AI196: 0 | AJ196: 0 | AK196: 0 | AL196: 0 | AM196: 0 | AN196: 0 | AO196: 0 | AP196: 0 | AQ196: 0 | AR196: 0 | AS196: 0 | AT196: 0 | AV196: =IF('Courbes de Production PV'!$C$4="Saisie Manuelle",'Courbes de Production PV'!F196*Données!$G$37,HLOOKUP('Courbes de Production PV'!$C$4&'Courbes de Production PV'!$C$5,'Courbes de Production PV'!$G$6:$AT$8768,'Compensation PV'!A218+2,FALSE)*Données!$G$37) -> 0 | AW196: 0
C197: 1 | D197: 8 | E197: 20 | G197: 0 | H197: 0 | I197: 0 | J197: 0 | K197: 0 | L197: 0 | M197: 0 | N197: 0 | O197: 0 | P197: 0 | Q197: 0 | R197: 0 | S197: 0 | T197: 0 | U197: 0 | V197: 0 | W197: 0 | X197: 0 | Y197: 0 | Z197: 0 | AA197: 0 | AB197: 0 | AC197: 0 | AD197: 0 | AE197: 0 | AF197: 0 | AG197: 0 | AH197: 0 | AI197: 0 | AJ197: 0 | AK197: 0 | AL197: 0 | AM197: 0 | AN197: 0 | AO197: 0 | AP197: 0 | AQ197: 0 | AR197: 0 | AS197: 0 | AT197: 0 | AV197: =IF('Courbes de Production PV'!$C$4="Saisie Manuelle",'Courbes de Production PV'!F197*Données!$G$37,HLOOKUP('Courbes de Production PV'!$C$4&'Courbes de Production PV'!$C$5,'Courbes de Production PV'!$G$6:$AT$8768,'Compensation PV'!A219+2,FALSE)*Données!$G$37) -> 0 | AW197: 0
C198: 1 | D198: 8 | E198: 21 | G198: 0 | H198: 0 | I198: 0 | J198: 0 | K198: 0 | L198: 0 | M198: 0 | N198: 0 | O198: 0 | P198: 0 | Q198: 0 | R198: 0 | S198: 0 | T198: 0 | U198: 0 | V198: 0 | W198: 0 | X198: 0 | Y198: 0 | Z198: 0 | AA198: 0 | AB198: 0 | AC198: 0 | AD198: 0 | AE198: 0 | AF198: 0 | AG198: 0 | AH198: 0 | AI198: 0 | AJ198: 0 | AK198: 0 | AL198: 0 | AM198: 0 | AN198: 0 | AO198: 0 | AP198: 0 | AQ198: 0 | AR198: 0 | AS198: 0 | AT198: 0 | AV198: =IF('Courbes de Production PV'!$C$4="Saisie Manuelle",'Courbes de Production PV'!F198*Données!$G$37,HLOOKUP('Courbes de Production PV'!$C$4&'Courbes de Production PV'!$C$5,'Courbes de Production PV'!$G$6:$AT$8768,'Compensation PV'!A220+2,FALSE)*Données!$G$37) -> 0 | AW198: 0
C199: 1 | D199: 8 | E199: 22 | G199: 0 | H199: 0 | I199: 0 | J199: 0 | K199: 0 | L199: 0 | M199: 0 | N199: 0 | O199: 0 | P199: 0 | Q199: 0 | R199: 0 | S199: 0 | T199: 0 | U199: 0 | V199: 0 | W199: 0 | X199: 0 | Y199: 0 | Z199: 0 | AA199: 0 | AB199: 0 | AC199: 0 | AD199: 0 | AE199: 0 | AF199: 0 | AG199: 0 | AH199: 0 | AI199: 0 | AJ199: 0 | AK199: 0 | AL199: 0 | AM199: 0 | AN199: 0 | AO199: 0 | AP199: 0 | AQ199: 0 | AR199: 0 | AS199: 0 | AT199: 0 | AV199: =IF('Courbes de Production PV'!$C$4="Saisie Manuelle",'Courbes de Production PV'!F199*Données!$G$37,HLOOKUP('Courbes de Production PV'!$C$4&'Courbes de Production PV'!$C$5,'Courbes de Production PV'!$G$6:$AT$8768,'Compensation PV'!A221+2,FALSE)*Données!$G$37) -> 0 | AW199: 0
